Workbook

Sheet Multisplit
A1: =MID(CELL("filename",A1),FIND("]",CELL("filename",A1))+1,31) -> Multisplit | B1: vyplňujte modrá pole | D1: Zpět zadání | E1: Zpět Count | Q1: v případě chyby či dotazu kontaktujte: | U1: novak.martin@daikin.cz | Y1: =Custom!B2 -> 0 | Z1: =Custom!B1 -> 0 | AY1: Perfera
X2: sloupec | Y2: řádek | AC2: =LEFT(AF2,1) -> 2 | AF2: 2MXM40M | AG2: V1 | AH2: vykonovy index | AI2: cislo indexu | AJ2: serazeni | AK2: text pro sestavu | AM2: Comfora | AN2: Podstropní | AO2: FBA | AS2: Celkem jednotek | AU2: 2V1B9 | AV2: =CONCATENATE(B17,AU2) -> 5MXM90A92V1B9 | AW2: max. Délka | AY2: 2V1B9
B3: vypisujte postupně | C3: požadovaný výkon (kW) | D3: navrhovaný výkon | G3: průměr potrubí | I3: délka potrubí (m) | M3: typ jednotky | P3: označení | R3: základní příslušenství | V3: Připojení | X3: =IFERROR(MATCH(AH3,data2!$B$2:$I$2,0),"") -> 4 | Y3: =IFERROR(MATCH(M4,data2!$A$3:$A$16,0),"") -> 7 | Z3: =IF(C4>0,"1","") -> 1 | AA3: =IFERROR(Z3*I4,"0") -> 0 | AC3: 2 | AD3: r | AF3: 2MXM50M9 | AG3: V2 | AH3: =IF(C4>0,VLOOKUP(C4,$AH$13:$AK$22,4,1),"") -> 3.5 | AI3: =IFERROR(VALUE(AH3),"") -> 3.5 | AJ3: =IFERROR(SMALL($AI$3:$AI$7,1),"") -> 2 | AK3: =IF(AJ3=2,"2,0",(IF(AJ3=5,"5,0",IF(AJ3=6,"6,0",AJ3)))) -> 2,0 | AM3: =IF(M4="comfora",1*C4,0) -> 3 | AN3: =IF(M4="Podstropní",1*C4,0) -> 0 | AO3: =IF(M4="Kanálovka Střední",1*C4,0) -> 0 | AS3: =IF(C4>0,1,0) -> 1 | AU3: =IF(M4="comfora","5V1B9","5V1B") -> 5V1B9 | AV3: =CONCATENATE(P4,AU3) -> FTXP35N95V1B9 | AW3: =IF(J4="!Překročena max. délka!",1,0) -> 0 | AY3: =IF(M4="comfora","5V1B9","5V1B") -> 5V1B9
C4: 3 | D4: =IF(C4>0,VLOOKUP(C4,$AH$13:$AK$22,2,1),"") -> 3,5kW | G4: =IF(LEFT(P4,6)="FTXA42","6,35x9,5 mm",IF(AND(D4="4,2kW",M4="Perfera"),"6,35x9,5mm",IF(C4>0,VLOOKUP(C4,$AH$13:$AK$22,3,1),""))) -> 6,35x9,5mm | J4: =IF(C4<>0,IF(I4<=25,(IF(I4<=15,"OK","pouze 2MXM68A a větší")),"!Překročena max. délka!"),"") -> OK | M4: Comfora | P4: =IFERROR((INDEX(data2!$B$3:$I$16,Multisplit!Y3,X3)),"") -> FTXP35N9 | R4: =IF(AND(U4="RTD-RA",T4="kabelový"),"Nelze kom. RTD a ovl.",IF(T4="infra",IFERROR(VLOOKUP(P4,data2!$B$20:$E$83,4,FALSE),""),IFERROR(VLOOKUP(P4,data2!$B$20:$E$83,2,FALSE),""))) ->  | S4: =IF(R4="BRC073","BRCW901A08",IFERROR(VLOOKUP(P4,data2!$B$20:$E$83,3,FALSE),"")) ->  | T4: infra | U4: =IF(AS3=1,IF(AND(V4=$H$106,BD4="Split"),"RTD-RA",IF(AND(V4=$H$106,BD4="Skyair"),"EKMBPP1",IF(AND(V4=$H$107,BD4="Split"),"KRP928A2S",IF(AND(V4=$H$107,BD4="Skyair"),"","")))),"") ->  | V4: Žádné | W4: =IF(M4="Comfora","pouze 2MXM, 3MXM52 a 3MXM68",(IF(M4="Kazeta 600x600","nelze 2MXM40M",(IF(M4="Kazeta 900x900","nelze 2MXM*",(IF(M4="Parapetní neopláštěná","nelze 2MXM*",(IF(M4="Podstropní","nelze 2MXM*",IF(M4="Kanálovka Střední","nelze 2MXM*","")))))))))) -> pouze 2MXM, 3MXM52 a 3MXM68 | X4: =IFERROR(MATCH(AH4,data2!$B$2:$I$2,0),"") -> 4 | Y4: =IFERROR(MATCH(M5,data2!$A$3:$A$16,0),"") -> 7 | Z4: =IF(C5>0,"1","") -> 1 | AA4: =IFERROR(Z4*I5,"0") -> 0 | AC4: 3 | AD4: r | AF4: 3MXM40N | AG4: V3 | AH4: =IF(C5>0,VLOOKUP(C5,$AH$13:$AK$22,4,1),"") -> 3.5 | AI4: =IFERROR(VALUE(AH4),"") -> 3.5 | AJ4: =IFERROR(SMALL($AI$3:$AI$7,2),"") -> 2 | AK4: =IF(C5>0,IF(AJ4=2,"+2,0",(IF(AJ4=5,"+5,0",IF(AJ4=6,"+6,0",CONCATENATE("+",AJ4))))),"") -> +2,0 | AM4: =IF(M5="comfora",1*C5,0) -> 3 | AN4: 0 | AO4: 0 | AS4: =IF(C5>0,1,0) -> 1 | AU4: 5V1B9 | AV4: FTXP35N95V1B9 | AW4: 0 | AY4: 5V1B9 | BD4: =VLOOKUP(M4,$AN$13:$AO$29,2,FALSE) -> Split | CM4: =IF(R4="Nelze kom. RTD a ovl.",1,0) -> 0
C5: 3 | D5: =IF(C5>0,VLOOKUP(C5,$AH$13:$AK$22,2,1),"") -> 3,5kW | G5: =IF(LEFT(P5,6)="FTXA42","6,35x9,5 mm",IF(AND(D5="4,2kW",M5="Perfera"),"6,35x9,5mm",IF(C5>0,VLOOKUP(C5,$AH$13:$AK$22,3,1),""))) -> 6,35x9,5mm | J5: =IF(C5<>0,IF(I5<=25,(IF(I5<=15,"OK","pouze 2MXM68A a větší")),"!Překročena max. délka!"),"") -> OK | M5: Comfora | P5: =IFERROR((INDEX(data2!$B$3:$I$16,Multisplit!Y4,X4)),"") -> FTXP35N9 | R5: =IF(AND(U5="RTD-RA",T5="kabelový"),"Nelze kom. RTD a ovl.",IF(T5="infra",IFERROR(VLOOKUP(P5,data2!$B$20:$E$83,4,FALSE),""),IFERROR(VLOOKUP(P5,data2!$B$20:$E$83,2,FALSE),""))) ->  | S5: =IF(R5="BRC073","BRCW901A08",IFERROR(VLOOKUP(P5,data2!$B$20:$E$83,3,FALSE),"")) ->  | T5: infra | U5: =IF(AS4=1,IF(AND(V5=$H$106,BD5="Split"),"RTD-RA",IF(AND(V5=$H$106,BD5="Skyair"),"EKMBPP1",IF(AND(V5=$H$107,BD5="Split"),"KRP928A2S",IF(AND(V5=$H$107,BD5="Skyair"),"","")))),"") ->  | V5: Žádné | W5: =IF(M5="Comfora","pouze 2MXM, 3MXM52 a 3MXM68",(IF(M5="Kazeta 600x600","nelze 2MXM40M",(IF(M5="Kazeta 900x900","nelze 2MXM*",(IF(M5="Parapetní neopláštěná","nelze 2MXM*",(IF(M5="Podstropní","nelze 2MXM*",IF(M5="Kanálovka Střední","nelze 2MXM*","")))))))))) -> pouze 2MXM, 3MXM52 a 3MXM68 | X5: =IFERROR(MATCH(AH5,data2!$B$2:$I$2,0),"") -> 2 | Y5: =IFERROR(MATCH(M6,data2!$A$3:$A$16,0),"") -> 7 | Z5: =IF(C6>0,"1","") -> 1 | AA5: =IFERROR(Z5*I6,"0") -> 0 | AC5: 3 | AF5: 3MXM52N | AG5: V4 | AH5: =IF(C6>0,VLOOKUP(C6,$AH$13:$AK$22,4,1),"") -> 2 | AI5: =IFERROR(VALUE(AH5),"") -> 2 | AJ5: =IFERROR(SMALL($AI$3:$AI$7,3),"") -> 2 | AK5: =IF(C6>0,IF(AJ5=2,"+2,0",(IF(AJ5=5,"+5,0",IF(AJ5=6,"+6,0",CONCATENATE("+",AJ5))))),"") -> +2,0 | AM5: 2 | AN5: 0 | AO5: 0 | AS5: =IF(C6>0,1,0) -> 1 | AU5: 5V1B9 | AV5: FTXP20N95V1B9 | AW5: 0 | AY5: 5V1B9 | BD5: =VLOOKUP(M5,$AN$13:$AO$29,2,FALSE) -> Split | CM5: =IF(R5="Nelze kom. RTD a ovl.",1,0) -> 0
C6: 2 | D6: =IF(C6>0,VLOOKUP(C6,$AH$13:$AK$22,2,1),"") -> 2,0kW | G6: 6,35x9,5mm | J6: =IF(C6<>0,IF(I6<=25,(IF(I6<=15,"OK","pouze 3MXM a větší")),"!Překročena max. délka!"),"") -> OK | M6: Comfora | P6: =IFERROR((INDEX(data2!$B$3:$I$16,Multisplit!Y5,X5)),"") -> FTXP20N9 | R6: =IF(AND(U6="RTD-RA",T6="kabelový"),"Nelze kom. RTD a ovl.",IF(T6="infra",IFERROR(VLOOKUP(P6,data2!$B$20:$E$83,4,FALSE),""),IFERROR(VLOOKUP(P6,data2!$B$20:$E$83,2,FALSE),""))) ->  | S6: =IF(R6="BRC073","BRCW901A08",IFERROR(VLOOKUP(P6,data2!$B$20:$E$83,3,FALSE),"")) ->  | T6: infra | U6: =IF(AS5=1,IF(AND(V6=$H$106,BD6="Split"),"RTD-RA",IF(AND(V6=$H$106,BD6="Skyair"),"EKMBPP1",IF(AND(V6=$H$107,BD6="Split"),"KRP928A2S",IF(AND(V6=$H$107,BD6="Skyair"),"","")))),"") ->  | V6: Žádné | W6: =IF(M6="Comfora","pouze 2MXM, 3MXM52 a 3MXM68",(IF(M6="Kazeta 600x600","nelze 2MXM40M",(IF(M6="Kazeta 900x900","nelze 2MXM*",(IF(M6="Parapetní neopláštěná","nelze 2MXM*",(IF(M6="Podstropní","nelze 2MXM*",IF(M6="Kanálovka Střední","nelze 2MXM*","")))))))))) -> pouze 2MXM, 3MXM52 a 3MXM68 | X6: =IFERROR(MATCH(AH6,data2!$B$2:$I$2,0),"") -> 2 | Y6: =IFERROR(MATCH(M7,data2!$A$3:$A$16,0),"") -> 7 | Z6: =IF(C7>0,"1","") -> 1 | AA6: =IFERROR(Z6*I7,"0") -> 0 | AC6: 3 | AD6: M custom | AF6: 3MXM68N | AG6: V5 | AH6: =IF(C7>0,VLOOKUP(C7,$AH$13:$AK$22,4,1),"") -> 2 | AI6: =IFERROR(VALUE(AH6),"") -> 2 | AJ6: =IFERROR(SMALL($AI$3:$AI$7,4),"") -> 3.5 | AK6: =IF(C7>0,IF(AJ6=2,"+2,0",(IF(AJ6=5,"+5,0",IF(AJ6=6,"+6,0",CONCATENATE("+",AJ6))))),"") -> +3,5 | AM6: 2 | AN6: 0 | AO6: 0 | AS6: =IF(C7>0,1,0) -> 1 | AU6: 5V1B9 | AV6: FTXP20N95V1B9 | AW6: 0 | AY6: 5V1B9 | BD6: =VLOOKUP(M6,$AN$13:$AO$29,2,FALSE) -> Split | CM6: =IF(R6="Nelze kom. RTD a ovl.",1,0) -> 0
B7: ="" ->  | C7: 2 | D7: =IF(C7>0,VLOOKUP(C7,$AH$13:$AK$22,2,1),"") -> 2,0kW | G7: 6,35x9,5mm | J7: =IF(C7<>0,IF(I7<=25,(IF(I7<=15,"OK","pouze 3MXM a větší")),"!Překročena max. délka!"),"") -> OK | M7: Comfora | P7: =IFERROR((INDEX(data2!$B$3:$I$16,Multisplit!Y6,X6)),"") -> FTXP20N9 | R7: =IF(AND(U7="RTD-RA",T7="kabelový"),"Nelze kom. RTD a ovl.",IF(T7="infra",IFERROR(VLOOKUP(P7,data2!$B$20:$E$83,4,FALSE),""),IFERROR(VLOOKUP(P7,data2!$B$20:$E$83,2,FALSE),""))) ->  | S7: =IF(R7="BRC073","BRCW901A08",IFERROR(VLOOKUP(P7,data2!$B$20:$E$83,3,FALSE),"")) ->  | T7: infra | U7: =IF(AS6=1,IF(AND(V7=$H$106,BD7="Split"),"RTD-RA",IF(AND(V7=$H$106,BD7="Skyair"),"EKMBPP1",IF(AND(V7=$H$107,BD7="Split"),"KRP928A2S",IF(AND(V7=$H$107,BD7="Skyair"),"","")))),"") ->  | V7: Žádné | W7: =IF(M7="Comfora","pouze 2MXM, 3MXM52 a 3MXM68",(IF(M7="Kazeta 600x600","nelze 2MXM40M",(IF(M7="Kazeta 900x900","nelze 2MXM*",(IF(M7="Parapetní neopláštěná","nelze 2MXM*",(IF(M7="Podstropní","nelze 2MXM*",IF(M7="Kanálovka Střední","nelze 2MXM*","")))))))))) -> pouze 2MXM, 3MXM52 a 3MXM68 | X7: =IFERROR(MATCH(AH7,data2!$B$2:$I$2,0),"") -> 2 | Y7: =IFERROR(MATCH(M8,data2!$A$3:$A$16,0),"") -> 7 | Z7: =IF(C8>0,"1","") -> 1 | AA7: =IFERROR(Z7*I8,"0") -> 0 | AC7: 4 | AF7: 4MXM68N | AG7: V6 | AH7: =IF(C8>0,VLOOKUP(C8,$AH$13:$AK$22,4,1),"") -> 2 | AI7: =IFERROR(VALUE(AH7),"") -> 2 | AJ7: =IFERROR(SMALL($AI$3:$AI$7,5),"") -> 3.5 | AK7: =IF(C8>0,IF(AJ7=2,"+2,0",(IF(AJ7=5,"+5,0",IF(AJ7=6,"+6,0",CONCATENATE("+",AJ7))))),"") -> +3,5 | AM7: 2 | AN7: 0 | AO7: 0 | AS7: =IF(C8>0,1,0) -> 1 | AU7: 5V1B9 | AV7: FTXP20N95V1B9 | AW7: 0 | AY7: 5V1B9 | BD7: =VLOOKUP(M7,$AN$13:$AO$29,2,FALSE) -> Split | CM7: =IF(R7="Nelze kom. RTD a ovl.",1,0) -> 0
B8: ="" ->  | C8: 2 | D8: =IF(C8>0,VLOOKUP(C8,$AH$13:$AK$22,2,1),"") -> 2,0kW | G8: 6,35x9,5mm | J8: =IF(C8<>0,IF(I8<=25,(IF(I8<=15,"OK","pouze 3MXM a větší")),"!Překročena max. délka!"),"") -> OK | M8: Comfora | P8: =IFERROR((INDEX(data2!$B$3:$I$16,Multisplit!Y7,X7)),"") -> FTXP20N9 | R8: =IF(AND(U8="RTD-RA",T8="kabelový"),"Nelze kom. RTD a ovl.",IF(T8="infra",IFERROR(VLOOKUP(P8,data2!$B$20:$E$83,4,FALSE),""),IFERROR(VLOOKUP(P8,data2!$B$20:$E$83,2,FALSE),""))) ->  | S8: =IF(R8="BRC073","BRCW901A08",IFERROR(VLOOKUP(P8,data2!$B$20:$E$83,3,FALSE),"")) ->  | T8: infra | U8: =IF(AS7=1,IF(AND(V8=$H$106,BD8="Split"),"RTD-RA",IF(AND(V8=$H$106,BD8="Skyair"),"EKMBPP1",IF(AND(V8=$H$107,BD8="Split"),"KRP928A2S",IF(AND(V8=$H$107,BD8="Skyair"),"","")))),"") ->  | V8: Žádné | W8: =IF(M8="Comfora","pouze 2MXM, 3MXM52 a 3MXM68",(IF(M8="Kazeta 600x600","nelze 2MXM40M",(IF(M8="Kazeta 900x900","nelze 2MXM*",(IF(M8="Parapetní neopláštěná","nelze 2MXM*",(IF(M8="Podstropní","nelze 2MXM*",IF(M8="Kanálovka Střední","nelze 2MXM*","")))))))))) -> pouze 2MXM, 3MXM52 a 3MXM68 | Z8: =AA3+AA4+AA5+AA6+AA7 -> 0 | AC8: 4 | AF8: 4MXM80N | AG8: V7 | AI8: =SUM(AI3:AI7) -> 13 | AM8: 0 | AN8: 0 | AO8: 0 | AU8: 5V1B | AV8: 5V1B | AW8: 0 | AY8: 5V1B | BD8: =VLOOKUP(M8,$AN$13:$AO$29,2,FALSE) -> Split | BO8: =C46 -> CE.HEADER | BP8: =D46 -> 1 | BQ8: =E46 -> 12C.001 Chlazení místností | CM8: =IF(R8="Nelze kom. RTD a ovl.",1,0) -> 0
B9: celkem | C9: =C4+C5+C6+C7+C8 -> 12 | D9: =CONCATENATE(AI8,"kW") -> 13kW | G9: Součtová délka | I9: =CONCATENATE(Z8," m") -> 0 m | AC9: 5 | AF9: 5MXM90N | AG9: V8 | AL9: Suma | AM9: 0 | AN9: =SUM(AN3:AN8) -> 0 | AO9: =SUM(AO3:AO8) -> 0 | AS9: =SUM(AS3:AS8) -> 5 | AW9: =SUM(AW3:AW8) -> 0 | BO9: =C47 -> 5MXM90A9 | BP9: =IFERROR(D47*$D$42,"") -> 1 | BQ9: =E47 -> Venkovní multisplit jednotka pro 2-5 vnitřních jednotek | BR9: =J47 -> 98858 | BS9: 98858 | BT9: =R45 -> 12C.001 Chlazení místností | BU9: 0 | BV9: 5MXM90A9+FTXP35N9 FTXP35N9 FTXP20N9 FTXP20N9 FTXP20N9 | BW9: 9 | BX9: 10 | BY9: 2.75 | BZ9: 2.66 | CA9: 230V/50Hz | CB9: na dotaz | CC9: na dotaz | CD9: C/20A | CE9: 64 dBA | CF9: 52 dBA | CG9: =CONCATENATE(L200,CHAR(10),K200,CHAR(10),K201,CHAR(10),K202,CHAR(10),K203,CHAR(10),K204,CHAR(10),K205,CHAR(10),K206,CHAR(10),K207,CHAR(10),K208,CHAR(10),K209,CHAR(10),K210,CHAR(10),K211,CHAR(10),K212,CHAR(10),K213,CHAR(10),K215,CHAR(10),K217,CHAR(10),K219,CHAR(10),K220,CHAR(10),K222,CHAR(10),K223,CHAR(10),K224,CHAR(10),K225,CHAR(10),K226) ->  | CM9: =SUM(CM4:CM8) -> 0
BO10: =C48 -> FTXP20N9 | BP10: =IFERROR(D48*$D$42,"") -> 3 | BQ10: =E48 -> SPLIT COMFORA nástěnná jednotka | BR10: 9506 | BS10: 28518 | CG10: =IFERROR(HLOOKUP(BO10,$P$177:$T$178,2,FALSE),"") -> 
B11: =VLOOKUP(A1,#REF!,2,FALSE) ->  | D11: Průměry potrubí | R11: (nutné ověřit !!) | BO11: =C49 -> FTXP35N9 | BP11: =IFERROR(D49*$D$42,"") -> 2 | BQ11: =E49 -> SPLIT COMFORA nástěnná jednotka | BR11: 11594 | BS11: 23188 | CG11: =IFERROR(HLOOKUP(BO11,$P$177:$T$178,2,FALSE),"") -> 
B12: Vybraná venkovní Jedotka ze seznamu níže: | D12: =P4 -> FTXP35N9 | E12: =P5 -> FTXP35N9 | F12: =P6 -> FTXP20N9 | G12: =P7 -> FTXP20N9 | H12: =P8 -> FTXP20N9 | I12: Nejdelší délka větve vniřní jednotka - venkovní | R12: =VLOOKUP(B17,AF44:AH52,3,FALSE) -> 25 | BO12: =C50 ->  | BP12: =IFERROR(D50*$D$42,"") ->  | BQ12: =E50 ->  | BR12: =J50 ->  | BS12: =K50 ->  | CG12: =IFERROR(HLOOKUP(BO12,$P$177:$T$178,2,FALSE),"") -> 
D13: =G4 -> 6,35x9,5mm | E13: =G5 -> 6,35x9,5mm | F13: =G6 -> 6,35x9,5mm | G13: =G7 -> 6,35x9,5mm | H13: =G8 -> 6,35x9,5mm | I13: Maximalní součtová délka (součet všech délek vniřní jednotka - venkovní) | R13: =VLOOKUP(B17,AF44:AG52,2,FALSE) -> 75 | AH13: 0 | AI13: 1,5kW | AJ13: 6,35x9,5mm | AK13: 1.5 | AN13: Perfera | AO13: Split | AP13: RTD-RA | AQ13: KRP928A2S | AR13: Vnitřní jednotka nástěnná | BO13: =C51 ->  | BP13: =IFERROR(D51*$D$42,"") ->  | BQ13: =E51 ->  | BR13: =J51 ->  | BS13: =K51 ->  | CG13: =IFERROR(HLOOKUP(BO13,$P$177:$T$178,2,FALSE),"") -> 
B14: Místnost (výkon od nejmenšího výkonu po největší) | D14: =B4 -> 0 | E14: =B5 -> 0 | F14: =B6 -> 0 | G14: =B7 ->  | H14: =B8 ->  | AN14: Stylish Bílá | AO14: Split | AP14: RTD-RA | AQ14: KRP928A2S | AR14: Vnitřní jednotka nástěnná
B15: Venkovní Jednotka | C15: Vnitřní jednotky | D15: Chladicí / topný výkon (kW) na místnost | I15: Celkový výkon (kW) | L15: Celkový příkon (kW) | O15: Celkový proud (A) | R15: Doporuč. jištění | S15: Rozvodné napětí | T15: Štítek | U15: SEER | V15: Pdesign | W15: odhad spotřeby (kWh/sezonu) | X15: celkem potrubí | Y15: zákl. náplň chladiva R32 (kg) | Z15: doplnění chladiva (kg) | AA15: rozměry VxŠxH (mm) | AB15: hmotnost | AC15: vzdálenost konzolí | AD15: akustický výkon | AE15: akustický tlak v 1 m | AH15: 1.75 | AI15: 2,0kW | AJ15: 6,35x9,5mm | AK15: 2 | AN15: Stylish Stříbrná | AO15: Split | AP15: RTD-RA | AQ15: KRP928A2S | AR15: Vnitřní jednotka nástěnná | BO15: =C52 ->  | BP15: =IFERROR(D52*$D$42,"") ->  | BQ15: =E52 ->  | BR15: =J52 ->  | BS15: =K52 ->  | CG15: =IFERROR(HLOOKUP(BO15,$P$177:$T$178,2,FALSE),"") -> 
D16: A | E16: B | F16: C | G16: D | H16: E | I16: Min. | J16: Nom. | K16: Max. | L16: Min. | M16: Nom. | N16: Max. | O16: Min. | P16: Nom. | Q16: Max. | U16: SCOP | AH16: 2.25 | AI16: 2,5kW | AJ16: 6,35x9,5mm | AK16: 2.5 | AN16: Stylish Černá | AO16: Split | AP16: RTD-RA | AQ16: KRP928A2S | AR16: Vnitřní jednotka nástěnná | CG16: =IFERROR(HLOOKUP(BO16,$P$177:$T$178,2,FALSE),"") -> 
B17: =IF(C41="délky","Změna délky potrubí",IF(AS9>1,IF($E$19=1,B23,IF($E$19=2,B25,IF($E$19=3,B29,IF($E$19=4,B31,IF($E$19=5,B33,IF($E$19=6,B35,IF($E$19=7,B37,IF($E$19=8,B39,IF($E$19=9,B27,""))))))))),"Přidej IU")) -> 5MXM90A9 | C17: =IF($E$19=1,C23,IF($E$19=2,C25,IF($E$19=3,C29,IF($E$19=4,C31,IF($E$19=5,C33,IF($E$19=6,C35,IF($E$19=7,C37,IF($E$19=8,C39,IF($E$19=9,C27,""))))))))) -> 2,0+2,0+2,0+3,5+3,5 | D17: =IF(D23=0,"",IF($E$19=1,D23,IF($E$19=2,D25,IF($E$19=3,D29,IF($E$19=4,D31,IF($E$19=5,D33,IF($E$19=6,D35,IF($E$19=7,D37,IF($E$19=8,D39,IF($E$19=9,D27,"")))))))))) -> 1.38 | E17: 1.38 | F17: 1.38 | G17: 2.42 | H17: 2.42 | I17: =IF(I23=0,"",IF($E$19=1,I23,IF($E$19=2,I25,IF($E$19=3,I29,IF($E$19=4,I31,IF($E$19=5,I33,IF($E$19=6,I35,IF($E$19=7,I37,IF($E$19=8,I39,IF($E$19=9,I27,"")))))))))) -> 2.99 | J17: =IF(J23=0,"",IF($E$19=1,J23,IF($E$19=2,J25,IF($E$19=3,J29,IF($E$19=4,J31,IF($E$19=5,J33,IF($E$19=6,J35,IF($E$19=7,J37,IF($E$19=8,J39,IF($E$19=9,J27,"")))))))))) -> 9 | K17: =IF(K23=0,"",IF($E$19=1,K23,IF($E$19=2,K25,IF($E$19=3,K29,IF($E$19=4,K31,IF($E$19=5,K33,IF($E$19=6,K35,IF($E$19=7,K37,IF($E$19=8,K39,IF($E$19=9,K27,"")))))))))) -> 9.64 | L17: 0.56 | M17: 2.06 | N17: 2.75 | O17: 2.57 | P17: 9.43 | Q17: 12.59 | R17: =IF($E$19=1,R23,IF($E$19=2,R25,IF($E$19=3,R29,IF($E$19=4,R31,IF($E$19=5,R33,IF($E$19=6,R35,IF($E$19=7,R37,IF($E$19=8,R39,IF($E$19=9,R27,""))))))))) -> C/20A | S17: =IF($E$19=1,S23,IF($E$19=2,S25,IF($E$19=3,S29,IF($E$19=4,S31,IF($E$19=5,S33,IF($E$19=6,S35,IF($E$19=7,S37,IF($E$19=8,S39,IF($E$19=9,S27,""))))))))) -> 230V/50Hz | T17: =IF($E$19=1,T23,IF($E$19=2,T25,IF($E$19=3,T29,IF($E$19=4,T31,IF($E$19=5,T33,IF($E$19=6,T35,IF($E$19=7,T37,IF($E$19=8,T39,"")))))))) -> A++ | U17: 7.78 | V17: 9 | W17: 405 | X17: =IF($E$19=1,X23,IF($E$19=2,X25,IF($E$19=3,X29,IF($E$19=4,X31,IF($E$19=5,X33,IF($E$19=6,X35,IF($E$19=7,X37,IF($E$19=8,X39,IF($E$19=9,X27,""))))))))) -> OK | Y17: =IF($E$19=1,Y23,IF($E$19=2,Y25,IF($E$19=3,Y29,IF($E$19=4,Y31,IF($E$19=5,Y33,IF($E$19=6,Y35,IF($E$19=7,Y37,IF($E$19=8,Y39,IF($E$19=9,Y27,""))))))))) -> 2.4 | Z17: není potřeba | AA17: 734x958x340 | AB17: 68 kg | AC17: 600 mm | AD17: 64 dBA | AE17: 52 dBA | AH17: 2.75 | AI17: 3,5kW | AJ17: 6,35x9,5mm | AK17: 3.5 | AN17: Emura Bílá | AO17: Split | AP17: RTD-RA | AQ17: KRP928A2S | AR17: Vnitřní jednotka nástěnná | CG17: =IFERROR(HLOOKUP(BO17,$P$177:$T$178,2,FALSE),"") -> 
D18: =IF(D24=0,"",IF($E$19=1,D24,IF($E$19=2,D26,IF($E$19=3,D30,IF($E$19=4,D32,IF($E$19=5,D34,IF($E$19=6,D36,IF($E$19=7,D38,IF($E$19=8,D40,IF($E$19=9,D28,"")))))))))) -> 1.54 | E18: 1.54 | F18: 1.54 | G18: 2.69 | H18: 2.69 | I18: 3.77 | J18: 10 | K18: 11.54 | L18: 0.58 | M18: 2.03 | N18: 2.66 | O18: 2.67 | P18: 9.3 | Q18: 12.17 | T18: =IF($E$19=1,T24,IF($E$19=2,T26,IF($E$19=3,T30,IF($E$19=4,T32,IF($E$19=5,T34,IF($E$19=6,T36,IF($E$19=7,T38,IF($E$19=8,T40,"")))))))) -> A+ | U18: =IF($E$19=1,U24,IF($E$19=2,U26,IF($E$19=3,U30,IF($E$19=4,U32,IF($E$19=5,U34,IF($E$19=6,U36,IF($E$19=7,U38,IF($E$19=8,U40,"")))))))) -> 4.54 | V18: =IF($E$19=1,V24,IF($E$19=2,V26,IF($E$19=3,V30,IF($E$19=4,V32,IF($E$19=5,V34,IF($E$19=6,V36,IF($E$19=7,V38,IF($E$19=8,V40,"")))))))) -> 6.46 | W18: =IF($E$19=1,W24,IF($E$19=2,W26,IF($E$19=3,W30,IF($E$19=4,W32,IF($E$19=5,W34,IF($E$19=6,W36,IF($E$19=7,W38,IF($E$19=8,W40,"")))))))) -> 1 992 | AH18: 3.75 | AI18: 4,2kW | AJ18: 6,35x12,7mm | AK18: 4.2 | AN18: Emura Stříbrná | AO18: Split | AP18: RTD-RA | AQ18: KRP928A2S | AR18: Vnitřní jednotka nástěnná | CG18: =IFERROR(HLOOKUP(BO18,$P$177:$T$178,2,FALSE),"") -> 
B19: Sestava | C19: =D19 -> 2,0+2,0+2,0+3,5+3,5 | D19: =CONCATENATE(AK3,AK4,AK5,AK6,AK7) -> 2,0+2,0+2,0+3,5+3,5 | E19: 8 | AH19: 4.35 | AI19: 5,0kW | AJ19: 6,35x12,7mm | AK19: 5 | AN19: Comfora | AO19: Split | AP19: RTD-RA | AQ19: KRP928A2S | AR19: Vnitřní jednotka nástěnná
C20: 1 | D20: 2 | E20: 3 | F20: 4 | G20: 5 | H20: 6 | I20: 7 | J20: 8 | K20: 9 | L20: 10 | M20: 11 | N20: 12 | O20: 13 | P20: 14 | Q20: 15 | T20: 20 | U20: 21 | V20: 22 | W20: 23 | AH20: 5.25 | AI20: 6,0kW | AJ20: 6,35x12,7mm | AK20: 6 | AN20: Parapetní opláštěná | AO20: Split | AP20: RTD-RA
B21: Venkovní Jednotka | C21: Vnitřní jednotky | D21: Chladicí / topný výkon (kW) na místnost | I21: Celkový výkon (kW) | L21: Celkový příkon (kW) | O21: Celkový proud (A) | R21: Doporuč. jištění | S21: Rozvodné napětí | T21: Štítek | U21: SEER | V21: Pdesign | W21: odhad spotřeby (kWh/sezonu) | X21: celkem potrubí | Y21: zákl. náplň chladiva R32 (kg) | Z21: doplnění chladiva (kg) | AA21: rozměry VxŠxH (mm) | AB21: hmotnost | AC21: vzdálenost konzolí | AD21: akustický výkon | AE21: akustický tlak v 1 m | AH21: 6.25 | AI21: 7,1kW | AJ21: 6,35x15,9mm | AK21: 7.1 | AN21: Kanálovka nízká | AO21: Skyair | AP21: RTD-NET | AR21: Vnitřní jednotka kanálová středotlaká nízká
D22: A | E22: B | F22: C | G22: D | H22: E | I22: Min. | J22: Nom. | K22: Max. | L22: Min. | M22: Nom. | N22: Max. | O22: Min. | P22: Nom. | Q22: Max. | U22: SCOP | AH22: 7.8 | AI22: x | AJ22: x | AN22: Kanálovka Střední | AO22: Skyair | AP22: RTD-NET | AR22: Vnitřní jednotka kanálová středotlaká | BP22: =IFERROR(D59*$D$42*$D$42,"") -> 
A23: =IFERROR(VLOOKUP($C$19,data3!$C$3:$Z$15,24,FALSE),"") ->  | B23: =IF(AO9>=1,"",IF(AN9>=1,"",IF(A23=1,AM23,""))) ->  | C23: =IFERROR(VLOOKUP($C$19,data3!$C$3:$Y$15,C$20,FALSE),"") ->  | D23: =IFERROR(VLOOKUP($C$19,data3!$C$3:$Y$15,D$20,FALSE),"") ->  | E23: =IFERROR(VLOOKUP($C$19,data3!$C$3:$Y$15,E$20,FALSE),"") ->  | F23: =IFERROR(VLOOKUP($C$19,data3!$C$3:$Y$15,F$20,FALSE),"") ->  | G23: =IFERROR(VLOOKUP($C$19,data3!$C$3:$Y$15,G$20,FALSE),"") ->  | H23: =IFERROR(VLOOKUP($C$19,data3!$C$3:$Y$15,H$20,FALSE),"") ->  | I23: =IFERROR(VLOOKUP($C$19,data3!$C$3:$Y$15,I$20,FALSE),"") ->  | J23: =IFERROR(VLOOKUP($C$19,data3!$C$3:$Y$15,J$20,FALSE),"") ->  | K23: =IFERROR(VLOOKUP($C$19,data3!$C$3:$Y$15,K$20,FALSE),"") ->  | L23: =IFERROR(VLOOKUP($C$19,data3!$C$3:$Y$15,L$20,FALSE),"") ->  | M23: =IFERROR(VLOOKUP($C$19,data3!$C$3:$Y$15,M$20,FALSE),"") ->  | N23: =IFERROR(VLOOKUP($C$19,data3!$C$3:$Y$15,N$20,FALSE),"") ->  | O23: =IFERROR(VLOOKUP($C$19,data3!$C$3:$Y$15,O$20,FALSE),"") ->  | P23: =IFERROR(VLOOKUP($C$19,data3!$C$3:$Y$15,P$20,FALSE),"") ->  | Q23: =IFERROR(VLOOKUP($C$19,data3!$C$3:$Y$15,Q$20,FALSE),"") ->  | R23: =IF(A23=1,AF23,"") ->  | S23: =IF(A23=1,AG23,"") ->  | T23: =IFERROR(VLOOKUP($C$19,data3!$C$3:$Y$15,T$20,FALSE),"") ->  | U23: =IFERROR(VLOOKUP($C$19,data3!$C$3:$Y$15,U$20,FALSE),"") ->  | V23: =IFERROR(VLOOKUP($C$19,data3!$C$3:$Y$15,V$20,FALSE),"") ->  | W23: =IFERROR(VLOOKUP($C$19,data3!$C$3:$Y$15,W$20,FALSE),"") ->  | X23: =IF(A23=1,(IF($Z$8<=30, "OK", "!Překročena součtová délka!")),"") ->  | Y23: =IF(A23=1,AJ23,"") ->  | Z23: =IF(X23="OK",IF(($Z$8-20)>0,($Z$8-20)*0.02,"není potřeba"),"") ->  | AA23: =IF(A23=1,AH23,"") ->  | AB23: =IF(A23=1,AK23,"") ->  | AC23: =IF(A23=1,AI23,"") ->  | AD23: =IF(A23=1,AS23,"") ->  | AE23: =IF(A23=1,AT23,"") ->  | AF23: C/16A | AG23: 230V/50Hz | AH23: 550x765x285 | AI23: 574 mm | AJ23: 0.88 | AK23: 36 kg | AM23: 2MXM40A9 | AN23: Kazeta 900x900 | AO23: Skyair | AP23: RTD-NET | AR23: Vnitřní jednotka kazetová s kruhovým 360° výstupem vzduchu | AS23: 60 dBA | AT23: 48 dBA | BO23: =IF(C60=0,"",C60) ->  | BP23: =IF(D60=0,"",D60*$D$42) ->  | CD23: =ISNUMBER(AJ5) -> TRUE
A24: 0 | D24: =IFERROR(VLOOKUP($C$19,data4!$C$3:$Z$15,D$20,FALSE),"") ->  | E24: =IFERROR(VLOOKUP($C$19,data4!$C$3:$Z$15,E$20,FALSE),"") ->  | F24: =IFERROR(VLOOKUP($C$19,data4!$C$3:$Z$15,F$20,FALSE),"") ->  | G24: =IFERROR(VLOOKUP($C$19,data4!$C$3:$Z$15,G$20,FALSE),"") ->  | H24: =IFERROR(VLOOKUP($C$19,data4!$C$3:$Z$15,H$20,FALSE),"") ->  | I24: =IFERROR(VLOOKUP($C$19,data4!$C$3:$Z$15,I$20,FALSE),"") ->  | J24: =IFERROR(VLOOKUP($C$19,data4!$C$3:$Z$15,J$20,FALSE),"") ->  | K24: =IFERROR(VLOOKUP($C$19,data4!$C$3:$Z$15,K$20,FALSE),"") ->  | L24: =IFERROR(VLOOKUP($C$19,data4!$C$3:$Z$15,L$20,FALSE),"") ->  | M24: =IFERROR(VLOOKUP($C$19,data4!$C$3:$Z$15,M$20,FALSE),"") ->  | N24: =IFERROR(VLOOKUP($C$19,data4!$C$3:$Z$15,N$20,FALSE),"") ->  | O24: =IFERROR(VLOOKUP($C$19,data4!$C$3:$Z$15,O$20,FALSE),"") ->  | P24: =IFERROR(VLOOKUP($C$19,data4!$C$3:$Z$15,P$20,FALSE),"") ->  | Q24: =IFERROR(VLOOKUP($C$19,data4!$C$3:$Z$15,Q$20,FALSE),"") ->  | T24: =IFERROR(VLOOKUP($C$19,data4!$C$3:$Z$15,T$20,FALSE),"") ->  | U24: =IFERROR(VLOOKUP($C$19,data4!$C$3:$Z$15,U$20,FALSE),"") ->  | V24: =IFERROR(VLOOKUP($C$19,data4!$C$3:$Z$15,V$20,FALSE),"") ->  | W24: =IFERROR(VLOOKUP($C$19,data4!$C$3:$Z$15,W$20,FALSE),"") ->  | AN24: Kazeta 600x600 | AO24: Skyair | AP24: RTD-NET | AR24: Vnitřní jednotka 4-cestná, kazetová | AU24: 1 | AV24: =X23 ->  | BO24: =IF(C61=0,"",C61) ->  | BP24: =IF(D61=0,"",D61*$D$42) -> 
A25: =IFERROR(VLOOKUP($C$19,data3!$C$16:$Z$40,24,FALSE),"") ->  | B25: =IF(AO9>=1,"",IF(AN9>=1,"",IF(A25=1,AM25,""))) ->  | C25: =IFERROR(VLOOKUP($C$19,data3!$C$16:$Y$40,C$20,FALSE),"") ->  | D25: =IFERROR(VLOOKUP($C$19,data3!$C$16:$Y$40,D$20,FALSE),"") ->  | E25: =IFERROR(VLOOKUP($C$19,data3!$C$16:$Y$40,E$20,FALSE),"") ->  | F25: =IFERROR(VLOOKUP($C$19,data3!$C$16:$Y$40,F$20,FALSE),"") ->  | G25: =IFERROR(VLOOKUP($C$19,data3!$C$16:$Y$40,G$20,FALSE),"") ->  | H25: =IFERROR(VLOOKUP($C$19,data3!$C$16:$Y$40,H$20,FALSE),"") ->  | I25: =IFERROR(VLOOKUP($C$19,data3!$C$16:$Y$40,I$20,FALSE),"") ->  | J25: =IFERROR(VLOOKUP($C$19,data3!$C$16:$Y$40,J$20,FALSE),"") ->  | K25: =IFERROR(VLOOKUP($C$19,data3!$C$16:$Y$40,K$20,FALSE),"") ->  | L25: =IFERROR(VLOOKUP($C$19,data3!$C$16:$Y$40,L$20,FALSE),"") ->  | M25: =IFERROR(VLOOKUP($C$19,data3!$C$16:$Y$40,M$20,FALSE),"") ->  | N25: =IFERROR(VLOOKUP($C$19,data3!$C$16:$Y$40,N$20,FALSE),"") ->  | O25: =IFERROR(VLOOKUP($C$19,data3!$C$16:$Y$40,O$20,FALSE),"") ->  | P25: =IFERROR(VLOOKUP($C$19,data3!$C$16:$Y$40,P$20,FALSE),"") ->  | Q25: =IFERROR(VLOOKUP($C$19,data3!$C$16:$Y$40,Q$20,FALSE),"") ->  | R25: =IF(A25=1,AF25,"") ->  | S25: =IF(A25=1,AG25,"") ->  | T25: =IFERROR(VLOOKUP($C$19,data3!$C$16:$Y$40,T$20,FALSE),"") ->  | U25: =IFERROR(VLOOKUP($C$19,data3!$C$16:$Y$40,U$20,FALSE),"") ->  | V25: =IFERROR(VLOOKUP($C$19,data3!$C$16:$Y$40,V$20,FALSE),"") ->  | W25: =IFERROR(VLOOKUP($C$19,data3!$C$16:$Y$40,W$20,FALSE),"") ->  | X25: =IF(A25=1,(IF($Z$8<=30, "OK", "!Překročena součtová délka!")),"") ->  | Y25: =IF(A25=1,AJ25,"") ->  | Z25: =IF(X25="OK",IF(($Z$8-20)>0,($Z$8-20)*0.02,"není potřeba"),"") ->  | AA25: =IF(A25=1,AH25,"") ->  | AB25: =IF(A25=1,AK25,"") ->  | AC25: =IF(A25=1,AI25,"") ->  | AD25: =IF(A25=1,AS25,"") ->  | AE25: =IF(A25=1,AT25,"") ->  | AF25: C/16A | AG25: 230V/50Hz | AH25: 550x765x285 | AI25: 574 mm | AJ25: 1.15 | AK25: 41 kg | AM25: 2MXM50A9 | AN25: Podstropní | AO25: Skyair | AP25: RTD-NET | AR25: Vnitřní jednotka postropní s 1 výdechem | AS25: 60 dBA | AT25: 46 dBA | AU25: 2 | AV25: =X25 ->  | BO25: =IF(C62=0,"",C62) ->  | BP25: =IF(D62=0,"",D62*$D$42) -> 
A26: 0 | D26: =IFERROR(VLOOKUP($C$19,data4!$C$16:$Y$40,D$20,FALSE),"") ->  | E26: =IFERROR(VLOOKUP($C$19,data4!$C$16:$Y$40,E$20,FALSE),"") ->  | F26: =IFERROR(VLOOKUP($C$19,data4!$C$16:$Y$40,F$20,FALSE),"") ->  | G26: =IFERROR(VLOOKUP($C$19,data4!$C$16:$Y$40,G$20,FALSE),"") ->  | H26: =IFERROR(VLOOKUP($C$19,data4!$C$16:$Y$40,H$20,FALSE),"") ->  | I26: =IFERROR(VLOOKUP($C$19,data4!$C$16:$Y$40,I$20,FALSE),"") ->  | J26: =IFERROR(VLOOKUP($C$19,data4!$C$16:$Y$40,J$20,FALSE),"") ->  | K26: =IFERROR(VLOOKUP($C$19,data4!$C$16:$Y$40,K$20,FALSE),"") ->  | L26: =IFERROR(VLOOKUP($C$19,data4!$C$16:$Y$40,L$20,FALSE),"") ->  | M26: =IFERROR(VLOOKUP($C$19,data4!$C$16:$Y$40,M$20,FALSE),"") ->  | N26: =IFERROR(VLOOKUP($C$19,data4!$C$16:$Y$40,N$20,FALSE),"") ->  | O26: =IFERROR(VLOOKUP($C$19,data4!$C$16:$Y$40,O$20,FALSE),"") ->  | P26: =IFERROR(VLOOKUP($C$19,data4!$C$16:$Y$40,P$20,FALSE),"") ->  | Q26: =IFERROR(VLOOKUP($C$19,data4!$C$16:$Y$40,Q$20,FALSE),"") ->  | T26: =IFERROR(VLOOKUP($C$19,data4!$C$16:$Y$40,T$20,FALSE),"") ->  | U26: =IFERROR(VLOOKUP($C$19,data4!$C$16:$Y$40,U$20,FALSE),"") ->  | V26: =IFERROR(VLOOKUP($C$19,data4!$C$16:$Y$40,V$20,FALSE),"") ->  | W26: =IFERROR(VLOOKUP($C$19,data4!$C$16:$Y$40,W$20,FALSE),"") ->  | AN26: Parapetní neopláštěná | AO26: Skyair | AP26: RTD-NET | AU26: 3 | AV26: =X29 ->  | BO26: =IF(C63=0,"",C63) ->  | BP26: =IF(D63=0,"",D63*$D$42) -> 
A27: =IFERROR(VLOOKUP($C$19,data3!$C$41:$Z$72,24,FALSE),"") ->  | B27: =IF(AO9>=1,"",IF(AN9>=1,"",IF(A27=1,AM27,""))) ->  | C27: =IFERROR(VLOOKUP($C$19,data3!$C$41:$Y$72,C$20,FALSE),"") ->  | D27: =IFERROR(VLOOKUP($C$19,data3!$C$41:$Y$72,D$20,FALSE),"") ->  | E27: =IFERROR(VLOOKUP($C$19,data3!$C$41:$Y$72,E$20,FALSE),"") ->  | F27: =IFERROR(VLOOKUP($C$19,data3!$C$16:$Y$40,F$20,FALSE),"") ->  | G27: =IFERROR(VLOOKUP($C$19,data3!$C$16:$Y$40,G$20,FALSE),"") ->  | H27: =IFERROR(VLOOKUP($C$19,data3!$C$16:$Y$40,H$20,FALSE),"") ->  | I27: =IFERROR(VLOOKUP($C$19,data3!$C$41:$Y$72,I$20,FALSE),"") ->  | J27: =IFERROR(VLOOKUP($C$19,data3!$C$41:$Y$72,J$20,FALSE),"") ->  | K27: =IFERROR(VLOOKUP($C$19,data3!$C$41:$Y$72,K$20,FALSE),"") ->  | L27: =IFERROR(VLOOKUP($C$19,data3!$C$41:$Y$72,L$20,FALSE),"") ->  | M27: =IFERROR(VLOOKUP($C$19,data3!$C$41:$Y$72,M$20,FALSE),"") ->  | N27: =IFERROR(VLOOKUP($C$19,data3!$C$41:$Y$72,N$20,FALSE),"") ->  | O27: =IFERROR(VLOOKUP($C$19,data3!$C$41:$Y$72,O$20,FALSE),"") ->  | P27: =IFERROR(VLOOKUP($C$19,data3!$C$41:$Y$72,P$20,FALSE),"") ->  | Q27: =IFERROR(VLOOKUP($C$19,data3!$C$41:$Y$72,Q$20,FALSE),"") ->  | R27: =IF(A27=1,AF27,"") ->  | S27: =IF(A27=1,AG27,"") ->  | T27: - | U27: - | V27: - | W27: - | X27: =IF(A27=1,(IF($Z$8<=50, "OK", "!Překročena součtová délka!")),"") ->  | Y27: =IF(A27=1,AJ27,"") ->  | Z27: =IF(X27="OK",IF(($Z$8-20)>0,($Z$8-20)*0.02,"není potřeba"),"") ->  | AA27: =IF(A27=1,AH27,"") ->  | AB27: =IF(A27=1,AK27,"") ->  | AC27: =IF(A27=1,AI27,"") ->  | AD27: =IF(A27=1,AS27,"") ->  | AE27: =IF(A27=1,AT27,"") ->  | AF27: C/16A | AG27: 230V/50Hz | AH27: 734x958x340 | AI27: 574 mm | AJ27: 2 | AK27: 60 kg | AM27: 2MXM68A9 | AS27: 61 dBA | AT27: 48 dBA | AU27: 4 | AV27: =X31 -> 
A28: 0 | D28: =IFERROR(VLOOKUP($C$19,data4!$C$41:$Z$71,D$20,FALSE),"") ->  | E28: =IFERROR(VLOOKUP($C$19,data4!$C$41:$Z$71,E$20,FALSE),"") ->  | F28: =IFERROR(VLOOKUP($C$19,data4!$C$41:$Z$71,F$20,FALSE),"") ->  | G28: =IFERROR(VLOOKUP($C$19,data4!$C$41:$Z$71,G$20,FALSE),"") ->  | H28: =IFERROR(VLOOKUP($C$19,data4!$C$41:$Z$71,H$20,FALSE),"") ->  | I28: =IFERROR(VLOOKUP($C$19,data4!$C$41:$Z$71,I$20,FALSE),"") ->  | J28: =IFERROR(VLOOKUP($C$19,data4!$C$41:$Z$71,J$20,FALSE),"") ->  | K28: =IFERROR(VLOOKUP($C$19,data4!$C$41:$Z$71,K$20,FALSE),"") ->  | L28: =IFERROR(VLOOKUP($C$19,data4!$C$41:$Z$71,L$20,FALSE),"") ->  | M28: =IFERROR(VLOOKUP($C$19,data4!$C$41:$Z$71,M$20,FALSE),"") ->  | N28: =IFERROR(VLOOKUP($C$19,data4!$C$41:$Z$71,N$20,FALSE),"") ->  | O28: =IFERROR(VLOOKUP($C$19,data4!$C$41:$Z$71,O$20,FALSE),"") ->  | P28: =IFERROR(VLOOKUP($C$19,data4!$C$41:$Z$71,P$20,FALSE),"") ->  | Q28: =IFERROR(VLOOKUP($C$19,data4!$C$41:$Z$71,Q$20,FALSE),"") ->  | T28: - | U28: - | V28: - | W28: - | AU28: 5 | AV28: =X33 -> 
A29: =IFERROR(VLOOKUP($C$19,data3!$C$73:$Z$97,24,FALSE),"") ->  | B29: =IF(AM9>=1,"",IF(A29=1,AM29,"")) ->  | C29: =IFERROR(VLOOKUP($C$19,data3!$C$73:$Y$97,C$20,FALSE),"") ->  | D29: =IFERROR(VLOOKUP($C$19,data3!$C$73:$Y$97,D$20,FALSE),"") ->  | E29: =IFERROR(VLOOKUP($C$19,data3!$C$73:$Y$97,E$20,FALSE),"") ->  | F29: =IFERROR(VLOOKUP($C$19,data3!$C$73:$Y$97,F$20,FALSE),"") ->  | G29: =IFERROR(VLOOKUP($C$19,data3!$C$73:$Y$97,G$20,FALSE),"") ->  | H29: =IFERROR(VLOOKUP($C$19,data3!$C$73:$Y$97,H$20,FALSE),"") ->  | I29: =IFERROR(VLOOKUP($C$19,data3!$C$73:$Y$97,I$20,FALSE),"") ->  | J29: =IFERROR(VLOOKUP($C$19,data3!$C$73:$Y$97,J$20,FALSE),"") ->  | K29: =IFERROR(VLOOKUP($C$19,data3!$C$73:$Y$97,K$20,FALSE),"") ->  | L29: =IFERROR(VLOOKUP($C$19,data3!$C$73:$Y$97,L$20,FALSE),"") ->  | M29: =IFERROR(VLOOKUP($C$19,data3!$C$73:$Y$97,M$20,FALSE),"") ->  | N29: =IFERROR(VLOOKUP($C$19,data3!$C$73:$Y$97,N$20,FALSE),"") ->  | O29: =IFERROR(VLOOKUP($C$19,data3!$C$73:$Y$97,O$20,FALSE),"") ->  | P29: =IFERROR(VLOOKUP($C$19,data3!$C$73:$Y$97,P$20,FALSE),"") ->  | Q29: =IFERROR(VLOOKUP($C$19,data3!$C$73:$Y$97,Q$20,FALSE),"") ->  | R29: =IF(A29=1,AF29,"") ->  | S29: =IF(A29=1,AG29,"") ->  | T29: =IFERROR(VLOOKUP($C$19,data3!$C$73:$Y$97,T$20,FALSE),"") ->  | U29: =IFERROR(VLOOKUP($C$19,data3!$C$73:$Y$97,U$20,FALSE),"") ->  | V29: =IFERROR(VLOOKUP($C$19,data3!$C$73:$Y$97,V$20,FALSE),"") ->  | W29: =IFERROR(VLOOKUP($C$19,data3!$C$73:$Y$97,W$20,FALSE),"") ->  | X29: =IF(A29=1,(IF($Z$8<=50, "OK", "!Překročena součtová délka!")),"") ->  | Y29: =IF(A29=1,AJ29,"") ->  | Z29: =IF(X29="OK",IF(($Z$8-30)>0,($Z$8-30)*0.02,"není potřeba"),"") ->  | AA29: =IF(A29=1,AH29,"") ->  | AB29: =IF(A29=1,AK29,"") ->  | AC29: =IF(A29=1,AI29,"") ->  | AD29: =IF(A29=1,AS29,"") ->  | AE29: =IF(A29=1,AT29,"") ->  | AF29: C/16A | AG29: 230V/50Hz | AH29: 734x958x340 | AI29: 600 mm | AJ29: 1.8 | AK29: 57 kg | AM29: 3MXM40A9 | AS29: 59 dBA | AT29: 46 dBA | AU29: 6 | AV29: =X35 ->  | BO29: =C64 -> Projektová cena celkem | BP29: 0 | BQ29: 0 | BR29: =J64 -> 0 | BS29: =K64 -> 150564
A30: 0 | D30: =IFERROR(VLOOKUP($C$19,data4!$C$72:$Y$96,D$20,FALSE),"") ->  | E30: =IFERROR(VLOOKUP($C$19,data4!$C$72:$Y$96,E$20,FALSE),"") ->  | F30: =IFERROR(VLOOKUP($C$19,data4!$C$72:$Y$96,F$20,FALSE),"") ->  | G30: =IFERROR(VLOOKUP($C$19,data4!$C$72:$Y$96,G$20,FALSE),"") ->  | H30: =IFERROR(VLOOKUP($C$19,data4!$C$72:$Y$96,H$20,FALSE),"") ->  | I30: =IFERROR(VLOOKUP($C$19,data4!$C$72:$Y$96,I$20,FALSE),"") ->  | J30: =IFERROR(VLOOKUP($C$19,data4!$C$72:$Y$96,J$20,FALSE),"") ->  | K30: =IFERROR(VLOOKUP($C$19,data4!$C$72:$Y$96,K$20,FALSE),"") ->  | L30: =IFERROR(VLOOKUP($C$19,data4!$C$72:$Y$96,L$20,FALSE),"") ->  | M30: =IFERROR(VLOOKUP($C$19,data4!$C$72:$Y$96,M$20,FALSE),"") ->  | N30: =IFERROR(VLOOKUP($C$19,data4!$C$72:$Y$96,N$20,FALSE),"") ->  | O30: =IFERROR(VLOOKUP($C$19,data4!$C$72:$Y$96,O$20,FALSE),"") ->  | P30: =IFERROR(VLOOKUP($C$19,data4!$C$72:$Y$96,P$20,FALSE),"") ->  | Q30: =IFERROR(VLOOKUP($C$19,data4!$C$72:$Y$96,Q$20,FALSE),"") ->  | T30: =IFERROR(VLOOKUP($C$19,data4!$C$72:$Y$96,T$20,FALSE),"") ->  | U30: =IFERROR(VLOOKUP($C$19,data4!$C$72:$Y$96,U$20,FALSE),"") ->  | V30: =IFERROR(VLOOKUP($C$19,data4!$C$72:$Y$96,V$20,FALSE),"") ->  | W30: =IFERROR(VLOOKUP($C$19,data4!$C$72:$Y$96,W$20,FALSE),"") ->  | AU30: 7 | AV30: =X37 ->  | BO30: 0 | BP30: 0 | BQ30: 0 | BR30: =J65 ->  | BS30: =K65 -> 0
A31: =IFERROR(VLOOKUP($C$19,data3!$C$98:$Z$149,24,FALSE),"") ->  | B31: =IF(A31=1,AM31,"") ->  | C31: =IFERROR(VLOOKUP($C$19,data3!$C$98:$Y$149,C$20,FALSE),"") ->  | D31: =IFERROR(VLOOKUP($C$19,data3!$C$98:$Y$149,D$20,FALSE),"") ->  | E31: =IFERROR(VLOOKUP($C$19,data3!$C$98:$Y$149,E$20,FALSE),"") ->  | F31: =IFERROR(VLOOKUP($C$19,data3!$C$98:$Y$149,F$20,FALSE),"") ->  | G31: =IFERROR(VLOOKUP($C$19,data3!$C$98:$Y$149,G$20,FALSE),"") ->  | H31: =IFERROR(VLOOKUP($C$19,data3!$C$98:$Y$149,H$20,FALSE),"") ->  | I31: =IFERROR(VLOOKUP($C$19,data3!$C$98:$Y$149,I$20,FALSE),"") ->  | J31: =IFERROR(VLOOKUP($C$19,data3!$C$98:$Y$149,J$20,FALSE),"") ->  | K31: =IFERROR(VLOOKUP($C$19,data3!$C$98:$Y$149,K$20,FALSE),"") ->  | L31: =IFERROR(VLOOKUP($C$19,data3!$C$98:$Y$149,L$20,FALSE),"") ->  | M31: =IFERROR(VLOOKUP($C$19,data3!$C$98:$Y$149,M$20,FALSE),"") ->  | N31: =IFERROR(VLOOKUP($C$19,data3!$C$98:$Y$149,N$20,FALSE),"") ->  | O31: =IFERROR(VLOOKUP($C$19,data3!$C$98:$Y$149,O$20,FALSE),"") ->  | P31: =IFERROR(VLOOKUP($C$19,data3!$C$98:$Y$149,P$20,FALSE),"") ->  | Q31: =IFERROR(VLOOKUP($C$19,data3!$C$98:$Y$149,Q$20,FALSE),"") ->  | R31: =IF(A31=1,AF31,"") ->  | S31: =IF(A31=1,AG31,"") ->  | T31: =IFERROR(VLOOKUP($C$19,data3!$C$98:$Y$149,T$20,FALSE),"") ->  | U31: =IFERROR(VLOOKUP($C$19,data3!$C$98:$Y$149,U$20,FALSE),"") ->  | V31: =IFERROR(VLOOKUP($C$19,data3!$C$98:$Y$149,V$20,FALSE),"") ->  | W31: =IFERROR(VLOOKUP($C$19,data3!$C$98:$Y$149,W$20,FALSE),"") ->  | X31: =IF(A31=1,(IF($Z$8<=50, "OK", "!Překročena součtová délka!")),"") ->  | Y31: =IF(A31=1,AJ31,"") ->  | Z31: =IF(X31="OK",IF(($Z$8-30)>0,($Z$8-30)*0.02,"není potřeba"),"") ->  | AA31: =IF(A31=1,AH31,"") ->  | AB31: =IF(A31=1,AK31,"") ->  | AC31: =IF(A31=1,AI31,"") ->  | AD31: =IF(A31=1,AS31,"") ->  | AE31: =IF(A31=1,AT31,"") ->  | AF31: C/20A | AG31: 230V/50Hz | AH31: 734x958x340 | AI31: 600 mm | AJ31: 1.8 | AK31: 57 kg | AM31: 3MXM52A9 | AS31: 59 dBA | AT31: 46 dBA | AU31: 8 | AV31: =X39 -> OK
A32: 0 | D32: =IFERROR(VLOOKUP($C$19,data4!$C$97:$Y$148,D$20,FALSE),"") ->  | E32: =IFERROR(VLOOKUP($C$19,data4!$C$97:$Y$148,E$20,FALSE),"") ->  | F32: =IFERROR(VLOOKUP($C$19,data4!$C$97:$Y$148,F$20,FALSE),"") ->  | G32: =IFERROR(VLOOKUP($C$19,data4!$C$97:$Y$148,G$20,FALSE),"") ->  | H32: =IFERROR(VLOOKUP($C$19,data4!$C$97:$Y$148,H$20,FALSE),"") ->  | I32: =IFERROR(VLOOKUP($C$19,data4!$C$97:$Y$148,I$20,FALSE),"") ->  | J32: =IFERROR(VLOOKUP($C$19,data4!$C$97:$Y$148,J$20,FALSE),"") ->  | K32: =IFERROR(VLOOKUP($C$19,data4!$C$97:$Y$148,K$20,FALSE),"") ->  | L32: =IFERROR(VLOOKUP($C$19,data4!$C$97:$Y$148,L$20,FALSE),"") ->  | M32: =IFERROR(VLOOKUP($C$19,data4!$C$97:$Y$148,M$20,FALSE),"") ->  | N32: =IFERROR(VLOOKUP($C$19,data4!$C$97:$Y$148,N$20,FALSE),"") ->  | O32: =IFERROR(VLOOKUP($C$19,data4!$C$97:$Y$148,O$20,FALSE),"") ->  | P32: =IFERROR(VLOOKUP($C$19,data4!$C$97:$Y$148,P$20,FALSE),"") ->  | Q32: =IFERROR(VLOOKUP($C$19,data4!$C$97:$Y$148,Q$20,FALSE),"") ->  | T32: =IFERROR(VLOOKUP($C$19,data4!$C$97:$Y$148,T$20,FALSE),"") ->  | U32: =IFERROR(VLOOKUP($C$19,data4!$C$97:$Y$148,U$20,FALSE),"") ->  | V32: =IFERROR(VLOOKUP($C$19,data4!$C$97:$Y$148,V$20,FALSE),"") ->  | W32: =IFERROR(VLOOKUP($C$19,data4!$C$97:$Y$148,W$20,FALSE),"") ->  | AU32: 9 | AV32: =X27 -> 
A33: =IFERROR(VLOOKUP($C$19,data3!$C$150:$Z$232,24,FALSE),"") ->  | B33: =IF(A33=1,AM33,"") ->  | C33: =IFERROR(VLOOKUP($C$19,data3!$C$150:$Y$232,C$20,FALSE),"") ->  | D33: =IFERROR(VLOOKUP($C$19,data3!$C$150:$Y$232,D$20,FALSE),"") ->  | E33: =IFERROR(VLOOKUP($C$19,data3!$C$150:$Y$232,E$20,FALSE),"") ->  | F33: =IFERROR(VLOOKUP($C$19,data3!$C$150:$Y$232,F$20,FALSE),"") ->  | G33: =IFERROR(VLOOKUP($C$19,data3!$C$150:$Y$232,G$20,FALSE),"") ->  | H33: =IFERROR(VLOOKUP($C$19,data3!$C$150:$Y$232,H$20,FALSE),"") ->  | I33: =IFERROR(VLOOKUP($C$19,data3!$C$150:$Y$232,I$20,FALSE),"") ->  | J33: =IFERROR(VLOOKUP($C$19,data3!$C$150:$Y$232,J$20,FALSE),"") ->  | K33: =IFERROR(VLOOKUP($C$19,data3!$C$150:$Y$232,K$20,FALSE),"") ->  | L33: =IFERROR(VLOOKUP($C$19,data3!$C$150:$Y$232,L$20,FALSE),"") ->  | M33: =IFERROR(VLOOKUP($C$19,data3!$C$150:$Y$232,M$20,FALSE),"") ->  | N33: =IFERROR(VLOOKUP($C$19,data3!$C$150:$Y$232,N$20,FALSE),"") ->  | O33: =IFERROR(VLOOKUP($C$19,data3!$C$150:$Y$232,O$20,FALSE),"") ->  | P33: =IFERROR(VLOOKUP($C$19,data3!$C$150:$Y$232,P$20,FALSE),"") ->  | Q33: =IFERROR(VLOOKUP($C$19,data3!$C$150:$Y$232,Q$20,FALSE),"") ->  | R33: =IF(A33=1,AF33,"") ->  | S33: =IF(A33=1,AG33,"") ->  | T33: =IFERROR(VLOOKUP($C$19,data3!$C$150:$Y$232,T$20,FALSE),"") ->  | U33: =IFERROR(VLOOKUP($C$19,data3!$C$150:$Y$232,U$20,FALSE),"") ->  | V33: =IFERROR(VLOOKUP($C$19,data3!$C$150:$Y$232,V$20,FALSE),"") ->  | W33: =IFERROR(VLOOKUP($C$19,data3!$C$150:$Y$232,W$20,FALSE),"") ->  | X33: =IF(A33=1,(IF($Z$8<=50, "OK", "!Překročena součtová délka!")),"") ->  | Y33: =IF(A33=1,AJ33,"") ->  | Z33: =IF(X33="OK",IF(($Z$8-30)>0,($Z$8-30)*0.02,"není potřeba"),"") ->  | AA33: =IF(A33=1,AH33,"") ->  | AB33: =IF(A33=1,AK33,"") ->  | AC33: =IF(A33=1,AI33,"") ->  | AD33: =IF(A33=1,AS33,"") ->  | AE33: =IF(A33=1,AT33,"") ->  | AF33: C/20A | AG33: 230V/50Hz | AH33: 734x958x340 | AI33: 600 mm | AJ33: 2 | AK33: 62 kg | AM33: 3MXM68A9 | AS33: 61 dBA | AT33: 48 dBA | AU33: 10 | AV33: =X39 -> OK | CA33: =IF(ISNUMBER(AJ5),"%2B","XX") -> %2B
A34: 0 | D34: =IFERROR(VLOOKUP($C$19,data4!$C$149:$Y$231,D$20,FALSE),"") ->  | E34: =IFERROR(VLOOKUP($C$19,data4!$C$149:$Y$231,E$20,FALSE),"") ->  | F34: =IFERROR(VLOOKUP($C$19,data4!$C$149:$Y$231,F$20,FALSE),"") ->  | G34: =IFERROR(VLOOKUP($C$19,data4!$C$149:$Y$231,G$20,FALSE),"") ->  | H34: =IFERROR(VLOOKUP($C$19,data4!$C$149:$Y$231,H$20,FALSE),"") ->  | I34: =IFERROR(VLOOKUP($C$19,data4!$C$149:$Y$231,I$20,FALSE),"") ->  | J34: =IFERROR(VLOOKUP($C$19,data4!$C$149:$Y$231,J$20,FALSE),"") ->  | K34: =IFERROR(VLOOKUP($C$19,data4!$C$149:$Y$231,K$20,FALSE),"") ->  | L34: =IFERROR(VLOOKUP($C$19,data4!$C$149:$Y$231,L$20,FALSE),"") ->  | M34: =IFERROR(VLOOKUP($C$19,data4!$C$149:$Y$231,M$20,FALSE),"") ->  | N34: =IFERROR(VLOOKUP($C$19,data4!$C$149:$Y$231,N$20,FALSE),"") ->  | O34: =IFERROR(VLOOKUP($C$19,data4!$C$149:$Y$231,O$20,FALSE),"") ->  | P34: =IFERROR(VLOOKUP($C$19,data4!$C$149:$Y$231,P$20,FALSE),"") ->  | Q34: =IFERROR(VLOOKUP($C$19,data4!$C$149:$Y$231,Q$20,FALSE),"") ->  | T34: =IFERROR(VLOOKUP($C$19,data4!$C$149:$Y$231,T$20,FALSE),"") ->  | U34: =IFERROR(VLOOKUP($C$19,data4!$C$149:$Y$231,U$20,FALSE),"") ->  | V34: =IFERROR(VLOOKUP($C$19,data4!$C$149:$Y$231,V$20,FALSE),"") ->  | W34: =IFERROR(VLOOKUP($C$19,data4!$C$149:$Y$231,W$20,FALSE),"") -> 
A35: =IFERROR(VLOOKUP($C$19,data3!$C$233:$Z$361,24,FALSE),"") ->  | B35: =IF(AM9>=1,"",IF(A35=1,AM35,"")) ->  | C35: =IFERROR(VLOOKUP($C$19,data3!$C$233:$Y$361,C$20,FALSE),"") ->  | D35: =IFERROR(VLOOKUP($C$19,data3!$C$233:$Y$361,D$20,FALSE),"") ->  | E35: =IFERROR(VLOOKUP($C$19,data3!$C$233:$Y$361,E$20,FALSE),"") ->  | F35: =IFERROR(VLOOKUP($C$19,data3!$C$233:$Y$361,F$20,FALSE),"") ->  | G35: =IFERROR(VLOOKUP($C$19,data3!$C$233:$Y$361,G$20,FALSE),"") ->  | H35: =IFERROR(VLOOKUP($C$19,data3!$C$233:$Y$361,H$20,FALSE),"") ->  | I35: =IFERROR(VLOOKUP($C$19,data3!$C$233:$Y$361,I$20,FALSE),"") ->  | J35: =IFERROR(VLOOKUP($C$19,data3!$C$233:$Y$361,J$20,FALSE),"") ->  | K35: =IFERROR(VLOOKUP($C$19,data3!$C$233:$Y$361,K$20,FALSE),"") ->  | L35: =IFERROR(VLOOKUP($C$19,data3!$C$233:$Y$361,L$20,FALSE),"") ->  | M35: =IFERROR(VLOOKUP($C$19,data3!$C$233:$Y$361,M$20,FALSE),"") ->  | N35: =IFERROR(VLOOKUP($C$19,data3!$C$233:$Y$361,N$20,FALSE),"") ->  | O35: =IFERROR(VLOOKUP($C$19,data3!$C$233:$Y$361,O$20,FALSE),"") ->  | P35: =IFERROR(VLOOKUP($C$19,data3!$C$233:$Y$361,P$20,FALSE),"") ->  | Q35: =IFERROR(VLOOKUP($C$19,data3!$C$233:$Y$361,Q$20,FALSE),"") ->  | R35: =IF(A35=1,AF35,"") ->  | S35: =IF(A35=1,AG35,"") ->  | T35: =IFERROR(VLOOKUP($C$19,data3!$C$233:$Y$361,T$20,FALSE),"") ->  | U35: =IFERROR(VLOOKUP($C$19,data3!$C$233:$Y$361,U$20,FALSE),"") ->  | V35: =IFERROR(VLOOKUP($C$19,data3!$C$233:$Y$361,V$20,FALSE),"") ->  | W35: =IFERROR(VLOOKUP($C$19,data3!$C$233:$Y$361,W$20,FALSE),"") ->  | X35: =IF(A35=1,(IF($Z$8<=60, "OK", "!Překročena součtová délka!")),"") ->  | Y35: =IF(A35=1,AJ35,"") ->  | Z35: =IF(X35="OK",IF(($Z$8-30)>0,($Z$8-30)*0.02,"není potřeba"),"") ->  | AA35: =IF(A35=1,AH35,"") ->  | AB35: =IF(A35=1,AK35,"") ->  | AC35: =IF(A35=1,AI35,"") ->  | AD35: =IF(A35=1,AS35,"") ->  | AE35: =IF(A35=1,AT35,"") ->  | AF35: C/20A | AG35: 230V/50Hz | AH35: 734x958x340 | AI35: 600 mm | AJ35: 2 | AK35: 63 kg | AM35: 4MXM68A9 | AS35: 61 dBA | AT35: 48 dBA
A36: 0 | D36: =IFERROR(VLOOKUP($C$19,data4!$C$232:$Y$360,D$20,FALSE),"") ->  | E36: =IFERROR(VLOOKUP($C$19,data4!$C$232:$Y$360,E$20,FALSE),"") ->  | F36: =IFERROR(VLOOKUP($C$19,data4!$C$232:$Y$360,F$20,FALSE),"") ->  | G36: =IFERROR(VLOOKUP($C$19,data4!$C$232:$Y$360,G$20,FALSE),"") ->  | H36: =IFERROR(VLOOKUP($C$19,data4!$C$232:$Y$360,H$20,FALSE),"") ->  | I36: =IFERROR(VLOOKUP($C$19,data4!$C$232:$Y$360,I$20,FALSE),"") ->  | J36: =IFERROR(VLOOKUP($C$19,data4!$C$232:$Y$360,J$20,FALSE),"") ->  | K36: =IFERROR(VLOOKUP($C$19,data4!$C$232:$Y$360,K$20,FALSE),"") ->  | L36: =IFERROR(VLOOKUP($C$19,data4!$C$232:$Y$360,L$20,FALSE),"") ->  | M36: =IFERROR(VLOOKUP($C$19,data4!$C$232:$Y$360,M$20,FALSE),"") ->  | N36: =IFERROR(VLOOKUP($C$19,data4!$C$232:$Y$360,N$20,FALSE),"") ->  | O36: =IFERROR(VLOOKUP($C$19,data4!$C$232:$Y$360,O$20,FALSE),"") ->  | P36: =IFERROR(VLOOKUP($C$19,data4!$C$232:$Y$360,P$20,FALSE),"") ->  | Q36: =IFERROR(VLOOKUP($C$19,data4!$C$232:$Y$360,Q$20,FALSE),"") ->  | T36: =IFERROR(VLOOKUP($C$19,data4!$C$232:$Y$360,T$20,FALSE),"") ->  | U36: =IFERROR(VLOOKUP($C$19,data4!$C$232:$Y$360,U$20,FALSE),"") ->  | V36: =IFERROR(VLOOKUP($C$19,data4!$C$232:$Y$360,V$20,FALSE),"") ->  | W36: =IFERROR(VLOOKUP($C$19,data4!$C$232:$Y$360,W$20,FALSE),"") -> 
A37: =IFERROR(VLOOKUP($C$19,data3!$C$362:$Z$627,24,FALSE),"") ->  | B37: =IF(AM9>=1,"",IF(A37=1,AM37,"")) ->  | C37: =IFERROR(VLOOKUP($C$19,data3!$C$362:$Y$627,C$20,FALSE),"") ->  | D37: =IFERROR(VLOOKUP($C$19,data3!$C$362:$Y$627,D$20,FALSE),"") ->  | E37: =IFERROR(VLOOKUP($C$19,data3!$C$362:$Y$627,E$20,FALSE),"") ->  | F37: =IFERROR(VLOOKUP($C$19,data3!$C$362:$Y$627,F$20,FALSE),"") ->  | G37: =IFERROR(VLOOKUP($C$19,data3!$C$362:$Y$627,G$20,FALSE),"") ->  | H37: =IFERROR(VLOOKUP($C$19,data3!$C$362:$Y$627,H$20,FALSE),"") ->  | I37: =IFERROR(VLOOKUP($C$19,data3!$C$362:$Y$627,I$20,FALSE),"") ->  | J37: =IFERROR(VLOOKUP($C$19,data3!$C$362:$Y$627,J$20,FALSE),"") ->  | K37: =IFERROR(VLOOKUP($C$19,data3!$C$362:$Y$627,K$20,FALSE),"") ->  | L37: =IFERROR(VLOOKUP($C$19,data3!$C$362:$Y$627,L$20,FALSE),"") ->  | M37: =IFERROR(VLOOKUP($C$19,data3!$C$362:$Y$627,M$20,FALSE),"") ->  | N37: =IFERROR(VLOOKUP($C$19,data3!$C$362:$Y$627,N$20,FALSE),"") ->  | O37: =IFERROR(VLOOKUP($C$19,data3!$C$362:$Y$627,O$20,FALSE),"") ->  | P37: =IFERROR(VLOOKUP($C$19,data3!$C$362:$Y$627,P$20,FALSE),"") ->  | Q37: =IFERROR(VLOOKUP($C$19,data3!$C$362:$Y$627,Q$20,FALSE),"") ->  | R37: =IF(A37=1,AF37,"") ->  | S37: =IF(A37=1,AG37,"") ->  | T37: =IFERROR(VLOOKUP($C$19,data3!$C$362:$Y$627,T$20,FALSE),"") ->  | U37: =IFERROR(VLOOKUP($C$19,data3!$C$362:$Y$627,U$20,FALSE),"") ->  | V37: =IFERROR(VLOOKUP($C$19,data3!$C$362:$Y$627,V$20,FALSE),"") ->  | W37: =IFERROR(VLOOKUP($C$19,data3!$C$362:$Y$627,W$20,FALSE),"") ->  | X37: =IF(A37=1,(IF($Z$8<=70,"OK","!Překročena součtová délka!")),"") ->  | Y37: =IF(A37=1,AJ37,"") ->  | Z37: =IF(X37="OK",IF(($Z$8-30)>0,($Z$8-30)*0.02,"není potřeba"),"") ->  | AA37: =IF(A37=1,AH37,"") ->  | AB37: =IF(A37=1,AK37,"") ->  | AC37: =IF(A37=1,AI37,"") ->  | AD37: =IF(A37=1,AS37,"") ->  | AE37: =IF(A37=1,AT37,"") ->  | AF37: =IF(R42=S66,"C/25A","C/20A") -> C/20A | AG37: 230V/50Hz | AH37: 734x958x340 | AI37: 600 mm | AJ37: 2.4 | AK37: 67 kg | AM37: 4MXM80A9 | AS37: 61 dBA | AT37: 49 dBA
A38: 0 | D38: =IFERROR(VLOOKUP($C$19,data4!$C$361:$Y$626,D$20,FALSE),"") ->  | E38: =IFERROR(VLOOKUP($C$19,data4!$C$361:$Y$626,E$20,FALSE),"") ->  | F38: =IFERROR(VLOOKUP($C$19,data4!$C$361:$Y$626,F$20,FALSE),"") ->  | G38: =IFERROR(VLOOKUP($C$19,data4!$C$361:$Y$626,G$20,FALSE),"") ->  | H38: =IFERROR(VLOOKUP($C$19,data4!$C$361:$Y$626,H$20,FALSE),"") ->  | I38: =IFERROR(VLOOKUP($C$19,data4!$C$361:$Y$626,I$20,FALSE),"") ->  | J38: =IFERROR(VLOOKUP($C$19,data4!$C$361:$Y$626,J$20,FALSE),"") ->  | K38: =IFERROR(VLOOKUP($C$19,data4!$C$361:$Y$626,K$20,FALSE),"") ->  | L38: =IFERROR(VLOOKUP($C$19,data4!$C$361:$Y$626,L$20,FALSE),"") ->  | M38: =IFERROR(VLOOKUP($C$19,data4!$C$361:$Y$626,M$20,FALSE),"") ->  | N38: =IFERROR(VLOOKUP($C$19,data4!$C$361:$Y$626,N$20,FALSE),"") ->  | O38: =IFERROR(VLOOKUP($C$19,data4!$C$361:$Y$626,O$20,FALSE),"") ->  | P38: =IFERROR(VLOOKUP($C$19,data4!$C$361:$Y$626,P$20,FALSE),"") ->  | Q38: =IFERROR(VLOOKUP($C$19,data4!$C$361:$Y$626,Q$20,FALSE),"") ->  | T38: =IFERROR(VLOOKUP($C$19,data4!$C$361:$Y$626,T$20,FALSE),"") ->  | U38: =IFERROR(VLOOKUP($C$19,data4!$C$361:$Y$626,U$20,FALSE),"") ->  | V38: =IFERROR(VLOOKUP($C$19,data4!$C$361:$Y$626,V$20,FALSE),"") ->  | W38: =IFERROR(VLOOKUP($C$19,data4!$C$361:$Y$626,W$20,FALSE),"") -> 
A39: =IFERROR(VLOOKUP($C$19,data3!$C$628:$Z$1101,24,FALSE),"") -> 1 | B39: =IF(AM9>=16,"",IF(A39=1,AM39,"")) -> 5MXM90A9 | C39: =IFERROR(VLOOKUP($C$19,data3!$C$628:$Y$1101,C$20,FALSE),"") -> 2,0+2,0+2,0+3,5+3,5 | D39: =IFERROR(VLOOKUP($C$19,data3!$C$628:$Y$1101,D$20,FALSE),"") -> 1.38 | E39: =IFERROR(VLOOKUP($C$19,data3!$C$628:$Y$1101,E$20,FALSE),"") -> 1.38 | F39: =IFERROR(VLOOKUP($C$19,data3!$C$628:$Y$1101,F$20,FALSE),"") -> 1.38 | G39: =IFERROR(VLOOKUP($C$19,data3!$C$628:$Y$1101,G$20,FALSE),"") -> 2.42 | H39: =IFERROR(VLOOKUP($C$19,data3!$C$628:$Y$1101,H$20,FALSE),"") -> 2.42 | I39: =IFERROR(VLOOKUP($C$19,data3!$C$628:$Y$1101,I$20,FALSE),"") -> 2.99 | J39: =IFERROR(VLOOKUP($C$19,data3!$C$628:$Y$1101,J$20,FALSE),"") -> 9 | K39: =IFERROR(VLOOKUP($C$19,data3!$C$628:$Y$1101,K$20,FALSE),"") -> 9.64 | L39: =IFERROR(VLOOKUP($C$19,data3!$C$628:$Y$1101,L$20,FALSE),"") -> 0.56 | M39: =IFERROR(VLOOKUP($C$19,data3!$C$628:$Y$1101,M$20,FALSE),"") -> 2.06 | N39: =IFERROR(VLOOKUP($C$19,data3!$C$628:$Y$1101,N$20,FALSE),"") -> 2.75 | O39: =IFERROR(VLOOKUP($C$19,data3!$C$628:$Y$1101,O$20,FALSE),"") -> 2.57 | P39: =IFERROR(VLOOKUP($C$19,data3!$C$628:$Y$1101,P$20,FALSE),"") -> 9.43 | Q39: =IFERROR(VLOOKUP($C$19,data3!$C$628:$Y$1101,Q$20,FALSE),"") -> 12.59 | R39: =IF(A39=1,AF39,"") -> C/20A | S39: =IF(A39=1,AG39,"") -> 230V/50Hz | T39: =IFERROR(VLOOKUP($C$19,data3!$C$628:$Y$1101,T$20,FALSE),"") -> A++ | U39: =IFERROR(VLOOKUP($C$19,data3!$C$628:$Y$1101,U$20,FALSE),"") -> 7.78 | V39: =IFERROR(VLOOKUP($C$19,data3!$C$628:$Y$1101,V$20,FALSE),"") -> 9 | W39: =IFERROR(VLOOKUP($C$19,data3!$C$628:$Y$1101,W$20,FALSE),"") -> 405 | X39: =IF(A39=1,(IF($Z$8<=75, "OK", "!Překročena součtová délka!")),"") -> OK | Y39: =IF(A39=1,AJ39,"") -> 2.4 | Z39: =IF(X39="OK",IF(($Z$8-30)>0,($Z$8-30)*0.02,"není potřeba"),"") -> není potřeba | AA39: =IF(A39=1,AH39,"") -> 734x958x340 | AB39: =IF(A39=1,AK39,"") -> 68 kg | AC39: =IF(A39=1,AI39,"") -> 600 mm | AD39: =IF(A39=1,AS39,"") -> 64 dBA | AE39: =IF(A39=1,AT39,"") -> 52 dBA | AF39: =IF(R42=S66,"C/32A","C/20A") -> C/20A | AG39: 230V/50Hz | AH39: 734x958x340 | AI39: 600 mm | AJ39: 2.4 | AK39: 68 kg | AM39: 5MXM90A9 | AS39: 64 dBA | AT39: 52 dBA
A40: 0 | D40: =IFERROR(VLOOKUP($C$19,data4!$C$627:$Y$1100,D$20,FALSE),"") -> 1.54 | E40: =IFERROR(VLOOKUP($C$19,data4!$C$627:$Y$1100,E$20,FALSE),"") -> 1.54 | F40: =IFERROR(VLOOKUP($C$19,data4!$C$627:$Y$1100,F$20,FALSE),"") -> 1.54 | G40: =IFERROR(VLOOKUP($C$19,data4!$C$627:$Y$1100,G$20,FALSE),"") -> 2.69 | H40: =IFERROR(VLOOKUP($C$19,data4!$C$627:$Y$1100,H$20,FALSE),"") -> 2.69 | I40: =IFERROR(VLOOKUP($C$19,data4!$C$627:$Y$1100,I$20,FALSE),"") -> 3.77 | J40: =IFERROR(VLOOKUP($C$19,data4!$C$627:$Y$1100,J$20,FALSE),"") -> 10 | K40: =IFERROR(VLOOKUP($C$19,data4!$C$627:$Y$1100,K$20,FALSE),"") -> 11.54 | L40: =IFERROR(VLOOKUP($C$19,data4!$C$627:$Y$1100,L$20,FALSE),"") -> 0.58 | M40: =IFERROR(VLOOKUP($C$19,data4!$C$627:$Y$1100,M$20,FALSE),"") -> 2.03 | N40: =IFERROR(VLOOKUP($C$19,data4!$C$627:$Y$1100,N$20,FALSE),"") -> 2.66 | O40: =IFERROR(VLOOKUP($C$19,data4!$C$627:$Y$1100,O$20,FALSE),"") -> 2.67 | P40: =IFERROR(VLOOKUP($C$19,data4!$C$627:$Y$1100,P$20,FALSE),"") -> 9.3 | Q40: =IFERROR(VLOOKUP($C$19,data4!$C$627:$Y$1100,Q$20,FALSE),"") -> 12.17 | T40: =IFERROR(VLOOKUP($C$19,data4!$C$627:$Y$1100,T$20,FALSE),"") -> A+ | U40: =IFERROR(VLOOKUP($C$19,data4!$C$627:$Y$1100,U$20,FALSE),"") -> 4.54 | V40: =IFERROR(VLOOKUP($C$19,data4!$C$627:$Y$1100,V$20,FALSE),"") -> 6.46 | W40: =IFERROR(VLOOKUP($C$19,data4!$C$627:$Y$1100,W$20,FALSE),"") -> 1 992
A41: Součtová délka | B41: =INDEX(AV24:AV33,E19,1) -> OK | C41: =IF(OR(B41="!překročena součtová délka!",AW9>0),"délky","OK") -> OK
A42: Jednotlivá délka | C42: n-násobek | D42: 1 | H42: Zmenšení jističe pro 4MXM80N a 5MXM90N (po konzultaci se zástupcem Daikin) | R42: Zmenšit | BH42: =BI42 -> https://vrvxpress.daikin.eu/CTV#/capacity?productFamily=10&applicationType=16&series=536871347&outdoorUnit=536872144&inputAttributeIds=50&inputAttributeIds=51&inputAttributeIds=53&inputAttributeValues=Heating&inputAttributeValues=20%2B20%2B20%2B35%2B35&inputAttributeValues=22&inputAttributeValues=VRV%20VRT&inputAttributeValues=0&inputAttributeValues=22&showAbolishedProducts=false | BI42: =BJ42&BK42&BL42&BM42&BN42&BO42&BP42&BQ42&BR42&BS42&BT42&BU42&BV42&BW42&BX42&BY42&BZ42&CA42&CB42&CC42&CD42&CE42&CF42&CG42&CH42&CI42&CJ42 -> https://vrvxpress.daikin.eu/CTV#/capacity?productFamily=10&applicationType=16&series=536871347&outdoorUnit=536872144&inputAttributeIds=50&inputAttributeIds=51&inputAttributeIds=53&inputAttributeValues=Heating&inputAttributeValues=20%2B20%2B20%2B35%2B35&inputAttributeValues=22&inputAttributeValues=VRV%20VRT&inputAttributeValues=0&inputAttributeValues=22&showAbolishedProducts=false | BJ42: https://vrvxpress.daikin.eu/CTV#/capacity?productFamily= | BK42: =VLOOKUP(B17,Kapacita!$A$2:$O$103,2,FALSE) -> 10 | BL42: &applicationType= | BM42: =VLOOKUP(B17,Kapacita!$A$2:$O$103,3,FALSE) -> 16 | BN42: &series= | BO42: =VLOOKUP(B17,Kapacita!$A$2:$E$103,4,FALSE) -> 536871347 | BP42: &outdoorUnit= | BQ42: =VLOOKUP(B17,Kapacita!$A$2:$O$103,5,FALSE) -> 536872144 | BR42: &inputAttributeIds= | BS42: =VLOOKUP(B17,Kapacita!$A$2:$I$103,6,FALSE) -> 50 | BT42: &inputAttributeIds= | BU42: =VLOOKUP(B17,Kapacita!$A$2:$I$103,7,FALSE) -> 51 | BV42: &inputAttributeIds= | BW42: =VLOOKUP(B17,Kapacita!$A$2:$I$103,8,FALSE) -> 53 | BX42: &inputAttributeValues= | BY42: =VLOOKUP(B17,Kapacita!$A$2:$I$103,9,FALSE) -> Heating | BZ42: &inputAttributeValues= | CA42: =(AJ3*10)&"%2B"&(AJ4*10)&IF(ISNUMBER(AJ5),"%2B","")&IF(ISNUMBER(AJ5),AJ5*10,"")&IF(ISNUMBER(AJ6),"%2B","")&IF(ISNUMBER(AJ6),AJ6*10,"")&IF(ISNUMBER(AJ7),"%2B","")&IF(ISNUMBER(AJ7),AJ7*10,"") -> 20%2B20%2B20%2B35%2B35 | CD42: &inputAttributeValues= | CE42: =VLOOKUP(B17,Kapacita!$A$2:$O$103,12,FALSE) -> 22 | CF42: &inputAttributeValues= | CG42: VRV%20VRT | CH42: &inputAttributeValues= | CI42: =ROUND(AC42*100,-1) -> 0 | CJ42: &inputAttributeValues=22&showAbolishedProducts=false
C43: -ceny jsou pouze orientační přesné nacenění provede zástupce Daikin (databáze k 21.05.2024) | R43: Zařízení | S43: CR | T43: Typ | U43: Q chl. [kW] | V43: Q top. [kW] | W43: P el.chl. | X43: P el.top. [kW] | Y43: rozvodné napětí [V] | Z43: RLA [A] | AA43: MCA [A] | AB43: Jištění typ C [A] | AC43: Hluk
B44: 1 | C44: Typ | D44: Počet | E44: Popis | J44: Cena/j | K44: Celkem | AC44: Lw (dBA) | AD44: Lp (dBA) | AF44: 2MXM40A9 | AG44: 30 | AH44: 20
B45: 2 | R45: =E46 -> 12C.001 Chlazení místností | T45: =CONCATENATE(B17,"+",P4," ",P5," ",P6," ",P7," ",P8) -> 5MXM90A9+FTXP35N9 FTXP35N9 FTXP20N9 FTXP20N9 FTXP20N9 | U45: =J17 -> 9 | V45: =J18 -> 10 | W45: =N17 -> 2.75 | X45: =N18 -> 2.66 | Y45: =S17 -> 230V/50Hz | Z45: na dotaz | AA45: na dotaz | AB45: =R17 -> C/20A | AC45: =AD17 -> 64 dBA | AD45: =AE17 -> 52 dBA | AF45: 2MXM50A9 | AG45: 30 | AH45: 20
C46: CE.HEADER | D46: 1 | E46: 12C.001 Chlazení místností | J46: 0 | N46: =C46 -> CE.HEADER | O46: =D46 -> 1 | P46: =E46 -> 12C.001 Chlazení místností | AF46: 2MXM68A9 | AG46: 50 | AH46: 25
B47: 1 | C47: =IF(CM9>0,"Chyba",C68) -> 5MXM90A9 | D47: =D68 -> 1 | E47: =IFERROR(IF(D47="","",VLOOKUP(C47,Ceník!$A$1:$C$9981,3,FALSE)),"") -> Venkovní multisplit jednotka pro 2-5 vnitřních jednotek | J47: =IF(D47="","",VLOOKUP(C47,Ceník!$A$1:$C$9981,2,FALSE)) -> 98858 | K47: =IF(D47="","",D47*J47) -> 98858 | N47: 5MXM90A9 | O47: 1 | P47: Venkovní multisplit jednotka pro 2-5 vnitřních jednotek | AF47: 3MXM40A9 | AG47: 50 | AH47: 25
B48: 2 | C48: =C69 -> FTXP20N9 | D48: 3 | E48: =IF(D48="","",VLOOKUP(C48,Ceník!$A$1:$C$9981,3,FALSE)) -> SPLIT COMFORA nástěnná jednotka | J48: =IF(D48="","",VLOOKUP(C48,Ceník!$A$1:$C$9981,2,FALSE)) -> 9506 | K48: 28518 | N48: FTXP20N9 | O48: 3 | P48: SPLIT COMFORA nástěnná jednotka | AF48: 3MXM52A9 | AG48: 50 | AH48: 25
B49: 3 | C49: FTXP35N9 | D49: 2 | E49: =IF(D49="","",VLOOKUP(C49,Ceník!$A$1:$C$9981,3,FALSE)) -> SPLIT COMFORA nástěnná jednotka | J49: =IF(D49="","",VLOOKUP(C49,Ceník!$A$1:$C$9981,2,FALSE)) -> 11594 | K49: 23188 | N49: FTXP35N9 | O49: 2 | P49: SPLIT COMFORA nástěnná jednotka | AF49: 3MXM68A9 | AG49: 50 | AH49: 25
B50: 4 | E50: =IF(D50="","",VLOOKUP(C50,Ceník!$A$1:$C$9981,3,FALSE)) ->  | J50: =IF(D50="","",VLOOKUP(C50,Ceník!$A$1:$C$9981,2,FALSE)) ->  | AF50: 4MXM68A9 | AG50: 60 | AH50: 25
B51: 5 | E51: =IF(D51="","",VLOOKUP(C51,Ceník!$A$1:$C$9981,3,FALSE)) ->  | J51: =IF(D51="","",VLOOKUP(C51,Ceník!$A$1:$C$9981,2,FALSE)) ->  | AF51: 4MXM80A9 | AG51: 70 | AH51: 25
B52: 6 | E52: =IF(D52="","",VLOOKUP(C52,Ceník!$A$1:$C$9981,3,FALSE)) ->  | J52: =IF(D52="","",VLOOKUP(C52,Ceník!$A$1:$C$9981,2,FALSE)) ->  | AF52: 5MXM90A9 | AG52: 75 | AH52: 25
B53: 7 | E53: =IF(D53="","",VLOOKUP(C53,Ceník!$A$1:$C$9981,3,FALSE)) ->  | J53: =IF(D53="","",VLOOKUP(C53,Ceník!$A$1:$C$9981,2,FALSE)) -> 
B54: 8 | E54: =IF(D54="","",VLOOKUP(C54,Ceník!$A$1:$C$9981,3,FALSE)) ->  | J54: =IF(D54="","",VLOOKUP(C54,Ceník!$A$1:$C$9981,2,FALSE)) -> 
B55: 9 | E55: =IF(D55="","",VLOOKUP(C55,Ceník!$A$1:$C$9981,3,FALSE)) ->  | J55: =IF(D55="","",VLOOKUP(C55,Ceník!$A$1:$C$9981,2,FALSE)) -> 
B56: 10 | E56: =IF(D56="","",VLOOKUP(C56,Ceník!$A$1:$C$9981,3,FALSE)) ->  | J56: =IF(D56="","",VLOOKUP(C56,Ceník!$A$1:$C$9981,2,FALSE)) -> 
B57: 11 | E57: =IF(D57="","",VLOOKUP(C57,Ceník!$A$1:$C$9981,3,FALSE)) ->  | J57: =IF(D57="","",VLOOKUP(C57,Ceník!$A$1:$C$9981,2,FALSE)) -> 
B58: 12 | E58: =IF(D58="","",VLOOKUP(C58,Ceník!$A$1:$C$9981,3,FALSE)) ->  | J58: =IF(D58="","",VLOOKUP(C58,Ceník!$A$1:$C$9981,2,FALSE)) -> 
E59: =IF(D59="","",VLOOKUP(C59,Ceník!$A$1:$C$9981,3,FALSE)) ->  | J59: =IF(D59="","",VLOOKUP(C59,Ceník!$A$1:$C$9981,2,FALSE)) -> 
E60: =IF(D60="","",VLOOKUP(C60,Ceník!$A$1:$C$9981,3,FALSE)) ->  | J60: =IF(D60="","",VLOOKUP(C60,Ceník!$A$1:$C$9981,2,FALSE)) ->  | N60: 0 | O60: 0
E61: =IF(D61="","",VLOOKUP(C61,Ceník!$A$1:$C$9981,3,FALSE)) ->  | J61: =IF(D61="","",VLOOKUP(C61,Ceník!$A$1:$C$9981,2,FALSE)) ->  | N61: 0 | O61: 0
E62: =IF(D62="","",VLOOKUP(C62,Ceník!$A$1:$C$9981,3,FALSE)) ->  | J62: =IF(D62="","",VLOOKUP(C62,Ceník!$A$1:$C$9981,2,FALSE)) ->  | N62: 0 | O62: 0
C63: =IF(N153>0,"KRP1BC101","") ->  | D63: =IF(N153>0,N153,"") ->  | E63: =IF(D63="","",VLOOKUP(C63,Ceník!$A$1:$C$9981,3,FALSE)) ->  | J63: =IF(D63="","",VLOOKUP(C63,Ceník!$A$1:$C$9981,2,FALSE)) -> 
C64: Projektová cena celkem | K64: =SUM(K46:L62) -> 150564
I65: 0
C66: Přehled vybraných jednotek | I66: 1 | J66: 2MXM40A9 | S66: Standard
C67: Označení | D67: Počet | I67: 2 | J67: 2MXM50A9 | S67: Zmenšit
C68: =IF(OR(B17="Přidej IU",B17=""),"",VLOOKUP(E19,I65:J74,2,0)) -> 5MXM90A9 | D68: =IF(E19>0,"1","") -> 1 | I68: 3 | J68: 3MXM40A9
B69: 1 | C69: =IFERROR(VLOOKUP(B69,$O$75:$Q$158,2,0),"") -> FTXP20N9 | D69: =IFERROR(VLOOKUP(B69,$O$75:$Q$160,3,0),"") -> 3 | I69: 4 | J69: 3MXM52A9
B70: 2 | C70: FTXP35N9 | D70: 2 | I70: 5 | J70: 3MXM68A9
B71: 3 | I71: 6 | J71: 4MXM68A9
B72: 4 | I72: 7 | J72: 4MXM80A9
B73: 5 | I73: 8 | J73: 5MXM90A9
B74: 6 | I74: 9 | J74: 2MXM68A9
B75: 7 | J75: =P4 -> FTXP35N9 | M75: CTXA15BS | N75: =COUNTIF($J$75:$J$90,M75) -> 0 | O75: =IFERROR(RANK(R75,$R$75:$R$150,1),"") ->  | P75: =IF(N75>0,M75,"") ->  | Q75: =IF(N75>0,N75,"") ->  | R75: =IF(N75>0,MATCH(M75,$M$75:$M$150,0),"") -> 
B76: 8 | J76: =P5 -> FTXP35N9 | M76: CTXA15AT | N76: 0
B77: 9 | J77: =P6 -> FTXP20N9 | M77: CTXA15AW | N77: 0
B78: 10 | G78: infra | H78: kabelový | J78: =P7 -> FTXP20N9 | M78: CTXM15R | N78: 0
B79: 11 | F79: FAA | G79: BRC7EB518 | H79: kabelový | J79: =P8 -> FTXP20N9 | M79: FTXA20BS | N79: 0
B80: 12 | F80: FCAG | G80: BRC7FA532F | H80: infra | J80: =R4 ->  | M80: FTXA20BB | N80: 0
F81: FFA | G81: BRC7F530W | J81: =R5 ->  | M81: FTXA20AW | N81: 0
F82: FHA | G82: BRC7GA53-9 | J82: =R6 ->  | M82: FTXA25BS | N82: 0
F83: FUA | G83: BRC7C58 | J83: =R7 ->  | M83: FTXA25BB | N83: 0
F84: FBA | G84: BRC4C65 | J84: =R8 ->  | M84: FTXA25AW | N84: 0
F85: FDXM | G85: BRC4C65 | J85: =S4 ->  | M85: FTXA35BS | N85: 0
F86: FNA | G86: BRC4C65 | J86: =S5 ->  | M86: FTXA35BB | N86: 0
F87: FVA | J87: =S6 ->  | M87: FTXA35AW | N87: 0
F88: FTXM | G88: IR v ceně | J88: =S7 ->  | M88: FTXA42BS | N88: 0
J89: =S8 ->  | M89: FTXA42AT | N89: 0
M90: FTXA42AW | N90: 0
J91: =IF(U4="RTD-RA","EKRS21",IF(AND(OR(M4="Parapetní opláštěná",M4="perfera",M4="Stylish Černá",M4="Stylish Bílá",M4="Stylish Stříbrná"),C4>0,T4="kabelový"),"EKRS21",0)) -> 0 | M91: FTXA50BS | N91: 0
J92: =IF(U5="RTD-RA","EKRS21",IF(AND(OR(M5="Parapetní opláštěná",M5="perfera",M5="Stylish Černá",M5="Stylish Bílá",M5="Stylish Stříbrná"),C5>0,T5="kabelový"),"EKRS21",0)) -> 0 | M92: FTXA50BB | N92: 0
J93: =IF(U6="RTD-RA","EKRS21",IF(AND(OR(M6="Parapetní opláštěná",M6="perfera",M6="Stylish Černá",M6="Stylish Bílá",M6="Stylish Stříbrná"),C6>0,T6="kabelový"),"EKRS21",0)) -> 0 | M93: FTXA50AW | N93: 0
J94: =IF(U7="RTD-RA","EKRS21",IF(AND(OR(M7="Parapetní opláštěná",M7="perfera",M7="Stylish Černá",M7="Stylish Bílá",M7="Stylish Stříbrná"),C7>0,T7="kabelový"),"EKRS21",0)) -> 0 | M94: FTXJ20AS | N94: 0
B95: 2001-11-01 | C95: 3MXM40N | J95: =IF(U8="RTD-RA","EKRS21",IF(AND(OR(M8="Parapetní opláštěná",M8="perfera",M8="Stylish Černá",M8="Stylish Bílá",M8="Stylish Stříbrná"),C8>0,T8="kabelový"),"EKRS21",0)) -> 0 | M95: FTXJ20AW | N95: 0
J96: =U4 ->  | M96: FTXJ25AS | N96: 0
B97: A | C97: =B17 -> 5MXM90A9 | D97: =CONCATENATE(B97,C97) -> A5MXM90A9 | J97: =U5 ->  | M97: FTXJ25AW | N97: 0
J98: =U6 ->  | M98: FTXJ35AS | N98: 0
J99: =U7 ->  | M99: FTXJ35AW | N99: 0
J100: =U8 ->  | M100: FTXJ50AS | N100: 0
M101: FTXJ50AW | N101: 0
M102: FTXM20A | N102: 0
M103: FTXM25A | N103: 0
M104: FTXM35A | N104: 0 | V104: FAA71B | Y104: 290x1050x238 mm | Z104: 13 kg | AA104: 9,5 x 15,9 mm | AC104: 12,1/13,4/16,2 | AD104: 12,7/14,2/16,9 | AE104: 61 | AF104: 61 | AG104: 40,0/42,0/45,0 | AH104: 40,0/42,0/45,0
H105: Žádné | M105: FTXM42A | N105: 0 | V105: FAA100A | Y105: 340x1200x240 mm | Z105: 17 kg | AA105: 9,5 x 15,9 mm | AC105: 23,0/21,1/18,7 | AD105: 23,0/20,9/18,7 | AE105: 65 | AF105: 65 | AG105: 41/45/49 | AH105: 41/45/49
H106: Adaptér Modbus | M106: FTXM50A | N106: 0 | V106: FBA35A9 | Y106: 245x700x800 mm | Z106: 28 kg | AA106: 6,4x9,5 mm | AC106: 15/10,5 | AD106: 15/10,5 | AE106: 60 | AG106: 35/29 | AH106: 37/29 | AI106: 30 ~ 150
H107: Připojení na (F1/F2) | M107: FTXM60A | N107: =COUNTIF($J$75:$J$90,M107) -> 0 | O107: =IFERROR(RANK(R107,$R$75:$R$150,1),"") ->  | P107: =IF(N107>0,M107,"") ->  | Q107: =IF(N107>0,N107,"") ->  | R107: =IF(N107>0,MATCH(M107,$M$75:$M$150,0),"") ->  | V107: FBA50A9 | Y107: 245x700x800 mm | Z107: 28 kg | AA107: 6,4x12,7 mm | AC107: 15/10,5 | AD107: 15/10,5 | AE107: 61 | AG107: 35/30 | AH107: 37/30 | AI107: 31 ~ 150
M108: FTXM71A | N108: 0 | V108: FBA60A9 | Y108: 245x1000x800 mm | Z108: 35 kg | AA108: 6,4x12,7 mm | AC108: 18/12,5 | AD108: 18/12,5 | AE108: 56 | AG108: 30/25 | AH108: 31/25 | AI108: 32 ~ 150
M109: FTXP20N9 | N109: 3 | O109: 1 | P109: FTXP20N9 | Q109: 3 | R109: 35 | V109: FBA71A9 | Y109: 245x1000x800 mm | Z109: 35 kg | AA109: 9,5x15,9 mm | AC109: 18/12,5 | AD109: 18/12,5 | AE109: 57 | AG109: 30/26 | AH109: 31/26 | AI109: 33 ~ 150
M110: FTXP25N9 | N110: 0 | V110: FBA100A | Y110: 245x1400x800 mm | Z110: 46 kg | AA110: 9,5x15,9 mm | AC110: 29/23 | AD110: 29/23 | AE110: 58 | AG110: 34/30 | AH110: 36/30 | AI110: 40 ~ 150
M111: FTXP35N9 | N111: 2 | O111: 2 | P111: FTXP35N9 | Q111: 2 | R111: 37 | V111: FBA125A | Y111: 245x1400x800 mm | Z111: 46 kg | AA111: 9,5x15,9 mm | AC111: 34/23,5 | AD111: 34/23,5 | AE111: 62 | AG111: 37/32 | AH111: 38/32 | AI111: 50 ~ 150
M112: FDXM25F9 | N112: 0 | V112: FBA140A | Y112: 245x1400x800 mm | Z112: 46 kg | AA112: 9,5x15,9 mm | AC112: 34/23,5 | AD112: 34/23,5 | AE112: 63 | AG112: 37/33 | AH112: 38/33 | AI112: 51 ~ 150
M113: FDXM35F9 | N113: 0 | V113: FCAG35B | Y113: 204x840x840 mm | Z113: 18 kg | AA113: 6,4x9,5 mm | AC113: 12,5/8,7 | AD113: 12,5/8,7 | AE113: 49 | AF113: 49 | AG113: 31/27 | AH113: 31/27
M114: FDXM50F9 | N114: 0 | V114: FCAG50B | Y114: 204x840x840 mm | Z114: 19 kg | AA114: 6,4x12,7 mm | AC114: 12,6/8,7 | AD114: 12,6/8,7 | AE114: 49 | AF114: 49 | AG114: 31/27 | AH114: 31/27
M115: FDXM60F9 | N115: 0 | V115: FCAG60B | Y115: 204x840x840 mm | Z115: 19 kg | AA115: 6,4x12,7 mm | AC115: 13,6/8,7 | AD115: 13,6/8,7 | AE115: 51 | AF115: 51 | AG115: 33/28 | AH115: 33/28
M116: FBA35A9 | N116: 0 | V116: FCAG71B | Y116: 204x840x840 mm | Z116: 21 kg | AA116: 9,5x15,9 mm | AC116: 15,0/9,1 | AD116: 15,0/9,1 | AE116: 49 | AF116: 49 | AG116: 35/28 | AH116: 33/28
M117: FBA50A9 | N117: 0 | V117: FCAG100B | Y117: 246x840x840 mm | Z117: 24 kg | AA117: 9,5x15,9 mm | AC117: 22,8/12,4 | AD117: 22,8/12,4 | AE117: 54 | AF117: 54 | AG117: 37/29 | AH117: 37/29
M118: FBA60A9 | N118: 0 | V118: FCAG125B | Y118: 246x840x840 mm | Z118: 24 kg | AA118: 9,5x15,9 mm | AC118: 26,0/12,4 | AD118: 26,0/12,4 | AE118: 58 | AF118: 58 | AG118: 41/29 | AH118: 41/29
M119: FBA71A9 | N119: 0 | V119: FCAG140B | Y119: 246x840x840 mm | Z119: 24 kg | AA119: 9,5x15,9 mm | AC119: 26,0/12,4 | AD119: 26,0/12,4 | AE119: 58 | AF119: 58 | AG119: 41/29 | AH119: 41/29
M120: FCAG35B | N120: 0 | V120: FDA125A | Y120: 300x1400x700 m | Z120: 45 kg | AA120: 9,5x15,9 mm | AC120: 125A | AD120: 39/28 | AE120: 39/28 | AF120: 66 | AG120: 40/33 | AH120: 40/33 | AI120: 50 ~ 200
M121: FCAG50B | N121: 0 | V121: FDA200A | Y121: 400x1490x1100 | Z121: 104 kg | AA121: 9,5x19,1 mm | AC121: 200A | AD121: 36/64 | AE121: 36/64 | AF121: 69 | AG121: 43/36 | AH121: 43/36 | AI121: 62 ~ 250
M122: FCAG60B | N122: 0 | V122: FDA250A | Y122: 400x1490x1100 | Z122: 115 kg | AA122: 9,5x22,5 mm | AC122: 250A | AD122: 43/69 | AE122: 43/69 | AF122: 71 | AG122: 44/37 | AH122: 44/37 | AI122: 63 ~ 250
M123: FFA25A9 | N123: 0 | V123: FDXM25F9 | Y123: 200x750x620 mm | Z123: 31 kg | AA123: 6,4x9,5 mm | AC123: 7,3/8,0/8,7 | AD123: 7,3/8,0/8,7 | AE123: 53 | AF123: 53 | AG123: 27/33/35 | AH123: 27/33/35 | AI123: 30
M124: FFA35A9 | N124: 0 | V124: FDXM35F9 | Y124: 200x750x620 mm | Z124: 32 kg | AA124: 6,4x9,5 mm | AC124: 7,3/8,0/8,7 | AD124: 7,3/8,0/8,7 | AE124: 53 | AF124: 53 | AG124: 27/33/35 | AH124: 27/33/35 | AI124: 31
M125: FFA50A9 | N125: 0 | V125: FDXM50F9 | Y125: 200x1150x62 0mm | Z125: 50 kg | AA125: 6,4x12,7 mm | AC125: 13,3/14,6/15,8 | AD125: 13,3/14,6/15,8 | AE125: 55 | AF125: 55 | AG125: 30/35/38 | AH125: 30/35/38 | AI125: 40
M126: FFA60A9 | N126: 0 | V126: FDXM60F9 | Y126: 200x1150x62 0mm | Z126: 50 kg | AA126: 6,4x12,7 mm | AC126: 13,5/14,8/16,0 | AD126: 13,5/14,8/16,0 | AE126: 56 | AF126: 56 | AG126: 30/35/38 | AH126: 30/35/38 | AI126: 41
M127: FHA35A9 | N127: 0 | V127: FFA25A9 | Y127: 260x575x575 mm | Z127: 16 kg | AA127: 6,4x9,5 mm | AC127: 9/6,5 | AD127: 9/6,5 | AE127: 48 | AG127: 31/25 | AH127: 31/25
M128: FHA50A9 | N128: 0 | V128: FFA35A9 | Y128: 260x575x575 mm | Z128: 16 kg | AA128: 6,4x9,5 mm | AC128: 10/6,5 | AD128: 10/6,5 | AE128: 51 | AG128: 34/25 | AH128: 34/25
M129: FHA60A9 | N129: 0 | V129: FFA50A9 | Y129: 260x575x575 mm | Z129: 17,5 kg | AA129: 6,4x12,7 mm | AC129: 12/7,5 | AD129: 12/7,5 | AE129: 56 | AG129: 39/27 | AH129: 39/27
M130: FNA25A9 | N130: 0 | V130: FFA60A9 | Y130: 260x575x575 mm | Z130: 17,5 kg | AA130: 6,4x12,7 mm | AC130: 14,5/9,5 | AD130: 14,5/9,5 | AE130: 60 | AG130: 43/32 | AH130: 43/32
M131: FNA35A9 | N131: 0 | V131: FHA35A9 | Y131: 235x960x690 mm | Z131: 24 kg | AA131: 6,4x9,5 mm | AC131: 14/10 | AD131: 14/10 | AE131: 53 | AF131: 53 | AG131: 36/31 | AH131: 36/31
M132: FNA50A9 | N132: 0 | V132: FHA50A9 | Y132: 235x960x690 mm | Z132: 25 kg | AA132: 6,4x12,7 mm | AC132: 15/10 | AD132: 15/10 | AE132: 54 | AF132: 54 | AG132: 37/32 | AH132: 37/32
M133: FNA60A9 | N133: 0 | V133: FHA60A9 | Y133: 235x1270x690 mm | Z133: 31 kg | AA133: 6,4x12,7 mm | AC133: 19,5/11,5 | AD133: 19,5/11,5 | AE133: 54 | AF133: 54 | AG133: 37/33 | AH133: 37/33
M134: CVXM20A | N134: =COUNTIF($J$75:$J$90,M134) -> 0 | O134: =IFERROR(RANK(R134,$R$75:$R$150,1),"") ->  | P134: =IF(N134>0,M134,"") ->  | Q134: =IF(N134>0,N134,"") ->  | R134: =IF(N134>0,MATCH(M134,$M$75:$M$150,0),"") ->  | V134: FHA71A9 | Y134: 235x1270x690 mm | Z134: 32 kg | AA134: 9,5x15,9 mm | AC134: 20,5/14 | AD134: 20,5/14 | AE134: 55 | AF134: 55 | AG134: 38/34 | AH134: 38/34
M135: FVXM25A | N135: 0 | V135: FHA100A | Y135: 235x1590x690 mm | Z135: 38 kg | AA135: 9,5x15,9 mm | AC135: 28/20 | AD135: 28/20 | AE135: 60 | AF135: 60 | AG135: 42/34 | AH135: 42/34
M136: FVXM35A | N136: 0 | V136: FHA125A | Y136: 235x1590x690 mm | Z136: 38 kg | AA136: 9,5x15,9 mm | AC136: 31/23 | AD136: 31/23 | AE136: 62 | AF136: 62 | AG136: 44/37 | AH136: 44/37
M137: FVXM50A | N137: 0 | V137: FHA140A | Y137: 235x1590x690 mm | Z137: 38 kg | AA137: 9,5x15,9 mm | AC137: 34/24 | AD137: 34/24 | AE137: 64 | AF137: 64 | AG137: 46/38 | AH137: 46/38
M138: BYCQ140E | N138: 0 | V138: FNA25A9 | Y138: 620x790x200 mm | Z138: 23 kg | AA138: 6,4x9,5 mm | AC138: 8,7/7,3 | AD138: 8,7/7,3 | AE138: 48/30 | AF138: 53 | AG138: 33/28 | AH138: 33/28
M139: BYFQ60CW | N139: 0 | V139: FNA35A9 | Y139: 620x790x200 mm | Z139: 23 kg | AA139: 6,4x9,5 mm | AC139: 8,7/7,3 | AD139: 8,7/7,3 | AE139: 48/31 | AF139: 54 | AG139: 33/28 | AH139: 33/28
M140: BRC1H52W | N140: =COUNTIF($J$75:$J$90,M140) -> 0 | O140: =IFERROR(RANK(R140,$R$75:$R$150,1),"") ->  | P140: =IF(N140>0,M140,"") ->  | Q140: =IF(N140>0,N140,"") ->  | R140: =IF(N140>0,MATCH(M140,$M$75:$M$150,0),"") ->  | V140: FNA50A9 | Y140: 620x1150x200 mm | Z140: 30 kg | AA140: 6,4x12,7 mm | AC140: 16,0/13,5 | AD140: 16,0/13,5 | AE140: 49/40 | AF140: 56 | AG140: 36/30 | AH140: 36/30
M141: BRC7EB518 | N141: 0 | V141: FNA60A9 | Y141: 620x1150x200 mm | Z141: 30 kg | AA141: 6,4x12,7 mm | AC141: 16,0/13,5 | AD141: 16,0/13,5 | AE141: 49/41 | AF141: 57 | AG141: 36/30 | AH141: 36/30
M142: BRC7FA532F | N142: 0 | V142: FUA71A | Y142: 198x950x950 mm | Z142: 25 kg | AA142: 9,5x15,9 mm | AC142: 23/16 | AD142: 23/16 | AE142: 59 | AF142: 59 | AG142: 41/35 | AH142: 41/35
M143: BRC7F530W | N143: 0 | V143: FUA100A | Y143: 198x950x950 mm | Z143: 26 kg | AA143: 9,5x15,9 mm | AC143: 31/20 | AD143: 31/20 | AE143: 64 | AF143: 64 | AG143: 46/39 | AH143: 46/39
M144: BRC7GA53-9 | N144: 0 | V144: FUA125A | Y144: 198x950x950 mm | Z144: 26 kg | AA144: 9,5x15,9 mm | AC144: 32,5/20,5 | AD144: 32,5/20,5 | AE144: 65 | AF144: 65 | AG144: 47/40 | AH144: 47/40
M145: BRC7C58 | N145: 0 | V145: FVA71A | Y145: 1850x600x270 mm | Z145: 42 kg | AA145: 9,5x15,9 mm | AC145: 18/14 | AD145: 18/14 | AE145: 55 | AF145: 55 | AG145: 43/38 | AH145: 43/38
M146: BRC4C56 | N146: 0 | V146: FVA100A | Y146: 1850x600x350 mm | Z146: 50 kg | AA146: 9,5x15,9 mm | AC146: 28/22 | AD146: 28/22 | AE146: 62 | AF146: 62 | AG146: 50/44 | AH146: 50/44
M147: BRC4C565 | N147: 0 | V147: FVA125A | Y147: 1850x600x350 mm | Z147: 50 kg | AA147: 9,5x15,9 mm | AC147: 28/24 | AD147: 28/24 | AE147: 63 | AF147: 63 | AG147: 51/46 | AH147: 51/46
M148: BRC4C65 | N148: 0 | V148: FVA140A | Y148: 1850x600x350 mm | Z148: 50 kg | AA148: 9,5x15,9 mm | AC148: 30/26 | AD148: 30/26 | AE148: 65 | AF148: 65 | AG148: 53/48 | AH148: 53/48
M149: BRC073 | N149: 0 | V149: FTXM20A | Y149: 295x778x272 mm | Z149: 10 kg | AA149: 6,4x9,5 mm | AC149: 4,3/5,7/7,5/10,6 | AD149: 5,1/6,2/8,2/9,4 | AE149: 58 | AF149: 54 | AG149: 19/25/33/42 | AH149: 20/26/34/40
M150: BRCW901A08 | N150: 0 | V150: FTXM25A | Y150: 295x778x272 mm | Z150: 10 kg | AA150: 6,4x9,5 mm | AC150: 4,1/5,7/7,6/10,5 | AD150: 4,9/6,3/8,0/9,8 | AF150: 54 | AG150: 19/25/33/43 | AH150: 20/27/34/39
M151: EKRS21 | N151: =COUNTIF($J$75:$J$100,M151) -> 0 | O151: =IFERROR(RANK(R151,$R$75:$R$151,1),"") ->  | R151: =IF(N151>0,MATCH(M151,$M$75:$M$151,0),"") ->  | V151: FTXM35A | Y151: 295x778x272 mm | Z151: 10 kg | AA151: 6,4x9,5 mm | AC151: 4,2/6,0/7,8/11,3 | AD151: 4,9/6,5/8,5/9,8 | AE151: 58 | AF151: 54 | AG151: 19/29/33/45 | AH151: 20/28/35/39
M152: RTD-RA | N152: =COUNTIF($J$75:$J$100,M152) -> 0 | O152: =IFERROR(RANK(R152,$R$75:$R$152,1),"") ->  | R152: =IF(N152>0,MATCH(M152,$M$75:$M$152,0),"") ->  | V152: FTXM42A | Y152: 295x778x272 mm | Z152: 10 kg | AA152: 6,4x9,5 mm | AC152: 4,3/6,5/9,0/11,9 | AD152: 4,9/6,5/9,7/12,4 | AE152: 60 | AF152: 60 | AG152: 21/30/39/45 | AH152: 21/29/39/45
M153: EKMBPP1 | N153: =COUNTIF($J$75:$J$100,M153) -> 0 | O153: =IFERROR(RANK(R153,$R$75:$R$153,1),"") ->  | R153: =IF(N153>0,MATCH(M153,$M$75:$M$153,0),"") ->  | V153: FTXM50A | Y153: 299x998x292 mm | Z153: 14,5 kg | AA153: 6,4x12,7 mm | AC153: 8,3/11,4/14/15,8 | AD153: 10,5/12,0/14,2/15,8 | AE153: 58 | AF153: 58 | AG153: 27/36/40/44 | AH153: 31/34/39/43
M154: KRP928A2S | N154: 0 | O154: =IFERROR(RANK(R154,$R$75:$R$154,1),"") ->  | R154: =IF(N154>0,MATCH(M154,$M$75:$M$154,0),"") ->  | V154: FTXM60A | Y154: 299x998x292 mm | Z154: 14,5 kg | AA154: 6,4x12,7 mm | AC154: 9,1/11,8/14/16,7 | AD154: 11,1/12,4/15,2/16,5 | AE154: 60 | AF154: 59 | AG154: 30/37/42/46 | AH154: 33/36/41/45
V155: FTXJ20AW | Y155: 305x900x212 mm | Z155: 12 kg | AC155: 4,6/6,0/8,4/11,0 | AD155: 4,6/6,4/8,7/11,1 | AE155: 57 | AF155: - | AG155: 19/25/32/39 | AH155: 19/25/32/39
V156: FTXJ25AW | Y156: 305x900x212 mm | Z156: 12 kg | AC156: 4,6/6,0/8,6/11,4 | AD156: 4,6/6,4/9,0/11,3 | AE156: 57 | AF156: - | AG156: 19/25/33/40 | AH156: 19/25/33/40
V157: FTXJ35AW | Y157: 305x900x212 mm | Z157: 12 kg | AC157: 4,6/6,0/8,6/11,8 | AD157: 4,6/6,4/9,0/11,7 | AE157: 60 | AF157: - | AG157: 13/25/33/41 | AH157: 19/25/33/41
V158: FTXJ42AW | Y158: 305x900x212 mm | Z158: 12 kg | AC158: 4,6/7,2/9,5/13 | AD158: 5,2/7,7/10,5/14,4 | AE158: 60 | AF158: - | AG158: 21/29/37/45 | AH158: 21/29/37/45
V159: FTXJ50AW | Y159: 305x900x212 mm | Z159: 12 kg | AC159: 5,2/7,6/10,4/13,5 | AD159: 5,7/8,2/11,1/15,0 | AE159: 60 | AF159: - | AG159: 24/31/39/46 | AH159: 24/33/42/46
V160: FTXJ20AS | Y160: 305x900x212 mm | Z160: 12 kg | AC160: 4,6/6,0/8,4/11,0 | AD160: 4,6/6,4/8,7/11,1 | AE160: 57 | AF160: - | AG160: 19/25/32/39 | AH160: 19/25/32/39
V161: FTXJ25AS | Y161: 305x900x212 mm | Z161: 12 kg | AC161: 4,6/6,0/8,6/11,4 | AD161: 4,6/6,4/9,0/11,3 | AE161: 57 | AF161: - | AG161: 19/25/33/40 | AH161: 19/25/33/40
V162: FTXJ35AS | Y162: 305x900x212 mm | Z162: 12 kg | AC162: 4,6/6,0/8,6/11,8 | AD162: 4,6/6,4/9,0/11,7 | AE162: 60 | AF162: - | AG162: 13/25/33/41 | AH162: 19/25/33/41
V163: FTXJ42AS | Y163: 305x900x212 mm | Z163: 12 kg | AC163: 4,6/7,2/9,5/13 | AD163: 5,2/7,7/10,5/14,4 | AE163: 60 | AF163: - | AG163: 21/29/37/45 | AH163: 21/29/37/45
V164: FTXJ50AS | Y164: 305x900x212 mm | Z164: 12 kg | AC164: 5,2/7,6/10,4/13,5 | AD164: 5,7/8,2/11,1/15,0 | AE164: 60 | AF164: - | AG164: 24/31/39/46 | AH164: 24/33/42/46
V165: FTXJ20AB | Y165: 305x900x212 mm | Z165: 12 kg | AC165: 4,6/6,0/8,4/11,0 | AD165: 4,6/6,4/8,7/11,1 | AE165: 57 | AF165: - | AG165: 19/25/32/39 | AH165: 19/25/32/39
V166: FTXJ25AB | Y166: 305x900x212 mm | Z166: 12 kg | AC166: 4,6/6,0/8,6/11,4 | AD166: 4,6/6,4/9,0/11,3 | AE166: 57 | AF166: - | AG166: 19/25/33/40 | AH166: 19/25/33/40
V167: FTXJ35AB | Y167: 305x900x212 mm | Z167: 12 kg | AC167: 4,6/6,0/8,6/11,8 | AD167: 4,6/6,4/9,0/11,7 | AE167: 60 | AF167: - | AG167: 13/25/33/41 | AH167: 19/25/33/41
V168: FTXJ42AB | Y168: 305x900x212 mm | Z168: 12 kg | AC168: 4,6/7,2/9,5/13 | AD168: 5,2/7,7/10,5/14,4 | AE168: 60 | AF168: - | AG168: 21/29/37/45 | AH168: 21/29/37/45
V169: FTXJ50AB | Y169: 305x900x212 mm | Z169: 12 kg | AC169: 5,2/7,6/10,4/13,5 | AD169: 5,7/8,2/11,1/15,0 | AE169: 60 | AF169: - | AG169: 24/31/39/46 | AH169: 24/33/42/46
V170: CTXA15BS | Y170: 295x798x189 mm | Z170: 11,5 kg | AC170: 4,6/6,1/8/11,0 | AD170: 4,5/6,4/8,7/10,9 | AE170: 57 | AG170: 21/25/32/39
V171: FTXA20BS | Y171: 295x798x189 mm | Z171: 12,5 kg | AC171: 4,6/6,1/8/11,0 | AD171: 4,5/6,4/8,7/10,9 | AE171: 57 | AG171: 19/25/32/39
V172: FTXA25BS | Y172: 295x798x189 mm | Z172: 13,5 kg | AC172: 4,6/6,1/8,6/11,5 | AD172: 4,5/6,4/9,0/11,1 | AE172: 57 | AG172: 19/25/33/40
V173: FTXA35BS | Y173: 295x798x189 mm | Z173: 14,5 kg | AC173: 4,6/6,1/8,6/11,9 | AD173: 4,5/6,4/9,0/11,5 | AE173: 60 | AG173: 19/25/33/41
V174: FTXA42BS | Y174: 295x798x189 mm | Z174: 15,5 kg | AC174: 4,6/7,2/9,8/13,1 | AD174: 5,2/7,7/10,5/14,6 | AE174: 60 | AG174: 21/29/37/45
V175: FTXA50BS | Y175: 295x798x189 mm | Z175: 16,5 kg | AC175: 5,2/7,6/10,4/13,5 | AD175: 5,7/8,2/11,1/15,1 | AE175: 60 | AG175: 24/31/39/46
V176: CTXA15BT | Y176: 295x798x189 mm | Z176: 11,5 kg | AC176: 4,6/6,1/8/11,0 | AD176: 4,5/6,4/8,7/10,9 | AE176: 57 | AG176: 21/25/32/39
V177: FTXA20BT | Y177: 295x798x189 mm | Z177: 12,5 kg | AC177: 4,6/6,1/8/11,0 | AD177: 4,5/6,4/8,7/10,9 | AE177: 57 | AG177: 19/25/32/39
V178: FTXA25BT | Y178: 295x798x189 mm | Z178: 13,5 kg | AC178: 4,6/6,1/8,6/11,5 | AD178: 4,5/6,4/9,0/11,1 | AE178: 57 | AG178: 19/25/33/40
V179: FTXA35BT | Y179: 295x798x189 mm | Z179: 14,5 kg | AC179: 4,6/6,1/8,6/11,9 | AD179: 4,5/6,4/9,0/11,5 | AE179: 60 | AG179: 19/25/33/41
V180: FTXA42BT | Y180: 295x798x189 mm | Z180: 15,5 kg | AC180: 4,6/7,2/9,8/13,1 | AD180: 5,2/7,7/10,5/14,6 | AE180: 60 | AG180: 21/29/37/45
V181: FTXA50BT | Y181: 295x798x189 mm | Z181: 16,5 kg | AC181: 5,2/7,6/10,4/13,5 | AD181: 5,7/8,2/11,1/15,1 | AE181: 60 | AG181: 24/31/39/46
V182: CTXA15BB | Y182: 295x798x189 mm | Z182: 11,5 kg | AC182: 4,6/6,1/8/11,0 | AD182: 4,5/6,4/8,7/10,9 | AE182: 57 | AG182: 21/25/32/39
V183: FTXA20BB | Y183: 295x798x189 mm | Z183: 12,5 kg | AC183: 4,6/6,1/8/11,0 | AD183: 4,5/6,4/8,7/10,9 | AE183: 57 | AG183: 19/25/32/39
V184: FTXA25BB | Y184: 295x798x189 mm | Z184: 13,5 kg | AC184: 4,6/6,1/8,6/11,5 | AD184: 4,5/6,4/9,0/11,1 | AE184: 57 | AG184: 19/25/33/40
V185: FTXA35BB | Y185: 295x798x189 mm | Z185: 14,5 kg | AC185: 4,6/6,1/8,6/11,9 | AD185: 4,5/6,4/9,0/11,5 | AE185: 60 | AG185: 19/25/33/41
V186: FTXA42BB | Y186: 295x798x189 mm | Z186: 15,5 kg | AC186: 4,6/7,2/9,8/13,1 | AD186: 5,2/7,7/10,5/14,6 | AE186: 60 | AG186: 21/29/37/45
V187: FTXA50BB | Y187: 295x798x189 mm | Z187: 16,5 kg | AC187: 5,2/7,6/10,4/13,5 | AD187: 5,7/8,2/11,1/15,1 | AE187: 60 | AG187: 24/31/39/46
V188: CTXA15AW | Y188: 295x798x189 mm | Z188: 11,5 kg | AB188: 4,6/6,1/8/11,0 | AC188: 4,5/6,4/8,7/10,9 | AD188: 57 | AE188: 21/25/32/39
V189: FTXA20AW | Y189: 295x798x189 mm | Z189: 12,5 kg | AB189: 4,6/6,1/8/11,0 | AC189: 4,5/6,4/8,7/10,9 | AD189: 57 | AE189: 19/25/32/39
V190: FTXA25AW | Y190: 295x798x189 mm | Z190: 13,5 kg | AB190: 4,6/6,1/8,6/11,5 | AC190: 4,5/6,4/9,0/11,1 | AD190: 57 | AE190: 19/25/33/40
V191: FTXA35AW | Y191: 295x798x189 mm | Z191: 14,5 kg | AB191: 4,6/6,1/8,6/11,9 | AC191: 4,5/6,4/9,0/11,5 | AD191: 60 | AE191: 19/25/33/41
V192: FTXA42AW | Y192: 295x798x189 mm | Z192: 15,5 kg | AB192: 4,6/7,2/9,8/13,1 | AC192: 5,2/7,7/10,5/14,6 | AD192: 60 | AE192: 21/29/37/45
V193: FTXA50AW | Y193: 295x798x189 mm | Z193: 16,5 kg | AB193: 5,2/7,6/10,4/13,5 | AC193: 5,7/8,2/11,1/15,1 | AD193: 60 | AE193: 24/31/39/46

Sheet SkyAir
A1: =MID(CELL("filename",A1),FIND("]",CELL("filename",A1))+1,31) -> SkyAir | B1: Zpět zadání | C1: Zpět Count
B2: Výkon chlazení | C2: 7,1 kW | G2: =MATCH(C2,T26:T34,0) -> 4 | H2: =VLOOKUP(A1,#REF!,2,FALSE) ->  | I2: Typ | J2: Počet | K2: Výkon | M2: Příkon | O2: Napětí | P2: Jištění | Q2: Rozměry | R2: Hmotnost | S2: Potrubí | T2: Chladivo R32 | V2: Hluk | Y2: Zařízení | Z2: CR | AA2: Typ | AB2: Q chl. [kW] | AC2: Q top. [kW] | AD2: P el.chl. | AE2: P el.top. [kW] | AF2: rozvodné napětí [V] | AG2: RLA [A] | AH2: MCA [A] | AI2: Jištění typ C [A] | AJ2: Hluk
B3: Chladivo | C3: R32 | K3: Chl | L3: Top | M3: Chl | N3: Top | Q3: VxŠxH | T3: Základ | U3: Doplnit (předvyplněno 30m) | V3: Lw (dBA) | W3: Lp (dBA) | AJ3: Lw (dBA) | AK3: Lp (dBA)
B4: Typ | C4: Alpha | F4: =CONCATENATE(C4,C3) -> AlphaR32 | G4: =MATCH(F4,U25:X25,0) -> 1 | H4: Venkovní jednotka | I4: =C21 -> RZAG71NY1 | J4: 1 | K4: =D25 -> 6,8 kW | L4: =D26 -> 7,5 kW | M4: =D27 -> 1,63 kW | N4: =D28 -> 1,74 kW | O4: =C5 -> 400V | P4: =C29 -> 16A | Q4: =VLOOKUP(I4,V68:AA94,4,0) -> 870x1100x460 mm | R4: =VLOOKUP(I4,V68:AA94,5,0) -> 81 kg | S4: =VLOOKUP(I4,V68:AA94,6,0) -> 9,5 x 15,9 mm | T4: =CONCATENATE(D32," kg") -> 3,2 kg | U4: =IF(C42>0,(CONCATENATE(D33," kg")),"") -> 0,2 kg | V4: =VLOOKUP(I4,V68:AD94,8,FALSE) -> 64 (Chl) - (Top) | W4: =VLOOKUP(I4,V68:AD94,9,FALSE) -> 46 (Chl) 48 (Top) | Y4: =K41 -> zař.1 | Z4: - | AA4: =I4 -> RZAG71NY1 | AB4: =D25 -> 6,8 kW | AC4: =D26 -> 7,5 kW | AD4: =D27 -> 1,63 kW | AE4: =D28 -> 1,74 kW | AF4: =C5 -> 400V | AG4: - | AH4: - | AI4: =C29 -> 16A | AJ4: =V4 -> 64 (Chl) - (Top) | AK4: =W4 -> 46 (Chl) 48 (Top)
B5: Napětí | C5: 400V | H5: Vnitřní jednotka | I5: =CONCATENATE(I22,J22,K22) -> FFA35A9 | J5: =VLOOKUP(C7,S68:U71,3,0) -> 2 | Q5: =VLOOKUP(I5,V96:AA140,4,0) -> 260x575x575 mm | R5: =VLOOKUP(I5,V96:AA140,5,0) -> 16 kg | S5: =VLOOKUP(I5,V96:AA140,6,0) -> 6,4x9,5 mm
B6: Vnitřní jednotka | C6: Kazeta 600x600 (FFA) | H6: Refnety | I6: =IF(C23="KHRQ250H7","KHRQ250H7",IF(C23="KHRQ22M20TA","KHRQ22M20TA",IF(C23="neplatna kombinace","",RIGHT(C23,7)))) -> KHRQ58T | J6: =VLOOKUP(C7,R32:S36,2,0) -> 1
B7: Počet vnitřních | C7: TWIN | H7: Ovladač | I7: =IF(C13="RTD-RA","",IF(C8="kabelový",VLOOKUP(I22,P38:R59,2,0),VLOOKUP(I22,P50:Q60,2,0))) -> BRC1H52W | J7: =IF(I7="IR v ceně","",J4) -> 1
B8: Ovladač | C8: kabelový | F8: =IF(C8="infra","",IF(C13<>"RTD-RA","","Pouze Infra v kom. s modbus")) ->  | H8: =IF(I7="IR v ceně","",IFERROR(VLOOKUP(I22,P39:S41,4,0),"")) -> Dekorační panel | I8: =IF(C13="RTD-RA","",IF(I7="IR v ceně","",IFERROR(VLOOKUP(I22,P39:R41,3,0),""))) -> BYFQ60CW | J8: =IF(I8="","",J5) -> 2 | Q8: =IFERROR(VLOOKUP(I8,V141:Z148,4,0),"") -> 46x620x620 mm | R8: =IFERROR(VLOOKUP(I8,V141:Z148,5,0),"") -> 2,8 kg
B9: =Q81 ->  | C9: Standard, šedé lamely | E9: =IF(C6=O28,VLOOKUP(C9,Q99:R105,2,FALSE),"") ->  | H9: =IF(OR(I9=Q39,J10=1),"Nutný ovladač","") ->  | I9: =IF(I7=Q39,"",IF(I8=O86,Q39,IF(I8=O87,Q39,IF(AND(F10="ANO",C6=O28),Q39,"")))) ->  | J9: =IF(I9=Q39,"1","") -> 
B10: =IF(C6=O28,R92,"") ->  | C10: NE | E10: =IFERROR(IF(C10="ANO",VLOOKUP(E9,P83:S89,4,FALSE),""),"") ->  | F10: =C10 -> NE | H10: =IF(AND(C10="ANO",C6=O28),"Čidlo přítomnosti","") ->  | I10: =IF(AND(C10="ANO",C6=O28),E10,"") ->  | J10: =IF(AND(F10="ANO",C6=O28),J5,"") -> 
B11: Změň index vnitřní | H11: Kom. svazek | I11: =J137 ->  | J11: =IF(OR(AND(C6=O27,C8="kabelový"),C13="RTD-RA",C15="KRP928A2S"),1,"") -> 
B12: Modbus adaptér | C12: Ne | D12: RTD-10 (pouze SkyAir) | E12: Ne | H12: Potrubí
B13: Příslušenství 1 | C13: =IF(C15="KRP928A2S",IF(C12="Ano","Zbytečná kombinace",IF(C12="Ano",VLOOKUP(C6,O27:Z36,12,FALSE),"")),IF(C12="Ano",VLOOKUP(C6,O27:Z36,12,FALSE),"")) ->  | E13: 1 | H13: Maximální délka potrubí (m) | I13: =D31 -> 55 | J13: (nutné ověřit !!)
B14: Připojit na F1/F2 (pouze FTXM) | C14: Ne | H14: Maximální převýšení (m) | I14: 30 | J14: (nutné ověřit !!)
B15: Příslušenství 2 | C15: =IF(AND(C6=O27,I22="FTXM"),IF(C14="Ano","KRP928A2S",""),"") ->  | E15: 1
B21: Venkovní jednotka | C21: =IF(K21="X","změňte typ, výkon nebo napětí",CONCATENATE(H21,I21)) -> RZAG71NY1 | H21: =INDEX(U26:X34,G2,G4) -> RZAG71 | I21: =IF(C5="230V",J21,K21) -> NY1 | J21: =INDEX(U48:X56,G2,G4) -> NV1 | K21: =IF(C5="230V",INDEX(U48:X56,G2,G4),INDEX(U36:X44,G2,G4)) -> NY1 | U21: R32 | V21: Alpha | W21: 230V
B22: Vnitřní jednotka | C22: =IF(C7="SPLIT",CONCATENATE(I22,J22,K22),CONCATENATE(I22,J22,K22,L22)) -> FFA35A9 2x | H22: =C22 -> FFA35A9 2x | I22: =VLOOKUP(C6,O27:P36,2,0) -> FFA | J22: =INDEX(U58:X66,M22,N22) -> 35 | K22: =VLOOKUP(C6,O27:Q36,3,0) -> A9 | L22: =VLOOKUP(C7,S68:T71,2,0) -> 2x | M22: =MATCH(C2,T58:T66,0) -> 4 | N22: =MATCH(C7,U57:X57,0) -> 2 | V22: Advanced | W22: 400V
B23: Refnety | C23: =IFERROR(INDEX(data1!D43:DV59,MATCH($H$21,data1!B43:B59,0),MATCH($H$22,data1!D42:DV42,0)),"neplatna kombinace") -> KHRQ58T | V23: Active
E24: Celkem | U24: R32
B25: Výkon | C25: Qchl | D25: =IFERROR(CONCATENATE(H27," ",I27),"") -> 6,8 kW | E25: =H27*J76 -> 142.8 | U25: AlphaR32 | V25: AdvancedR32 | W25: ActiveR32
C26: Qtop | D26: =IFERROR(CONCATENATE(H28," ",I28),"") -> 7,5 kW | E26: =H28*J76 -> 157.5 | L26: =IF(C6=O28,1,2) -> 2 | T26: 3,5 kW | U26: RZAG35 | V26: X | W26: X | X26: FTXM | Y26: A | Z26: RTD
B27: Příkon | C27: Pi chl | D27: =CONCATENATE(H29," ",I29) -> 1,63 kW | H27: =INDEX(data1!L62:M78,MATCH($H$21,data1!K62:K78,0),1) -> 6.8 | I27: kW | O27: Nástěnná (FTXM; FAA) | P27: =VLOOKUP(C2,T26:X34,5,FALSE) -> FAA | Q27: =VLOOKUP(C2,T26:Y34,6,FALSE) -> B | R27: SPLIT | T27: 5,0 kW | U27: RZAG50 | V27: X | W27: X | X27: FTXM | Y27: A | Z27: =IF(P27="FTXM","RTD-RA",IF(E12="Ano","RTD-10","EKMBPP1")) -> EKMBPP1 | AA27: Vnitřní jednotka nástěnná
C28: Pi top | D28: =CONCATENATE(H30," ",I30) -> 1,74 kW | H28: =INDEX(data1!L62:M78,MATCH($H$21,data1!K62:K78,0),2) -> 7.5 | I28: kW | O28: Kazeta 900x900 (FCAG) | P28: FCAG | Q28: B | R28: TWIN | T28: 6,0 kW | U28: RZAG60 | V28: X | W28: X | X28: FTXM | Y28: A | Z28: =IF($E$12="ANO","RTD-10","EKMBPP1") -> EKMBPP1 | AA28: Vnitřní jednotka kazetová s kruhovým 360° výstupem vzduchu
B29: Doporučené jištění | C29: =IFERROR(VLOOKUP(C21,V68:W99,2,0),"") -> 16A | H29: =IFERROR(INDEX(data1!D4:DV20,MATCH($H$21,data1!B4:B20,0),MATCH($H$22,data1!D3:DV3,0)),"X") -> 1.63 | I29: kW | J29: Ano | O29: Kazeta 600x600 (FFA) | P29: FFA | Q29: A9 | R29: TRIPLE | T29: 7,1 kW | U29: RZAG71 | V29: RZASG71 | W29: AZAS71 | X29: FAA | Y29: B | Z29: EKMBPP1 | AA29: Vnitřní jednotka 4-cestná, kazetová
H30: =IFERROR(INDEX(data1!D24:DV40,MATCH($H$21,data1!B24:B40,0),MATCH($H$22,data1!D23:DV23,0)),"X") -> 1.74 | I30: kW | J30: Ne | O30: Podstropní s 1 vydechem (FHA) | P30: FHA | Q30: =IF(J22=100,"A",IF(J22=125,"A",IF(J22=140,"A","A9"))) -> A9 | R30: Double TWIN | S30: 1 | T30: 10,0 kW | U30: RZAG100 | V30: RZASG100 | W30: AZAS100 | X30: FAA | Y30: B | Z30: EKMBPP1 | AA30: Vnitřní jednotka postropní s 1 výdechem
B31: Maximální délka potrubí (m) | D31: =IFERROR(VLOOKUP(C21,V68:X99,3,0),"") -> 55 | O31: Podstropní se 4mi výdechy (FUA) | P31: FUA | Q31: A | T31: 12,5 kW | U31: RZAG125 | V31: RZASG125 | W31: AZAS125 | X31: FAA | Y31: B | Z31: EKMBPP1 | AA31: Vnitřní jednotka podstropní se 4mi výdechy (
B32: Základní náplň chladiva (kg) | D32: =IFERROR(VLOOKUP(H21,T73:U89,2,0),"") -> 3.2 | O32: Kanálovka střední (FBA) | P32: FBA | Q32: =IF(OR(J22=71,J22=35,J22=50,J22=60),"A9","A") -> A9 | R32: SPLIT | T32: 14,0 kW | U32: RZAG140 | V32: RZASG140 | W32: AZAS140 | X32: FAA | Y32: B | Z32: EKMBPP1 | AA32: Vnitřní jednotka kanálová středotlaká
B33: Dodatečná náplň chladiva (kg) | D33: =IF(C42<=0,"zadejte délky potrubí",IF(C49<=D31,INDEX(E55:H71,G33,H33),"překročena max. delka")) -> 0.2 | G33: =MATCH(H21,D55:D71,0) -> 4 | H33: =MATCH(C7,E54:H54,0) -> 2 | O33: Kanálovka nízká (FDXM) | P33: FDXM | Q33: F9 | R33: TWIN | S33: 1 | T33: 19,0 kW | U33: X | V33: RZA200 | W33: X | X33: FAA | Y33: B | Z33: EKMBPP1 | AA33: Vnitřní jednotka kanálová středotlaká nízká
B34: Pozn. Výpočet množství chladiva funguje pouze když jsou vyplňené VŠECHNY délky L a pouze v modrých polích. | O34: Kanálovka vysoké EPS (FDA) | P34: FDA | Q34: A | T34: 22,0 kW | U34: X | V34: RZA250 | W34: X | X34: X | Z34: EKMBPP1 | AA34: Vnitřní jednotka kanálová vysokotlaká
O35: Parapetní neopláštěná (FNA) | P35: FNA | Q35: A9 | R35: TRIPLE | S35: 1 | T35: 400V | U35: AlphaR32 | V35: AdvancedR32 | W35: ActiveR32 | Z35: EKMBPP1 | AA35: Vnitřní jednotka parapetní neopláštěná
H36: 3.75 | I36: xx | O36: Volně stojící (FVA) | P36: FVA | Q36: A | R36: Double TWIN | S36: 3 | T36: 3,5 kW | U36: X | V36: X | W36: X | AA36: Vnitřní jednotka
H37: 4.45 | T37: 5,0 kW | U37: X | V37: X | W37: X
B38: vyskovy rozdil (pouze pro kontrolu) | H38: =H37-H36 -> 0.7 | I38: -ceny jsou pouze orientační přesné nacenění provede zástupce Daikin (databáze k 21.05.2024) | P38: FAA | Q38: BRC1H52W | T38: 6,0 kW | U38: X | V38: X | W38: X
B39: H1 | C39: 29 | D39: =IF(C39>=0,"m","") -> m | E39: =IF(C39>30,"NELZE","") ->  | I39: Typ | J39: Počet | K39: Popis | N39: Cena /jednotka | O39: Cena celkem | P39: FCAG | Q39: =VLOOKUP(E9,M83:N89,2,FALSE) -> BRC1H52W | R39: =E9 ->  | S39: Dekorační panel | T39: 7,1 kW | U39: NY1 | V39: X | W39: X
B40: H2 | C40: 0.5 | D40: m | E40: maximálně | P40: FFA | Q40: BRC1H52W | R40: BYFQ60CW | S40: Dekorační panel | T40: 10,0 kW | U40: NY1 | V40: MY1 | W40: MY1
B41: delky tras (včetně svislých délek) | E41: průměr | I41: CE.HEADER | J41: 1 | K41: zař.1 | N41: 0 | P41: FTXM | Q41: BRC073 | R41: BRCW901A08 | S41: Kabel | T41: 12,5 kW | U41: NY1 | V41: MY1 | W41: MY1
B42: L1 | C42: 30 | D42: =IF(C42>0,"m","") -> m | E42: =IF(C42>0,VLOOKUP(H21,D55:L71,6,FALSE),"") -> 9,52x15,9mm | I42: =IFERROR(INDEX(I$129:I$140,SMALL(IF(I$129:I$140<>"",ROW(I$129:I$140)-ROW(I$129)+1),ROWS(J$129:J130))),"") -> RZAG71NY1 | J42: =VLOOKUP(R129,$J$129:$K$140,2,FALSE) -> 1 | K42: =IF(J42="","",VLOOKUP(I42,Ceník!$A$1:$C$9981,3,FALSE)) -> Sky Air ALPHA venk. jednotka | N42: =IF(C13="zbytečná kombinace","",IF(J42>0,VLOOKUP(I42,Ceník!$A$1:$C$9981,2,FALSE),"")) -> 88499 | O42: =J42*N42 -> 88499 | P42: FHA | Q42: BRC1H52W | T42: 14,0 kW | U42: NY1 | V42: MY1 | W42: MY1
B43: L2 | C43: 5 | D43: m | E43: =IF(C43>0,IF(C7="Double TWIN",VLOOKUP(H21,D55:L71,8,FALSE),VLOOKUP(H21,D55:L71,7,FALSE)),"") -> 6,4x9,5mm | I43: =IFERROR(INDEX(I$129:I$140,SMALL(IF(I$129:I$140<>"",ROW(I$129:I$140)-ROW(I$129)+1),ROWS(J$129:J131))),"") -> FFA35A9 | J43: 2 | K43: =IF(J43="","",VLOOKUP(I43,Ceník!$A$1:$C$9981,3,FALSE)) -> SKY AIR zcela plochá kazetová jednotka | N43: =IF(J43>0,VLOOKUP(I43,Ceník!$A$1:$C$9981,2,FALSE),"") -> 29388 | O43: =J43*N43 -> 58776 | P43: FUA | Q43: BRC1H52W | T43: 19,0 kW | U43: X | V43: D | W43: X
B44: L3 | C44: 5 | D44: m | E44: =IF(C44>0,IF(C7="Double TWIN",VLOOKUP(H21,D55:L71,8,FALSE),VLOOKUP(H21,D55:L71,7,FALSE)),"") -> 6,4x9,5mm | I44: =IFERROR(INDEX(I$129:I$140,SMALL(IF(I$129:I$140<>"",ROW(I$129:I$140)-ROW(I$129)+1),ROWS(J$129:J132))),"") -> KHRQ58T | J44: 1 | K44: =IF(J44="","",VLOOKUP(I44,Ceník!$A$1:$C$9981,3,FALSE)) -> rozhraní KNX pro Split | N44: =IF(J44>0,VLOOKUP(I44,Ceník!$A$1:$C$9981,2,FALSE),"") -> 3036 | O44: =J44*N44 -> 3036 | P44: FBA | Q44: BRC1H52W | T44: 22,0 kW | U44: X | V44: D | W44: X
B45: L4 | E45: =IF(C45>0,IF(C7="Double TWIN",VLOOKUP(H21,D55:L71,9,FALSE),VLOOKUP(H21,D55:L71,7,FALSE)),"") ->  | I45: =IFERROR(INDEX(I$129:I$140,SMALL(IF(I$129:I$140<>"",ROW(I$129:I$140)-ROW(I$129)+1),ROWS(J$129:J133))),"") -> BRC1H52W | J45: 1 | K45: =IF(J45="","",VLOOKUP(I45,Ceník!$A$1:$C$9981,3,FALSE)) -> Madoka kabelový ovladač bílý | N45: =IFERROR(IF(I7<>Q60,VLOOKUP(I45,Ceník!$A$1:$C$9981,2,FALSE),""),"") -> 5992 | O45: =IFERROR(IF(I7<>Q60,J45*N45,""),"") -> 5992 | P45: FDXM | Q45: BRC1H52W
B46: L5 | E46: =IF(C46>0,VLOOKUP(H21,D55:L71,9,FALSE),"") ->  | I46: =IFERROR(INDEX(I$129:I$140,SMALL(IF(I$129:I$140<>"",ROW(I$129:I$140)-ROW(I$129)+1),ROWS(J$129:J134))),"") -> BYFQ60CW | J46: 2 | K46: =IFERROR(IF(J46="","",VLOOKUP(I46,Ceník!$A$1:$C$9981,3,FALSE)),"") -> bílý panel | N46: =IFERROR(IF(J46="","",VLOOKUP(I46,Ceník!$A$1:$C$9981,2,FALSE)),"") -> 9384 | O46: =IFERROR(IF(J46="","",J46*N46),"") -> 18768 | P46: FNA | Q46: BRC1H52W
B47: L6 | E47: =IF(C47>0,VLOOKUP(H21,D55:L71,9,FALSE),"") ->  | I47: =IFERROR(INDEX(I$129:I$140,SMALL(IF(I$129:I$140<>"",ROW(I$129:I$140)-ROW(I$129)+1),ROWS(J$129:J135))),"") ->  | K47: =IFERROR(IF(J47="","",VLOOKUP(I47,Ceník!$A$1:$C$9981,3,FALSE)),"") ->  | N47: =IFERROR(IF(J47="","",VLOOKUP(I47,Ceník!$A$1:$C$9981,2,FALSE)),"") ->  | O47: =IFERROR(IF(J47="","",J47*N47),"") ->  | P47: FVA | Q47: BRC1H52W | T47: 230V | U47: AlphaR32 | V47: AdvancedR32 | W47: ActiveR32
B48: L7 | E48: =IF(C48>0,VLOOKUP(H21,D55:L71,9,FALSE),"") ->  | I48: =IFERROR(INDEX(I$129:I$140,SMALL(IF(I$129:I$140<>"",ROW(I$129:I$140)-ROW(I$129)+1),ROWS(J$129:J136))),"") ->  | K48: =IFERROR(IF(J48="","",VLOOKUP(I48,Ceník!$A$1:$C$9981,3,FALSE)),"") ->  | N48: =IFERROR(IF(J48="","",VLOOKUP(I48,Ceník!$A$1:$C$9981,2,FALSE)),"") ->  | P48: FDA | Q48: BRC1H52W | T48: 3,5 kW | U48: A | V48: X | W48: X
C49: =C42+C43+C44+C45+C46+C47+C48 -> 40 | I49: =IFERROR(INDEX(I$129:I$140,SMALL(IF(I$129:I$140<>"",ROW(I$129:I$140)-ROW(I$129)+1),ROWS(J$129:J137))),"") ->  | K49: =IFERROR(IF(J49="","",VLOOKUP(I49,Ceník!$A$1:$C$9981,3,FALSE)),"") ->  | N49: =IFERROR(IF(J49="","",VLOOKUP(I49,Ceník!$A$1:$C$9981,2,FALSE)),"") ->  | T49: 5,0 kW | U49: A | V49: X | W49: X
B50: Pozn. Pokud je pole červené, smažte vepsanou delku trasy. | I50: =IFERROR(INDEX(I$129:I$140,SMALL(IF(I$129:I$140<>"",ROW(I$129:I$140)-ROW(I$129)+1),ROWS(J$129:J138))),"") ->  | N50: =IFERROR(IF(J50="","",VLOOKUP(I50,Ceník!$A$1:$C$9981,2,FALSE)),"") ->  | P50: FAA | Q50: BRC7EB518 | R50: kabelový | T50: 6,0 kW | U50: A | V50: X | W50: X
I51: =B65 ->  | J51: =C65 ->  | K51: =IFERROR(IF(J51="","",VLOOKUP(I51,Ceník!$A$1:$C$9981,3,FALSE)),"") ->  | N51: =IFERROR(IF(J51="","",VLOOKUP(I51,Ceník!$A$1:$C$9981,2,FALSE)),"") ->  | P51: FCAG | Q51: =IF(E9=P83,"BRC7FA532F",IF(E9=P85,"BRC7FA532FB",IF(E9=P84,"BRC7FA532F",IF(E9=P86,"BRC7FA532F",IF(E9=P87,"NEJDE INFRA",IF(E9=P88,"BRC7FB532FB",IF(E9=P89,"BRC7FB532FB","ne"))))))) -> BRC7FA532F | R51: infra | T51: 7,1 kW | U51: NV1 | V51: MV1 | W51: MV1
B52: n-násobek | C52: 1 | I52: =B66 ->  | J52: =C66 ->  | K52: =IFERROR(IF(J52="","",VLOOKUP(I52,Ceník!$A$1:$C$9981,3,FALSE)),"") ->  | N52: =IFERROR(IF(J52="","",VLOOKUP(I52,Ceník!$A$1:$C$9981,2,FALSE)),"") ->  | P52: FDA | Q52: BRC4C65 | T52: 10,0 kW | U52: NV1 | V52: MV1 | W52: MV1
I53: Projektová cena celkem | O53: =SUM(O42:O52) -> 175071 | P53: FFA | Q53: BRC7F530W | T53: 12,5 kW | U53: NV1 | V53: MV1 | W53: MV1
A54: přís. | E54: SPLIT | F54: TWIN | G54: TRIPLE | H54: Double TWIN | I54: L1 | J54: L2, L3,L4 TWIN, TRIPPLE | K54: L2 L3 DoubleTWIN | L54: L4,L5,L6,L7 DoubleTWIN | P54: FHA | Q54: BRC7GA53-9 | T54: 14,0 kW | U54: NV1 | V54: MV1 | W54: MV1
D55: RZAG35 | E55: =IF($C$42<=30,"není potřeba",(IF($C$42<=50,($C$42-30)*0.02,"překročena max. délka"))) -> není potřeba | F55: X | G55: X | H55: X | I55: 6,4x9,5mm | P55: FUA | Q55: BRC7C58 | T55: 19,0 kW | U55: X | V55: X | W55: X
C56: 60 | D56: RZAG50 | E56: =IF($C$42<=30,"není potřeba",(IF($C$42<=50,($C$42-30)*0.02,"překročena max. délka"))) -> není potřeba | F56: X | G56: X | H56: X | I56: 6,4x12,7mm | P56: FBA | Q56: BRC4C65 | T56: 22,0 kW | U56: X | V56: X | W56: X
B57: =IF(AND($C$2=$T$33,$C$7=$R$29),$C$57,"") ->  | C57: 71 | D57: RZAG60 | E57: =IF($C$42<=30,"není potřeba",(IF($C$42<=50,($C$42-30)*0.02,"překročena max. délka"))) -> není potřeba | F57: X | G57: X | H57: X | I57: 6,4x12,7mm | P57: FDXM | Q57: BRC4C65 | U57: SPLIT | V57: TWIN | W57: TRIPLE | X57: Double TWIN
D58: RZAG71 | E58: =IF(C42<=40,"není potřeba",(IF(C42<=50,0.35,(IF(C42<=55,0.55,"překročena max. délka"))))) -> není potřeba | F58: =IF(F75>40,F100+F112,L112) -> 0.2 | G58: X | H58: X | I58: 9,52x15,9mm | J58: 6,4x9,5mm | P58: FNA | Q58: BRC4C65 | T58: 3,5 kW | U58: 35
B59: Změna vnitřní jednotky pro TRIPLE aplikaci RZA200D z 60 na 71 | D59: RZAG100 | E59: =IF(C42<=40,"není potřeba",(IF(C42<=50,0.35,(IF(C42<=55,0.55,IF(C42<=60,0.7,IF(C42<=75,1.05,IF(C42<=85,1.55,"překročena max. délka")))))))) -> není potřeba | F59: =IF(F76>40,F101+F113,L113) -> 0.2 | G59: =IF(G76>40,G101+G113,M113) -> 0.2 | H59: X | I59: 9,52x15,9mm | J59: =IF(C7="TRIPLE","6,4x9,5mm","6,4x12,7mm") -> 6,4x12,7mm | P59: FVA | T59: 5,0 kW | U59: 50
B60: =IF(AND(C2=T33,C7=R29),"ANO","NE") -> NE | D60: RZAG125 | E60: =IF(C42<=40,"není potřeba",(IF(C42<=50,0.35,(IF(C42<=55,0.55,IF(C42<=60,0.7,IF(C42<=75,1.05,IF(C42<=85,1.55,"překročena max. délka")))))))) -> není potřeba | F60: =IF(F77>40,F102+F114,L114) -> 0.2 | G60: =IF(G77>40,G102+G114,M114) -> 0.2 | H60: =IF(H77>40,H102+H114,N114) -> 0.2 | I60: 9,52x15,9mm | J60: 6,4x12,7mm | K60: 9,52x15,9mm | L60: 6,4x9,5mm | P60: FTXM | Q60: IR v ceně | T60: 6,0 kW | U60: 60
D61: RZAG140 | E61: =IF(C42<=40,"není potřeba",(IF(C42<=50,0.35,(IF(C42<=55,0.55,IF(C42<=60,0.7,IF(C42<=75,1.05,IF(C42<=85,1.55,"překročena max. délka")))))))) -> není potřeba | F61: =IF(F78>40,F103+F115,L115) -> 0.2 | G61: =IF(G78>40,G103+G115,M115) -> 0.2 | H61: =IF(H78>40,H103+H115,N115) -> 0.2 | I61: 9,52x15,9mm | J61: =IF(C7="TWIN","9,52x15,9mm","6,4x12,7mm") -> 9,52x15,9mm | K61: 9,52x15,9mm | L61: 6,4x9,5mm | T61: 7,1 kW | U61: 71 | V61: 35
B62: =IF(AND($C$2=$T$33,$C$7=$R$29),$C$56,"") ->  | D62: RZASG71 | E62: =IF(C42<=30,"není potřeba",(IF(C42<=40,0.35,(IF(C42<=50,0.7,"překročena max. délka"))))) -> není potřeba | F62: =IF(F79>30,F104+F116,L116) -> 0.4 | G62: X | H62: X | I62: 9,52x15,9mm | J62: 6,4x9,5mm | R62: =IF(E9=P83,"BRC7FA532F","ne") -> BRC7FA532F | T62: 10,0 kW | U62: 100 | V62: 50 | W62: 35
D63: RZASG100 | E63: =IF(C42<=30,"není potřeba",(IF(C42<=40,0.35,(IF(C42<=50,0.7,"překročena max. délka"))))) -> není potřeba | F63: =IF(F80>30,F105+F117,L117) -> 0.4 | G63: =IF(G80>30,G105+G117,M117) -> 0.4 | H63: X | I63: 9,52x15,9mm | J63: =IF(C7="TRIPLE","6,4x9,5mm","6,4x12,7mm") -> 6,4x12,7mm | T63: 12,5 kW | U63: 125 | V63: 60 | W63: 50 | X63: 35
D64: RZASG125 | E64: =IF(C42<=30,"není potřeba",(IF(C42<=40,0.35,(IF(C42<=50,0.7,"překročena max. délka"))))) -> není potřeba | F64: =IF(F81>30,F106+F118,L118) -> 0.4 | G64: =IF(G81>30,G106+G118,M118) -> 0.4 | H64: =IF(H81>30,H106+H118,N118) -> 0.9 | I64: 9,52x15,9mm | J64: 6,4x12,7mm | K64: 6,4x12,7mm | L64: 6,4x9,5mm | T64: 14,0 kW | U64: 140 | V64: 71 | W64: 50 | X64: 35
A65: přís.2 | B65: ="" ->  | C65: ="" ->  | D65: RZASG140 | E65: =IF(C42<=30,"není potřeba",(IF(C42<=40,0.35,(IF(C42<=50,0.7,"překročena max. délka"))))) -> není potřeba | F65: =IF(F82>30,F107+F119,L119) -> 0.4 | G65: =IF(G82>30,G107+G119,M119) -> 0.4 | H65: =IF(H82>30,H107+H119,N119) -> 0.9 | I65: 9,52x15,9mm | J65: =IF(C7="TWIN","9,52x15,9mm","6,4x12,7mm") -> 9,52x15,9mm | K65: 9,52x15,9mm | L65: 6,4x9,5mm | T65: 19,0 kW | U65: 200 | V65: 100 | W65: =C11 ->  | X65: 50
A66: přís. 3 | B66: =IF(C13="EKMBPP1","KRP1BC101","") ->  | C66: =IF(C13="EKMBPP1",1,"") ->  | D66: AZAS71 | E66: =IF(C42<=30,"není potřeba","překročena max. délka") -> není potřeba | F66: X | G66: X | H66: X | I66: 9,52x15,9mm | T66: 22,0 kW | U66: 250 | V66: 125 | X66: 60
D67: AZAS100 | E67: =IF(C42<=30,"není potřeba","překročena max. délka") -> není potřeba | F67: X | G67: X | H67: X | I67: 9,52x15,9mm | AC67: Lw | AD67: Lp
D68: AZAS125 | E68: =IF(C42<=30,"není potřeba","překročena max. délka") -> není potřeba | F68: X | G68: X | H68: X | I68: 9,52x15,9mm | S68: SPLIT | U68: 1 | V68: RZAG100NV1 | W68: 32A | X68: 85 | Y68: 870x1100x460 mm | Z68: 85 kg | AA68: 9,5 x 15,9 mm | AC68: 66 (Chl) - (Top) | AD68: 47 (Chl) 50 (Top)
D69: AZAS140 | E69: =IF(C42<=30,"není potřeba","překročena max. délka") -> není potřeba | F69: X | G69: X | H69: X | I69: 9,52x15,9mm | S69: TWIN | T69: 2x | U69: 2 | V69: RZAG100NY1 | W69: 16A | X69: 85 | Y69: 870x1100x460 mm | Z69: 85 kg | AA69: 9,5 x 15,9 mm | AC69: 66 (Chl) - (Top) | AD69: 47 (Chl) 50 (Top)
D70: RZA200 | E70: =IF(C42<=30,"není potřeba",(IF(C42<=40,0.45,(IF(C42<=50,0.9,IF(C42<=60,1.35,IF(C42<=70,1.8,IF(C42<=80,2.25,IF(C42<=90,2.7,IF(C42<=100,3.15,"překročena max. délka")))))))))) -> není potřeba | F70: =IF(F83>30,F108+F120,L120) -> 0.4 | G70: 0.4 | H70: 1.1 | I70: 9,5 x 22.2 mm | J70: =IF(C23="TWIN","9,52x15,9mm","6,4x12,7mm") -> 6,4x12,7mm | K70: 9,52x15,9mm | L70: 6,4x12,7mm | S70: TRIPLE | T70: 3x | U70: 3 | V70: RZAG125NV1 | W70: 32A | X70: 85 | Y70: 870x1100x460 mm | Z70: 95 kg | AA70: 9,5 x 15,9 mm | AC70: 69 (Chl) 68 (Top) | AD70: 49 (Chl) 52 (Top)
D71: RZA250 | E71: =IF(C42<=30,"není potřeba",(IF(C42<=40,0.45,(IF(C42<=50,0.9,IF(C42<=60,1.35,IF(C42<=70,1.8,IF(C42<=80,2.25,IF(C42<=90,2.7,IF(C42<=100,3.15,"překročena max. délka")))))))))) -> není potřeba | F71: 0.4 | G71: 0.4 | H71: 1.1 | I71: 9,5 x 22.2 mm | J71: =IF(C24="TWIN","9,52x15,9mm","6,4x12,7mm") -> 6,4x12,7mm | K71: 9,52x15,9mm | L71: 6,4x12,7mm | S71: Double TWIN | T71: 4x | U71: 4 | V71: RZAG125NY1 | W71: 16A | X71: 85 | Y71: 870x1100x460 mm | Z71: 94 kg | AA71: 9,5 x 15,9 mm | AC71: 69 (Chl) 68 (Top) | AD71: 49 (Chl) 52 (Top)
V72: RZAG140NV1 | W72: 32A | X72: 85 | Y72: 870x1100x460 mm | Z72: 95 kg | AA72: 9,5 x 15,9 mm | AC72: 70 (Chl) 71 (Top) | AD72: 50 (Chl) 52(Top)
I73: Zařízení | J73: CR | K73: Typ | L73: Q chl. [kW] | M73: Q top. [kW] | N73: P el.chl. | O73: P el.top. [kW] | P73: rozvodné napětí [V] | Q73: RLA [A] | R73: MCA [A] | S73: Jištění typ C [A] | T73: RZAG71 | U73: 3.2 | V73: RZAG140NY1 | W73: 16A | X73: 85 | Y73: 870x1100x460 mm | Z73: 94 kg | AA73: 9,5 x 15,9 mm | AC73: 70 (Chl) 71 (Top) | AD73: 50 (Chl) 52(Top)
D74: G1 | F74: TWIN | G74: TRIPLE | H74: DoubleTWIN | T74: RZASG71 | U74: 2.45 | V74: RZAG71NV1 | W74: 20A | X74: 55 | Y74: 870x1100x460 mm | Z74: 81 kg | AA74: 9,5 x 15,9 mm | AC74: 64 (Chl) - (Top) | AD74: 46 (Chl) 48 (Top)
D75: RZAG71 | F75: =C42 -> 30 | G75: X | H75: X | I75: =K41 -> zař.1 | K75: =CONCATENATE(C21,,"+",C22) -> RZAG71NY1+FFA35A9 2x | L75: =D25 -> 6,8 kW | M75: =D26 -> 7,5 kW | N75: =D27 -> 1,63 kW | O75: =D28 -> 1,74 kW | P75: =C5 -> 400V | Q75: na dotaz | R75: na dotaz | S75: =C29 -> 16A | T75: RZAG100 | U75: 3.2 | V75: RZAG71NY1 | W75: 16A | X75: 55 | Y75: 870x1100x460 mm | Z75: 81 kg | AA75: 9,5 x 15,9 mm | AC75: 64 (Chl) - (Top) | AD75: 46 (Chl) 48 (Top)
D76: RZAG100 | F76: =C42 -> 30 | G76: =C42 -> 30 | H76: X | I76: n-násobek | J76: 21 | T76: RZASG100 | U76: 2.6 | V76: RZASG100MV1 | W76: 25A | X76: 50 | Y76: 990x940x320 mm | Z76: 70 kg | AA76: 9,5 x 15,9 mm | AC76: 70 (Chl) | AD76: 53 (Chl) 57 (Top)
D77: RZAG125 | F77: =C42 -> 30 | G77: =C42 -> 30 | H77: =C42+C43+C44 -> 40 | I77: =I41 -> CE.HEADER | J77: =J41*J76 -> 21 | K77: =I75 -> zař.1 | T77: RZAG125 | U77: 3.7 | V77: RZASG100MY1 | W77: 16A | X77: 50 | Y77: 990x940x320 mm | Z77: 70 kg | AA77: 9,5 x 15,9 mm | AC77: 70 (Chl) | AD77: 53 (Chl) 57 (Top)
D78: RZAG140 | F78: =C42 -> 30 | G78: =C42 -> 30 | H78: =C42+C43+C44 -> 40 | I78: =I42 -> RZAG71NY1 | J78: =J42*J76 -> 21 | K78: =O42*J78 -> 1858479 | T78: RZASG125 | U78: 2.6 | V78: RZASG125MV1 | W78: 32A | X78: 50 | Y78: 990x940x320 mm | Z78: 70 kg | AA78: 9,5 x 15,9 mm | AC78: 71 (Chl) - 71(Top) | AD78: 53 (Chl) 57 (Top)
D79: RZASG71 | F79: =C42 -> 30 | G79: X | H79: X | I79: FFA35A9 | J79: =J43*J76 -> 42 | K79: =O43*J79 -> 2468592 | T79: RZAG140 | U79: 3.7 | V79: RZASG125MY1 | W79: 16A | X79: 50 | Y79: 990x940x320 mm | Z79: 70 kg | AA79: 9,5 x 15,9 mm | AC79: 71 (Chl) - 71(Top) | AD79: 53 (Chl) 57 (Top)
D80: RZASG100 | F80: =C42 -> 30 | G80: =C42 -> 30 | H80: X | I80: =I45 -> BRC1H52W | J80: =J45*J76 -> 21 | K80: =O45*J80 -> 125832 | T80: RZASG140 | U80: 2.6 | V80: RZASG140MV1 | W80: 32A | X80: 50 | Y80: 990x940x320 mm | Z80: 78 kg | AA80: 9,5 x 15,9 mm | AC80: 73 (Chl) - 73(Top) | AD80: 54 (Chl) 57 (Top)
D81: RZASG125 | F81: =C42 -> 30 | G81: =C42 -> 30 | H81: =C42+C43+C44 -> 40 | I81: =I46 -> BYFQ60CW | J81: =J46*J76 -> 42 | Q81: =IF(C6=O28,R81,"") ->  | R81: Dekorační panel | T81: AZAS71 | U81: 2.45 | V81: RZASG140MY1 | W81: 16A | X81: 50 | Y81: 990x940x320 mm | Z81: 77 kg | AA81: 9,5 x 15,9 mm | AC81: 73 (Chl) - 73(Top) | AD81: 54 (Chl) 57 (Top)
D82: RZASG140 | F82: =C42 -> 30 | G82: =C42 -> 30 | H82: =C42+C43+C44 -> 40 | I82: =I49 ->  | J82: =J49*J76 ->  | K82: =N49*J82 ->  | T82: AZAS100 | U82: 2.6 | V82: RZASG71MV1 | W82: 20A | X82: 50 | Y82: 770x900x320 mm | Z82: 60 kg | AA82: 9,5 x 15,9 mm | AC82: 65 (Chl) | AD82: 46 (Chl) 47 (Top)
D83: RZA200 | F83: =C42 -> 30 | G83: =C42 -> 30 | H83: =C42+C43+C44 -> 40 | K83: =SUM(K78:K82) ->  | M83: =P83 ->  | N83: BRC1H52W | P83: =IF(C6=O28,"BYCQ140E","") ->  | Q83: =IF($C$6=$O$28,R83,"") ->  | R83: Standard, šedé lamely | S83: BRYQ140B | T83: AZAS125 | U83: 2.6 | V83: AZAS71MV1 | W83: 20A | X83: 30 | Y83: 770x900x320 mm | Z83: 60 kg | AA83: 9,5 x 15,9 mm
D84: RZA250 | F84: =C42 -> 30 | G84: =C42 -> 30 | H84: =C42+C43+C44 -> 40 | M84: =P84 ->  | N84: BRC1H52W | P84: =IF(C6=O28,"BYCQ140EW","") ->  | R84: Bílý, bílé lamely | S84: BRYQ140B | T84: AZAS140 | U84: 2.9 | V84: AZAS100MV1 | W84: 25A | X84: 30 | Y84: 990x940x32 0mm | Z84: 70 kg | AA84: 9,5 x 15,9 mm
N85: BRC1H52K | P85: =IF(C6=O28,"BYCQ140EB","") ->  | R85: Černý | S85: BRYQ140BB | T85: RZAG35 | U85: 1.55 | V85: AZAS125MV1 | W85: 32A | X85: 30 | Y85: 990x940x320 mm | Z85: 70 kg | AA85: 9,5 x 15,9 mm
D86: G2 | F86: TWIN | G86: TRIPLE | H86: DoubleTWIN | N86: BRC1H52W | O86: BYCQ140EGF | P86: =IF(C6=O28,"BYCQ140EGF","") ->  | R86: Samočistící, bílá barva | S86: BRYQ140B | T86: RZAG50 | U86: 1.55 | V86: AZAS140MV1 | W86: 32A | X86: 30 | Y86: 990x940x320 mm | Z86: 78 kg | AA86: 9,5 x 15,9 mm
D87: RZAG71 | F87: =C43+C44 -> 10 | G87: X | H87: X | N87: BRC1H52K | O87: BYCQ140EGFB | P87: =IF(C6=O28,"BYCQ140EGFB","") ->  | R87: Samočistící, černá barva | S87: BRYQ140BB | T87: RZAG60 | U87: 1.55 | V87: AZAS100MY1 | W87: 16A | X87: 30 | Y87: 990x940x320 mm | Z87: 70 kg | AA87: 9,5 x 15,9 mm
D88: RZAG100 | F88: =C43+C44 -> 10 | G88: =C43+C44+C45 -> 10 | H88: X | N88: BRC1H52W | P88: =IF(C6=O28,"BYCQ140EP","") ->  | R88: Bílý designový | S88: BRYQ140C | T88: RZA200 | U88: 5 | V88: AZAS125MY1 | W88: 16A | X88: 30 | Y88: 990x940x320 mm | Z88: 70 kg | AA88: 9,5 x 15,9 mm
D89: RZAG125 | F89: =C43+C44 -> 10 | G89: =C43+C44+C45 -> 10 | H89: =C45+C46+C47+C48 -> 0 | N89: BRC1H52K | P89: =IF(C6=O28,"BYCQ140EPB","") ->  | R89: Černý designový | S89: BRYQ140CB | T89: RZA250 | U89: 5 | V89: AZAS140MY1 | W89: 16A | X89: 30 | Y89: 990x940x320 mm | Z89: 77 kg | AA89: 9,5 x 15,9 mm
D90: RZAG140 | F90: =C43+C44 -> 10 | G90: =C43+C44+C45 -> 10 | H90: =C45+C46+C47+C48 -> 0 | V90: RZAG35A | W90: 16A | X90: 50 | Y90: 734x870x373 mm | Z90: 52 kg | AA90: 6,4x9,5 mm | AC90: 62 (Chl, Top) | AD90: 48 (Chl, Top)
D91: RZASG71 | F91: =C43+C44 -> 10 | G91: X | H91: X | V91: RZAG50A | W91: 16A | X91: 50 | Y91: 734x870x373 mm | Z91: 52 kg | AA91: 6,4x12,7 mm | AC91: 63 (Chl, Top) | AD91: 49 (Chl, Top)
D92: RZASG100 | F92: =C43+C44 -> 10 | G92: =C43+C44+C45 -> 10 | H92: X | R92: Čidlo přítomnosti osob | V92: RZAG60A | W92: 20A | X92: 50 | Y92: 734x870x373 mm | Z92: 52 kg | AA92: 6,4x12,7 mm | AC92: 64 (Chl, Top) | AD92: 50 (Chl, Top)
D93: RZASG125 | F93: =C43+C44 -> 10 | G93: =C43+C44+C45 -> 10 | H93: =C45+C46+C47+C48 -> 0 | Q93: =IF($C$6=$O$28,R93,"") ->  | R93: ANO | V93: RZA200D | W93: 20A | X93: 100 | Y93: 870x1100x460 mm | Z93: 117 kg | AA93: 9,5 x 22.2 mm | AC93: 73 (Chl) 76 (Top) | AD93: 53 (chl) 60 (Top)
D94: RZASG140 | F94: =C43+C44 -> 10 | G94: =C43+C44+C45 -> 10 | H94: =C45+C46+C47+C48 -> 0 | Q94: =IF($C$6=$O$28,R94,"") ->  | R94: NE | V94: RZA250D | W94: 20A | X94: 100 | Y94: 870x1100x460 mm | Z94: 117 kg | AA94: 9,5 x 22.2 mm | AC94: 76 (Chl) 79 (Top) | AD94: 57 (Chl) 63 (Top)
D95: RZA200 | F95: =C43+C44 -> 10 | G95: =C43+C44+C45 -> 10 | H95: =C45+C46+C47+C48 -> 0 | AC95: Chlazení Nízké/Střední/Vysoké m³/min | AD95: Vytápění Nízké/Střední/Vysoké m³/min | AE95: Hladina akust.Výkonu chlazení | AF95: Hladina akust.Výkonu vytápění | AG95: Hladina akust.Tlaku vytápění | AH95: Hladina akust.Tlaku clazení | AI95: EPS
D96: RZA250 | F96: =C43+C44 -> 10 | G96: =C43+C44+C45 -> 10 | H96: =C45+C46+C47+C48 -> 0 | V96: FAA71B | Y96: 290x1050x238 mm | Z96: 13 kg | AA96: 9,5 x 15,9 mm | AC96: 12,1/13,4/16,2 | AD96: 12,7/14,2/16,9 | AE96: 61 | AF96: 61 | AG96: 40,0/42,0/45,0 | AH96: 40,0/42,0/45,0
M97: Standard, šedé lamely | N97: =VLOOKUP(M97,Q99:R105,2,FALSE) -> BYCQ140E | V97: FAA100B | Y97: 340x1200x240 mm | Z97: 17 kg | AA97: 9,5 x 15,9 mm | AC97: 23,0/21,1/18,7 | AD97: 23,0/20,9/18,7 | AE97: 65 | AF97: 65 | AG97: 41/45/49 | AH97: 41/45/49
V98: FBA35A9 | Y98: 245x700x800 mm | Z98: 28 kg | AA98: 6,4x9,5 mm | AC98: 15/10,5 | AD98: 15/10,5 | AE98: 60 | AG98: 35/29 | AH98: 37/29 | AI98: 30 ~ 150
D99: R1>40/>30 | F99: TWIN | G99: TRIPLE | H99: DoubleTWIN | Q99: Standard, šedé lamely | R99: BYCQ140E | V99: FBA50A9 | Y99: 245x700x800 mm | Z99: 28 kg | AA99: 6,4x12,7 mm | AC99: 15/10,5 | AD99: 15/10,5 | AE99: 61 | AG99: 35/30 | AH99: 37/30 | AI99: 31 ~ 150
D100: RZAG71 | F100: =IF(F75-40<10,0.35,IF(F75-40<20,0.7,IF(F75-40<30,1.05,IF(F75-40<40,1.4,IF(F75-40<45,1.55,"překročena max. délka"))))) -> 0.35 | G100: X | H100: X | Q100: Bílý, bílé lamely | R100: BYCQ140EW | V100: FBA60A9 | Y100: 245x1000x800 mm | Z100: 35 kg | AA100: 6,4x12,7 mm | AC100: 18/12,5 | AD100: 18/12,5 | AE100: 56 | AG100: 30/25 | AH100: 31/25 | AI100: 32 ~ 150
D101: RZAG100 | F101: =IF(F76-40<10,0.35,IF(F76-40<20,0.7,IF(F76-40<30,1.05,IF(F76-40<40,1.4,IF(F76-40<45,1.55,"překročena max. délka"))))) -> 0.35 | G101: =IF(G76-40<10,0.35,IF(G76-40<20,0.7,IF(G76-40<30,1.05,IF(G76-40<40,1.4,IF(G76-40<45,1.55,"překročena max. délka"))))) -> 0.35 | H101: X | Q101: Černý | R101: BYCQ140EB | V101: FBA71A9 | Y101: 245x1000x800 mm | Z101: 35 kg | AA101: 9,5x15,9 mm | AC101: 18/12,5 | AD101: 18/12,5 | AE101: 57 | AG101: 30/26 | AH101: 31/26 | AI101: 33 ~ 150
D102: RZAG125 | F102: =IF(F77-40<10,0.35,IF(F77-40<20,0.7,IF(F77-40<30,1.05,IF(F77-40<40,1.4,IF(F77-40<45,1.55,"překročena max. délka"))))) -> 0.35 | G102: =IF(G77-40<10,0.35,IF(G77-40<20,0.7,IF(G77-40<30,1.05,IF(G77-40<40,1.4,IF(G77-40<45,1.55,"překročena max. délka"))))) -> 0.35 | H102: =IF(H77-40<10,0.35,IF(H77-40<20,0.7,IF(H77-40<30,1.05,IF(H77-40<40,1.4,IF(H77-40<45,1.55,"překročena max. délka"))))) -> 0.35 | Q102: Samočistící, bílá barva | R102: BYCQ140EGF | V102: FBA100A | Y102: 245x1400x800 mm | Z102: 46 kg | AA102: 9,5x15,9 mm | AC102: 29/23 | AD102: 29/23 | AE102: 58 | AG102: 34/30 | AH102: 36/30 | AI102: 40 ~ 150
D103: RZAG140 | F103: =IF(F78-40<10,0.35,IF(F78-40<20,0.7,IF(F78-40<30,1.05,IF(F78-40<40,1.4,IF(F78-40<45,1.55,"překročena max. délka"))))) -> 0.35 | G103: =IF(G78-40<10,0.35,IF(G78-40<20,0.7,IF(G78-40<30,1.05,IF(G78-40<40,1.4,IF(G78-40<45,1.55,"překročena max. délka"))))) -> 0.35 | H103: =IF(H78-40<10,0.35,IF(H78-40<20,0.7,IF(H78-40<30,1.05,IF(H78-40<40,1.4,IF(H78-40<45,1.55,"překročena max. délka"))))) -> 0.35 | Q103: Samočistící, černá barva | R103: BYCQ140EGFB | V103: FBA125A | Y103: 245x1400x800 mm | Z103: 46 kg | AA103: 9,5x15,9 mm | AC103: 34/23,5 | AD103: 34/23,5 | AE103: 62 | AG103: 37/32 | AH103: 38/32 | AI103: 50 ~ 150
D104: RZASG71 | F104: =IF(F75-30<10,0.35,IF(F75-30<20,0.7,IF(F75-30<30,1.05,IF(F75-30<40,1.4,IF(F75-30<45,1.4,"překročena max. délka"))))) -> 0.35 | G104: X | H104: X | Q104: Bílý designový | R104: BYCQ140EP | V104: FBA140A | Y104: 245x1400x800 mm | Z104: 46 kg | AA104: 9,5x15,9 mm | AC104: 34/23,5 | AD104: 34/23,5 | AE104: 63 | AG104: 37/33 | AH104: 38/33 | AI104: 51 ~ 150
D105: RZASG100 | F105: =IF(F76-30<10,0.35,IF(F76-30<20,0.7,IF(F76-30<30,1.05,IF(F76-30<40,1.4,IF(F76-30<45,1.4,"překročena max. délka"))))) -> 0.35 | G105: =IF(G76-30<10,0.35,IF(G76-30<20,0.7,IF(G76-30<30,1.05,IF(G76-30<40,1.4,IF(G76-30<45,1.4,"překročena max. délka"))))) -> 0.35 | H105: X | Q105: Černý designový | R105: BYCQ140EPB | V105: FCAG35B | Y105: 204x840x840 mm | Z105: 18 kg | AA105: 6,4x9,5 mm | AC105: 12,5/8,7 | AD105: 12,5/8,7 | AE105: 49 | AF105: 49 | AG105: 31/27 | AH105: 31/27
D106: RZASG125 | F106: =IF(F77-30<10,0.35,IF(F77-30<20,0.7,IF(F77-30<30,1.05,IF(F77-30<40,1.4,IF(F77-30<45,1.4,"překročena max. délka"))))) -> 0.35 | G106: =IF(G77-30<10,0.35,IF(G77-30<20,0.7,IF(G77-30<30,1.05,IF(G77-30<40,1.4,IF(G77-30<45,1.4,"překročena max. délka"))))) -> 0.35 | H106: =IF(H77-30<10,0.35,IF(H77-30<20,0.7,IF(H77-30<30,1.05,IF(H77-30<40,1.4,IF(H77-30<45,1.4,"překročena max. délka"))))) -> 0.7 | V106: FCAG50B | Y106: 204x840x840 mm | Z106: 19 kg | AA106: 6,4x12,7 mm | AC106: 12,6/8,7 | AD106: 12,6/8,7 | AE106: 49 | AF106: 49 | AG106: 31/27 | AH106: 31/27
D107: RZASG140 | F107: =IF(F78-30<10,0.35,IF(F78-30<20,0.7,IF(F78-30<30,1.05,IF(F78-30<40,1.4,IF(F78-30<45,1.4,"překročena max. délka"))))) -> 0.35 | G107: =IF(G78-30<10,0.35,IF(G78-30<20,0.7,IF(G78-30<30,1.05,IF(G78-30<40,1.4,IF(G78-30<45,1.4,"překročena max. délka"))))) -> 0.35 | H107: =IF(H78-30<10,0.35,IF(H78-30<20,0.7,IF(H78-30<30,1.05,IF(H78-30<40,1.4,IF(H78-30<45,1.4,"překročena max. délka"))))) -> 0.7 | V107: FCAG60B | Y107: 204x840x840 mm | Z107: 19 kg | AA107: 6,4x12,7 mm | AC107: 13,6/8,7 | AD107: 13,6/8,7 | AE107: 51 | AF107: 51 | AG107: 33/28 | AH107: 33/28
D108: RZA200 | F108: =IF(F83-30<10,0.45,IF(F83-30<20,0.9,IF(F83-30<30,1.35,IF(F83-30<40,1.8,IF(F83-30<50,2.25,IF(F83-30<60,2.7,IF(F83-30<70,3.15,"překročena max. délka"))))))) -> 0.45 | G108: =IF(G83-30<10,0.45,IF(G83-30<20,0.9,IF(G83-30<30,1.35,IF(G83-30<40,1.8,IF(G83-30<50,2.25,IF(G83-30<60,2.7,IF(G83-30<70,3.15,"překročena max. délka"))))))) -> 0.45 | H108: =IF(H83-30<10,0.45,IF(H83-30<20,0.9,IF(H83-30<30,1.35,IF(H83-30<40,1.8,IF(H83-30<50,2.25,IF(H83-30<60,2.7,IF(H83-30<70,3.15,"překročena max. délka"))))))) -> 0.9 | J108: R1<40/30 | V108: FCAG71B | Y108: 204x840x840 mm | Z108: 21 kg | AA108: 9,5x15,9 mm | AC108: 15,0/9,1 | AD108: 15,0/9,1 | AE108: 49 | AF108: 49 | AG108: 35/28 | AH108: 33/28
D109: RZA250 | F109: =IF(F84-30<10,0.45,IF(F84-30<20,0.9,IF(F84-30<30,1.35,IF(F84-30<40,1.8,IF(F84-30<50,2.25,IF(F84-30<60,2.7,IF(F84-30<70,3.15,"překročena max. délka"))))))) -> 0.45 | G109: =IF(F84-30<10,0.45,IF(F75-30<20,0.9,IF(F75-30<30,1.35,IF(F75-30<40,1.8,IF(F75-30<50,2.25,IF(F75-30<60,2.7,IF(F75-30<70,3.15,"překročena max. délka"))))))) -> 0.45 | H109: =IF(H84-30<10,0.45,IF(H84-30<20,0.9,IF(H84-30<30,1.35,IF(H84-30<40,1.8,IF(H84-30<50,2.25,IF(H84-30<60,2.7,IF(H84-30<70,3.15,"překročena max. délka"))))))) -> 0.9 | V109: FCAG100B | Y109: 246x840x840 mm | Z109: 24 kg | AA109: 9,5x15,9 mm | AC109: 22,8/12,4 | AD109: 22,8/12,4 | AE109: 54 | AF109: 54 | AG109: 37/29 | AH109: 37/29
V110: FCAG125B | Y110: 246x840x840 mm | Z110: 24 kg | AA110: 9,5x15,9 mm | AC110: 26,0/12,4 | AD110: 26,0/12,4 | AE110: 58 | AF110: 58 | AG110: 41/29 | AH110: 41/29
D111: R2 | F111: TWIN | G111: TRIPLE | H111: DoubleTWIN | J111: R2 | L111: TWIN | M111: TRIPLE | N111: DoubleTWIN | V111: FCAG140B | Y111: 246x840x840 mm | Z111: 24 kg | AA111: 9,5x15,9 mm | AC111: 26,0/12,4 | AD111: 26,0/12,4 | AE111: 58 | AF111: 58 | AG111: 41/29 | AH111: 41/29
D112: RZAG71 | F112: =IF($F87<10,0.2,IF($F87<20,0.4,IF($F87<30,0.6,IF($F87<40,0.8,IF($F87<45,1,"překročena max. délka"))))) -> 0.4 | G112: X | H112: X | J112: RZAG71 | L112: =IF(F87+F75-40<0,0,IF(F87+F75-40<10,0.2,IF(F87+F75-40<20,0.4,IF(F87+F75-40<30,0.6,IF(F87+F75-40<40,0.8,IF(F87+F75-40<45,1,"překročena max. délka")))))) -> 0.2 | M112: X | N112: X | V112: FDA125A | Y112: 300x1400x700 m | Z112: 45 kg | AA112: 9,5x15,9 mm | AC112: 125A | AD112: 39/28 | AE112: 39/28 | AF112: 66 | AG112: 40/33 | AH112: 40/33 | AI112: 50 ~ 200
D113: RZAG100 | F113: =IF(F88<10,0.2,IF(F88<20,0.4,IF(F88<30,0.6,IF(F88<40,0.8,IF(F88<45,1,"překročena max. délka"))))) -> 0.4 | G113: 0.4 | H113: X | J113: RZAG100 | L113: =IF(F88+F76-40<0,0,IF(F88+F76-40<10,0.2,IF(F88+F76-40<20,0.4,IF(F88+F76-40<30,0.6,IF(F88+F76-40<40,0.8,IF(F88+F76-40<45,1,"překročena max. délka")))))) -> 0.2 | M113: =IF(G88+G76-40<0,0,IF(G88+G76-40<10,0.2,IF(G88+G76-40<20,0.4,IF(G88+G76-40<30,0.6,IF(G88+G76-40<40,0.8,IF(G88+G76-40<45,1,"překročena max. délka")))))) -> 0.2 | N113: X | V113: FDA200A | Y113: 400x1490x1100 | Z113: 104 kg | AA113: 9,5x19,1 mm | AC113: 200A | AD113: 36/64 | AE113: 36/64 | AF113: 69 | AG113: 43/36 | AH113: 43/36 | AI113: 62 ~ 250
D114: RZAG125 | F114: 0.4 | G114: 0.4 | H114: =IF(H89<10,0.2,IF(H89<20,0.4,IF(H89<30,0.6,IF(H89<40,0.8,IF(H89<45,1,"překročena max. délka"))))) -> 0.2 | J114: RZAG125 | L114: =IF(F89+F77-40<0,0,IF(F89+F77-40<10,0.2,IF(F89+F77-40<20,0.4,IF(F89+F77-40<30,0.6,IF(F89+F77-40<40,0.8,IF(F89+F77-40<45,1,"překročena max. délka")))))) -> 0.2 | M114: =IF(G89+G77-40<0,0,IF(G89+G77-40<10,0.2,IF(G89+G77-40<20,0.4,IF(G89+G77-40<30,0.6,IF(G89+G77-40<40,0.8,IF(G89+G77-40<45,1,"překročena max. délka")))))) -> 0.2 | N114: =IF(H89+H77-40<0,0,IF(H89+H77-40<10,0.2,IF(H89+H77-40<20,0.4,IF(H89+H77-40<30,0.6,IF(H89+H77-40<40,0.8,IF(H89+H77-40<45,1,"překročena max. délka")))))) -> 0.2 | V114: FDA250A | Y114: 400x1490x1100 | Z114: 115 kg | AA114: 9,5x22,5 mm | AC114: 250A | AD114: 43/69 | AE114: 43/69 | AF114: 71 | AG114: 44/37 | AH114: 44/37 | AI114: 63 ~ 250
D115: RZAG140 | F115: 0.4 | G115: 0.4 | H115: =IF(H90<10,0.2,IF(H90<20,0.4,IF(H90<30,0.6,IF(H90<40,0.8,IF(H90<45,1,"překročena max. délka"))))) -> 0.2 | J115: RZAG140 | L115: =IF(F90+F78-40<0,0,IF(F90+F78-40<10,0.2,IF(F90+F78-40<20,0.4,IF(F90+F78-40<30,0.6,IF(F90+F78-40<40,0.8,IF(F90+F78-40<45,1,"překročena max. délka")))))) -> 0.2 | M115: =IF(G90+G78-40<0,0,IF(G90+G78-40<10,0.2,IF(G90+G78-40<20,0.4,IF(G90+G78-40<30,0.6,IF(G90+G78-40<40,0.8,IF(G90+G78-40<45,1,"překročena max. délka")))))) -> 0.2 | N115: =IF(H90+H78-40<0,0,IF(H90+H78-40<10,0.2,IF(H90+H78-40<20,0.4,IF(H90+H78-40<30,0.6,IF(H90+H78-40<40,0.8,IF(H90+H78-40<45,1,"překročena max. délka")))))) -> 0.2 | V115: FDXM35F9 | Y115: 200x750x620 mm | Z115: 32 kg | AA115: 6,4x9,5 mm | AC115: 7,3/8,0/8,7 | AD115: 7,3/8,0/8,7 | AE115: 53 | AF115: 53 | AG115: 27/33/35 | AH115: 27/33/35 | AI115: 31
D116: RZASG71 | F116: =IF(F91<10,0.2,IF(F91<20,0.4,IF(F91<30,0.6,IF(F91<40,0.8,IF(F91<45,1,"překročena max. délka"))))) -> 0.4 | G116: X | H116: X | J116: RZASG71 | L116: =IF(F91+F79-30<0,0,IF(F91+F79-30<10,0.2,IF(F91+F79-30<20,0.4,IF(F91+F79-30<30,0.6,IF(F91+F79-30<40,0.8,IF(F91+F79-30<45,1,"překročena max. délka")))))) -> 0.4 | M116: X | N116: X | V116: FDXM50F9 | Y116: 200x1150x62 0mm | Z116: 50 kg | AA116: 6,4x12,7 mm | AC116: 13,3/14,6/15,8 | AD116: 13,3/14,6/15,8 | AE116: 55 | AF116: 55 | AG116: 30/35/38 | AH116: 30/35/38 | AI116: 40
D117: RZASG100 | F117: =IF(F92<10,0.2,IF(F92<20,0.4,IF(F92<30,0.6,IF(F92<40,0.8,IF(F92<45,1,"překročena max. délka"))))) -> 0.4 | G117: =IF(G92<10,0.2,IF(G92<20,0.4,IF(G92<30,0.6,IF(G92<40,0.8,IF(G92<45,1,"překročena max. délka"))))) -> 0.4 | H117: X | J117: RZASG100 | L117: =IF(F92+F80-30<0,0,IF(F92+F80-30<10,0.2,IF(F92+F80-30<20,0.4,IF(F92+F80-30<30,0.6,IF(F92+F80-30<40,0.8,IF(F92+F80-30<45,1,"překročena max. délka")))))) -> 0.4 | M117: =IF(G92+G80-30<0,0,IF(G92+G80-30<10,0.2,IF(G92+G80-30<20,0.4,IF(G92+G80-30<30,0.6,IF(G92+G80-30<40,0.8,IF(G92+G80-30<45,1,"překročena max. délka")))))) -> 0.4 | N117: X | V117: FDXM60F9 | Y117: 200x1150x62 0mm | Z117: 50 kg | AA117: 6,4x12,7 mm | AC117: 13,5/14,8/16,0 | AD117: 13,5/14,8/16,0 | AE117: 56 | AF117: 56 | AG117: 30/35/38 | AH117: 30/35/38 | AI117: 41
D118: RZASG125 | F118: =IF(F93<10,0.2,IF(F93<20,0.4,IF(F93<30,0.6,IF(F93<40,0.8,IF(F93<45,1,"překročena max. délka"))))) -> 0.4 | G118: =IF(G93<10,0.2,IF(G93<20,0.4,IF(G93<30,0.6,IF(G93<40,0.8,IF(G93<45,1,"překročena max. délka"))))) -> 0.4 | H118: =IF(H93<10,0.2,IF(H93<20,0.4,IF(H93<30,0.6,IF(H93<40,0.8,IF(H93<45,1,"překročena max. délka"))))) -> 0.2 | J118: RZASG125 | L118: =IF(F93+F81-30<0,0,IF(F93+F81-30<10,0.2,IF(F93+F81-30<20,0.4,IF(F93+F81-30<30,0.6,IF(F93+F81-30<40,0.8,IF(F93+F81-30<45,1,"překročena max. délka")))))) -> 0.4 | M118: =IF(G93+G81-30<0,0,IF(G93+G81-30<10,0.2,IF(G93+G81-30<20,0.4,IF(G93+G81-30<30,0.6,IF(G93+G81-30<40,0.8,IF(G93+G81-30<45,1,"překročena max. délka")))))) -> 0.4 | N118: =IF(H93+H81-30<0,0,IF(H93+H81-30<10,0.2,IF(H93+H81-30<20,0.4,IF(H93+H81-30<30,0.6,IF(H93+H81-30<40,0.8,IF(H93+H81-30<45,1,"překročena max. délka")))))) -> 0.4 | V118: FFA35A9 | Y118: 260x575x575 mm | Z118: 16 kg | AA118: 6,4x9,5 mm | AC118: 10/6,5 | AD118: 10/6,5 | AE118: 51 | AG118: 34/25 | AH118: 34/25
D119: RZASG140 | F119: =IF(F94<10,0.2,IF(F94<20,0.4,IF(F94<30,0.6,IF(F94<40,0.8,IF(F94<45,1,"překročena max. délka"))))) -> 0.4 | G119: =IF(G94<10,0.2,IF(G94<20,0.4,IF(G94<30,0.6,IF(G94<40,0.8,IF(G94<45,1,"překročena max. délka"))))) -> 0.4 | H119: =IF(H94<10,0.2,IF(H94<20,0.4,IF(H94<30,0.6,IF(H94<40,0.8,IF(H94<45,1,"překročena max. délka"))))) -> 0.2 | J119: RZASG140 | L119: =IF(F94+F82-30<0,0,IF(F94+F82-30<10,0.2,IF(F94+F82-30<20,0.4,IF(F94+F82-30<30,0.6,IF(F94+F82-30<40,0.8,IF(F94+F82-30<45,1,"překročena max. délka")))))) -> 0.4 | M119: =IF(G94+G82-30<0,0,IF(G94+G82-30<10,0.2,IF(G94+G82-30<20,0.4,IF(G94+G82-30<30,0.6,IF(G94+G82-30<40,0.8,IF(G94+G82-30<45,1,"překročena max. délka")))))) -> 0.4 | N119: =IF(H94+H82-30<0,0,IF(H94+H82-30<10,0.2,IF(H94+H82-30<20,0.4,IF(H94+H82-30<30,0.6,IF(H94+H82-30<40,0.8,IF(H94+H82-30<45,1,"překročena max. délka")))))) -> 0.4 | V119: FFA50A9 | Y119: 260x575x575 mm | Z119: 17,5 kg | AA119: 6,4x12,7 mm | AC119: 12/7,5 | AD119: 12/7,5 | AE119: 56 | AG119: 39/27 | AH119: 39/27
D120: RZA200 | F120: =IF(F95<10,0.2,IF(F95<20,0.4,IF(F95<30,0.6,IF(F95<40,0.8,IF(F95<50,1,IF(F95<60,1.2,IF(F95<70,1.4,"překročena max. délka"))))))) -> 0.4 | G120: 0.4 | H120: 0.2 | J120: RZA200 | L120: =IF(F95+F83-30<0,0,IF(F95<10,0.2,IF(F95<20,0.4,IF(F95<30,0.6,IF(F95<40,0.8,IF(F95<50,1,IF(F95<60,1.2,IF(F95<70,1.4,"překročena max. délka")))))))) -> 0.4 | M120: =IF(G95+G83-30<0,0,IF(G95+G83-30<10,0.2,IF(G95+G83-30<20,0.4,IF(G95+G83-30<30,0.6,IF(G95+G83-30<40,0.8,IF(G95+G83-30<50,1,IF(G95+G83-30<60,1.2,IF(G95+G83-30<70,1.4,"překročena max. délka")))))))) -> 0.4 | N120: =IF(H95+H83-30<0,0,IF(H95+H83-30<10,0.2,IF(H95+H83-30<20,0.4,IF(H95+H83-30<30,0.6,IF(H95+H83-30<40,0.8,IF(H95+H83-30<50,1,IF(H95+H83-30<60,1.2,IF(H95+H83-30<70,1.4,"překročena max. délka")))))))) -> 0.4 | V120: FFA60A9 | Y120: 260x575x575 mm | Z120: 17,5 kg | AA120: 6,4x12,7 mm | AC120: 14,5/9,5 | AD120: 14,5/9,5 | AE120: 60 | AG120: 43/32 | AH120: 43/32
D121: RZA250 | F121: 0.4 | G121: 0.4 | H121: 0.2 | J121: RZA250 | L121: =IF(F96+F84-30<0,0,IF(F96<10,0.2,IF(F96<20,0.4,IF(F96<30,0.6,IF(F96<40,0.8,IF(F96<50,1,IF(F96<60,1.2,IF(F96<70,1.4,"překročena max. délka")))))))) -> 0.4 | M121: =IF(G96+G84-30<0,0,IF(G96+G84-30<10,0.2,IF(G96+G84-30<20,0.4,IF(G96+G84-30<30,0.6,IF(G96+G84-30<40,0.8,IF(G96+G84-30<50,1,IF(G96+G84-30<60,1.2,IF(G96+G84-30<70,1.4,"překročena max. délka")))))))) -> 0.4 | N121: =IF(H96+H84-30<0,0,IF(H96+H84-30<10,0.2,IF(H96+H84-30<20,0.4,IF(H96+H84-30<30,0.6,IF(H96+H84-30<40,0.8,IF(H96+H84-30<50,1,IF(H96+H84-30<60,1.2,IF(H96+H84-30<70,1.4,"překročena max. délka")))))))) -> 0.4 | V121: FHA35A9 | Y121: 235x960x690 mm | Z121: 24 kg | AA121: 6,4x9,5 mm | AC121: 14/10 | AD121: 14/10 | AE121: 53 | AF121: 53 | AG121: 36/31 | AH121: 36/31
V122: FHA50A9 | Y122: 235x960x690 mm | Z122: 25 kg | AA122: 6,4x12,7 mm | AC122: 15/10 | AD122: 15/10 | AE122: 54 | AF122: 54 | AG122: 37/32 | AH122: 37/32
V123: FHA60A9 | Y123: 235x1270x690 mm | Z123: 31 kg | AA123: 6,4x12,7 mm | AC123: 19,5/11,5 | AD123: 19,5/11,5 | AE123: 54 | AF123: 54 | AG123: 37/33 | AH123: 37/33
V124: FHA71A9 | Y124: 235x1270x690 mm | Z124: 32 kg | AA124: 9,5x15,9 mm | AC124: 20,5/14 | AD124: 20,5/14 | AE124: 55 | AF124: 55 | AG124: 38/34 | AH124: 38/34
V125: FHA100A | Y125: 235x1590x690 mm | Z125: 38 kg | AA125: 9,5x15,9 mm | AC125: 28/20 | AD125: 28/20 | AE125: 60 | AF125: 60 | AG125: 42/34 | AH125: 42/34
V126: FHA125A | Y126: 235x1590x690 mm | Z126: 38 kg | AA126: 9,5x15,9 mm | AC126: 31/23 | AD126: 31/23 | AE126: 62 | AF126: 62 | AG126: 44/37 | AH126: 44/37
J127: Typ | K127: Počet | L127: Popis | O127: Cena /jednotka | P127: Cena celkem | V127: FHA140A | Y127: 235x1590x690 mm | Z127: 38 kg | AA127: 9,5x15,9 mm | AC127: 34/24 | AD127: 34/24 | AE127: 64 | AF127: 64 | AG127: 46/38 | AH127: 46/38
R128: =IFERROR(INDEX(I$129:I$138,SMALL(IF(I$129:I$138<>"",ROW(I$129:I$138)-ROW(I$129)+1),ROWS(J$129:J129))),"") -> CE.HEADER | S128: =IFERROR(INDEX(J$129:J$138,SMALL(IF(J$129:J$138<>"",ROW(J$129:J$138)-ROW(J$129)+1),ROWS(K$129:K129))),"") -> CE.HEADER | V128: FNA35A | Y128: 620x750x200 mm | Z128: 23 kg | AA128: 6,4x9,5 mm | AC128: 8,7/7,3 | AD128: 8,7/7,3 | AE128: 48/31 | AF128: 54 | AG128: 33/28 | AH128: 33/28
I129: =J129 -> CE.HEADER | J129: CE.HEADER | K129: 1 | L129: 12C.001 Chlazení místností | O129: 0 | R129: =IFERROR(INDEX(I$129:I$140,SMALL(IF(I$129:I$140<>"",ROW(I$129:I$140)-ROW(I$129)+1),ROWS(J$129:J130))),"") -> RZAG71NY1 | S129: =VLOOKUP(R129,$J$129:$K$140,2,FALSE) -> 1 | V129: FNA50A | Y129: 620x1150x200 mm | Z129: 30 kg | AA129: 6,4x12,7 mm | AC129: 16,0/13,5 | AD129: 16,0/13,5 | AE129: 49/40 | AF129: 56 | AG129: 36/30 | AH129: 36/30
I130: =J130 -> RZAG71NY1 | J130: =I4 -> RZAG71NY1 | K130: 1 | L130: =IF(K130="","",VLOOKUP(J130,Ceník!$A$1:$C$9981,3,FALSE)) -> Sky Air ALPHA venk. jednotka | O130: =IF(K130>0,VLOOKUP(J130,Ceník!$A$1:$C$9981,2,FALSE),"") -> 88499 | P130: =J42*N42 -> 88499 | R130: =IFERROR(INDEX(I$129:I$140,SMALL(IF(I$129:I$140<>"",ROW(I$129:I$140)-ROW(I$129)+1),ROWS(J$129:J131))),"") -> FFA35A9 | S130: =VLOOKUP(R130,$J$129:$K$140,2,FALSE) -> 2 | V130: FNA60A | Y130: 620x1150x200 mm | Z130: 30 kg | AA130: 6,4x12,7 mm | AC130: 16,0/13,5 | AD130: 16,0/13,5 | AE130: 49/41 | AF130: 57 | AG130: 36/30 | AH130: 36/30
I131: FFA35A9 | J131: FFA35A9 | K131: 2 | L131: =IF(J43>0,VLOOKUP(I43,Ceník!$A$1:$C$9981,3,FALSE),"") -> SKY AIR zcela plochá kazetová jednotka | O131: =IF(K131>0,VLOOKUP(J131,Ceník!$A$1:$C$9981,2,FALSE),"") -> 29388 | P131: =K131*O131 -> 58776 | R131: =IFERROR(INDEX(I$129:I$140,SMALL(IF(I$129:I$140<>"",ROW(I$129:I$140)-ROW(I$129)+1),ROWS(J$129:J132))),"") -> KHRQ58T | S131: 1 | V131: FUA71A | Y131: 198x950x950 mm | Z131: 25 kg | AA131: 9,5x15,9 mm | AC131: 23/16 | AD131: 23/16 | AE131: 59 | AF131: 59 | AG131: 41/35 | AH131: 41/35
I132: =IF(OR("KHR"=LEFT(C23,3),C23="3 KHRQ58T"),J132,"") -> KHRQ58T | J132: KHRQ58T | K132: 1 | L132: =IF(C7="Split","",IF(K132>0,IF(J44>0,VLOOKUP(J132,Ceník!$A$1:$C$9981,3,FALSE),""))) -> rozhraní KNX pro Split | O132: =IF(C7="Split","",IF(J44>0,VLOOKUP(I44,Ceník!$A$1:$C$9981,2,FALSE),"")) -> 3036 | P132: =IF(C7="Split","",J44*N44) -> 3036 | R132: =IFERROR(INDEX(I$129:I$140,SMALL(IF(I$129:I$140<>"",ROW(I$129:I$140)-ROW(I$129)+1),ROWS(J$129:J133))),"") -> BRC1H52W | S132: 1 | V132: FUA100A | Y132: 198x950x950 mm | Z132: 26 kg | AA132: 9,5x15,9 mm | AC132: 31/20 | AD132: 31/20 | AE132: 64 | AF132: 64 | AG132: 46/39 | AH132: 46/39
I133: =J133 -> BRC1H52W | J133: =IF(I7=Q60,"",I7) -> BRC1H52W | K133: =J7 -> 1 | L133: =IF(I7<>Q60,VLOOKUP(J133,Ceník!$A$1:$C$9981,3,FALSE),"") -> Madoka kabelový ovladač bílý | O133: =IF(I7<>Q60,VLOOKUP(J133,Ceník!$A$1:$C$9981,2,FALSE),"") -> 5992 | P133: =IF(I7<>Q60,K133*O133,"") -> 5992 | R133: =IFERROR(INDEX(I$129:I$140,SMALL(IF(I$129:I$140<>"",ROW(I$129:I$140)-ROW(I$129)+1),ROWS(J$129:J134))),"") -> BYFQ60CW | S133: 2 | V133: FUA125A | Y133: 198x950x950 mm | Z133: 26 kg | AA133: 9,5x15,9 mm | AC133: 32,5/20,5 | AD133: 32,5/20,5 | AE133: 65 | AF133: 65 | AG133: 47/40 | AH133: 47/40
I134: BYFQ60CW | J134: =I8 -> BYFQ60CW | K134: =J8 -> 2 | L134: =IF(K134="","",VLOOKUP(J134,Ceník!$A$1:$C$9981,3,FALSE)) -> bílý panel | O134: =IF(K134="","",VLOOKUP(J134,Ceník!$A$1:$C$9981,2,FALSE)) -> 9384 | P134: =IF(K134="","",K134*O134) -> 18768 | R134: =IFERROR(INDEX(I$129:I$140,SMALL(IF(I$129:I$140<>"",ROW(I$129:I$140)-ROW(I$129)+1),ROWS(J$129:J135))),"") ->  | V134: FVA71A | Y134: 1850x600x270 mm | Z134: 42 kg | AA134: 9,5x15,9 mm | AC134: 18/14 | AD134: 18/14 | AE134: 55 | AF134: 55 | AG134: 43/38 | AH134: 43/38
J135: =I9 ->  | K135: =J9 ->  | L135: =IF(C8="kabelový","",IF(J47="","",VLOOKUP(I47,Ceník!$A$1:$C$9981,3,FALSE))) ->  | O135: =IF(C8="kabelový","",IF(J47="","",VLOOKUP(I47,Ceník!$A$1:$C$9981,2,FALSE))) ->  | P135: =IF(C8="kabelový","",IF(K135="","",K135*O135)) ->  | R135: =IFERROR(INDEX(I$129:I$140,SMALL(IF(I$129:I$140<>"",ROW(I$129:I$140)-ROW(I$129)+1),ROWS(J$129:J136))),"") ->  | V135: FVA100A | Y135: 1850x600x350 mm | Z135: 50 kg | AA135: 9,5x15,9 mm | AC135: 28/22 | AD135: 28/22 | AE135: 62 | AF135: 62 | AG135: 50/44 | AH135: 50/44
J136: =I10 ->  | K136: =J10 ->  | L136: =IF(K136="","",VLOOKUP(J136,Ceník!$A$1:$C$9981,3,FALSE)) ->  | O136: =IF(K136="","",VLOOKUP(J136,Ceník!$A$1:$C$9981,2,FALSE)) ->  | P136: =IF(K136="","",K136*O136) ->  | R136: =IFERROR(INDEX(I$129:I$140,SMALL(IF(I$129:I$140<>"",ROW(I$129:I$140)-ROW(I$129)+1),ROWS(J$129:J137))),"") ->  | V136: FVA125A | Y136: 1850x600x350 mm | Z136: 50 kg | AA136: 9,5x15,9 mm | AC136: 28/24 | AD136: 28/24 | AE136: 63 | AF136: 63 | AG136: 51/46 | AH136: 51/46
J137: =IF(OR(AND(C6=O27,C8="kabelový",I22=P60),AND(C6=O27,C8="Infra",I22=P60,C12="Ano"),C15="KRP928A2S"),"EKRS21","") ->  | K137: =IF(OR(AND(C6=O27,C8="kabelový",I22=P60),AND(C6=O27,C8="Infra",I22=P60,C12="Ano"),C15="KRP928A2S"),J11,"") ->  | L137: =IF(K137="","",VLOOKUP(J137,Ceník!$A$1:$C$9981,3,FALSE)) ->  | O137: =IF(K137="","",VLOOKUP(J137,Ceník!$A$1:$C$9981,2,FALSE)) ->  | P137: =IF(K137="","",K137*O137) ->  | R137: =IFERROR(INDEX(I$129:I$138,SMALL(IF(I$129:I$138<>"",ROW(I$129:I$138)-ROW(I$129)+1),ROWS(J$129:J138))),"") ->  | V137: FVA140A | Y137: 1850x600x350 mm | Z137: 50 kg | AA137: 9,5x15,9 mm | AC137: 30/26 | AD137: 30/26 | AE137: 65 | AF137: 65 | AG137: 53/48 | AH137: 53/48
J138: =C13 ->  | K138: 1 | L138: =IF(K138="","",VLOOKUP(J138,Ceník!$A$1:$C$9981,3,FALSE)) ->  | O138: =IF(K138="","",VLOOKUP(J138,Ceník!$A$1:$C$9981,2,FALSE)) ->  | P138: =IF(K138="","",K138*O138) ->  | R138: =IFERROR(INDEX(I$129:I$138,SMALL(IF(I$129:I$138<>"",ROW(I$129:I$138)-ROW(I$129)+1),ROWS(J$129:J139))),"") ->  | V138: FTXM35A | Y138: 295x778x272 mm | Z138: 10 kg | AA138: 6,4x9,5 mm | AC138: 4,2/6,0/7,8/11,3 | AD138: 4,9/6,5/8,5/9,8 | AE138: 58 | AF138: 54 | AG138: 19/29/33/45 | AH138: 20/28/35/39
I139: =J139 ->  | J139: =IF(C15="","",C15) ->  | K139: =IF(E15="","",E15) -> 1 | L139: =IF(J51="","",VLOOKUP(I51,Ceník!$A$1:$C$9981,3,FALSE)) ->  | O139: =IF(J51="","",VLOOKUP(I51,Ceník!$A$1:$C$9981,2,FALSE)) ->  | P139: =IF(J51="","",J51*N51) ->  | R139: =IFERROR(INDEX(I$129:I$138,SMALL(IF(I$129:I$138<>"",ROW(I$129:I$138)-ROW(I$129)+1),ROWS(J$129:J140))),"") ->  | V139: FTXM50A | Y139: 299x998x292 mm | Z139: 14,5 kg | AA139: 6,4x12,7 mm | AC139: 8,3/11,4/14/15,8 | AD139: 10,5/12,0/14,2/15,8 | AE139: 58 | AF139: 58 | AG139: 27/36/40/44 | AH139: 31/34/39/43
I140: =J140 ->  | J140: =IF(B54=0,"",B54) ->  | K140: =IF(C54=0,"",C54) ->  | L140: =IF(J52="","",VLOOKUP(I52,Ceník!$A$1:$C$9981,3,FALSE)) ->  | O140: =IF(J52="","",VLOOKUP(I52,Ceník!$A$1:$C$9981,2,FALSE)) ->  | P140: =IF(J52="","",J52*N52) ->  | V140: FTXM60A | Y140: 299x998x292 mm | Z140: 14,5 kg | AA140: 6,4x12,7 mm | AC140: 9,1/11,8/14/16,7 | AD140: 11,1/12,4/15,2/16,5 | AE140: 60 | AF140: 59 | AG140: 30/37/42/46 | AH140: 33/36/41/45
J141: Projektová cena celkem | P141: =SUM(P130:P140) ->  | V141: BYCQ140E | Y141: 50x950x950 mm | Z141: 5,4 kg
J142: L1 | K142: L2, L3,L4 TWIN, TRIPPLE | L142: L2 L3 DoubleTWIN | M142: L4,L5,L6,L7 DoubleTWIN | V142: BYFQ60CW | Y142: 46x620x620 mm | Z142: 2,8 kg
V143: BYCQ140EW | Y143: 50x950x950 mm | Z143: 5,4 kg
V144: BYCQ140EB | Y144: 50x950x950 mm | Z144: 5,4 kg
V145: BYCQ140EGF | Y145: 130x950x950 mm | Z145: 10,3 kg
V146: BYCQ140EGFB | Y146: 130x950x950 mm | Z146: 10,3 kg
V147: BYCQ140EP | Y147: 50x950x950 mm | Z147: 5,4 kg
V148: BYCQ140EPB | Y148: 50x950x950 mm | Z148: 5,4 kg
H150: Indoor unit | I150: FXDQ | K150: 15A3
H151: Chladicí výkon | J151: kW | K151: -
H152: Chladicí výkon | J152: kW | K152: 1,7
H153: Topný výkon | J153: kW | K153: -
H154: Topný výkon | J154: kW | K154: 1,9
H155: Příkon - 50 Hz | J155: kW | K155: 0,036
H156: Příkon - 50 Hz | J156: kW | K156: 0,036
H157: Požadovaná výška podstropení > | J157: mm | K157: 240
H158: Rozměry | J158: mm | K158: 200 x750 x620
H159: Hmotnost | J159: kg | K159: 22
H160: Opláštění | K160: Pozinkovaná ocel
H161: Ventilátor | I161: Při vysokých otáčkách ventilátoru / Při středních otáčkách ventilátoru / Při nízkých otáčkách ventilátoru | J161: m³/min | K161: 7,5 / 7,0 / 6,4
H162: Ventilátor | J162: Pa | K162: 10 / 30,0
H163: Vzduchový filtr | K163: Demontovatelný/omyvatelný
H164: Hladina akustického výkonu | J164: dBA | K164: 50
H165: Hladina akustického tlaku | J165: dBA | K165: 32,0 / 31,0 / 27,0
H166: Chladivo | K166: R-410A/2.087,5
H167: Připojovací rozměry | J167: mm | K167: 6
H168: Připojovací rozměry | J168: mm | K168: 12,7
H169: Připojovací rozměry | K169: VP20 (I.D. 20/O.D. 26)
H170: Napájení | J170: Hz/V | K170: 1~/50/60/220-240/220
H171: Proud – 50 Hz | J171: A | K171: 16
H172: Řídicí systémy | K172: BRC4C65 / BRC4C66
H173: Řídicí systémy | K173: BRC1D528 / BRC1E51
H177: Jmenovité technické údaje: | K177: Jmenovité technické údaje: | P177: =CONCATENATE(K177, CHAR(10),K178, CHAR(10),K179, CHAR(10),K180, CHAR(10),K181, CHAR(10),K182, CHAR(10),K183, CHAR(10),K184, CHAR(10),K185, CHAR(10),K187, CHAR(10),K189, CHAR(10),K190, CHAR(10),K192, CHAR(10),K193, CHAR(10),K194, CHAR(10),K195, CHAR(10),K196, CHAR(10),K197, CHAR(10),K198) -> Jmenovité technické údaje: Chladicí výkon: 6,8 kW
A178: Chladicí výkon: | H178: Chladicí výkon: 5.6kW | K178: =CONCATENATE($A178,D25,$C178) -> Chladicí výkon: 6,8 kW

Sheet Split
A1: =MID(CELL("filename",A1),FIND("]",CELL("filename",A1))+1,31) -> Split | B1: Zpět zadání | C1: Zpět Count
B2: Výkon chlazení | C2: 5 | G2: =MATCH(C2,T26:T34,0) ->  | H2: =VLOOKUP(A1,#REF!,2,FALSE) ->  | I2: Typ | J2: Počet | K2: Výkon | M2: Příkon | O2: Napětí | P2: Jištění | Q2: Rozměry | R2: Hmotnost | S2: Potrubí | T2: Chladivo R32 | V2: Hluk | Y2: Zařízení | Z2: CR | AA2: Typ | AB2: Q chl. [kW] | AC2: Q top. [kW] | AD2: P el.chl. | AE2: P el.top. [kW] | AF2: rozvodné napětí [V] | AG2: RLA [A] | AH2: MCA [A] | AI2: Jištění typ C [A] | AJ2: Hluk
B3: Chladivo | C3: R32 | K3: Chl | L3: Top | M3: Chl | N3: Top | Q3: VxŠxH | T3: Základ | U3: Doplnit (předvyplněno 10m) | V3: Lw (dBA) | W3: Lp (dBA) | AJ3: Lw (dBA) | AK3: Lp (dBA)
B4: Typ | C4: Split | F4: =CONCATENATE(C4,C3) -> SplitR32 | G4: =MATCH(F4,U25:X25,0) ->  | H4: Venkovní jednotka | I4: =IF(F8="Pouze Infra v kom. s modbus","xxx",C21) -> RXM50A | J4: 1 | K4: =D25 -> 5 | L4: =D26 -> 1,7/5,8/7,7 | M4: =D27 -> 1.36 | N4: =D28 -> 1.45 | O4: =C5 -> 230V | P4: =C29 -> 16A | Q4: =VLOOKUP(I4,V77:AA103,4,0) -> 734x954x401 mm | R4: =VLOOKUP(I4,V77:AA103,5,0) -> 49 kg | S4: =VLOOKUP(I4,V77:AA103,6,0) -> 6,35 x 12,7 mm | T4: =CONCATENATE(D32," kg") -> 1,15 kg | U4: =IF(C51>0,(CONCATENATE(D33," kg")),"") -> 0,1 kg | V4: =VLOOKUP(I4,V77:AD103,8,FALSE) -> 63 (Chl) 62 (Top) | W4: =VLOOKUP(I4,V77:AD103,9,FALSE) -> 49 (Chl) 49 (Top) | Y4: =K50 -> 12C.001 Chlazení místností | Z4: - | AA4: =I4 -> RXM50A | AB4: =D25 -> 5 | AC4: =D26 -> 1,7/5,8/7,7 | AD4: =D27 -> 1.36 | AE4: =D28 -> 1.45 | AF4: =C5 -> 230V | AG4: - | AH4: - | AI4: =C29 -> 16A | AJ4: =V4 -> 63 (Chl) 62 (Top) | AK4: =W4 -> 49 (Chl) 49 (Top)
B5: Napětí | C5: 230V | F5: Rozsah nastavené IU | H5: Vnitřní jednotka | I5: =CONCATENATE(I22,J22,K22) -> FTXM50A | J5: =VLOOKUP(C7,S77:U80,3,0) -> 1 | Q5: =VLOOKUP(I5,V105:AA171,4,0) -> 299x998x292 mm | R5: =VLOOKUP(I5,V105:AA171,5,0) -> 14,5 kg | S5: =VLOOKUP(I5,V105:AA171,6,0) -> 6,4x12,7 mm
B6: Vnitřní jednotka (IU) | C6: Nástěnná (FTXM) | F6: =VLOOKUP(C6,M27:Q43,4,FALSE) -> 2,0; 2,5; 3,4; 4,2; 5,0; 5,7; 7,1 (kW)
B7: Počet vnitřních | C7: SPLIT | H7: Ovladač | I7: =IF(C13="RTD-RA","",IF(C8="kabelový",VLOOKUP(I22,P44:R68,2,0),VLOOKUP(I22,P59:Q72,2,0))) ->  | J7: =IF(I7="IR v ceně","",IF(C8="infra",J4,J4)) -> 1
B8: Ovladač | C8: infra | F8: =IF(C8="infra","",IF(C13<>"RTD-RA","","Pouze Infra v kom. s modbus")) ->  | H8: =IF(I7="IR v ceně","",IFERROR(VLOOKUP(I22,P48:S50,4,0),"")) -> Kabel | I8: =IF(C13="RTD-RA","",IF(I7="IR v ceně","",IFERROR(VLOOKUP(I22,P44:R50,3,0),""))) ->  | J8: =IF(I8="","",J5) ->  | Q8: =IFERROR(VLOOKUP(I8,V172:Z179,4,0),"") ->  | R8: =IFERROR(VLOOKUP(I8,V172:Z179,5,0),"") ->  | BO8: =I50 -> CE.HEADER | BP8: =J50 -> 1 | BQ8: 12C.001 Chlazení místností | BR8: =N50 -> 0 | BS8: =O50 -> 0
B9: =Q90 ->  | C9: Standard, šedé lamely | E9: =IF(C6=M28,VLOOKUP(C9,Q108:R114,2,FALSE),"") ->  | H9: =IF(OR(I9=Q48,J10=1),"Nutný ovladač","") ->  | I9: =IF(I7=Q48,"",IF(I8=O95,Q48,IF(I8=O96,Q48,IF(AND(F10="ANO",C6=M28),Q48,"")))) ->  | J9: =IF(I9=Q48,"1","") ->  | BO9: RXM50A | BP9: =IFERROR(J51*$C$61,"") -> 1 | BQ9: =K51 -> Split venkovní jednotka | BR9: =N51 -> 46511 | BS9: 46511 | BT9: =Y4 -> 12C.001 Chlazení místností | BU9: =Z4 -> - | BV9: RXM50A | BW9: 5 | BX9: 1,7/5,8/7,7 | BY9: 1.36 | BZ9: 1.45 | CA9: 230V | CB9: - | CC9: - | CD9: 16A | CE9: 63 (Chl) 62 (Top) | CF9: 49 (Chl) 49 (Top) | CG9: =CONCATENATE(L203,CHAR(10),K203,CHAR(10),K204,CHAR(10),K205,CHAR(10),K206,CHAR(10),K207,CHAR(10),K208,CHAR(10),K209,CHAR(10),K210,CHAR(10),K211,CHAR(10),K212,CHAR(10),K214,CHAR(10),K215,CHAR(10),K213,CHAR(10),K216,CHAR(10),K218,CHAR(10),K220,CHAR(10),K222,CHAR(10),K223,CHAR(10),K225,CHAR(10),K226,CHAR(10),K227,CHAR(10),K228,CHAR(10),K229) -> Kondenzační jednotka split vybavena invertním swing kompresorem Jmenovité technické údaje: Chladicí výkon: 5 Topný výkon: 1,7/5,8/7,7 Příkon chlazení: 1,36 Příkon topení: 1,36 Ener. štítek chlazení: SEER: Ener. štítek vytápění: SCOP: Maximální proud pojistky (MFA): 16A Provozní rozsah - chlazení: Provozní rozsah - topení: Napájení systému: 230V Vhodné pro chladivo:R32 Rozměry jednotky (V x Š x H): 734x954x401 mm Jednotková hmotnost: 49 kg Akustický výkon: 63 (Chl) 62 (Top) Akustický tlak: 49 (Chl) 49 (Top) ** 1,5m od jednotky in 1,5m od podlahy Pruměr připojovacího potrubí: Cu 6,35 x 12,7 mm Popis: Výrobce: DAIKIN Tip: RXM50A
B10: =IF(C6=M28,R101,"") ->  | C10: NE | E10: =IFERROR(IF(C10="ANO",VLOOKUP(E9,P92:S98,4,FALSE),""),"") ->  | F10: =C10 -> NE | H10: =IF(AND(C10="ANO",C6=M28),"Čidlo přítomnosti","") ->  | I10: =IF(AND(C10="ANO",C6=M28),E10,"") ->  | J10: =IF(AND(F10="ANO",C6=M28),J5,"") ->  | BO10: FTXM50A | BP10: 1 | BQ10: SPLIT PERFERA nástěnná jednotka | BR10: =N52 -> 28479 | BS10: 28479 | CG10: =CONCATENATE(VLOOKUP(C6,M27:Z34,14,FALSE),CHAR(10),K179,CHAR(10),K180,CHAR(10),K181,CHAR(10),K182,CHAR(10),K183,CHAR(10),K184,CHAR(10),K185,CHAR(10),K186,CHAR(10),K187,CHAR(10),K189,CHAR(10),K191,CHAR(10),K192,CHAR(10),K194,CHAR(10),K195,CHAR(10),K196,CHAR(10),K197,CHAR(10),K198,CHAR(10),K199,CHAR(10),K200) -> 
B11: Změň index vnitřní | H11: Kom. svazek | I11: =J149 -> EKRS21 | J11: =IF(OR(AND(C6=M27,C8="kabelový"),C13="RTD-RA",C15="KRP928A2S"),1,"") -> 1 | BO11: EKRS21 | BP11: 1 | BQ11: redukce S21 pro Stylish IDU | BR11: =N53 -> 474 | BS11: 474
B12: Modbus adaptér | C12: Ano | D12: RTD-10 (pouze SkyAir) | E12: Ne | H12: Potrubí | BO12: RTD-RA | BP12: 1 | BQ12: adaptér Modbus RTD-RA | BR12: =N54 -> 7837 | BS12: 7837
B13: Příslušenství 1 | C13: =IF(C15="KRP928A2S",IF(C12="Ano","Zbytečná kombinace",IF(C12="Ano",VLOOKUP(C6,M27:Q43,5,FALSE),"")),IF(C12="Ano",VLOOKUP(C6,M27:Q43,5,FALSE),"")) -> RTD-RA | E13: 1 | H13: Maximální délka potrubí (m) | I13: =D31 -> 30 | J13: (nutné ověřit !!) | BP13: 1 | BR13: =N55 ->  | BS13: 0
B14: Připojit na F1/F2 (pouze FTXM) | C14: Ne | H14: Maximální převýšení (m) | I14: =VLOOKUP(I4,V77:AF88,11,FALSE) -> 20 | J14: (nutné ověřit !!) | BP14: 1 | BR14: =N56 -> 
B15: Příslušenství 2 | C15: =IF(C6=M27,IF(C14="Ano","KRP928A2S",""),"") ->  | E15: 1 | L15: ; | BP15: 1 | BR15: =N57 -> 
BO20: =I58 ->  | BP20: =IFERROR(J58*$C$61,"") -> 1 | BQ20: =K58 ->  | BR20: =N58 -> 
B21: Venkovní jednotka (OU) | C21: =VLOOKUP(I5,data5!D5:E84,2,FALSE) -> RXM50A | H21: =INDEX(U26:X34,G2,G4) ->  | I21: =IF(C5="230V",J21,K21) ->  | J21: =INDEX(U57:X65,G2,G4) ->  | K21: =IF(C5="230V",INDEX(U57:X65,G2,G4),INDEX(U36:X53,G2,G4)) ->  | U21: R32 | V21: Alpha | W21: 230V | BP21: =IFERROR(J59*$C$61,"") -> 1 | BQ21: 0 | BR21: =N59 -> 0 | BS21: 0
B22: Vnitřní jednotka (IU) | C22: =IF(C7="SPLIT",CONCATENATE(I22,J22,K22),CONCATENATE(I22,J22,K22,L22)) -> FTXM50A | H22: =C22 -> FTXM50A | I22: =VLOOKUP(C6,M27:N36,2,0) -> FTXM | J22: =INDEX(U67:X75,M22,N22) -> 50 | K22: =VLOOKUP(C6,M27:O36,3,0) -> A | L22: =VLOOKUP(C7,S77:T80,2,0) ->  | M22: =MATCH(C2,T67:T75,0) -> 5 | N22: =MATCH(C7,U66:X66,0) -> 1 | V22: Advanced | W22: 400V | BP22: =IFERROR(J60*$C$61,"") ->  | BR22: =N60 -> 0 | BS22: 0
B23: Výkon IU | C23: =IFERROR(IF(VLOOKUP(C22,data5!D5:D84,1,FALSE)=C22,"OK","Error"),"Změnit výkon IU") -> OK | V23: Active | BP23: =IFERROR(J61*$C$61,"") ->  | BR23: =N61 -> 0 | BS23: 0
E24: Celkem | U24: R32 | BO24: ="" -> 
B25: Výkon | C25: Qchl | D25: =VLOOKUP(C22,data5!D5:F84,3,FALSE) -> 5 | E25: =H27*J85 ->  | U25: AlphaR32 | V25: AdvancedR32 | W25: ActiveR32 | BO25: ="" -> 
C26: Qtop | D26: =VLOOKUP(C22,data5!D5:G84,4,FALSE) -> 1,7/5,8/7,7 | E26: =H28*J85 ->  | L26: =IF(C6=M28,1,2) -> 2 | P26: je to split (třeba I s KRP 928 | T26: 3,5 kW | U26: RZAG35 | V26: X | W26: X | X26: FTXM | Y26: A | BO26: ="" -> 
B27: Příkon | C27: Pi chl | D27: =VLOOKUP(C22,data5!D5:I84,6,FALSE) -> 1.36 | H27: =INDEX(data1!L62:M78,MATCH($H$21,data1!K62:K78,0),1) ->  | I27: kW | M27: Nástěnná (FTXM) | N27: FTXM | O27: A | P27: 2,0; 2,5; 3,4; 4,2; 5,0; 5,7; 7,1 (kW) | Q27: RTD-RA | S27: EKRS21 | T27: 5,0 kW | U27: RZAG50 | V27: X | W27: X | X27: FTXM | Y27: A | Z27: Vnitřní jednotka nástěnná | BO27: ="" -> 
C28: Pi top | D28: =VLOOKUP(C22,data5!D5:M84,10,FALSE) -> 1.45 | H28: =INDEX(data1!L62:M78,MATCH($H$21,data1!K62:K78,0),2) ->  | I28: kW | M28: Kazeta 900x900 (FCAG) | N28: FCAG | O28: B | P28: 3,4; 5,0; 5,7 (kW) | Q28: =IF($E$12="ANO","RTD-10","EKMBPP1") -> EKMBPP1 | T28: 6,0 kW | U28: RZAG60 | V28: X | W28: X | X28: FTXM | Y28: A | Z28: Vnitřní jednotka kazetová s kruhovým 360° výstupem vzduchu | BO28: ="" -> 
B29: Doporučené jištění | C29: =IFERROR(VLOOKUP(C21,V77:W108,2,0),"") -> 16A | H29: =IFERROR(INDEX(data1!D4:DV20,MATCH($H$21,data1!B4:B20,0),MATCH($H$22,data1!D3:DV3,0)),"X") -> X | I29: kW | J29: Ano | M29: Kazeta 600x600 (FFA) | N29: FFA | O29: A9 | P29: 2,5; 3,4; 5,0; 5,7 (kW) | Q29: =IF($E$12="ANO","RTD-10","EKMBPP1") -> EKMBPP1 | T29: 7,1 kW | U29: RZAG71 | V29: RZASG71 | W29: AZAS71 | X29: FAA | Y29: B | Z29: Vnitřní jednotka 4-cestná, kazetová
H30: =IFERROR(INDEX(data1!D24:DV40,MATCH($H$21,data1!B24:B40,0),MATCH($H$22,data1!D23:DV23,0)),"X") -> X | I30: kW | J30: Ne | M30: Podstropní s 1 vydechem (FHA) | N30: FHA | O30: =IF(J22=100,"A",IF(J22=125,"A",IF(J22=140,"A","A9"))) -> A9 | P30: 3,4; 5,0; 5,7 (kW) | Q30: =IF($E$12="ANO","RTD-10","EKMBPP1") -> EKMBPP1 | T30: 10,0 kW | U30: RZAG100 | V30: RZASG100 | W30: AZAS100 | X30: FAA | Y30: B | Z30: Vnitřní jednotka postropní s 1 výdechem
B31: Maximální délka potrubí (m) | D31: =VLOOKUP(I4,V77:AF92,10,FALSE) -> 30 | M31: Kanálovka střední (FBA) | N31: FBA | O31: A9 | P31: 3,4; 5,0; 5,7 (kW) | Q31: =IF($E$12="ANO","RTD-10","EKMBPP1") -> EKMBPP1 | T31: 12,5 kW | U31: RZAG125 | V31: RZASG125 | W31: AZAS125 | X31: FAA | Y31: B | Z31: Vnitřní jednotka kanálová středotlaká
B32: Základní náplň chladiva (kg) | D32: =IF(C2<5,0.76,1.15) -> 1.15 | M32: Parapetní neopláštěná (FNA) | N32: FNA | O32: A9 | P32: 2,5; 3,4; 5,0; 6,0 (kW) | Q32: =IF($E$12="ANO","RTD-10","EKMBPP1") -> EKMBPP1 | T32: 14,0 kW | U32: RZAG140 | V32: RZASG140 | W32: AZAS140 | X32: FAA | Y32: B
B33: Dodatečná náplň chladiva (kg) | D33: =IF(C51<=0,"zadejte délky potrubí",IF(C51<=D31,IF(C51<10,"není potřeba",(C51-10)*0.02),"překročena max. delka")) -> 0.1 | G33: =MATCH(H21,D64:D80,0) ->  | H33: =MATCH(C7,E63:H63,0) -> 1 | M33: Kanálovka nízká (FDXM) | N33: FDXM | O33: F9 | P33: 2,5; 3,4; 5,0; 6,0 (kW) | Q33: 1 | T33: 19,0 kW | U33: X | V33: RZA200 | W33: X | X33: FAA | Y33: B | Z33: Vnitřní jednotka kanálová středotlaká nízká
B34: Pozn. Výpočet množství chladiva funguje pouze když jsou vyplňené VŠECHNY délky L a pouze v modrých polích. | M34: Emura - bílá (FTXJ) | N34: FTXJ | O34: AW | P34: 2,5; 3,4; 4; 5,0 (kW) | Q34: RTD-RA | S34: EKRS21 | T34: 22,0 kW | U34: X | V34: RZA250 | W34: X | X34: X | Z34: Vnitřní jednotka nástěnná
O35: A9 | P35: TRIPLE | Q35: 1 | T35: 400V | U35: AlphaR32 | V35: AdvancedR32 | W35: ActiveR32
H36: 3.75 | I36: xx | O36: A | P36: Double TWIN | Q36: 3 | T36: 3,5 kW | U36: X | V36: X | W36: X
B41: Do 5kW na servrovny
P44: FTXJ | Q44: BRC073 | R44: BRCW901A08
H46: 4.45 | T46: 5,0 kW | U46: X | V46: X | W46: X
B47: vyskovy rozdil (pouze pro kontrolu) | H47: =H46-H36 -> 0.7 | I47: -ceny jsou pouze orientační přesné nacenění provede zástupce Daikin (databáze k 21.05.2024) | P47: FAA | Q47: BRC1H52W | T47: 6,0 kW | U47: X | V47: X | W47: X
B48: H1 | C48: 14 | D48: =IF(C48>=0,"m","") -> m | E48: =IF(VLOOKUP(I4,V77:AF83,11,FALSE)<C48,"NELZE","OK") -> OK | I48: Typ | J48: Počet | K48: Popis | N48: Cena /jednotka | O48: Cena celkem | P48: FCAG | Q48: =VLOOKUP(E9,M92:N98,2,FALSE) -> BRC1H52W | R48: =E9 ->  | S48: Dekorační panel | T48: 7,1 kW | U48: NY1 | V48: X | W48: X
P49: FFA | Q49: BRC1H52W | R49: BYFQ60CW | S49: Dekorační panel | T49: 10,0 kW | U49: NY1 | V49: MY1 | W49: MY1
B50: delky tras (včetně svislých délek) | E50: průměr | I50: CE.HEADER | J50: 1 | K50: 12C.001 Chlazení místností | N50: 0 | P50: FTXM | Q50: BRC073 | R50: BRCW901A08 | S50: Kabel | T50: 12,5 kW | U50: NY1 | V50: MY1 | W50: MY1
B51: L1 | C51: 15 | D51: =IF(C51>0,"m","") -> m | E51: =S4 -> 6,35 x 12,7 mm | I51: =IFERROR(INDEX(I$141:I$155,SMALL(IF(I$141:I$155<>"",ROW(I$141:I$155)-ROW(I$141)+1),ROWS(J$141:J142))),"") -> RXM50A | J51: =VLOOKUP(R141,$J$141:$K$155,2,FALSE) -> 1 | K51: =IF(J51="","",VLOOKUP(I51,Ceník!$A$1:$C$9981,3,FALSE)) -> Split venkovní jednotka | N51: =IF(C13="zbytečná kombinace","xxx",IF(J51>0,VLOOKUP(I51,Ceník!$A$1:$C$9981,2,FALSE),"")) -> 46511 | O51: =J51*N51 -> 46511 | P51: FHA | Q51: BRC1H52W | T51: 14,0 kW | U51: NY1 | V51: MY1 | W51: MY1
I52: =IFERROR(INDEX(I$141:I$155,SMALL(IF(I$141:I$155<>"",ROW(I$141:I$155)-ROW(I$141)+1),ROWS(J$141:J143))),"") -> FTXM50A | J52: 1 | K52: =IF(J52="","",VLOOKUP(I52,Ceník!$A$1:$C$9981,3,FALSE)) -> SPLIT PERFERA nástěnná jednotka | N52: =IF(J52>0,VLOOKUP(I52,Ceník!$A$1:$C$9981,2,FALSE),"") -> 28479 | O52: =J52*N52 -> 28479 | P52: FUA | Q52: BRC1H52W | T52: 19,0 kW | U52: X | V52: D | W52: X
I53: =IFERROR(INDEX(I$141:I$155,SMALL(IF(I$141:I$155<>"",ROW(I$141:I$155)-ROW(I$141)+1),ROWS(J$141:J144))),"") -> EKRS21 | J53: 1 | K53: =IFERROR(IF(J53="","",VLOOKUP(I53,Ceník!$A$1:$C$9981,3,FALSE)),"") -> redukce S21 pro Stylish IDU | N53: =IFERROR(IF(J53>0,VLOOKUP(I53,Ceník!$A$1:$C$9981,2,FALSE),""),"") -> 474 | O53: =IFERROR(J53*N53,"") -> 474 | P53: FBA | Q53: BRC1H52W | T53: 22,0 kW | U53: X | V53: D | W53: X
I54: =IFERROR(INDEX(I$141:I$155,SMALL(IF(I$141:I$155<>"",ROW(I$141:I$155)-ROW(I$141)+1),ROWS(J$141:J145))),"") -> RTD-RA | J54: 1 | K54: =IFERROR(IF(J54="","",VLOOKUP(I54,Ceník!$A$1:$C$9981,3,FALSE)),"") -> adaptér Modbus RTD-RA | N54: =IFERROR(IF(I54="KRP928A2S",VLOOKUP(I54,Ceník!$A$1:$C$9981,2,FALSE),IF(I7<>Q69,VLOOKUP(I54,Ceník!$A$1:$C$9981,2,FALSE),"")),"") -> 7837 | O54: =IFERROR(IF(I54="KRP928A2S",J54*N54,IF(I7<>Q69,J54*N54,"")),"") -> 7837 | P54: FDXM | Q54: BRC1H52W
I55: =IFERROR(INDEX(I$141:I$155,SMALL(IF(I$141:I$155<>"",ROW(I$141:I$155)-ROW(I$141)+1),ROWS(J$141:J146))),"") ->  | J55: =VLOOKUP(R145,$J$141:$K$155,2,FALSE) -> 1 | K55: =IFERROR(IF(J55="","",VLOOKUP(I55,Ceník!$A$1:$C$9981,3,FALSE)),"") ->  | N55: =IFERROR(IF(J55="","",VLOOKUP(I55,Ceník!$A$1:$C$9981,2,FALSE)),"") ->  | O55: =IFERROR(IF(J55="","",J55*N55),0) -> 0 | P55: FNA | Q55: BRC1H52W
I56: =IFERROR(INDEX(I$141:I$155,SMALL(IF(I$141:I$155<>"",ROW(I$141:I$155)-ROW(I$141)+1),ROWS(J$141:J147))),"") ->  | J56: 1 | K56: =IFERROR(IF(J56="","",VLOOKUP(I56,Ceník!$A$1:$C$9981,3,FALSE)),"") ->  | N56: =IFERROR(IF(J56="","",VLOOKUP(I56,Ceník!$A$1:$C$9981,2,FALSE)),"") ->  | O56: =IFERROR(IF(J56="","",J56*N56),"") ->  | P56: FVA | Q56: BRC1H52W | T56: 230V | U56: AlphaR32 | V56: AdvancedR32 | W56: ActiveR32
I57: =IFERROR(INDEX(I$141:I$155,SMALL(IF(I$141:I$155<>"",ROW(I$141:I$155)-ROW(I$141)+1),ROWS(J$141:J148))),"") ->  | J57: 1 | K57: =IFERROR(IF(J57="","",VLOOKUP(I57,Ceník!$A$1:$C$9981,3,FALSE)),"") ->  | N57: =IFERROR(IF(J57="","",VLOOKUP(I57,Ceník!$A$1:$C$9981,2,FALSE)),"") ->  | O57: =IFERROR(IF(J57="","",J57*N57),"") ->  | P57: FDA | Q57: BRC1H52W | T57: 3,5 kW | U57: A | V57: X | W57: X
I58: =IFERROR(INDEX(I$141:I$155,SMALL(IF(I$141:I$155<>"",ROW(I$141:I$155)-ROW(I$141)+1),ROWS(J$141:J149))),"") ->  | J58: 1 | K58: =IFERROR(IF(J58="","",VLOOKUP(I58,Ceník!$A$1:$C$9981,3,FALSE)),"") ->  | N58: =IFERROR(IF(J58="","",VLOOKUP(I58,Ceník!$A$1:$C$9981,2,FALSE)),"") ->  | O58: =IFERROR(IF(J58="","",J58*N58),"") ->  | T58: 5,0 kW | U58: A | V58: X | W58: X
I59: =IFERROR(INDEX(I$141:I$155,SMALL(IF(I$141:I$155<>"",ROW(I$141:I$155)-ROW(I$141)+1),ROWS(J$141:J152))),"") ->  | J59: 1 | P59: FAA | Q59: BRC7EB518 | R59: kabelový | T59: 6,0 kW | U59: A | V59: X | W59: X
I60: =B74 ->  | J60: =C74 ->  | K60: =IFERROR(IF(J60="","",VLOOKUP(I60,Ceník!$A$1:$C$9981,3,FALSE)),"") ->  | P60: FCAG | Q60: =IF(E9=P92,"BRC7FA532F",IF(E9=P94,"BRC7FA532FB",IF(E9=P93,"BRC7FA532F",IF(E9=P95,"BRC7FA532F",IF(E9=P96,"NEJDE INFRA",IF(E9=P97,"BRC7FB532FB",IF(E9=P98,"BRC7FB532FB","ne"))))))) -> BRC7FA532F | R60: infra | T60: 7,1 kW | U60: NV1 | V60: MV1 | W60: MV1
B61: n-násobek | C61: 1 | I61: =B75 ->  | J61: =C75 ->  | K61: =IFERROR(IF(J61="","",VLOOKUP(I61,Ceník!$A$1:$C$9981,3,FALSE)),"") ->  | P61: FDA | Q61: BRC4C65 | T61: 10,0 kW | U61: NV1 | V61: MV1 | W61: MV1
I62: Projektová cena celkem | O62: =SUM(O51:O61) -> 83301 | P62: FFA | Q62: BRC7F530W | T62: 12,5 kW | U62: NV1 | V62: MV1 | W62: MV1
A63: přís. | E63: SPLIT | F63: TWIN | G63: TRIPLE | H63: Double TWIN | I63: L1 | J63: L2, L3,L4 TWIN, TRIPPLE | K63: L2 L3 DoubleTWIN | L63: L4,L5,L6,L7 DoubleTWIN | P63: FHA | Q63: BRC7GA53-9 | T63: 14,0 kW | U63: NV1 | V63: MV1 | W63: MV1
D64: RZAG35 | E64: =IF($C$51<=30,"není potřeba",(IF($C$51<=50,($C$51-30)*0.02,"překročena max. délka"))) -> není potřeba | F64: X | G64: X | H64: X | I64: 6,4x9,5mm | P64: FUA | Q64: BRC7C58 | T64: 19,0 kW | U64: X | V64: X | W64: X
B65: =IF(AND($C$2=$T$33,$C$7=$P$29),$C$65,"") ->  | C65: 60 | D65: RZAG50 | E65: =IF($C$51<=30,"není potřeba",(IF($C$51<=50,($C$51-30)*0.02,"překročena max. délka"))) -> není potřeba | F65: X | G65: X | H65: X | I65: 6,4x12,7mm | P65: FBA | Q65: BRC4C65 | T65: 22,0 kW | U65: X | V65: X | W65: X
B66: =IF(AND($C$2=$T$33,$C$7=$P$29),$C$66,"") ->  | C66: 71 | D66: RZAG60 | E66: =IF($C$51<=30,"není potřeba",(IF($C$51<=50,($C$51-30)*0.02,"překročena max. délka"))) -> není potřeba | F66: X | G66: X | H66: X | I66: 6,4x12,7mm | P66: FDXM | Q66: BRC4C65 | U66: SPLIT | V66: TWIN | W66: TRIPLE | X66: Double TWIN
D67: RZAG71 | E67: =IF(C51<=40,"není potřeba",(IF(C51<=50,0.35,(IF(C51<=55,0.55,"překročena max. délka"))))) -> není potřeba | F67: =IF(F84>40,F109+F121,L121) -> 0 | G67: X | H67: X | I67: 9,52x15,9mm | J67: 6,4x9,5mm | P67: FNA | Q67: BRC4C65 | T67: 2 | U67: 20
B68: Změna vnitřní jednotky pro TRIPLE aplikaci RZA200D z 60 na 71 | D68: RZAG100 | E68: =IF(C51<=40,"není potřeba",(IF(C51<=50,0.35,(IF(C51<=55,0.55,IF(C51<=60,0.7,IF(C51<=75,1.05,IF(C51<=85,1.55,"překročena max. délka")))))))) -> není potřeba | F68: =IF(F85>40,F110+F122,L122) -> 0 | G68: =IF(G85>40,G110+G122,M122) -> 0 | H68: X | I68: 9,52x15,9mm | J68: =IF(C7="TRIPLE","6,4x9,5mm","6,4x12,7mm") -> 6,4x12,7mm | P68: FVA | T68: 2.5 | U68: 25
B69: =IF(AND(C2=T33,C7=P29),"ANO","NE") -> NE | D69: RZAG125 | E69: =IF(C51<=40,"není potřeba",(IF(C51<=50,0.35,(IF(C51<=55,0.55,IF(C51<=60,0.7,IF(C51<=75,1.05,IF(C51<=85,1.55,"překročena max. délka")))))))) -> není potřeba | F69: =IF(F86>40,F111+F123,L123) -> 0 | G69: =IF(G86>40,G111+G123,M123) -> 0 | H69: =IF(H86>40,H111+H123,N123) -> 0 | I69: 9,52x15,9mm | J69: 6,4x12,7mm | K69: 9,52x15,9mm | L69: 6,4x9,5mm | P69: FTXM | Q69: IR v ceně | T69: 3.4 | U69: 35
D70: RZAG140 | E70: =IF(C51<=40,"není potřeba",(IF(C51<=50,0.35,(IF(C51<=55,0.55,IF(C51<=60,0.7,IF(C51<=75,1.05,IF(C51<=85,1.55,"překročena max. délka")))))))) -> není potřeba | F70: =IF(F87>40,F112+F125,L125) -> 0 | G70: =IF(G87>40,G112+G125,M125) -> 0 | H70: =IF(H87>40,H112+H125,N125) -> 0 | I70: 9,52x15,9mm | J70: =IF(C7="TWIN","9,52x15,9mm","6,4x12,7mm") -> 6,4x12,7mm | K70: 9,52x15,9mm | L70: 6,4x9,5mm | T70: 4.2 | U70: 42 | V70: 35
D71: RZASG71 | E71: =IF(C51<=30,"není potřeba",(IF(C51<=40,0.35,(IF(C51<=50,0.7,"překročena max. délka"))))) -> není potřeba | F71: =IF(F88>30,F113+F126,L126) -> 0 | G71: X | H71: X | I71: 9,52x15,9mm | J71: 6,4x9,5mm | R71: =IF(E9=P92,"BRC7FA532F","ne") -> BRC7FA532F | T71: 5 | U71: 50 | V71: 50 | W71: 35
D72: RZASG100 | E72: =IF(C51<=30,"není potřeba",(IF(C51<=40,0.35,(IF(C51<=50,0.7,"překročena max. délka"))))) -> není potřeba | F72: =IF(F89>30,F114+F127,L127) -> 0 | G72: =IF(G89>30,G114+G127,M127) -> 0 | H72: X | I72: 9,52x15,9mm | J72: =IF(C7="TRIPLE","6,4x9,5mm","6,4x12,7mm") -> 6,4x12,7mm | P72: FTXJ | Q72: IR v ceně | T72: 5.7 | U72: 60 | V72: 60 | W72: 50 | X72: 35
D73: RZASG125 | E73: =IF(C51<=30,"není potřeba",(IF(C51<=40,0.35,(IF(C51<=50,0.7,"překročena max. délka"))))) -> není potřeba | F73: =IF(F90>30,F115+F129,L129) -> 0 | G73: 0 | H73: 0 | I73: 9,52x15,9mm | J73: 6,4x12,7mm | K73: 6,4x12,7mm | L73: 6,4x9,5mm | T73: 7.1 | U73: 71 | V73: 71 | W73: 50 | X73: 35
A74: přís.2 | B74: ="" ->  | C74: ="" ->  | D74: RZASG140 | E74: =IF(C51<=30,"není potřeba",(IF(C51<=40,0.35,(IF(C51<=50,0.7,"překročena max. délka"))))) -> není potřeba | F74: 0 | G74: 0 | H74: 0 | I74: 9,52x15,9mm | J74: =IF(C7="TWIN","9,52x15,9mm","6,4x12,7mm") -> 6,4x12,7mm | K74: 9,52x15,9mm | L74: 6,4x9,5mm | V74: 100 | W74: =C11 ->  | X74: 50
A75: přís. 3 | B75: =IF(C13="EKMBPP1","KRP1BC101","") ->  | C75: =IF(C13="EKMBPP1",1,"") ->  | D75: AZAS71 | E75: =IF(C51<=30,"není potřeba","překročena max. délka") -> není potřeba | F75: X | G75: X | H75: X | I75: 9,52x15,9mm | V75: 125 | X75: 60
D76: AZAS100 | E76: =IF(C51<=30,"není potřeba","překročena max. délka") -> není potřeba | F76: X | G76: X | H76: X | I76: 9,52x15,9mm | AC76: Lw | AD76: Lp | AE76: max délka | AF76: převýšení
D77: AZAS125 | E77: =IF(C51<=30,"není potřeba","překročena max. délka") -> není potřeba | F77: X | G77: X | H77: X | I77: 9,52x15,9mm | S77: SPLIT | U77: 1 | V77: RXM20A | W77: 10A | X77: 85 | Y77: 610x923x367 mm | Z77: 32 kg | AA77: 6,35 x 9,5 mm | AC77: 59 (Chl) 59 (Top) | AD77: 46 (Chl) 47 (Top) | AE77: 20 | AF77: 15
D78: AZAS140 | E78: =IF(C51<=30,"není potřeba","překročena max. délka") -> není potřeba | F78: X | G78: X | H78: X | I78: 9,52x15,9mm | S78: TWIN | T78: 2x | U78: 2 | V78: RXM25A | W78: 13A | X78: 85 | Y78: 610x923x367 mm | Z78: 32 kg | AA78: 6,35 x 9,5 mm | AC78: 58 (Chl) 59 (Top) | AD78: 47 (Chl) 47 (Top) | AE78: 20 | AF78: 15
D79: RZA200 | E79: =IF(C51<=30,"není potřeba",(IF(C51<=40,0.45,(IF(C51<=50,0.9,IF(C51<=60,1.35,IF(C51<=70,1.8,IF(C51<=80,2.25,IF(C51<=90,2.7,IF(C51<=100,3.15,"překročena max. délka")))))))))) -> není potřeba | F79: =IF(F92>30,F117+F131,L131) -> 0 | G79: 0 | H79: 0 | I79: 9,5 x 22.2 mm | J79: =IF(C23="TWIN","9,52x15,9mm","6,4x12,7mm") -> 6,4x12,7mm | K79: 9,52x15,9mm | L79: 6,4x12,7mm | S79: TRIPLE | T79: 3x | U79: 3 | V79: RXM35A | W79: 13A | X79: 85 | Y79: 610x923x367 mm | Z79: 32 kg | AA79: 6,35 x 9,5 mm | AC79: 61 (Chl) 61 (Top) | AD79: 49 (Chl) 49 (Top) | AE79: 20 | AF79: 15
D80: RZA250 | E80: =IF(C51<=30,"není potřeba",(IF(C51<=40,0.45,(IF(C51<=50,0.9,IF(C51<=60,1.35,IF(C51<=70,1.8,IF(C51<=80,2.25,IF(C51<=90,2.7,IF(C51<=100,3.15,"překročena max. délka")))))))))) -> není potřeba | F80: 0 | G80: 0 | H80: 0 | I80: 9,5 x 22.2 mm | J80: =IF(C24="TWIN","9,52x15,9mm","6,4x12,7mm") -> 6,4x12,7mm | K80: 9,52x15,9mm | L80: 6,4x12,7mm | S80: Double TWIN | T80: 4x | U80: 4 | V80: RXM42A | W80: 13A | X80: 85 | Y80: 610x923x367 mm | Z80: 49 kg | AA80: 6,35 x 12,7 mm | AC80: 62 (Chl) 62 (Top) | AD80: 48 (Chl) 48 (Top) | AE80: 30 | AF80: 20
V81: RXM50A | W81: 16A | X81: 85 | Y81: 734x954x401 mm | Z81: 49 kg | AA81: 6,35 x 12,7 mm | AC81: 63 (Chl) 62 (Top) | AD81: 49 (Chl) 49 (Top) | AE81: 30 | AF81: 20
I82: Zařízení | J82: CR | K82: Typ | L82: Q chl. [kW] | M82: Q top. [kW] | N82: P el.chl. | O82: P el.top. [kW] | P82: rozvodné napětí [V] | Q82: RLA [A] | R82: MCA [A] | S82: Jištění typ C [A] | T82: RZAG71 | U82: 3.2 | V82: RXM60A | W82: 16A | X82: 85 | Y82: 734x954x401 mm | Z82: 49 kg | AA82: 6,35 x 12,7 mm | AC82: 63 (Chl) 63 (Top) | AD82: 48 (Chl) 49(Top) | AE82: 30 | AF82: 20
D83: G1 | F83: TWIN | G83: TRIPLE | H83: DoubleTWIN | T83: RZASG71 | U83: 2.45 | V83: RXM71A | W83: 20A | X83: 55 | Y83: 734x954x401 mm | Z83: 55 kg | AA83: 6,35 x 15,9 mm | AC83: 66 (Chl) 67 (Top) | AD83: 47 (Chl) 48(Top) | AE83: 30 | AF83: 20
D84: RZAG71 | F84: =C51 -> 15 | G84: X | H84: X | I84: =K50 -> 12C.001 Chlazení místností | K84: =CONCATENATE(C21,,"+",C22) -> RXM50A+FTXM50A | L84: =D25 -> 5 | M84: =D26 -> 1,7/5,8/7,7 | N84: =D27 -> 1.36 | O84: =D28 -> 1.45 | P84: =C5 -> 230V | Q84: na dotaz | R84: na dotaz | S84: =C29 -> 16A | T84: RZAG100 | U84: 3.2 | V84: RXJ20A | W84: 10A | Y84: 552x840x350 mm | AC84: 59 (Chl) 59 (Top) | AD84: 46 (Chl) 47 (Top) | AE84: 20 | AF84: 15
D85: RZAG100 | F85: =C51 -> 15 | G85: =C51 -> 15 | H85: X | I85: n-násobek | J85: 21 | T85: RZASG100 | U85: 2.6 | V85: RXJ25A | W85: 13A | Y85: 552x840x350 mm | Z85: 33 kg | AC85: 59 (Chl) 59 (Top) | AD85: 46 (Chl) 47 (Top) | AE85: 20 | AF85: 15
D86: RZAG125 | F86: =C51 -> 15 | G86: =C51 -> 15 | H86: =C51+C52+C53 -> 15 | I86: =I50 -> CE.HEADER | J86: =J50*J85 -> 21 | K86: =I84 -> 12C.001 Chlazení místností | T86: RZAG125 | U86: 3.7 | V86: RXJ35A | W86: 13A | Y86: 552x840x350 mm | Z86: 33 kg | AC86: 61 (Chl) 61 (Top) | AD86: 49 (Chl) 49 (Top) | AE86: 20 | AF86: 15
D87: RZAG140 | F87: =C51 -> 15 | G87: =C51 -> 15 | H87: =C51+C52+C53 -> 15 | I87: =I51 -> RXM50A | J87: =J51*J85 -> 21 | K87: =O51*J87 -> 976731 | T87: RZASG125 | U87: 2.6 | V87: RXJ42A | W87: 13A | Y87: 734x954x408 mm | Z87: 49 kg | AC87: 62 (Chl) 62 (Top) | AD87: 48 (Chl) 48 (Top) | AE87: 30 | AF87: 20
D88: RZASG71 | F88: =C51 -> 15 | G88: X | H88: X | I88: FTXM50A | J88: =J52*J85 -> 21 | K88: =O52*J88 -> 598059 | T88: RZAG140 | U88: 3.7 | V88: RXJ50A | W88: 13A | Y88: 734x954x408 mm | Z88: 49 kg | AC88: 62 (Chl) 62 (Top) | AD88: 48 (Chl) 49 (Top) | AE88: 30 | AF88: 20
D89: RZASG100 | F89: =C51 -> 15 | G89: =C51 -> 15 | H89: X | I89: =I54 -> RTD-RA | J89: =J54*J85 -> 21 | K89: =O54*J89 -> 164577 | T89: RZASG140 | U89: 2.6
D90: RZASG125 | F90: =C51 -> 15 | G90: =C51 -> 15 | H90: =C51+C52+C53 -> 15 | I90: =I55 ->  | J90: =J55*J85 -> 21 | Q90: =IF(C6=M28,R90,"") ->  | R90: Dekorační panel | T90: AZAS71 | U90: 2.45
D91: RZASG140 | F91: =C51 -> 15 | G91: =C51 -> 15 | H91: =C51+C52+C53 -> 15 | I91: =I58 ->  | J91: =J58*J85 -> 21 | K91: =N58*J91 ->  | T91: AZAS100 | U91: 2.6
D92: RZA200 | F92: =C51 -> 15 | G92: =C51 -> 15 | H92: =C51+C52+C53 -> 15 | K92: =SUM(K87:K91) ->  | M92: =P92 ->  | N92: BRC1H52W | P92: =IF(C6=M28,"BYCQ140E","") ->  | Q92: =IF($C$6=$M$28,R92,"") ->  | R92: Standard, šedé lamely | S92: BRYQ140B | T92: AZAS125 | U92: 2.6
D93: RZA250 | F93: =C51 -> 15 | G93: =C51 -> 15 | H93: =C51+C52+C53 -> 15 | M93: =P93 ->  | N93: BRC1H52W | P93: =IF(C6=M28,"BYCQ140EW","") ->  | R93: Bílý, bílé lamely | S93: BRYQ140B | T93: AZAS140 | U93: 2.9
N94: BRC1H52K | P94: =IF(C6=M28,"BYCQ140EB","") ->  | R94: Černý | S94: BRYQ140BB | T94: RZAG35 | U94: 1.55
D95: G2 | F95: TWIN | G95: TRIPLE | H95: DoubleTWIN | N95: BRC1H52W | O95: BYCQ140EGF | P95: =IF(C6=M28,"BYCQ140EGF","") ->  | R95: Samočistící, bílá barva | S95: BRYQ140B | T95: RZAG50 | U95: 1.55
D96: RZAG71 | F96: =C52+C53 -> 0 | G96: X | H96: X | N96: BRC1H52K | O96: BYCQ140EGFB | P96: =IF(C6=M28,"BYCQ140EGFB","") ->  | R96: Samočistící, černá barva | S96: BRYQ140BB | T96: RZAG60 | U96: 1.55
D97: RZAG100 | F97: =C52+C53 -> 0 | G97: =C52+C53+C54 -> 0 | H97: X | N97: BRC1H52W | P97: =IF(C6=M28,"BYCQ140EP","") ->  | R97: Bílý designový | S97: BRYQ140C | T97: RZA200 | U97: 5
D98: RZAG125 | F98: =C52+C53 -> 0 | G98: =C52+C53+C54 -> 0 | H98: =C54+C55+C56+C57 -> 0 | N98: BRC1H52K | P98: =IF(C6=M28,"BYCQ140EPB","") ->  | R98: Černý designový | S98: BRYQ140CB | T98: RZA250 | U98: 5
D99: RZAG140 | F99: =C52+C53 -> 0 | G99: =C52+C53+C54 -> 0 | H99: =C54+C55+C56+C57 -> 0
D100: RZASG71 | F100: =C52+C53 -> 0 | G100: X | H100: X
D101: RZASG100 | F101: =C52+C53 -> 0 | G101: =C52+C53+C54 -> 0 | H101: X | R101: Čidlo přítomnosti osob
D102: RZASG125 | F102: =C52+C53 -> 0 | G102: =C52+C53+C54 -> 0 | H102: =C54+C55+C56+C57 -> 0 | Q102: =IF($C$6=$M$28,R102,"") ->  | R102: ANO
D103: RZASG140 | F103: =C52+C53 -> 0 | G103: =C52+C53+C54 -> 0 | H103: =C54+C55+C56+C57 -> 0 | Q103: =IF($C$6=$M$28,R103,"") ->  | R103: NE | V103: 1 | W103: 2 | X103: 3 | Y103: 4 | Z103: 5 | AA103: 6 | AB103: 7 | AC103: 8 | AD103: 9 | AE103: 10 | AF103: 11 | AG103: 12 | AH103: 13 | AI103: 14
D104: RZA200 | F104: =C52+C53 -> 0 | G104: =C52+C53+C54 -> 0 | H104: =C54+C55+C56+C57 -> 0 | AB104: Chlazení Nízké/Střední/Vysoké m³/min | AC104: Vytápění Nízké/Střední/Vysoké m³/min | AD104: ClazeníNízké/Střední/Vysoké m³/min | AE104: Hladina akust.Výkonu chlazení | AF104: Hladina akust.Výkonu vytápění | AG104: Hladina akust.Tlaku vytápění | AH104: Hladina akust.Tlaku clazení | AI104: EPS
D105: RZA250 | F105: =C52+C53 -> 0 | G105: =C52+C53+C54 -> 0 | H105: =C54+C55+C56+C57 -> 0 | V105: FAA71B | Y105: 290x1050x238 mm | Z105: 13 kg | AA105: 9,5 x 15,9 mm | AC105: 12,1/13,4/16,2 | AD105: 12,7/14,2/16,9 | AE105: 61 | AF105: 61 | AG105: 40,0/42,0/45,0 | AH105: 40,0/42,0/45,0
M106: Standard, šedé lamely | N106: =VLOOKUP(M106,Q108:R114,2,FALSE) -> BYCQ140E | V106: FAA100A | Y106: 340x1200x240 mm | Z106: 17 kg | AA106: 9,5 x 15,9 mm | AC106: 23,0/21,1/18,7 | AD106: 23,0/20,9/18,7 | AE106: 65 | AF106: 65 | AG106: 41/45/49 | AH106: 41/45/49
V107: FBA35A9 | Y107: 245x700x800 mm | Z107: 28 kg | AA107: 6,4x9,5 mm | AC107: 15/10,5 | AD107: 15/10,5 | AE107: 60 | AG107: 35/29 | AH107: 37/29 | AI107: 30 ~ 150
D108: R1>40/>30 | F108: TWIN | G108: TRIPLE | H108: DoubleTWIN | Q108: Standard, šedé lamely | R108: BYCQ140E | V108: FBA50A9 | Y108: 245x700x800 mm | Z108: 28 kg | AA108: 6,4x12,7 mm | AC108: 15/10,5 | AD108: 15/10,5 | AE108: 61 | AG108: 35/30 | AH108: 37/30 | AI108: 31 ~ 150
D109: RZAG71 | F109: =IF(F84-40<10,0.35,IF(F84-40<20,0.7,IF(F84-40<30,1.05,IF(F84-40<40,1.4,IF(F84-40<45,1.55,"překročena max. délka"))))) -> 0.35 | G109: X | H109: X | Q109: Bílý, bílé lamely | R109: BYCQ140EW | V109: FBA60A9 | Y109: 245x1000x800 mm | Z109: 35 kg | AA109: 6,4x12,7 mm | AC109: 18/12,5 | AD109: 18/12,5 | AE109: 56 | AG109: 30/25 | AH109: 31/25 | AI109: 32 ~ 150
D110: RZAG100 | F110: =IF(F85-40<10,0.35,IF(F85-40<20,0.7,IF(F85-40<30,1.05,IF(F85-40<40,1.4,IF(F85-40<45,1.55,"překročena max. délka"))))) -> 0.35 | G110: =IF(G85-40<10,0.35,IF(G85-40<20,0.7,IF(G85-40<30,1.05,IF(G85-40<40,1.4,IF(G85-40<45,1.55,"překročena max. délka"))))) -> 0.35 | H110: X | Q110: Černý | R110: BYCQ140EB | V110: FBA71A9 | Y110: 245x1000x800 mm | Z110: 35 kg | AA110: 9,5x15,9 mm | AC110: 18/12,5 | AD110: 18/12,5 | AE110: 57 | AG110: 30/26 | AH110: 31/26 | AI110: 33 ~ 150
D111: RZAG125 | F111: =IF(F86-40<10,0.35,IF(F86-40<20,0.7,IF(F86-40<30,1.05,IF(F86-40<40,1.4,IF(F86-40<45,1.55,"překročena max. délka"))))) -> 0.35 | G111: =IF(G86-40<10,0.35,IF(G86-40<20,0.7,IF(G86-40<30,1.05,IF(G86-40<40,1.4,IF(G86-40<45,1.55,"překročena max. délka"))))) -> 0.35 | H111: =IF(H86-40<10,0.35,IF(H86-40<20,0.7,IF(H86-40<30,1.05,IF(H86-40<40,1.4,IF(H86-40<45,1.55,"překročena max. délka"))))) -> 0.35 | Q111: Samočistící, bílá barva | R111: BYCQ140EGF | V111: FBA100A | Y111: 245x1400x800 mm | Z111: 46 kg | AA111: 9,5x15,9 mm | AC111: 29/23 | AD111: 29/23 | AE111: 58 | AG111: 34/30 | AH111: 36/30 | AI111: 40 ~ 150
D112: RZAG140 | F112: =IF(F87-40<10,0.35,IF(F87-40<20,0.7,IF(F87-40<30,1.05,IF(F87-40<40,1.4,IF(F87-40<45,1.55,"překročena max. délka"))))) -> 0.35 | G112: =IF(G87-40<10,0.35,IF(G87-40<20,0.7,IF(G87-40<30,1.05,IF(G87-40<40,1.4,IF(G87-40<45,1.55,"překročena max. délka"))))) -> 0.35 | H112: =IF(H87-40<10,0.35,IF(H87-40<20,0.7,IF(H87-40<30,1.05,IF(H87-40<40,1.4,IF(H87-40<45,1.55,"překročena max. délka"))))) -> 0.35 | Q112: Samočistící, černá barva | R112: BYCQ140EGFB | V112: FBA125A | Y112: 245x1400x800 mm | Z112: 46 kg | AA112: 9,5x15,9 mm | AC112: 34/23,5 | AD112: 34/23,5 | AE112: 62 | AG112: 37/32 | AH112: 38/32 | AI112: 50 ~ 150
D113: RZASG71 | F113: =IF(F84-30<10,0.35,IF(F84-30<20,0.7,IF(F84-30<30,1.05,IF(F84-30<40,1.4,IF(F84-30<45,1.4,"překročena max. délka"))))) -> 0.35 | G113: X | H113: X | Q113: Bílý designový | R113: BYCQ140EP | V113: FBA140A | Y113: 245x1400x800 mm | Z113: 46 kg | AA113: 9,5x15,9 mm | AC113: 34/23,5 | AD113: 34/23,5 | AE113: 63 | AG113: 37/33 | AH113: 38/33 | AI113: 51 ~ 150
D114: RZASG100 | F114: =IF(F85-30<10,0.35,IF(F85-30<20,0.7,IF(F85-30<30,1.05,IF(F85-30<40,1.4,IF(F85-30<45,1.4,"překročena max. délka"))))) -> 0.35 | G114: =IF(G85-30<10,0.35,IF(G85-30<20,0.7,IF(G85-30<30,1.05,IF(G85-30<40,1.4,IF(G85-30<45,1.4,"překročena max. délka"))))) -> 0.35 | H114: X | Q114: Černý designový | R114: BYCQ140EPB | V114: FCAG35B | Y114: 204x840x840 mm | Z114: 18 kg | AA114: 6,4x9,5 mm | AC114: 12,5/8,7 | AD114: 12,5/8,7 | AE114: 49 | AF114: 49 | AG114: 31/27 | AH114: 31/27
D115: RZASG125 | F115: =IF(F86-30<10,0.35,IF(F86-30<20,0.7,IF(F86-30<30,1.05,IF(F86-30<40,1.4,IF(F86-30<45,1.4,"překročena max. délka"))))) -> 0.35 | G115: =IF(G86-30<10,0.35,IF(G86-30<20,0.7,IF(G86-30<30,1.05,IF(G86-30<40,1.4,IF(G86-30<45,1.4,"překročena max. délka"))))) -> 0.35 | H115: =IF(H86-30<10,0.35,IF(H86-30<20,0.7,IF(H86-30<30,1.05,IF(H86-30<40,1.4,IF(H86-30<45,1.4,"překročena max. délka"))))) -> 0.35 | V115: FCAG50B | Y115: 204x840x840 mm | Z115: 19 kg | AA115: 6,4x12,7 mm | AC115: 12,6/8,7 | AD115: 12,6/8,7 | AE115: 49 | AF115: 49 | AG115: 31/27 | AH115: 31/27
D116: RZASG140 | F116: =IF(F87-30<10,0.35,IF(F87-30<20,0.7,IF(F87-30<30,1.05,IF(F87-30<40,1.4,IF(F87-30<45,1.4,"překročena max. délka"))))) -> 0.35 | G116: =IF(G87-30<10,0.35,IF(G87-30<20,0.7,IF(G87-30<30,1.05,IF(G87-30<40,1.4,IF(G87-30<45,1.4,"překročena max. délka"))))) -> 0.35 | H116: =IF(H87-30<10,0.35,IF(H87-30<20,0.7,IF(H87-30<30,1.05,IF(H87-30<40,1.4,IF(H87-30<45,1.4,"překročena max. délka"))))) -> 0.35 | V116: FCAG60B | Y116: 204x840x840 mm | Z116: 19 kg | AA116: 6,4x12,7 mm | AC116: 13,6/8,7 | AD116: 13,6/8,7 | AE116: 51 | AF116: 51 | AG116: 33/28 | AH116: 33/28
D117: RZA200 | F117: =IF(F92-30<10,0.45,IF(F92-30<20,0.9,IF(F92-30<30,1.35,IF(F92-30<40,1.8,IF(F92-30<50,2.25,IF(F92-30<60,2.7,IF(F92-30<70,3.15,"překročena max. délka"))))))) -> 0.45 | G117: =IF(G92-30<10,0.45,IF(G92-30<20,0.9,IF(G92-30<30,1.35,IF(G92-30<40,1.8,IF(G92-30<50,2.25,IF(G92-30<60,2.7,IF(G92-30<70,3.15,"překročena max. délka"))))))) -> 0.45 | H117: =IF(H92-30<10,0.45,IF(H92-30<20,0.9,IF(H92-30<30,1.35,IF(H92-30<40,1.8,IF(H92-30<50,2.25,IF(H92-30<60,2.7,IF(H92-30<70,3.15,"překročena max. délka"))))))) -> 0.45 | J117: R1<40/30 | V117: FCAG71B | Y117: 204x840x840 mm | Z117: 21 kg | AA117: 9,5x15,9 mm | AC117: 15,0/9,1 | AD117: 15,0/9,1 | AE117: 49 | AF117: 49 | AG117: 35/28 | AH117: 33/28
D118: RZA250 | F118: =IF(F93-30<10,0.45,IF(F93-30<20,0.9,IF(F93-30<30,1.35,IF(F93-30<40,1.8,IF(F93-30<50,2.25,IF(F93-30<60,2.7,IF(F93-30<70,3.15,"překročena max. délka"))))))) -> 0.45 | G118: =IF(F93-30<10,0.45,IF(F84-30<20,0.9,IF(F84-30<30,1.35,IF(F84-30<40,1.8,IF(F84-30<50,2.25,IF(F84-30<60,2.7,IF(F84-30<70,3.15,"překročena max. délka"))))))) -> 0.45 | H118: =IF(H93-30<10,0.45,IF(H93-30<20,0.9,IF(H93-30<30,1.35,IF(H93-30<40,1.8,IF(H93-30<50,2.25,IF(H93-30<60,2.7,IF(H93-30<70,3.15,"překročena max. délka"))))))) -> 0.45 | V118: FCAG100B | Y118: 246x840x840 mm | Z118: 24 kg | AA118: 9,5x15,9 mm | AC118: 22,8/12,4 | AD118: 22,8/12,4 | AE118: 54 | AF118: 54 | AG118: 37/29 | AH118: 37/29
V119: FCAG125B | Y119: 246x840x840 mm | Z119: 24 kg | AA119: 9,5x15,9 mm | AC119: 26,0/12,4 | AD119: 26,0/12,4 | AE119: 58 | AF119: 58 | AG119: 41/29 | AH119: 41/29
D120: R2 | F120: TWIN | G120: TRIPLE | H120: DoubleTWIN | J120: R2 | L120: TWIN | M120: TRIPLE | N120: DoubleTWIN | V120: FCAG140B | Y120: 246x840x840 mm | Z120: 24 kg | AA120: 9,5x15,9 mm | AC120: 26,0/12,4 | AD120: 26,0/12,4 | AE120: 58 | AF120: 58 | AG120: 41/29 | AH120: 41/29
D121: RZAG71 | F121: =IF($F96<10,0.2,IF($F96<20,0.4,IF($F96<30,0.6,IF($F96<40,0.8,IF($F96<45,1,"překročena max. délka"))))) -> 0.2 | G121: X | H121: X | J121: RZAG71 | L121: =IF(F96+F84-40<0,0,IF(F96+F84-40<10,0.2,IF(F96+F84-40<20,0.4,IF(F96+F84-40<30,0.6,IF(F96+F84-40<40,0.8,IF(F96+F84-40<45,1,"překročena max. délka")))))) -> 0 | M121: X | N121: X | V121: FDA125A | Y121: 300x1400x700 m | Z121: 45 kg | AA121: 9,5x15,9 mm | AC121: 125A | AD121: 39/28 | AE121: 39/28 | AF121: 66 | AG121: 40/33 | AH121: 40/33 | AI121: 50 ~ 200
D122: RZAG100 | F122: =IF(F97<10,0.2,IF(F97<20,0.4,IF(F97<30,0.6,IF(F97<40,0.8,IF(F97<45,1,"překročena max. délka"))))) -> 0.2 | G122: 0.2 | H122: X | J122: RZAG100 | L122: =IF(F97+F85-40<0,0,IF(F97+F85-40<10,0.2,IF(F97+F85-40<20,0.4,IF(F97+F85-40<30,0.6,IF(F97+F85-40<40,0.8,IF(F97+F85-40<45,1,"překročena max. délka")))))) -> 0 | M122: =IF(G97+G85-40<0,0,IF(G97+G85-40<10,0.2,IF(G97+G85-40<20,0.4,IF(G97+G85-40<30,0.6,IF(G97+G85-40<40,0.8,IF(G97+G85-40<45,1,"překročena max. délka")))))) -> 0 | N122: X | V122: FDA200A | Y122: 400x1490x1100 | Z122: 104 kg | AA122: 9,5x19,1 mm | AC122: 200A | AD122: 36/64 | AE122: 36/64 | AF122: 69 | AG122: 43/36 | AH122: 43/36 | AI122: 62 ~ 250
D123: RZAG125 | F123: 0.2 | G123: 0.2 | H123: =IF(H98<10,0.2,IF(H98<20,0.4,IF(H98<30,0.6,IF(H98<40,0.8,IF(H98<45,1,"překročena max. délka"))))) -> 0.2 | J123: RZAG125 | L123: =IF(F98+F86-40<0,0,IF(F98+F86-40<10,0.2,IF(F98+F86-40<20,0.4,IF(F98+F86-40<30,0.6,IF(F98+F86-40<40,0.8,IF(F98+F86-40<45,1,"překročena max. délka")))))) -> 0 | M123: =IF(G98+G86-40<0,0,IF(G98+G86-40<10,0.2,IF(G98+G86-40<20,0.4,IF(G98+G86-40<30,0.6,IF(G98+G86-40<40,0.8,IF(G98+G86-40<45,1,"překročena max. délka")))))) -> 0 | N123: =IF(H98+H86-40<0,0,IF(H98+H86-40<10,0.2,IF(H98+H86-40<20,0.4,IF(H98+H86-40<30,0.6,IF(H98+H86-40<40,0.8,IF(H98+H86-40<45,1,"překročena max. délka")))))) -> 0 | V123: FDA250A | Y123: 400x1490x1100 | Z123: 115 kg | AA123: 9,5x22,5 mm | AC123: 250A | AD123: 43/69 | AE123: 43/69 | AF123: 71 | AG123: 44/37 | AH123: 44/37 | AI123: 63 ~ 250
V124: FDXM25F9 | Y124: 200x750x620 mm | Z124: 31 kg | AA124: 6,4x9,5 mm | AC124: 7,3/8,0/8,7 | AD124: 7,3/8,0/8,7 | AE124: 53 | AF124: 53 | AG124: 27/33/35 | AH124: 27/33/35 | AI124: 30
D125: RZAG140 | F125: =IF(F99<10,0.2,IF(F99<20,0.4,IF(F99<30,0.6,IF(F99<40,0.8,IF(F99<45,1,"překročena max. délka"))))) -> 0.2 | G125: =IF(G99<10,0.2,IF(G99<20,0.4,IF(G99<30,0.6,IF(G99<40,0.8,IF(G99<45,1,"překročena max. délka"))))) -> 0.2 | H125: =IF(H99<10,0.2,IF(H99<20,0.4,IF(H99<30,0.6,IF(H99<40,0.8,IF(H99<45,1,"překročena max. délka"))))) -> 0.2 | J125: RZAG140 | L125: =IF(F99+F87-40<0,0,IF(F99+F87-40<10,0.2,IF(F99+F87-40<20,0.4,IF(F99+F87-40<30,0.6,IF(F99+F87-40<40,0.8,IF(F99+F87-40<45,1,"překročena max. délka")))))) -> 0 | M125: =IF(G99+G87-40<0,0,IF(G99+G87-40<10,0.2,IF(G99+G87-40<20,0.4,IF(G99+G87-40<30,0.6,IF(G99+G87-40<40,0.8,IF(G99+G87-40<45,1,"překročena max. délka")))))) -> 0 | N125: =IF(H99+H87-40<0,0,IF(H99+H87-40<10,0.2,IF(H99+H87-40<20,0.4,IF(H99+H87-40<30,0.6,IF(H99+H87-40<40,0.8,IF(H99+H87-40<45,1,"překročena max. délka")))))) -> 0 | V125: FDXM35F9 | Y125: 200x750x620 mm | Z125: 32 kg | AA125: 6,4x9,5 mm | AC125: 7,3/8,0/8,7 | AD125: 7,3/8,0/8,7 | AE125: 53 | AF125: 53 | AG125: 27/33/35 | AH125: 27/33/35 | AI125: 31
D126: RZASG71 | F126: =IF(F100<10,0.2,IF(F100<20,0.4,IF(F100<30,0.6,IF(F100<40,0.8,IF(F100<45,1,"překročena max. délka"))))) -> 0.2 | G126: X | H126: X | J126: RZASG71 | L126: =IF(F100+F88-30<0,0,IF(F100+F88-30<10,0.2,IF(F100+F88-30<20,0.4,IF(F100+F88-30<30,0.6,IF(F100+F88-30<40,0.8,IF(F100+F88-30<45,1,"překročena max. délka")))))) -> 0 | M126: X | N126: X | V126: FDXM50F9 | Y126: 200x1150x62 0mm | Z126: 50 kg | AA126: 6,4x12,7 mm | AC126: 13,3/14,6/15,8 | AD126: 13,3/14,6/15,8 | AE126: 55 | AF126: 55 | AG126: 30/35/38 | AH126: 30/35/38 | AI126: 40
D127: RZASG100 | F127: =IF(F101<10,0.2,IF(F101<20,0.4,IF(F101<30,0.6,IF(F101<40,0.8,IF(F101<45,1,"překročena max. délka"))))) -> 0.2 | G127: =IF(G101<10,0.2,IF(G101<20,0.4,IF(G101<30,0.6,IF(G101<40,0.8,IF(G101<45,1,"překročena max. délka"))))) -> 0.2 | H127: X | J127: RZASG100 | L127: =IF(F101+F89-30<0,0,IF(F101+F89-30<10,0.2,IF(F101+F89-30<20,0.4,IF(F101+F89-30<30,0.6,IF(F101+F89-30<40,0.8,IF(F101+F89-30<45,1,"překročena max. délka")))))) -> 0 | M127: =IF(G101+G89-30<0,0,IF(G101+G89-30<10,0.2,IF(G101+G89-30<20,0.4,IF(G101+G89-30<30,0.6,IF(G101+G89-30<40,0.8,IF(G101+G89-30<45,1,"překročena max. délka")))))) -> 0 | N127: X | V127: FDXM60F9 | Y127: 200x1150x62 0mm | Z127: 50 kg | AA127: 6,4x12,7 mm | AC127: 13,5/14,8/16,0 | AD127: 13,5/14,8/16,0 | AE127: 56 | AF127: 56 | AG127: 30/35/38 | AH127: 30/35/38 | AI127: 41
V128: FFA25A9 | Y128: 260x575x575 mm | Z128: 16 kg | AA128: 6,4x9,5 mm | AC128: 9/6,5 | AD128: 9/6,5 | AE128: 48 | AG128: 31/25 | AH128: 31/25
D129: RZASG125 | F129: =IF(F102<10,0.2,IF(F102<20,0.4,IF(F102<30,0.6,IF(F102<40,0.8,IF(F102<45,1,"překročena max. délka"))))) -> 0.2 | G129: 0.2 | H129: 0.2 | J129: RZASG125 | L129: =IF(F102+F90-30<0,0,IF(F102+F90-30<10,0.2,IF(F102+F90-30<20,0.4,IF(F102+F90-30<30,0.6,IF(F102+F90-30<40,0.8,IF(F102+F90-30<45,1,"překročena max. délka")))))) -> 0 | M129: 0 | N129: 0 | V129: FFA35A9 | Y129: 260x575x575 mm | Z129: 16 kg | AA129: 6,4x9,5 mm | AC129: 10/6,5 | AD129: 10/6,5 | AE129: 51 | AG129: 34/25 | AH129: 34/25
D130: RZASG140 | F130: 0.2 | G130: 0.2 | H130: 0.2 | J130: RZASG140 | L130: 0 | M130: 0 | N130: 0 | V130: FFA50A9 | Y130: 260x575x575 mm | Z130: 17,5 kg | AA130: 6,4x12,7 mm | AC130: 12/7,5 | AD130: 12/7,5 | AE130: 56 | AG130: 39/27 | AH130: 39/27
D131: RZA200 | F131: =IF(F104<10,0.2,IF(F104<20,0.4,IF(F104<30,0.6,IF(F104<40,0.8,IF(F104<50,1,IF(F104<60,1.2,IF(F104<70,1.4,"překročena max. délka"))))))) -> 0.2 | G131: 0.2 | H131: 0.2 | J131: RZA200 | L131: =IF(F104+F92-30<0,0,IF(F104<10,0.2,IF(F104<20,0.4,IF(F104<30,0.6,IF(F104<40,0.8,IF(F104<50,1,IF(F104<60,1.2,IF(F104<70,1.4,"překročena max. délka")))))))) -> 0 | M131: =IF(G104+G92-30<0,0,IF(G104+G92-30<10,0.2,IF(G104+G92-30<20,0.4,IF(G104+G92-30<30,0.6,IF(G104+G92-30<40,0.8,IF(G104+G92-30<50,1,IF(G104+G92-30<60,1.2,IF(G104+G92-30<70,1.4,"překročena max. délka")))))))) -> 0 | N131: =IF(H104+H92-30<0,0,IF(H104+H92-30<10,0.2,IF(H104+H92-30<20,0.4,IF(H104+H92-30<30,0.6,IF(H104+H92-30<40,0.8,IF(H104+H92-30<50,1,IF(H104+H92-30<60,1.2,IF(H104+H92-30<70,1.4,"překročena max. délka")))))))) -> 0 | V131: FFA60A9 | Y131: 260x575x575 mm | Z131: 17,5 kg | AA131: 6,4x12,7 mm | AC131: 14,5/9,5 | AD131: 14,5/9,5 | AE131: 60 | AG131: 43/32 | AH131: 43/32
D132: RZA250 | F132: 0.2 | G132: 0.2 | H132: 0.2 | J132: RZA250 | L132: =IF(F105+F93-30<0,0,IF(F105<10,0.2,IF(F105<20,0.4,IF(F105<30,0.6,IF(F105<40,0.8,IF(F105<50,1,IF(F105<60,1.2,IF(F105<70,1.4,"překročena max. délka")))))))) -> 0 | M132: =IF(G105+G93-30<0,0,IF(G105+G93-30<10,0.2,IF(G105+G93-30<20,0.4,IF(G105+G93-30<30,0.6,IF(G105+G93-30<40,0.8,IF(G105+G93-30<50,1,IF(G105+G93-30<60,1.2,IF(G105+G93-30<70,1.4,"překročena max. délka")))))))) -> 0 | N132: =IF(H105+H93-30<0,0,IF(H105+H93-30<10,0.2,IF(H105+H93-30<20,0.4,IF(H105+H93-30<30,0.6,IF(H105+H93-30<40,0.8,IF(H105+H93-30<50,1,IF(H105+H93-30<60,1.2,IF(H105+H93-30<70,1.4,"překročena max. délka")))))))) -> 0 | V132: FHA35A9 | Y132: 235x960x690 mm | Z132: 24 kg | AA132: 6,4x9,5 mm | AC132: 14/10 | AD132: 14/10 | AE132: 53 | AF132: 53 | AG132: 36/31 | AH132: 36/31
V133: FHA50A9 | Y133: 235x960x690 mm | Z133: 25 kg | AA133: 6,4x12,7 mm | AC133: 15/10 | AD133: 15/10 | AE133: 54 | AF133: 54 | AG133: 37/32 | AH133: 37/32
V134: FHA60A9 | Y134: 235x1270x690 mm | Z134: 31 kg | AA134: 6,4x12,7 mm | AC134: 19,5/11,5 | AD134: 19,5/11,5 | AE134: 54 | AF134: 54 | AG134: 37/33 | AH134: 37/33
V135: FHA71A9 | Y135: 235x1270x690 mm | Z135: 32 kg | AA135: 9,5x15,9 mm | AC135: 20,5/14 | AD135: 20,5/14 | AE135: 55 | AF135: 55 | AG135: 38/34 | AH135: 38/34
V136: FHA100A | Y136: 235x1590x690 mm | Z136: 38 kg | AA136: 9,5x15,9 mm | AC136: 28/20 | AD136: 28/20 | AE136: 60 | AF136: 60 | AG136: 42/34 | AH136: 42/34
V137: FHA125A | Y137: 235x1590x690 mm | Z137: 38 kg | AA137: 9,5x15,9 mm | AC137: 31/23 | AD137: 31/23 | AE137: 62 | AF137: 62 | AG137: 44/37 | AH137: 44/37
J138: Typ | K138: Počet | L138: Popis | O138: Cena /jednotka | P138: Cena celkem | V138: FHA140A | Y138: 235x1590x690 mm | Z138: 38 kg | AA138: 9,5x15,9 mm | AC138: 34/24 | AD138: 34/24 | AE138: 64 | AF138: 64 | AG138: 46/38 | AH138: 46/38
V139: FNA25A9 | Y139: 620x790x200 mm | Z139: 23 kg | AA139: 6,4x9,5 mm | AC139: 8,7/7,3 | AD139: 8,7/7,3 | AE139: 48/30 | AF139: 53 | AG139: 33/28 | AH139: 33/28
R140: =IFERROR(INDEX(I$141:I$152,SMALL(IF(I$141:I$152<>"",ROW(I$141:I$152)-ROW(I$141)+1),ROWS(J$141:J141))),"") -> CE.HEADER | S140: =IFERROR(INDEX(J$141:J$152,SMALL(IF(J$141:J$152<>"",ROW(J$141:J$152)-ROW(J$141)+1),ROWS(K$141:K141))),"") -> CE.HEADER | V140: FNA35A9 | Y140: 620x790x200 mm | Z140: 23 kg | AA140: 6,4x9,5 mm | AC140: 8,7/7,3 | AD140: 8,7/7,3 | AE140: 48/31 | AF140: 54 | AG140: 33/28 | AH140: 33/28
I141: =J141 -> CE.HEADER | J141: CE.HEADER | K141: 1 | L141: 12C.001 Chlazení místností | O141: 0 | R141: =IFERROR(INDEX(I$141:I$155,SMALL(IF(I$141:I$155<>"",ROW(I$141:I$155)-ROW(I$141)+1),ROWS(J$141:J142))),"") -> RXM50A | S141: =VLOOKUP(R141,$J$141:$K$155,2,FALSE) -> 1 | V141: FNA50A9 | Y141: 620x1150x200 mm | Z141: 30 kg | AA141: 6,4x12,7 mm | AC141: 16,0/13,5 | AD141: 16,0/13,5 | AE141: 49/40 | AF141: 56 | AG141: 36/30 | AH141: 36/30
I142: =J142 -> RXM50A | J142: =I4 -> RXM50A | K142: 1 | L142: =IF(K142="","",VLOOKUP(J142,Ceník!$A$1:$C$9981,3,FALSE)) -> Split venkovní jednotka | O142: =IF(K142>0,VLOOKUP(J142,Ceník!$A$1:$C$9981,2,FALSE),"") -> 46511 | P142: =J51*N51 -> 46511 | R142: =IFERROR(INDEX(I$141:I$155,SMALL(IF(I$141:I$155<>"",ROW(I$141:I$155)-ROW(I$141)+1),ROWS(J$141:J143))),"") -> FTXM50A | S142: =VLOOKUP(R142,$J$141:$K$155,2,FALSE) -> 1 | V142: FNA60A9 | Y142: 620x1150x200 mm | Z142: 30 kg | AA142: 6,4x12,7 mm | AC142: 16,0/13,5 | AD142: 16,0/13,5 | AE142: 49/41 | AF142: 57 | AG142: 36/30 | AH142: 36/30
I143: FTXM50A | J143: FTXM50A | K143: 1 | L143: =IF(K143>0,VLOOKUP(J143,Ceník!$A$1:$C$9981,3,FALSE),"") -> SPLIT PERFERA nástěnná jednotka | O143: =IF(K143>0,VLOOKUP(J143,Ceník!$A$1:$C$9981,2,FALSE),"") -> 28479 | P143: =K143*O143 -> 28479 | R143: =IFERROR(INDEX(I$141:I$155,SMALL(IF(I$141:I$155<>"",ROW(I$141:I$155)-ROW(I$141)+1),ROWS(J$141:J144))),"") -> EKRS21 | S143: 1 | V143: FUA71A | Y143: 198x950x950 mm | Z143: 25 kg | AA143: 9,5x15,9 mm | AC143: 23/16 | AD143: 23/16 | AE143: 59 | AF143: 59 | AG143: 41/35 | AH143: 41/35
I144: =IF("KHR"=LEFT(C23,3),J144,"") ->  | J144: 0 | K144: 0 | L144: =IF(C7="Split","",IF(J53>0,IF(J53>0,VLOOKUP(I53,Ceník!$A$1:$C$9981,3,FALSE),""))) ->  | O144: =IF(C7="Split","",IF(J53>0,VLOOKUP(I53,Ceník!$A$1:$C$9981,2,FALSE),"")) ->  | P144: =IF(C7="Split","",J53*N53) ->  | R144: =IFERROR(INDEX(I$141:I$155,SMALL(IF(I$141:I$155<>"",ROW(I$141:I$155)-ROW(I$141)+1),ROWS(J$141:J145))),"") -> RTD-RA | S144: 1 | V144: FUA100A | Y144: 198x950x950 mm | Z144: 26 kg | AA144: 9,5x15,9 mm | AC144: 31/20 | AD144: 31/20 | AE144: 64 | AF144: 64 | AG144: 46/39 | AH144: 46/39
I145: =J145 ->  | J145: =IF(I7=Q69,"",I7) ->  | K145: =J7 -> 1 | L145: =IF(I7<>Q69,VLOOKUP(J145,Ceník!$A$1:$C$9981,3,FALSE),"") ->  | O145: =IF(I7<>Q69,VLOOKUP(I54,Ceník!$A$1:$C$9981,2,FALSE),"") -> 7837 | P145: =IF(I7<>Q69,J54*N54,"") -> 7837 | R145: =IFERROR(INDEX(I$141:I$155,SMALL(IF(I$141:I$155<>"",ROW(I$141:I$155)-ROW(I$141)+1),ROWS(J$141:J146))),"") ->  | S145: 1 | V145: FUA125A | Y145: 198x950x950 mm | Z145: 26 kg | AA145: 9,5x15,9 mm | AC145: 32,5/20,5 | AD145: 32,5/20,5 | AE145: 65 | AF145: 65 | AG145: 47/40 | AH145: 47/40
J146: =I8 ->  | K146: =J8 ->  | L146: =IF(K146="","",VLOOKUP(J146,Ceník!$A$1:$C$9981,3,FALSE)) ->  | O146: =IF(K146="","",VLOOKUP(J146,Ceník!$A$1:$C$9981,2,FALSE)) ->  | P146: =IF(K146="","",K146*O146) ->  | R146: =IFERROR(INDEX(I$141:I$155,SMALL(IF(I$141:I$155<>"",ROW(I$141:I$155)-ROW(I$141)+1),ROWS(J$141:J147))),"") ->  | S146: 1 | V146: FVA71A | Y146: 1850x600x270 mm | Z146: 42 kg | AA146: 9,5x15,9 mm | AC146: 18/14 | AD146: 18/14 | AE146: 55 | AF146: 55 | AG146: 43/38 | AH146: 43/38
J147: =I9 ->  | K147: =J9 ->  | L147: =IF(C8="kabelový","",IF(J56="","",VLOOKUP(I56,Ceník!$A$1:$C$9981,3,FALSE))) ->  | O147: =IF(C8="kabelový","",IF(J56="","",VLOOKUP(I56,Ceník!$A$1:$C$9981,2,FALSE))) ->  | P147: =IF(C8="kabelový","",IF(K147="","",K147*O147)) ->  | R147: =IFERROR(INDEX(I$141:I$155,SMALL(IF(I$141:I$155<>"",ROW(I$141:I$155)-ROW(I$141)+1),ROWS(J$141:J148))),"") ->  | S147: 1 | V147: FVA100A | Y147: 1850x600x350 mm | Z147: 50 kg | AA147: 9,5x15,9 mm | AC147: 28/22 | AD147: 28/22 | AE147: 62 | AF147: 62 | AG147: 50/44 | AH147: 50/44
J148: =I10 ->  | K148: =J10 ->  | L148: =IF(K148="","",VLOOKUP(J148,Ceník!$A$1:$C$9981,3,FALSE)) ->  | O148: =IF(K148="","",VLOOKUP(J148,Ceník!$A$1:$C$9981,2,FALSE)) ->  | P148: =IF(K148="","",K148*O148) ->  | R148: =IFERROR(INDEX(I$141:I$155,SMALL(IF(I$141:I$155<>"",ROW(I$141:I$155)-ROW(I$141)+1),ROWS(J$141:J149))),"") ->  | S148: 1 | V148: FVA125A | Y148: 1850x600x350 mm | Z148: 50 kg | AA148: 9,5x15,9 mm | AC148: 28/24 | AD148: 28/24 | AE148: 63 | AF148: 63 | AG148: 51/46 | AH148: 51/46
I149: EKRS21 | J149: =IF(OR(AND(VLOOKUP(I22,N27:S43,6,FALSE)="EKRS21",C8="kabelový",VLOOKUP(I22,N27:S43,6,FALSE)="EKRS21"),AND(VLOOKUP(I22,N27:S43,6,FALSE)="EKRS21",C8="Infra",VLOOKUP(I22,N27:S43,6,FALSE)="EKRS21",C12="Ano"),C15="KRP928A2S"),"EKRS21","") -> EKRS21 | K149: =IF(OR(AND(VLOOKUP(I22,N27:S43,6,FALSE)="EKRS21",C8="kabelový",VLOOKUP(I22,N27:S43,6,FALSE)="EKRS21"),AND(VLOOKUP(I22,N27:S43,6,FALSE)="EKRS21",C8="Infra",VLOOKUP(I22,N27:S43,6,FALSE)="EKRS21",C12="Ano"),C15="KRP928A2S"),J11,"") -> 1 | L149: =IF(K149="","",VLOOKUP(J149,Ceník!$A$1:$C$9981,3,FALSE)) -> redukce S21 pro Stylish IDU | O149: =IF(K149="","",VLOOKUP(J149,Ceník!$A$1:$C$9981,2,FALSE)) -> 474 | P149: =IF(K149="","",K149*O149) -> 474 | R149: =IFERROR(INDEX(I$141:I$155,SMALL(IF(I$141:I$155<>"",ROW(I$141:I$155)-ROW(I$141)+1),ROWS(J$141:J150))),"") ->  | S149: 1 | V149: FVA140A | Y149: 1850x600x350 mm | Z149: 50 kg | AA149: 9,5x15,9 mm | AC149: 30/26 | AD149: 30/26 | AE149: 65 | AF149: 65 | AG149: 53/48 | AH149: 53/48
R150: =IFERROR(INDEX(I$141:I$155,SMALL(IF(I$141:I$155<>"",ROW(I$141:I$155)-ROW(I$141)+1),ROWS(J$141:J151))),"") ->  | V150: FTXM20A | Y150: 295x778x272 mm | Z150: 10 kg | AA150: 6,4x9,5 mm | AC150: 4,3/5,7/7,5/10,6 | AD150: 5,1/6,2/8,2/9,4 | AE150: 58 | AF150: 54 | AG150: 19/25/33/42 | AH150: 20/26/34/40
V151: FTXM25A | Y151: 295x778x272 mm | Z151: 10 kg | AA151: 6,4x9,5 mm | AC151: 4,1/5,7/7,6/10,5 | AD151: 4,9/6,3/8,0/9,8 | AF151: 54 | AG151: 19/25/33/43 | AH151: 20/27/34/39
I152: RTD-RA | J152: =IF(C13="","",C13) -> RTD-RA | K152: =IF(E13="","",E13) -> 1 | L152: =IF(K152="","",VLOOKUP(J152,Ceník!$A$1:$C$9981,3,FALSE)) -> adaptér Modbus RTD-RA | O152: =IF(K152="","",VLOOKUP(J152,Ceník!$A$1:$C$9981,2,FALSE)) -> 7837 | P152: =IF(K152="","",K152*O152) -> 7837 | R152: =IFERROR(INDEX(I$141:I$155,SMALL(IF(I$141:I$154<>"",ROW(I$141:I$154)-ROW(I$141)+1),ROWS(J$141:J154))),"") ->  | S152: =VLOOKUP(R152,$J$141:$K$155,2,FALSE) -> 1 | V152: FTXM35A | Y152: 295x778x272 mm | Z152: 10 kg | AA152: 6,4x9,5 mm | AC152: 4,2/6,0/7,8/11,3 | AD152: 4,9/6,5/8,5/9,8 | AE152: 58 | AF152: 54 | AG152: 19/29/33/45 | AH152: 20/28/35/39
V153: FTXM42A | Y153: 295x778x272 mm | Z153: 10 kg | AA153: 6,4x9,5 mm | AC153: 4,3/6,5/9,0/11,9 | AD153: 4,9/6,5/9,7/12,4 | AE153: 60 | AF153: 60 | AG153: 21/30/39/45 | AH153: 21/29/39/45
I154: =J154 ->  | J154: =IF(C15="","",C15) ->  | K154: =IF(E15="","",E15) -> 1 | L154: =IF(K154="","",VLOOKUP(J154,Ceník!$A$1:$C$9981,3,FALSE)) ->  | O154: =IF(K154="","",VLOOKUP(J154,Ceník!$A$1:$C$9981,2,FALSE)) ->  | P154: =IF(K154="","",K154*O154) ->  | R154: =IFERROR(INDEX(I$141:I$155,SMALL(IF(I$141:I$154<>"",ROW(I$141:I$154)-ROW(I$141)+1),ROWS(J$141:J155))),"") ->  | S154: 1 | V154: FTXM50A | Y154: 299x998x292 mm | Z154: 14,5 kg | AA154: 6,4x12,7 mm | AC154: 8,3/11,4/14/15,8 | AD154: 10,5/12,0/14,2/15,8 | AE154: 58 | AF154: 58 | AG154: 27/36/40/44 | AH154: 31/34/39/43
I155: =J155 ->  | J155: =IF(B63=0,"",B63) ->  | K155: =IF(C63=0,"",C63) ->  | L155: =IF(K155="","",VLOOKUP(J155,Ceník!$A$1:$C$9981,3,FALSE)) ->  | O155: =IF(K155="","",VLOOKUP(J155,Ceník!$A$1:$C$9981,2,FALSE)) ->  | S155: 0 | V155: FTXM60A | Y155: 299x998x292 mm | Z155: 14,5 kg | AA155: 6,4x12,7 mm | AC155: 9,1/11,8/14/16,7 | AD155: 11,1/12,4/15,2/16,5 | AE155: 60 | AF155: 59 | AG155: 30/37/42/46 | AH155: 33/36/41/45
V156: FTXJ20AW | Y156: 552x840x350 | Z156: 33 kg | AA156: 6,4x9,5 mm
V159: FTXJ25AW | Y159: 305x900x212 | Z159: 12 kg | AA159: 6,4x9,5 mm
V162: FTXJ35AW | Y162: 305x900x212 | Z162: 12 kg | AA162: 6,4x9,5 mm
V165: FTXJ42AW | Y165: 305x900x212 | Z165: 12 kg | AA165: 6,4x12,7 mm
V168: FTXJ50AW | Y168: 305x900x212 | Z168: 12 kg | AA168: 6,4x12,7 mm
V171: FTXM71A | Y171: 299x998x292 mm | Z171: 14,5 kg | AA171: 6,4x15,9 mm
J172: Projektová cena celkem | P172: =SUM(P142:P155) ->  | V172: BYCQ140E | Y172: 50x950x950 mm | Z172: 5,4 kg
J173: L1 | K173: L2, L3,L4 TWIN, TRIPPLE | L173: L2 L3 DoubleTWIN | M173: L4,L5,L6,L7 DoubleTWIN | V173: BYFQ60CW | Y173: 46x620x620 mm | Z173: 2,8 kg
V174: BYCQ140EW | Y174: 50x950x950 mm | Z174: 5,4 kg
V175: BYCQ140EB | Y175: 50x950x950 mm | Z175: 5,4 kg
V176: BYCQ140EGF | Y176: 130x950x950 mm | Z176: 10,3 kg
P177: =CONCATENATE(K179, CHAR(10),K180, CHAR(10),K181, CHAR(10),K182, CHAR(10),K183, CHAR(10),K184, CHAR(10),K185, CHAR(10),K186, CHAR(10),K187, CHAR(10),K189, CHAR(10),K191, CHAR(10),K192, CHAR(10),K194, CHAR(10),K195, CHAR(10),K196, CHAR(10),K197, CHAR(10),K198, CHAR(10),K199, CHAR(10),K200) ->  | V177: BYCQ140EGFB | Y177: 130x950x950 mm | Z177: 10,3 kg
V178: BYCQ140EP | Y178: 50x950x950 mm | Z178: 5,4 kg
H179: Jmenovité technické údaje: | K179: Jmenovité technické údaje: | V179: BYCQ140EPB | Y179: 50x950x950 mm | Z179: 5,4 kg
A180: Chladicí výkon: | C180: kW | H180: Chladicí výkon: 5.6kW | K180: =CONCATENATE($A180,D25,$C180) -> Chladicí výkon: 5 kW
A181: Topný výkon: | H181: Topný výkon:6.3kW | K181: =CONCATENATE($A181,D26,$C181) -> Topný výkon: 1,7/5,8/7,7
A182: Příkon chlazení: | H182: Příkon: 92W | K182: =CONCATENATE($A182,D27,$C182) -> Příkon chlazení: 1,36
A183: Příkon topení: | K183: =CONCATENATE($A183,D28,$C183) -> Příkon topení: 1,45
A184: Průtok vzduchu ventilátorem chlazení (min / střed / max): | C184: m³/min | H184: Průtok vzduchu ventilátorem (min / střed / max): 10 / 12.5 / 14.5 m3/min | K184: =CONCATENATE($A184,VLOOKUP(I5,V98:AI142,8,FALSE),$C184) -> 
A185: Průtok vzduchu ventilátorem chlazení (min / střed / max): | C185: m³/min | K185: =CONCATENATE($A185,VLOOKUP($I$5,V99:AI143,9,FALSE),$C185) -> 
A186: Vhodné pro chladivo: | H186: Vhodné pro chladivo: R410a | K186: =CONCATENATE($A186,$C$3,$C186) -> Vhodné pro chladivo:R32
A187: Rozměry jednotky (V x Š x H): | H187: Rozměry jednotky (V x Š x H): 260 x 575 x 575 mm | K187: =CONCATENATE($A187,Q5,$C187) -> Rozměry jednotky (V x Š x H): 299x998x292 mm
A188: =IF(R8<>"","Rozměry dekoračního panelu (V x Š x H): ","") ->  | H188: Rozměry dekoračního panelu (V x Š x H): 46 x 620 x 620 mm | K188: =CONCATENATE($A188,Q8,$C188) -> 
A189: Jednotková hmotnost: | H189: Jednotková hmotnost: 18.5 kg | K189: =CONCATENATE($A189,R5,$C189) -> Jednotková hmotnost: 14,5 kg
A190: =IF(R8<>"","Hmotnost dekorativního panelu: ","") ->  | H190: Hmotnost dekorativního panelu: 2.8 kg | K190: =CONCATENATE($A190,R8,$C190) -> 
A191: Akustický výkon chlazení: | C191: dB(A) | H191: Zvukový výkon: 60 dB(A) (po ISO 3744) | K191: =CONCATENATE($A191,,VLOOKUP(I5,V98:AI156,10,FALSE),$C191) -> Akustický výkon chlazení: 58 dB(A)
A192: Akustický výkon topení: | C192: dB(A) | K192: =CONCATENATE($A192,,VLOOKUP($I$5,$V$98:$AI$143,11,FALSE),$C192) -> 
A194: Akustický tlak chlazení (min/střed/max)**: | C194: dB(A) | H194: Akustický tlak (min/střed/max)**: 33 / 40 / 43 dB(A) | K194: =CONCATENATE($A194,,VLOOKUP($I$5,$V$98:$AI$143,12,FALSE),$C194) -> 
A195: Akustický tlak topení (min/střed/max)**: | C195: dB(A) | H195: ** 1,5m od jednotky in 1,5m od podlahy | K195: =CONCATENATE($A195,,VLOOKUP($I$5,$V$98:$AI$143,13,FALSE),$C195) -> 
H196: ** 1,5m od jednotky in 1,5m od podlahy | K196: =H196 -> ** 1,5m od jednotky in 1,5m od podlahy
A197: Pruměr připojovacího potrubí: Cu | H197: Pruměr připojovacího potrubí: Cu 6.35/12.70 mm | K197: =CONCATENATE($A197,S5,$C197) -> Pruměr připojovacího potrubí: Cu 6,4x12,7 mm
H198: Popis: | K198: =H198 -> Popis:
H199: Výrobce: DAIKIN | K199: =H199 -> Výrobce: DAIKIN
A200: Tip: | C200: =I152 -> RTD-RA | H200: Tip: FXZQ50A | K200: =CONCATENATE($A200,$I$5) -> Tip: FTXM50A
P201: =CONCATENATE(K203,CHAR(10),K204,CHAR(10),K205,CHAR(10),K206,CHAR(10),K207,CHAR(10),K208,CHAR(10),K209,CHAR(10),K210,CHAR(10),K211,CHAR(10),K212,CHAR(10),K214,CHAR(10),K215,CHAR(10),K213,CHAR(10),K216,CHAR(10),K218,CHAR(10),K220,CHAR(10),K222,CHAR(10),K223,CHAR(10),K225,CHAR(10),K226,CHAR(10),K227,CHAR(10),K228,CHAR(10),K229) -> Jmenovité technické údaje: Chladicí výkon: 5 Topný výkon: 1,7/5,8/7,7 Příkon chlazení: 1,36 Příkon topení: 1,36 Ener. štítek chlazení: SEER: Ener. štítek vytápění: SCOP: Maximální proud pojistky (MFA): 16A Provozní rozsah - chlazení: Provozní rozsah - topení: Napájení systému: 230V Vhodné pro chladivo:R32 Rozměry jednotky (V x Š x H): 734x954x401 mm Jednotková hmotnost: 49 kg Akustický výkon: 63 (Chl) 62 (Top) Akustický tlak: 49 (Chl) 49 (Top) ** 1,5m od jednotky in 1,5m od podlahy Pruměr připojovacího potrubí: Cu 6,35 x 12,7 mm Popis: Výrobce: DAIKIN Tip: RXM50A
H203: Jmenovité technické údaje: | K203: Jmenovité technické údaje: | L203: Kondenzační jednotka split vybavena invertním swing kompresorem
A204: Chladicí výkon: | H204: Chladicí výkon: 5.6kW | K204: =CONCATENATE($A204,D25,$C204) -> Chladicí výkon: 5
A205: Topný výkon: | H205: Topný výkon:6.3kW | K205: =CONCATENATE($A205,D26,$C205) -> Topný výkon: 1,7/5,8/7,7
A206: Příkon chlazení: | H206: Příkon: 92W | K206: =CONCATENATE($A206,D27,$C206) -> Příkon chlazení: 1,36
A207: Příkon topení: | K207: =CONCATENATE($A207,D27,$C207) -> Příkon topení: 1,36
A208: Ener. štítek chlazení: | H208: Průtok vzduchu ventilátorem (min / střed / max): 10 / 12.5 / 14.5 m3/min | K208: =CONCATENATE($A208,I16) -> Ener. štítek chlazení:
A209: SEER: | K209: =CONCATENATE($A209,I17) -> SEER:
A210: Ener. štítek vytápění: | K210: =CONCATENATE($A210,I18) -> Ener. štítek vytápění:
A211: SCOP: | K211: =CONCATENATE($A211,I19) -> SCOP:
A212: Maximální proud pojistky (MFA): | K212: =CONCATENATE($A212,P4) -> Maximální proud pojistky (MFA): 16A
A213: Napájení systému: | K213: =CONCATENATE($A213,C5) -> Napájení systému: 230V
A214: Provozní rozsah - chlazení: | D214: -20~24 | K214: =CONCATENATE($A214,K16) -> Provozní rozsah - chlazení:
A215: Provozní rozsah - topení: | D215: -10~50 | K215: =CONCATENATE($A215,K17) -> Provozní rozsah - topení:
A216: Vhodné pro chladivo: | H216: Vhodné pro chladivo: R410a | K216: =CONCATENATE($A216,$C$3,$C216) -> Vhodné pro chladivo:R32
A217: Množství chladiva ve venkovní jednotce:
A218: Rozměry jednotky (V x Š x H): | H218: Rozměry jednotky (V x Š x H): 260 x 575 x 575 mm | K218: =CONCATENATE($A218,Q4,$C218) -> Rozměry jednotky (V x Š x H): 734x954x401 mm
H219: Rozměry dekoračního panelu (V x Š x H): 46 x 620 x 620 mm | K219: =CONCATENATE($A219,K202,$C219) -> 
A220: Jednotková hmotnost: | H220: Jednotková hmotnost: 18.5 kg | K220: =CONCATENATE($A220,R4) -> Jednotková hmotnost: 49 kg
H221: Hmotnost dekorativního panelu: 2.8 kg | K221: =CONCATENATE($A221,K202,$C221) -> 
A222: Akustický výkon: | C222: =J190 -> 0 | H222: Zvukový výkon: 60 dB(A) (po ISO 3744) | K222: =CONCATENATE($A222,V4) -> Akustický výkon: 63 (Chl) 62 (Top)
A223: Akustický tlak: | C223: =J191 -> 0 | K223: =CONCATENATE($A223,W4) -> Akustický tlak: 49 (Chl) 49 (Top)
... 5 more rows

Sheet Kapacita (hidden)
B1: productFamily= | C1: ; | D1: series= | E1: outdoorUnit= | F1: AttributeIds= Mode * | G1: Peak/Integrated *
A2: RXYQ8U | B2: 1 | C2: 1 | D2: 536871373 | E2: 536871610 | F2: 1 | G2: 2 | H2: 3 | I2: 6 | J2: 8 | K2: Heating | L2: Integrated | M2: VRV%20VRT
A3: RXYQ10U | B3: 1 | C3: 1 | D3: 536871373 | E3: 536871611 | F3: 1 | G3: 2 | H3: 3 | I3: 6 | J3: 8 | K3: Heating | L3: Integrated | M3: VRV%20VRT
A4: RXYQ12U | B4: 1 | C4: 1 | D4: 536871373 | E4: 536871612 | F4: 1 | G4: 2 | H4: 3 | I4: 6 | J4: 8 | K4: Heating | L4: Integrated | M4: VRV%20VRT
A5: RXYQ14U | B5: 1 | C5: 1 | D5: 536871373 | E5: 536871613 | F5: 1 | G5: 2 | H5: 3 | I5: 6 | J5: 8 | K5: Heating | L5: Integrated | M5: VRV%20VRT
A6: RXYQ16U | B6: 1 | C6: 1 | D6: 536871373 | E6: 536871614 | F6: 1 | G6: 2 | H6: 3 | I6: 6 | J6: 8 | K6: Heating | L6: Integrated | M6: VRV%20VRT
A7: RXYQ18U | B7: 1 | C7: 1 | D7: 536871373 | E7: 536871616 | F7: 1 | G7: 2 | H7: 3 | I7: 6 | J7: 8 | K7: Heating | L7: Integrated | M7: VRV%20VRT
A8: RXYQ20U | B8: 1 | C8: 1 | D8: 536871373 | E8: 536871618 | F8: 1 | G8: 2 | H8: 3 | I8: 6 | J8: 8 | K8: Heating | L8: Integrated | M8: VRV%20VRT
A9: RXYQ22U | B9: 1 | C9: 1 | D9: 536871373 | E9: 536871621 | F9: 1 | G9: 2 | H9: 3 | I9: 6 | J9: 8 | K9: Heating | L9: Integrated | M9: VRV%20VRT
A10: RXYQ24U | B10: 1 | C10: 1 | D10: 536871373 | E10: 536871625 | F10: 1 | G10: 2 | H10: 3 | I10: 6 | J10: 8 | K10: Heating | L10: Integrated | M10: VRV%20VRT
A11: RXYQ26U | B11: 1 | C11: 1 | D11: 536871373 | E11: 536871628 | F11: 1 | G11: 2 | H11: 3 | I11: 6 | J11: 8 | K11: Heating | L11: Integrated | M11: VRV%20VRT
A12: RXYQ28U | B12: 1 | C12: 1 | D12: 536871373 | E12: 536871632 | F12: 1 | G12: 2 | H12: 3 | I12: 6 | J12: 8 | K12: Heating | L12: Integrated | M12: VRV%20VRT
A13: RXYQ30U | B13: 1 | C13: 1 | D13: 536871373 | E13: 536871639 | F13: 1 | G13: 2 | H13: 3 | I13: 6 | J13: 8 | K13: Heating | L13: Integrated | M13: VRV%20VRT
A14: RXYQ32U | B14: 1 | C14: 1 | D14: 536871373 | E14: 536871646 | F14: 1 | G14: 2 | H14: 3 | I14: 6 | J14: 8 | K14: Heating | L14: Integrated | M14: VRV%20VRT
A15: RXYQ34U | B15: 1 | C15: 1 | D15: 536871373 | E15: 536871653 | F15: 1 | G15: 2 | H15: 3 | I15: 6 | J15: 8 | K15: Heating | L15: Integrated | M15: VRV%20VRT
A16: RXYQ36U | B16: 1 | C16: 1 | D16: 536871373 | E16: 536871660 | F16: 1 | G16: 2 | H16: 3 | I16: 6 | J16: 8 | K16: Heating | L16: Integrated | M16: VRV%20VRT
A17: RXYQ38U | B17: 1 | C17: 1 | D17: 536871373 | E17: 536871671 | F17: 1 | G17: 2 | H17: 3 | I17: 6 | J17: 8 | K17: Heating | L17: Integrated | M17: VRV%20VRT
A18: RXYQ40U | B18: 1 | C18: 1 | D18: 536871373 | E18: 536871675 | F18: 1 | G18: 2 | H18: 3 | I18: 6 | J18: 8 | K18: Heating | L18: Integrated | M18: VRV%20VRT
A19: RXYQ42U | B19: 1 | C19: 1 | D19: 536871373 | E19: 536871685 | F19: 1 | G19: 2 | H19: 3 | I19: 6 | J19: 8 | K19: Heating | L19: Integrated | M19: VRV%20VRT
A20: RXYQ44U | B20: 1 | C20: 1 | D20: 536871373 | E20: 536871695 | F20: 1 | G20: 2 | H20: 3 | I20: 6 | J20: 8 | K20: Heating | L20: Integrated | M20: VRV%20VRT
A21: RXYQ46U | B21: 1 | C21: 1 | D21: 536871373 | E21: 536871704 | F21: 1 | G21: 2 | H21: 3 | I21: 6 | J21: 8 | K21: Heating | L21: Integrated | M21: VRV%20VRT
A22: RXYQ48U | B22: 1 | C22: 1 | D22: 536871373 | E22: 536871711 | F22: 1 | G22: 2 | H22: 3 | I22: 6 | J22: 8 | K22: Heating | L22: Integrated | M22: VRV%20VRT
A23: RXYQ50U | B23: 1 | C23: 1 | D23: 536871373 | E23: 536871717 | F23: 1 | G23: 2 | H23: 3 | I23: 6 | J23: 8 | K23: Heating | L23: Integrated | M23: VRV%20VRT
A24: RXYQ52U | B24: 1 | C24: 1 | D24: 536871373 | E24: 536871721 | F24: 1 | G24: 2 | H24: 3 | I24: 6 | J24: 8 | K24: Heating | L24: Integrated | M24: VRV%20VRT
A25: RXYQ54U | B25: 1 | C25: 1 | D25: 536871373 | E25: 536871724 | F25: 1 | G25: 2 | H25: 3 | I25: 6 | J25: 8 | K25: Heating | L25: Integrated | M25: VRV%20VRT
A26: RXYSQ8TY1 | B26: 1 | C26: 1 | D26: 102 | E26: 5550 | F26: 1 | G26: 2 | H26: 3 | I26: 6 | J26: 8 | K26: Heating | L26: Integrated | M26: VRV%20VRT
A27: RXYSQ10TY1 | B27: 1 | C27: 1 | D27: 102 | E27: 5551 | F27: 1 | G27: 2 | H27: 3 | I27: 6 | J27: 8 | K27: Heating | L27: Integrated | M27: VRV%20VRT
A28: RXYSQ12TY1 | B28: 1 | C28: 1 | D28: 102 | E28: 5552 | F28: 1 | G28: 2 | H28: 3 | I28: 6 | J28: 8 | K28: Heating | L28: Integrated | M28: VRV%20VRT
A29: RXYSQ4TY9 | B29: 1 | C29: 1 | D29: 536871386 | E29: 536872686 | F29: 1 | G29: 2 | H29: 3 | I29: 6 | J29: 8 | K29: Heating | L29: Integrated | M29: VRV%20VRT
A30: RXYSQ5TY9 | B30: 1 | C30: 1 | D30: 536871386 | E30: 536872687 | F30: 1 | G30: 2 | H30: 3 | I30: 6 | J30: 8 | K30: Heating | L30: Integrated | M30: VRV%20VRT
A31: RXYSQ6TY9 | B31: 1 | C31: 1 | D31: 536871386 | E31: 536872688 | F31: 1 | G31: 2 | H31: 3 | I31: 6 | J31: 8 | K31: Heating | L31: Integrated | M31: VRV%20VRT
A32: RYYQ8U | B32: 1 | C32: 1 | D32: 536871374 | E32: 536871725 | F32: 1 | G32: 2 | H32: 3 | I32: 6 | J32: 8 | K32: Heating | L32: Integrated | M32: VRV%20VRT
A33: RYYQ10U | B33: 1 | C33: 1 | D33: 536871374 | E33: 536871726 | F33: 1 | G33: 2 | H33: 3 | I33: 6 | J33: 8 | K33: Heating | L33: Integrated | M33: VRV%20VRT
A34: RYYQ12U | B34: 1 | C34: 1 | D34: 536871374 | E34: 536871727 | F34: 1 | G34: 2 | H34: 3 | I34: 6 | J34: 8 | K34: Heating | L34: Integrated | M34: VRV%20VRT
A35: RYYQ14U | B35: 1 | C35: 1 | D35: 536871374 | E35: 536871728 | F35: 1 | G35: 2 | H35: 3 | I35: 6 | J35: 8 | K35: Heating | L35: Integrated | M35: VRV%20VRT
A36: RYYQ16U | B36: 1 | C36: 1 | D36: 536871374 | E36: 536871729 | F36: 1 | G36: 2 | H36: 3 | I36: 6 | J36: 8 | K36: Heating | L36: Integrated | M36: VRV%20VRT
A37: RYYQ18U | B37: 1 | C37: 1 | D37: 536871374 | E37: 536871731 | F37: 1 | G37: 2 | H37: 3 | I37: 6 | J37: 8 | K37: Heating | L37: Integrated | M37: VRV%20VRT
A38: RYYQ20U | B38: 1 | C38: 1 | D38: 536871374 | E38: 536871733 | F38: 1 | G38: 2 | H38: 3 | I38: 6 | J38: 8 | K38: Heating | L38: Integrated | M38: VRV%20VRT
A39: RYYQ22U | B39: 1 | C39: 1 | D39: 536871374 | E39: 536871736 | F39: 1 | G39: 2 | H39: 3 | I39: 6 | J39: 8 | K39: Heating | L39: Integrated | M39: VRV%20VRT
A40: RYYQ24U | B40: 1 | C40: 1 | D40: 536871374 | E40: 536871740 | F40: 1 | G40: 2 | H40: 3 | I40: 6 | J40: 8 | K40: Heating | L40: Integrated | M40: VRV%20VRT
A41: RYYQ26U | B41: 1 | C41: 1 | D41: 536871374 | E41: 536871743 | F41: 1 | G41: 2 | H41: 3 | I41: 6 | J41: 8 | K41: Heating | L41: Integrated | M41: VRV%20VRT
A42: RYYQ28U | B42: 1 | C42: 1 | D42: 536871374 | E42: 536871747 | F42: 1 | G42: 2 | H42: 3 | I42: 6 | J42: 8 | K42: Heating | L42: Integrated | M42: VRV%20VRT
A43: RYYQ30U | B43: 1 | C43: 1 | D43: 536871374 | E43: 536871754 | F43: 1 | G43: 2 | H43: 3 | I43: 6 | J43: 8 | K43: Heating | L43: Integrated | M43: VRV%20VRT
A44: RYYQ32U | B44: 1 | C44: 1 | D44: 536871374 | E44: 536871761 | F44: 1 | G44: 2 | H44: 3 | I44: 6 | J44: 8 | K44: Heating | L44: Integrated | M44: VRV%20VRT
A45: RYYQ34U | B45: 1 | C45: 1 | D45: 536871374 | E45: 536871768 | F45: 1 | G45: 2 | H45: 3 | I45: 6 | J45: 8 | K45: Heating | L45: Integrated | M45: VRV%20VRT
A46: RYYQ36U | B46: 1 | C46: 1 | D46: 536871374 | E46: 536871775 | F46: 1 | G46: 2 | H46: 3 | I46: 6 | J46: 8 | K46: Heating | L46: Integrated | M46: VRV%20VRT
A47: RYYQ38U | B47: 1 | C47: 1 | D47: 536871374 | E47: 536871786 | F47: 1 | G47: 2 | H47: 3 | I47: 6 | J47: 8 | K47: Heating | L47: Integrated | M47: VRV%20VRT
A48: RYYQ40U | B48: 1 | C48: 1 | D48: 536871374 | E48: 536871790 | F48: 1 | G48: 2 | H48: 3 | I48: 6 | J48: 8 | K48: Heating | L48: Integrated | M48: VRV%20VRT
A49: RYYQ42U | B49: 1 | C49: 1 | D49: 536871374 | E49: 536871800 | F49: 1 | G49: 2 | H49: 3 | I49: 6 | J49: 8 | K49: Heating | L49: Integrated | M49: VRV%20VRT
A50: RYYQ44U | B50: 1 | C50: 1 | D50: 536871374 | E50: 536871810 | F50: 1 | G50: 2 | H50: 3 | I50: 6 | J50: 8 | K50: Heating | L50: Integrated | M50: VRV%20VRT
A51: RYYQ46U | B51: 1 | C51: 1 | D51: 536871374 | E51: 536871819 | F51: 1 | G51: 2 | H51: 3 | I51: 6 | J51: 8 | K51: Heating | L51: Integrated | M51: VRV%20VRT
A52: RYYQ48U | B52: 1 | C52: 1 | D52: 536871374 | E52: 536871826 | F52: 1 | G52: 2 | H52: 3 | I52: 6 | J52: 8 | K52: Heating | L52: Integrated | M52: VRV%20VRT
A53: RYYQ50U | B53: 1 | C53: 1 | D53: 536871374 | E53: 536871832 | F53: 1 | G53: 2 | H53: 3 | I53: 6 | J53: 8 | K53: Heating | L53: Integrated | M53: VRV%20VRT
A54: RYYQ52U | B54: 1 | C54: 1 | D54: 536871374 | E54: 536871836 | F54: 1 | G54: 2 | H54: 3 | I54: 6 | J54: 8 | K54: Heating | L54: Integrated | M54: VRV%20VRT
A55: RYYQ54U | B55: 1 | C55: 1 | D55: 536871374 | E55: 536871839 | F55: 1 | G55: 2 | H55: 3 | I55: 6 | J55: 8 | K55: Heating | L55: Integrated | M55: VRV%20VRT
A56: ERQ100AV1 | B56: 11 | C56: 17 | D56: 90 | E56: 5457 | F56: 56 | G56: 57 | H56: 58 | I56: 59 | J56: 61 | K56: Heating | L56: Integrated | M56: VRV%20VRT
A57: ERQ125AV1 | B57: 11 | C57: 17 | D57: 90 | E57: 5458 | F57: 56 | G57: 57 | H57: 58 | I57: 59 | J57: 61 | K57: Heating | L57: Integrated | M57: VRV%20VRT
A58: ERQ140AV1 | B58: 11 | C58: 17 | D58: 90 | E58: 5459 | F58: 56 | G58: 57 | H58: 58 | I58: 59 | J58: 61 | K58: Heating | L58: Integrated | M58: VRV%20VRT
A59: ERQ125AW1 | B59: 11 | C59: 17 | D59: 91 | E59: 5460 | F59: 56 | G59: 57 | H59: 58 | I59: 59 | J59: 61 | K59: Heating | L59: Integrated | M59: VRV%20VRT
A60: 2MXM40A9 | B60: 10 | C60: 16 | D60: 536871347 | E60: 536873498 | F60: 50 | G60: 51 | H60: 53 | I60: Heating | J60: 20 | K60: 20 | L60: 22
A61: 2MXM50A9 | B61: 10 | C61: 16 | D61: 536871347 | E61: 536873499 | F61: 50 | G61: 51 | H61: 53 | I61: Heating | J61: 20 | K61: 20 | L61: 22
A62: 3MXM68A9 | B62: 10 | C62: 16 | D62: 536871347 | E62: 536872141 | F62: 50 | G62: 51 | H62: 53 | I62: Heating | J62: 20 | K62: 20 | L62: 22
A63: 4MXM68A9 | B63: 10 | C63: 16 | D63: 536871347 | E63: 536872142 | F63: 50 | G63: 51 | H63: 53 | I63: Heating | J63: 20 | K63: 20 | L63: 22
A64: 4MXM80A9 | B64: 10 | C64: 16 | D64: 536871347 | E64: 536872143 | F64: 50 | G64: 51 | H64: 53 | I64: Heating | J64: 20 | K64: 20 | L64: 22
A65: 5MXM90A9 | B65: 10 | C65: 16 | D65: 536871347 | E65: 536872144 | F65: 50 | G65: 51 | H65: 53 | I65: Heating | J65: 20 | K65: 20 | L65: 22
A66: 2MXM68A9 | B66: 10 | C66: 16 | D66: 536871446 | E66: 536873480 | F66: 50 | G66: 51 | H66: 53 | I66: Heating | J66: 20 | K66: 20 | L66: 22
A67: 3MXM40A9 | B67: 10 | C67: 16 | D67: 536871454 | E67: 536873494 | F67: 50 | G67: 51 | H67: 53 | I67: Heating | J67: 20 | K67: 20 | L67: 22
A68: 3MXM52A9 | B68: 10 | C68: 16 | D68: 536871454 | E68: 536873495 | F68: 50 | G68: 51 | H68: 53 | I68: Heating | J68: 20 | K68: 20 | L68: 22

Sheet ----------------- (hidden)

Sheet Sheet3 (hidden)
D2: Jednotka (2)
D3: =INDIRECT("'"&D2&"'!P177") -> 

Sheet data1 (hidden)
A1: a | B1: a | C1: a | D1: a | E1: a | F1: a | G1: a | H1: a | I1: a | J1: a | K1: a | L1: a | M1: a | N1: a | O1: a | P1: a | Q1: a | R1: a | S1: a | T1: a | U1: a | V1: a | W1: a | X1: a | Y1: a | Z1: a | AA1: a | AB1: a | AC1: a | AD1: a | AE1: a | AF1: a | AG1: a | AH1: a | AI1: a | AJ1: a | AK1: a | AL1: a | AM1: a | AN1: a | AO1: a | AP1: a | AQ1: a | AR1: a | AS1: a | AT1: a | AU1: a | AV1: a | AW1: a | AX1: a | AY1: a | AZ1: a | BA1: a | BB1: a | BC1: a | BD1: a | BE1: a | BF1: a | BG1: a | BH1: a | BI1: a | BJ1: a | BK1: a | BL1: a | BM1: a | BN1: a | BO1: a | BP1: a | BQ1: a | BR1: a | BS1: a | BT1: a | BU1: a | BV1: a | BW1: a | BX1: a | BY1: a | BZ1: a | CA1: a | CB1: a | CC1: a | CD1: a | CE1: a | CF1: a | CG1: a | CH1: a | CI1: a | CJ1: a
A2: 2 | B2: Pi chlazeni
A3: 3 | D3: FCAG71B | E3: FAA71B | F3: FVA71A | G3: FHA71A9 | H3: FUA71A | I3: FBA71A9 | J3: FCAG35B 2x | K3: FHA35A9 2x | L3: FFA35A9 2x | M3: FDXM35F9 2x | N3: FBA35A9 2x | O3: FNA35A9 2x | P3: FCAG100B | Q3: FAA100B | R3: FVA100A | S3: FHA100A | T3: FUA100A | U3: FBA100A | V3: FCAG50B 2x | W3: FHA50A9 2x | X3: FFA50A9 2x | Y3: FDXM50F9 2x | Z3: FBA50A9 2x | AA3: FNA50A9 2x | AB3: FCAG35B 3x | AC3: FHA35A9 3x | AD3: FFA35A9 3x | AE3: FDXM35F9 3x | AF3: FBA35A9 3x | AG3: FNA35A9 3x | AH3: FCAG125B | AI3: FDA125A | AJ3: FVA125A | AK3: FHA125A | AL3: FUA125A | AM3: FBA125A | AN3: FCAG60B 2x | AO3: FHA60A9 2x | AP3: FFA60A9 2x | AQ3: FDXM60F9 2x | AR3: FBA60A9 2x | AS3: FNA60A9 2x | AT3: FCAG50B 3x | AU3: FHA50A9 3x | AV3: FFA50A9 3x | AW3: FDXM50F9 3x | AX3: FBA50A9 3x | AY3: FNA50A9 3x | AZ3: FCAG35b 4x | BA3: FHA35A9 4x | BB3: FFA35A9 4x | BC3: FDXM35F9 4x | BD3: FBA35A9 4x | BE3: FNA35A9 4x | BF3: FCAG140B | BG3: FVA140A | BH3: FHA140A | BI3: FBA140A | BJ3: FCAG71B 2x | BK3: FAA71B 2x | BL3: FHA71A9 2x | BM3: FUA71A 2x | BN3: FBA71A9 2x | BO3: FVA71A 2x | BP3: FDXM35F9 | BQ3: FDXM50F9 | BR3: FDXM60F9 | BS3: FBA35A9 | BT3: FBA50A9 | BU3: FBA60A9 | BV3: FFA35A9 | BW3: FFA50A9 | BX3: FFA60A9 | BY3: FCAG35B | BZ3: FCAG50B | CA3: FCAG60B | CB3: FNA35A9 | CC3: FNA50A9 | CD3: FNA60A9 | CE3: FTXM35A | CF3: FTXM50A | CG3: FTXM60A | CH3: FHA35A9 | CI3: FHA50A9 | CJ3: FHA60A9 | CK3: FDA200A | CL3: FCAG100B 2x | CM3: FBA100A 2x | CN3: FHA100A 2x | CO3: FVA100A 2x | CP3: FUA100A 2x | CQ3: FAA100B 2x | CR3: FCAG60B 3x | CS3: FCAG71B 3x | CT3: FBA60A9 3x | CU3: FBA71A9 3x | CV3: FHA60A9 3x | CW3: FHA71A9 3x | CX3: FFA60A9 3x | CY3: FDXM60F9 3x | CZ3: FNA60A9 3x | DA3: FVA71A 3x | DB3: FUA71A 3x | DC3: FAA71B 3x | DD3: FCAG50B 4x | DE3: FBA50A9 4x | DF3: FHA50A9 4x | DG3: FFA50A9 4x | DH3: FDXM50F9 4x | DI3: FNA50A9 4x | DJ3: FDA250A | DK3: FCAG125B 2x | DL3: FBA125A 2x | DM3: FHA125A 2x | DN3: FVA125A 2x | DO3: FUA125A 2x | DP3: FDA125A 2x | DQ3: FCAG60B 4x | DR3: FBA60A9 4x | DS3: FHA60A9 4x | DT3: FFA60A9 4x | DU3: FDXM60F9 4x | DV3: FNA60A9 4x
A4: 4 | B4: RZAG71 | C4: Pi cooling | D4: 1.92 | E4: 2.08 | F4: 2.08 | G4: 1.81 | H4: 1.77 | I4: 1.86 | J4: 1.47 | K4: 1.33 | L4: 1.63 | M4: 1.73 | N4: 1.62 | O4: 1.73 | P4: x | Q4: x | R4: x | S4: x | T4: x | U4: x | V4: x | W4: x | X4: x | Y4: x | Z4: x | AA4: x | AB4: x | AC4: x | AD4: x | AE4: x | AF4: x | AG4: x | AH4: x | AI4: x | AJ4: x | AK4: x | AL4: x | AM4: x | AN4: x | AO4: x | AP4: x | AQ4: x | AR4: x | AS4: x | AT4: x | AU4: x | AV4: x | AW4: x | AX4: x | AY4: x | AZ4: x | BA4: x | BB4: x | BC4: x | BD4: x | BE4: x | BF4: x | BG4: x | BH4: x | BI4: x | BJ4: x | BK4: x | BL4: x | BM4: x | BN4: x | BO4: x | BP4: x | BQ4: x | BR4: x | BS4: x | BT4: x | BU4: x | BV4: x | BW4: x | BX4: x | BY4: x | BZ4: x | CA4: x | CB4: x | CC4: x | CD4: x | CE4: x | CF4: x | CG4: x | CH4: x | CI4: x | CJ4: x | CK4: x | CL4: x | CM4: x | CN4: x | CO4: x | CP4: x | CQ4: x | CR4: x | CS4: x | CT4: x | CU4: x | CV4: x | CW4: x | CX4: x | CY4: x | CZ4: x | DA4: x | DB4: x | DC4: x | DD4: x | DE4: x | DF4: x | DG4: x | DH4: x | DI4: x | DJ4: x | DK4: x | DL4: x | DM4: x | DN4: x | DO4: x | DP4: x | DQ4: x | DR4: x | DS4: x | DT4: x | DU4: x | DV4: x
A5: 5 | B5: RZASG71 | C5: Pi cooling | D5: 2.17 | E5: 2 | F5: 2.01 | G5: 1.78 | H5: 1.77 | I5: 1.89 | J5: 1.81 | K5: 1.47 | L5: 2.08 | M5: 1.77 | N5: 1.78 | O5: 1.77 | P5: x | Q5: x | R5: x | S5: x | T5: x | U5: x | V5: x | W5: x | X5: x | Y5: x | Z5: x | AA5: x | AB5: x | AC5: x | AD5: x | AE5: x | AF5: x | AG5: x | AH5: x | AI5: x | AJ5: x | AK5: x | AL5: x | AM5: x | AN5: x | AO5: x | AP5: x | AQ5: x | AR5: x | AS5: x | AT5: x | AU5: x | AV5: x | AW5: x | AX5: x | AY5: x | AZ5: x | BA5: x | BB5: x | BC5: x | BD5: x | BE5: x | BF5: x | BG5: x | BH5: x | BI5: x | BJ5: x | BK5: x | BL5: x | BM5: x | BN5: x | BO5: x | BP5: x | BQ5: x | BR5: x | BS5: x | BT5: x | BU5: x | BV5: x | BW5: x | BX5: x | BY5: x | BZ5: x | CA5: x | CB5: x | CC5: x | CD5: x | CE5: x | CF5: x | CG5: x | CH5: x | CI5: x | CJ5: x | CK5: x | CL5: x | CM5: x | CN5: x | CO5: x | CP5: x | CQ5: x | CR5: x | CS5: x | CT5: x | CU5: x | CV5: x | CW5: x | CX5: x | CY5: x | CZ5: x | DA5: x | DB5: x | DC5: x | DD5: x | DE5: x | DF5: x | DG5: x | DH5: x | DI5: x | DJ5: x | DK5: x | DL5: x | DM5: x | DN5: x | DO5: x | DP5: x | DQ5: x | DR5: x | DS5: x | DT5: x | DU5: x | DV5: x
A6: 6 | B6: AZAS71 | C6: Pi cooling | D6: 2.17 | E6: 2 | F6: x | G6: x | H6: x | I6: 1.89 | J6: x | K6: x | L6: x | M6: x | N6: x | O6: x | P6: x | Q6: x | R6: x | S6: x | T6: x | U6: x | V6: x | W6: x | X6: x | Y6: x | Z6: x | AA6: x | AB6: x | AC6: x | AD6: x | AE6: x | AF6: x | AG6: x | AH6: x | AI6: x | AJ6: x | AK6: x | AL6: x | AM6: x | AN6: x | AO6: x | AP6: x | AQ6: x | AR6: x | AS6: x | AT6: x | AU6: x | AV6: x | AW6: x | AX6: x | AY6: x | AZ6: x | BA6: x | BB6: x | BC6: x | BD6: x | BE6: x | BF6: x | BG6: x | BH6: x | BI6: x | BJ6: x | BK6: x | BL6: x | BM6: x | BN6: x | BO6: x | BP6: x | BQ6: x | BR6: x | BS6: x | BT6: x | BU6: x | BV6: x | BW6: x | BX6: x | BY6: x | BZ6: x | CA6: x | CB6: x | CC6: x | CD6: x | CE6: x | CF6: x | CG6: x | CH6: x | CI6: x | CJ6: x | CK6: x | CL6: x | CM6: x | CN6: x | CO6: x | CP6: x | CQ6: x | CR6: x | CS6: x | CT6: x | CU6: x | CV6: x | CW6: x | CX6: x | CY6: x | CZ6: x | DA6: x | DB6: x | DC6: x | DD6: x | DE6: x | DF6: x | DG6: x | DH6: x | DI6: x | DJ6: x | DK6: x | DL6: x | DM6: x | DN6: x | DO6: x | DP6: x | DQ6: x | DR6: x | DS6: x | DT6: x | DU6: x | DV6: x
A7: 7 | B7: RZAG100 | C7: Pi cooling | D7: x | E7: x | F7: x | G7: x | H7: x | I7: x | J7: x | K7: x | L7: x | M7: x | N7: x | O7: x | P7: 2.15 | Q7: 2.14 | R7: 2.24 | S7: 1.95 | T7: 2.24 | U7: 2.26 | V7: 1.94 | W7: 1.95 | X7: 2.5 | Y7: 1.89 | Z7: 1.98 | AA7: 1.89 | AB7: 1.74 | AC7: 1.44 | AD7: 2.02 | AE7: 1.99 | AF7: 2.21 | AG7: 1.99 | AH7: x | AI7: x | AJ7: x | AK7: x | AL7: x | AM7: x | AN7: x | AO7: x | AP7: x | AQ7: x | AR7: x | AS7: x | AT7: x | AU7: x | AV7: x | AW7: x | AX7: x | AY7: x | AZ7: x | BA7: x | BB7: x | BC7: x | BD7: x | BE7: x | BF7: x | BG7: x | BH7: x | BI7: x | BJ7: x | BK7: x | BL7: x | BM7: x | BN7: x | BO7: x | BP7: x | BQ7: x | BR7: x | BS7: x | BT7: x | BU7: x | BV7: x | BW7: x | BX7: x | BY7: x | BZ7: x | CA7: x | CB7: x | CC7: x | CD7: x | CE7: x | CF7: x | CG7: x | CH7: x | CI7: x | CJ7: x | CK7: x | CL7: x | CM7: x | CN7: x | CO7: x | CP7: x | CQ7: x | CR7: x | CS7: x | CT7: x | CU7: x | CV7: x | CW7: x | CX7: x | CY7: x | CZ7: x | DA7: x | DB7: x | DC7: x | DD7: x | DE7: x | DF7: x | DG7: x | DH7: x | DI7: x | DJ7: x | DK7: x | DL7: x | DM7: x | DN7: x | DO7: x | DP7: x | DQ7: x | DR7: x | DS7: x | DT7: x | DU7: x | DV7: x
A8: 8 | B8: RZASG100 | C8: Pi cooling | D8: x | E8: x | F8: x | G8: x | H8: x | I8: x | J8: x | K8: x | L8: x | M8: x | N8: x | O8: x | P8: 2.92 | Q8: 3.52 | R8: 2.97 | S8: 2.97 | T8: 2.97 | U8: 2.97 | V8: 2.57 | W8: 2.97 | X8: 3.39 | Y8: 2.44 | Z8: x | AA8: 2.44 | AB8: 2.32 | AC8: 2.16 | AD8: 2.71 | AE8: 2.57 | AF8: x | AG8: 2.57 | AH8: x | AI8: x | AJ8: x | AK8: x | AL8: x | AM8: x | AN8: x | AO8: x | AP8: x | AQ8: x | AR8: x | AS8: x | AT8: x | AU8: x | AV8: x | AW8: x | AX8: x | AY8: x | AZ8: x | BA8: x | BB8: x | BC8: x | BD8: x | BE8: x | BF8: x | BG8: x | BH8: x | BI8: x | BJ8: x | BK8: x | BL8: x | BM8: x | BN8: x | BO8: x | BP8: x | BQ8: x | BR8: x | BS8: x | BT8: x | BU8: x | BV8: x | BW8: x | BX8: x | BY8: x | BZ8: x | CA8: x | CB8: x | CC8: x | CD8: x | CE8: x | CF8: x | CG8: x | CH8: x | CI8: x | CJ8: x | CK8: x | CL8: x | CM8: x | CN8: x | CO8: x | CP8: x | CQ8: x | CR8: x | CS8: x | CT8: x | CU8: x | CV8: x | CW8: x | CX8: x | CY8: x | CZ8: x | DA8: x | DB8: x | DC8: x | DD8: x | DE8: x | DF8: x | DG8: x | DH8: x | DI8: x | DJ8: x | DK8: x | DL8: x | DM8: x | DN8: x | DO8: x | DP8: x | DQ8: x | DR8: x | DS8: x | DT8: x | DU8: x | DV8: x
A9: 9 | B9: AZAS100 | C9: Pi cooling | D9: x | E9: x | F9: x | G9: x | H9: x | I9: x | J9: x | K9: x | L9: x | M9: x | N9: x | O9: x | P9: 2.92 | Q9: 3.52 | R9: x | S9: x | T9: x | U9: 2.97 | V9: x | W9: x | X9: x | Y9: x | Z9: x | AA9: x | AB9: x | AC9: x | AD9: x | AE9: x | AF9: x | AG9: x | AH9: x | AI9: x | AJ9: x | AK9: x | AL9: x | AM9: x | AN9: x | AO9: x | AP9: x | AQ9: x | AR9: x | AS9: x | AT9: x | AU9: x | AV9: x | AW9: x | AX9: x | AY9: x | AZ9: x | BA9: x | BB9: x | BC9: x | BD9: x | BE9: x | BF9: x | BG9: x | BH9: x | BI9: x | BJ9: x | BK9: x | BL9: x | BM9: x | BN9: x | BO9: x | BP9: x | BQ9: x | BR9: x | BS9: x | BT9: x | BU9: x | BV9: x | BW9: x | BX9: x | BY9: x | BZ9: x | CA9: x | CB9: x | CC9: x | CD9: x | CE9: x | CF9: x | CG9: x | CH9: x | CI9: x | CJ9: x | CK9: x | CL9: x | CM9: x | CN9: x | CO9: x | CP9: x | CQ9: x | CR9: x | CS9: x | CT9: x | CU9: x | CV9: x | CW9: x | CX9: x | CY9: x | CZ9: x | DA9: x | DB9: x | DC9: x | DD9: x | DE9: x | DF9: x | DG9: x | DH9: x | DI9: x | DJ9: x | DK9: x | DL9: x | DM9: x | DN9: x | DO9: x | DP9: x | DQ9: x | DR9: x | DS9: x | DT9: x | DU9: x | DV9: x
A10: 10 | B10: RZAG125 | C10: Pi cooling | D10: x | E10: x | F10: x | G10: x | H10: x | I10: x | J10: x | K10: x | L10: x | M10: x | N10: x | O10: x | P10: x | Q10: x | R10: x | S10: x | T10: x | U10: x | V10: x | W10: x | X10: x | Y10: x | Z10: x | AA10: x | AB10: x | AC10: x | AD10: x | AE10: x | AF10: x | AG10: x | AH10: 3.17 | AI10: 3.17 | AJ10: 3.72 | AK10: 2.94 | AL10: 3.98 | AM10: 3.64 | AN10: 2.57 | AO10: 2.78 | AP10: 3.09 | AQ10: 4.42 | AR10: 3.21 | AS10: 2.47 | AT10: 2.25 | AU10: 2.69 | AV10: 2.78 | AW10: 2.09 | AX10: 3.1 | AY10: 2.09 | AZ10: 2.06 | BA10: 2.05 | BB10: 2.43 | BC10: 2.36 | BD10: 2.93 | BE10: 2.34 | BF10: x | BG10: x | BH10: x | BI10: x | BJ10: x | BK10: x | BL10: x | BM10: x | BN10: x | BO10: x | BP10: x | BQ10: x | BR10: x | BS10: x | BT10: x | BU10: x | BV10: x | BW10: x | BX10: x | BY10: x | BZ10: x | CA10: x | CB10: x | CC10: x | CD10: x | CE10: x | CF10: x | CG10: x | CH10: x | CI10: x | CJ10: x | CK10: x | CL10: x | CM10: x | CN10: x | CO10: x | CP10: x | CQ10: x | CR10: x | CS10: x | CT10: x | CU10: x | CV10: x | CW10: x | CX10: x | CY10: x | CZ10: x | DA10: x | DB10: x | DC10: x | DD10: x | DE10: x | DF10: x | DG10: x | DH10: x | DI10: x | DJ10: x | DK10: x | DL10: x | DM10: x | DN10: x | DO10: x | DP10: x | DQ10: x | DR10: x | DS10: x | DT10: x | DU10: x | DV10: x
A11: 11 | B11: RZASG125 | C11: Pi cooling | D11: x | E11: x | F11: x | G11: x | H11: x | I11: x | J11: x | K11: x | L11: x | M11: x | N11: x | O11: x | P11: x | Q11: x | R11: x | S11: x | T11: x | U11: x | V11: x | W11: x | X11: x | Y11: x | Z11: x | AA11: x | AB11: x | AC11: x | AD11: x | AE11: x | AF11: x | AG11: x | AH11: 4.95 | AI11: 4.73 | AJ11: 5.11 | AK11: 4.79 | AL11: 5.37 | AM11: 4.84 | AN11: 4.15 | AO11: 6.21 | AP11: 6.01 | AQ11: 3.87 | AR11: 4.28 | AS11: 3.87 | AT11: 3.74 | AU11: 4.42 | AV11: 4.65 | AW11: 3.37 | AX11: 4.08 | AY11: 3.37 | AZ11: 3.34 | BA11: 2.89 | BB11: 4 | BC11: 3.8 | BD11: 3.83 | BE11: 3.8 | BF11: x | BG11: x | BH11: x | BI11: x | BJ11: x | BK11: x | BL11: x | BM11: x | BN11: x | BO11: x | BP11: x | BQ11: x | BR11: x | BS11: x | BT11: x | BU11: x | BV11: x | BW11: x | BX11: x | BY11: x | BZ11: x | CA11: x | CB11: x | CC11: x | CD11: x | CE11: x | CF11: x | CG11: x | CH11: x | CI11: x | CJ11: x | CK11: x | CL11: x | CM11: x | CN11: x | CO11: x | CP11: x | CQ11: x | CR11: x | CS11: x | CT11: x | CU11: x | CV11: x | CW11: x | CX11: x | CY11: x | CZ11: x | DA11: x | DB11: x | DC11: x | DD11: x | DE11: x | DF11: x | DG11: x | DH11: x | DI11: x | DJ11: x | DK11: x | DL11: x | DM11: x | DN11: x | DO11: x | DP11: x | DQ11: x | DR11: x | DS11: x | DT11: x | DU11: x | DV11: x
A12: 12 | B12: AZAS125 | C12: Pi cooling | D12: x | E12: x | F12: x | G12: x | H12: x | I12: x | J12: x | K12: x | L12: x | M12: x | N12: x | O12: x | P12: x | Q12: x | R12: x | S12: x | T12: x | U12: x | V12: x | W12: x | X12: x | Y12: x | Z12: x | AA12: x | AB12: x | AC12: x | AD12: x | AE12: x | AF12: x | AG12: x | AH12: 5.28 | AI12: x | AJ12: x | AK12: x | AL12: x | AM12: 5.26 | AN12: x | AO12: x | AP12: x | AQ12: x | AR12: x | AS12: x | AT12: x | AU12: x | AV12: x | AW12: x | AX12: x | AY12: x | AZ12: x | BA12: x | BB12: x | BC12: x | BD12: x | BE12: x | BF12: x | BG12: x | BH12: x | BI12: x | BJ12: x | BK12: x | BL12: x | BM12: x | BN12: x | BO12: x | BP12: x | BQ12: x | BR12: x | BS12: x | BT12: x | BU12: x | BV12: x | BW12: x | BX12: x | BY12: x | BZ12: x | CA12: x | CB12: x | CC12: x | CD12: x | CE12: x | CF12: x | CG12: x | CH12: x | CI12: x | CJ12: x | CK12: x | CL12: x | CM12: x | CN12: x | CO12: x | CP12: x | CQ12: x | CR12: x | CS12: x | CT12: x | CU12: x | CV12: x | CW12: x | CX12: x | CY12: x | CZ12: x | DA12: x | DB12: x | DC12: x | DD12: x | DE12: x | DF12: x | DG12: x | DH12: x | DI12: x | DJ12: x | DK12: x | DL12: x | DM12: x | DN12: x | DO12: x | DP12: x | DQ12: x | DR12: x | DS12: x | DT12: x | DU12: x | DV12: x
A13: 13 | B13: RZAG140 | C13: Pi cooling | D13: x | E13: x | F13: x | G13: x | H13: x | I13: x | J13: x | K13: x | L13: x | M13: x | N13: x | O13: x | P13: x | Q13: x | R13: x | S13: x | T13: x | U13: x | V13: x | W13: x | X13: x | Y13: x | Z13: x | AA13: x | AB13: x | AC13: x | AD13: x | AE13: x | AF13: x | AG13: x | AH13: x | AI13: x | AJ13: x | AK13: x | AL13: x | AM13: x | AN13: x | AO13: x | AP13: x | AQ13: x | AR13: x | AS13: x | AT13: 3.1 | AU13: 3.85 | AV13: 3.93 | AW13: 2.95 | AX13: 3.59 | AY13: 2.95 | AZ13: 2.82 | BA13: 2.86 | BB13: 3.34 | BC13: 3.34 | BD13: 3.35 | BE13: 3.34 | BF13: 4.21 | BG13: 4.61 | BH13: 4.49 | BI13: 4.3 | BJ13: 3.53 | BK13: 3.77 | BL13: 3.64 | BM13: 3.3 | BN13: 3.49 | BO13: 4.13 | BP13: x | BQ13: x | BR13: x | BS13: x | BT13: x | BU13: x | BV13: x | BW13: x | BX13: x | BY13: x | BZ13: x | CA13: x | CB13: x | CC13: x | CD13: x | CE13: x | CF13: x | CG13: x | CH13: x | CI13: x | CJ13: x | CK13: x | CL13: x | CM13: x | CN13: x | CO13: x | CP13: x | CQ13: x | CR13: x | CS13: x | CT13: x | CU13: x | CV13: x | CW13: x | CX13: x | CY13: x | CZ13: x | DA13: x | DB13: x | DC13: x | DD13: x | DE13: x | DF13: x | DG13: x | DH13: x | DI13: x | DJ13: x | DK13: x | DL13: x | DM13: x | DN13: x | DO13: x | DP13: x | DQ13: x | DR13: x | DS13: x | DT13: x | DU13: x | DV13: x
A14: 14 | B14: RZASG140 | C14: Pi cooling | D14: x | E14: x | F14: x | G14: x | H14: x | I14: x | J14: x | K14: x | L14: x | M14: x | N14: x | O14: x | P14: x | Q14: x | R14: x | S14: x | T14: x | U14: x | V14: x | W14: x | X14: x | Y14: x | Z14: x | AA14: x | AB14: x | AC14: x | AD14: x | AE14: x | AF14: x | AG14: x | AH14: x | AI14: x | AJ14: x | AK14: x | AL14: x | AM14: x | AN14: x | AO14: x | AP14: x | AQ14: x | AR14: x | AS14: x | AT14: 3.39 | AU14: 4.14 | AV14: 4.32 | AW14: 2.86 | AX14: 3.91 | AY14: 2.86 | AZ14: 3.5 | BA14: 3.06 | BB14: 3.66 | BC14: 3.65 | BD14: 3.51 | BE14: 3.65 | BF14: 4.88 | BG14: 5.12 | BH14: 4.84 | BI14: 4.76 | BJ14: 3.87 | BK14: 4.41 | BL14: 3.91 | BM14: 3.62 | BN14: 3.82 | BO14: 4.52 | BP14: x | BQ14: x | BR14: x | BS14: x | BT14: x | BU14: x | BV14: x | BW14: x | BX14: x | BY14: x | BZ14: x | CA14: x | CB14: x | CC14: x | CD14: x | CE14: x | CF14: x | CG14: x | CH14: x | CI14: x | CJ14: x | CK14: x | CL14: x | CM14: x | CN14: x | CO14: x | CP14: x | CQ14: x | CR14: x | CS14: x | CT14: x | CU14: x | CV14: x | CW14: x | CX14: x | CY14: x | CZ14: x | DA14: x | DB14: x | DC14: x | DD14: x | DE14: x | DF14: x | DG14: x | DH14: x | DI14: x | DJ14: x | DK14: x | DL14: x | DM14: x | DN14: x | DO14: x | DP14: x | DQ14: x | DR14: x | DS14: x | DT14: x | DU14: x | DV14: x
A15: 15 | B15: AZAS140 | C15: Pi cooling | D15: x | E15: x | F15: x | G15: x | H15: x | I15: x | J15: x | K15: x | L15: x | M15: x | N15: x | O15: x | P15: x | Q15: x | R15: x | S15: x | T15: x | U15: x | V15: x | W15: x | X15: x | Y15: x | Z15: x | AA15: x | AB15: x | AC15: x | AD15: x | AE15: x | AF15: x | AG15: x | AH15: x | AI15: x | AJ15: x | AK15: x | AL15: x | AM15: x | AN15: x | AO15: x | AP15: x | AQ15: x | AR15: x | AS15: x | AT15: x | AU15: x | AV15: x | AW15: x | AX15: x | AY15: x | AZ15: x | BA15: x | BB15: x | BC15: x | BD15: x | BE15: x | BF15: 4.47 | BG15: x | BH15: x | BI15: 4.45 | BJ15: x | BK15: x | BL15: x | BM15: x | BN15: x | BO15: x | BP15: x | BQ15: x | BR15: x | BS15: x | BT15: x | BU15: x | BV15: x | BW15: x | BX15: x | BY15: x | BZ15: x | CA15: x | CB15: x | CC15: x | CD15: x | CE15: x | CF15: x | CG15: x | CH15: x | CI15: x | CJ15: x | CK15: x | CL15: x | CM15: x | CN15: x | CO15: x | CP15: x | CQ15: x | CR15: x | CS15: x | CT15: x | CU15: x | CV15: x | CW15: x | CX15: x | CY15: x | CZ15: x | DA15: x | DB15: x | DC15: x | DD15: x | DE15: x | DF15: x | DG15: x | DH15: x | DI15: x | DJ15: x | DK15: x | DL15: x | DM15: x | DN15: x | DO15: x | DP15: x | DQ15: x | DR15: x | DS15: x | DT15: x | DU15: x | DV15: x
A16: 16 | B16: RZAG35 | C16: Pi cooling | D16: x | E16: x | F16: x | G16: x | H16: x | I16: x | J16: x | K16: x | L16: x | M16: x | N16: x | O16: x | P16: x | Q16: x | R16: x | S16: x | T16: x | U16: x | V16: x | W16: x | X16: x | Y16: x | Z16: x | AA16: x | AB16: x | AC16: x | AD16: x | AE16: x | AF16: x | AG16: x | AH16: x | AI16: x | AJ16: x | AK16: x | AL16: x | AM16: x | AN16: x | AO16: x | AP16: x | AQ16: x | AR16: x | AS16: x | AT16: x | AU16: x | AV16: x | AW16: x | AX16: x | AY16: x | AZ16: x | BA16: x | BB16: x | BC16: x | BD16: x | BE16: x | BF16: x | BG16: x | BH16: x | BI16: x | BJ16: x | BK16: x | BL16: x | BM16: x | BN16: x | BO16: x | BP16: 0.9 | BQ16: x | BR16: x | BS16: 0.87 | BT16: x | BU16: x | BV16: 0.88 | BW16: x | BX16: x | BY16: 0.8 | BZ16: x | CA16: x | CB16: 0.9 | CC16: x | CD16: x | CE16: 0.81 | CF16: x | CG16: x | CH16: 0.76 | CI16: x | CJ16: x | CK16: x | CL16: x | CM16: x | CN16: x | CO16: x | CP16: x | CQ16: x | CR16: x | CS16: x | CT16: x | CU16: x | CV16: x | CW16: x | CX16: x | CY16: x | CZ16: x | DA16: x | DB16: x | DC16: x | DD16: x | DE16: x | DF16: x | DG16: x | DH16: x | DI16: x | DJ16: x | DK16: x | DL16: x | DM16: x | DN16: x | DO16: x | DP16: x | DQ16: x | DR16: x | DS16: x | DT16: x | DU16: x | DV16: x
A17: 17 | B17: RZAG50 | C17: Pi cooling | D17: x | E17: x | F17: x | G17: x | H17: x | I17: x | J17: x | K17: x | L17: x | M17: x | N17: x | O17: x | P17: x | Q17: x | R17: x | S17: x | T17: x | U17: x | V17: x | W17: x | X17: x | Y17: x | Z17: x | AA17: x | AB17: x | AC17: x | AD17: x | AE17: x | AF17: x | AG17: x | AH17: x | AI17: x | AJ17: x | AK17: x | AL17: x | AM17: x | AN17: x | AO17: x | AP17: x | AQ17: x | AR17: x | AS17: x | AT17: x | AU17: x | AV17: x | AW17: x | AX17: x | AY17: x | AZ17: x | BA17: x | BB17: x | BC17: x | BD17: x | BE17: x | BF17: x | BG17: x | BH17: x | BI17: x | BJ17: x | BK17: x | BL17: x | BM17: x | BN17: x | BO17: x | BP17: x | BQ17: 1.32 | BR17: x | BS17: x | BT17: 1.25 | BU17: x | BV17: x | BW17: 1.47 | BX17: x | BY17: x | BZ17: 1.28 | CA17: x | CB17: x | CC17: 1.32 | CD17: x | CE17: x | CF17: 1.25 | CG17: x | CH17: x | CI17: 1.22 | CJ17: x | CK17: x | CL17: x | CM17: x | CN17: x | CO17: x | CP17: x | CQ17: x | CR17: x | CS17: x | CT17: x | CU17: x | CV17: x | CW17: x | CX17: x | CY17: x | CZ17: x | DA17: x | DB17: x | DC17: x | DD17: x | DE17: x | DF17: x | DG17: x | DH17: x | DI17: x | DJ17: x | DK17: x | DL17: x | DM17: x | DN17: x | DO17: x | DP17: x | DQ17: x | DR17: x | DS17: x | DT17: x | DU17: x | DV17: x
A18: 18 | B18: RZAG60 | C18: Pi cooling | D18: x | E18: x | F18: x | G18: x | H18: x | I18: x | J18: x | K18: x | L18: x | M18: x | N18: x | O18: x | P18: x | Q18: x | R18: x | S18: x | T18: x | U18: x | V18: x | W18: x | X18: x | Y18: x | Z18: x | AA18: x | AB18: x | AC18: x | AD18: x | AE18: x | AF18: x | AG18: x | AH18: x | AI18: x | AJ18: x | AK18: x | AL18: x | AM18: x | AN18: x | AO18: x | AP18: x | AQ18: x | AR18: x | AS18: x | AT18: x | AU18: x | AV18: x | AW18: x | AX18: x | AY18: x | AZ18: x | BA18: x | BB18: x | BC18: x | BD18: x | BE18: x | BF18: x | BG18: x | BH18: x | BI18: x | BJ18: x | BK18: x | BL18: x | BM18: x | BN18: x | BO18: x | BP18: x | BQ18: x | BR18: 1.76 | BS18: x | BT18: x | BU18: 1.48 | BV18: x | BW18: x | BX18: 1.86 | BY18: x | BZ18: x | CA18: 1.76 | CB18: x | CC18: x | CD18: 1.76 | CE18: x | CF18: x | CG18: 1.71 | CH18: x | CI18: x | CJ18: 1.54 | CK18: x | CL18: x | CM18: x | CN18: x | CO18: x | CP18: x | CQ18: x | CR18: x | CS18: x | CT18: x | CU18: x | CV18: x | CW18: x | CX18: x | CY18: x | CZ18: x | DA18: x | DB18: x | DC18: x | DD18: x | DE18: x | DF18: x | DG18: x | DH18: x | DI18: x | DJ18: x | DK18: x | DL18: x | DM18: x | DN18: x | DO18: x | DP18: x | DQ18: x | DR18: x | DS18: x | DT18: x | DU18: x | DV18: x
A19: 19 | B19: RZA200 | C19: Pi cooling | D19: x | E19: x | F19: x | G19: x | H19: x | I19: x | J19: x | K19: x | L19: x | M19: x | N19: x | O19: x | P19: x | Q19: x | R19: x | S19: x | T19: x | U19: x | V19: x | W19: x | X19: x | Y19: x | Z19: x | AA19: x | AB19: x | AC19: x | AD19: x | AE19: x | AF19: x | AG19: x | AH19: x | AI19: x | AJ19: x | AK19: x | AL19: x | AM19: x | AN19: x | AO19: x | AP19: x | AQ19: x | AR19: x | AS19: x | AT19: x | AU19: x | AV19: x | AW19: x | AX19: x | AY19: x | AZ19: x | BA19: x | BB19: x | BC19: x | BD19: x | BE19: x | BF19: x | BG19: x | BH19: x | BI19: x | BJ19: x | BK19: x | BL19: x | BM19: x | BN19: x | BO19: x | BP19: x | BQ19: x | BR19: x | BS19: x | BT19: x | BU19: x | BV19: x | BW19: x | BX19: x | BY19: x | BZ19: x | CA19: x | CB19: x | CC19: x | CD19: x | CE19: x | CF19: x | CG19: x | CH19: x | CI19: x | CJ19: x | CK19: =7.06 -> 7.06 | CL19: 5.87 | CM19: 7.51 | CN19: 5.94 | CO19: 5.82 | CP19: 5.81 | CQ19: 7.11 | CR19: 5.58 | CS19: 7.39 | CT19: 7.45 | CU19: 5.35 | CV19: 5.97 | CW19: 5.3 | CX19: 8.08 | CY19: 5.2 | CZ19: 5.22 | DA19: 6.31 | DB19: 5.31 | DC19: 6.25 | DD19: 5.96 | DE19: 6.15 | DF19: 5.95 | DG19: 6.59 | DH19: 4.76 | DI19: 4.79 | DJ19: x | DK19: x | DL19: x | DM19: x | DN19: x | DO19: x | DP19: x | DQ19: x | DR19: x | DS19: x | DT19: x | DU19: x | DV19: x
A20: 20 | B20: RZA250 | C20: Pi cooling | D20: x | E20: x | F20: x | G20: x | H20: x | I20: x | J20: x | K20: x | L20: x | M20: x | N20: x | O20: x | P20: x | Q20: x | R20: x | S20: x | T20: x | U20: x | V20: x | W20: x | X20: x | Y20: x | Z20: x | AA20: x | AB20: x | AC20: x | AD20: x | AE20: x | AF20: x | AG20: x | AH20: x | AI20: x | AJ20: x | AK20: x | AL20: x | AM20: x | AN20: x | AO20: x | AP20: x | AQ20: x | AR20: x | AS20: x | AT20: x | AU20: x | AV20: x | AW20: x | AX20: x | AY20: x | AZ20: x | BA20: x | BB20: x | BC20: x | BD20: x | BE20: x | BF20: x | BG20: x | BH20: x | BI20: x | BJ20: x | BK20: x | BL20: x | BM20: x | BN20: x | BO20: x | BP20: x | BQ20: x | BR20: x | BS20: x | BT20: x | BU20: x | BV20: x | BW20: x | BX20: x | BY20: x | BZ20: x | CA20: x | CB20: x | CC20: x | CD20: x | CE20: x | CF20: x | CG20: x | CH20: x | CI20: x | CJ20: x | CK20: x | CL20: x | CM20: x | CN20: x | CO20: x | CP20: x | CQ20: x | CR20: x | CS20: x | CT20: x | CU20: x | CV20: x | CW20: x | CX20: x | CY20: x | CZ20: x | DA20: x | DB20: x | DC20: x | DD20: x | DE20: x | DF20: x | DG20: x | DH20: x | DI20: x | DJ20: 8.76 | DK20: 7.75 | DL20: 8.07 | DM20: 7.6 | DN20: 8.1 | DO20: 8.09 | DP20: 7.44 | DQ20: 6.92 | DR20: 6.92 | DS20: 6.83 | DT20: 8.44 | DU20: 5.93 | DV20: 6.02
A21: 21
A22: 22 | B22: Pi topeni
A23: 23 | D23: FCAG71B | E23: FAA71B | F23: FVA71A | G23: FHA71A9 | H23: FUA71A | I23: FBA71A9 | J23: FCAG35B 2x | K23: FHA35A9 2x | L23: FFA35A9 2x | M23: FDXM35F9 2x | N23: FBA35A9 2x | O23: FNA35A9 2x | P23: FCAG100B | Q23: FAA100B | R23: FVA100A | S23: FHA100A | T23: FUA100A | U23: FBA100A | V23: FCAG50B 2x | W23: FHA50A9 2x | X23: FFA50A9 2x | Y23: FDXM50F9 2x | Z23: FBA50A9 2x | AA23: FNA50A9 2x | AB23: FCAG35B 3x | AC23: FHA35A9 3x | AD23: FFA35A9 3x | AE23: FDXM35F9 3x | AF23: FBA35A9 3x | AG23: FNA35A9 3x | AH23: FCAG125B | AI23: FDA125A | AJ23: FVA125A | AK23: FHA125A | AL23: FUA125A | AM23: FBA125A | AN23: FCAG60B 2x | AO23: FHA60A9 2x | AP23: FFA60A9 2x | AQ23: FDXM60F9 2x | AR23: FBA60A9 2x | AS23: FNA60A9 2x | AT23: FCAG50B 3x | AU23: FHA50A9 3x | AV23: FFA50A9 3x | AW23: FDXM50F9 3x | AX23: FBA50A9 3x | AY23: FNA50A9 3x | AZ23: FCAG35b 4x | BA23: FHA35A9 4x | BB23: FFA35A9 4x | BC23: FDXM35F9 4x | BD23: FBA35A9 4x | BE23: FNA35A9 4x | BF23: FCAG140B | BG23: FVA140A | BH23: FHA140A | BI23: FBA140A | BJ23: FCAG71B 2x | BK23: FAA71B 2x | BL23: FHA71A9 2x | BM23: FUA71A 2x | BN23: FBA71A9 2x | BO23: FVA71A 2x | BP23: FDXM35F9 | BQ23: FDXM50F9 | BR23: FDXM60F9 | BS23: FBA35A9 | BT23: FBA50A9 | BU23: FBA60A9 | BV23: FFA35A9 | BW23: FFA50A9 | BX23: FFA60A9 | BY23: FCAG35B | BZ23: FCAG50B | CA23: FCAG60B | CB23: FNA35A9 | CC23: FNA50A9 | CD23: FNA60A9 | CE23: FTXM35A | CF23: FTXM50A | CG23: FTXM60A | CH23: FHA35A9 | CI23: FHA50A9 | CJ23: FHA60A9 | CK23: FDA200A | CL23: FCAG100B 2x | CM23: FBA100A 2x | CN23: =CN3 -> FHA100A 2x | CO23: =CO3 -> FVA100A 2x | CP23: =CP3 -> FUA100A 2x | CQ23: FAA100B 2x | CR23: FCAG60B 3x | CS23: FCAG71B 3x | CT23: FBA60A9 3x | CU23: FBA71A9 3x | CV23: FHA60A9 3x | CW23: FHA71A9 3x | CX23: FFA60A9 3x | CY23: =CY3 -> FDXM60F9 3x | CZ23: =CZ3 -> FNA60A9 3x | DA23: =DA3 -> FVA71A 3x | DB23: =DB3 -> FUA71A 3x | DC23: =DC3 -> FAA71B 3x | DD23: =DD3 -> FCAG50B 4x | DE23: FBA50A9 4x | DF23: FHA50A9 4x | DG23: FFA50A9 4x | DH23: FDXM50F9 4x | DI23: FNA50A9 4x | DJ23: FDA250A | DK23: FCAG125B 2x | DL23: FBA125A 2x | DM23: FHA125A 2x | DN23: FVA125A 2x | DO23: FUA125A 2x | DP23: FDA125A 2x | DQ23: FCAG60B 4x | DR23: FBA60A9 4x | DS23: FHA60A9 4x | DT23: FFA60A9 4x | DU23: FDXM60F9 4x | DV23: FNA60A9 4x
A24: 24 | B24: RZAG71 | C24: Pi heating | D24: 2.02 | E24: 2.19 | F24: 2.21 | G24: 1.9 | H24: 1.73 | I24: 2.1 | J24: 1.53 | K24: 1.62 | L24: 1.74 | M24: 2.17 | N24: 1.82 | O24: 2.17 | P24: x | Q24: x | R24: x | S24: x | T24: x | U24: x | V24: x | W24: x | X24: x | Y24: x | Z24: x | AA24: x | AB24: x | AC24: x | AD24: x | AE24: x | AF24: x | AG24: x | AH24: x | AI24: x | AJ24: x | AK24: x | AL24: x | AM24: x | AN24: x | AO24: x | AP24: x | AQ24: x | AR24: x | AS24: x | AT24: x | AU24: x | AV24: x | AW24: x | AX24: x | AY24: x | AZ24: x | BA24: x | BB24: x | BC24: x | BD24: x | BE24: x | BF24: x | BG24: x | BH24: x | BI24: x | BJ24: x | BK24: x | BL24: x | BM24: x | BN24: x | BO24: x | BP24: x | BQ24: x | BR24: x | BS24: x | BT24: x | BU24: x | BV24: x | BW24: x | BX24: x | BY24: x | BZ24: x | CA24: x | CB24: x | CC24: x | CD24: x | CE24: x | CF24: x | CG24: x | CH24: x | CI24: x | CJ24: x | CK24: x | CL24: x | CM24: x | CN24: x | CO24: x | CP24: x | CQ24: x | CR24: x | CS24: x | CT24: x | CU24: x | CV24: x | CW24: x | CX24: x | CY24: x | CZ24: x | DA24: x | DB24: x | DC24: x | DD24: x | DE24: x | DF24: x | DG24: x | DH24: x | DI24: x | DJ24: x | DK24: x | DL24: x | DM24: x | DN24: x | DO24: x | DP24: x | DQ24: x | DR24: x | DS24: x | DT24: x | DU24: x | DV24: x
A25: 25 | B25: RZASG71 | C25: Pi heating | D25: 2.38 | E25: 2.09 | F25: 2.25 | G25: 2 | H25: 1.85 | I25: 2.09 | J25: 1.89 | K25: 1.55 | L25: 2.8 | M25: 2.02 | N25: 1.62 | O25: 2.02 | P25: x | Q25: x | R25: x | S25: x | T25: x | U25: x | V25: x | W25: x | X25: x | Y25: x | Z25: x | AA25: x | AB25: x | AC25: x | AD25: x | AE25: x | AF25: x | AG25: x | AH25: x | AI25: x | AJ25: x | AK25: x | AL25: x | AM25: x | AN25: x | AO25: x | AP25: x | AQ25: x | AR25: x | AS25: x | AT25: x | AU25: x | AV25: x | AW25: x | AX25: x | AY25: x | AZ25: x | BA25: x | BB25: x | BC25: x | BD25: x | BE25: x | BF25: x | BG25: x | BH25: x | BI25: x | BJ25: x | BK25: x | BL25: x | BM25: x | BN25: x | BO25: x | BP25: x | BQ25: x | BR25: x | BS25: x | BT25: x | BU25: x | BV25: x | BW25: x | BX25: x | BY25: x | BZ25: x | CA25: x | CB25: x | CC25: x | CD25: x | CE25: x | CF25: x | CG25: x | CH25: x | CI25: x | CJ25: x | CK25: x | CL25: x | CM25: x | CN25: x | CO25: x | CP25: x | CQ25: x | CR25: x | CS25: x | CT25: x | CU25: x | CV25: x | CW25: x | CX25: x | CY25: x | CZ25: x | DA25: x | DB25: x | DC25: x | DD25: x | DE25: x | DF25: x | DG25: x | DH25: x | DI25: x | DJ25: x | DK25: x | DL25: x | DM25: x | DN25: x | DO25: x | DP25: x | DQ25: x | DR25: x | DS25: x | DT25: x | DU25: x | DV25: x
A26: 26 | B26: AZAS71 | C26: Pi heating | D26: 2.38 | E26: 2.09 | F26: x | G26: x | H26: x | I26: 2.09 | J26: x | K26: x | L26: x | M26: x | N26: x | O26: x | P26: x | Q26: x | R26: x | S26: x | T26: x | U26: x | V26: x | W26: x | X26: x | Y26: x | Z26: x | AA26: x | AB26: x | AC26: x | AD26: x | AE26: x | AF26: x | AG26: x | AH26: x | AI26: x | AJ26: x | AK26: x | AL26: x | AM26: x | AN26: x | AO26: x | AP26: x | AQ26: x | AR26: x | AS26: x | AT26: x | AU26: x | AV26: x | AW26: x | AX26: x | AY26: x | AZ26: x | BA26: x | BB26: x | BC26: x | BD26: x | BE26: x | BF26: x | BG26: x | BH26: x | BI26: x | BJ26: x | BK26: x | BL26: x | BM26: x | BN26: x | BO26: x | BP26: x | BQ26: x | BR26: x | BS26: x | BT26: x | BU26: x | BV26: x | BW26: x | BX26: x | BY26: x | BZ26: x | CA26: x | CB26: x | CC26: x | CD26: x | CE26: x | CF26: x | CG26: x | CH26: x | CI26: x | CJ26: x | CK26: x | CL26: x | CM26: x | CN26: x | CO26: x | CP26: x | CQ26: x | CR26: x | CS26: x | CT26: x | CU26: x | CV26: x | CW26: x | CX26: x | CY26: x | CZ26: x | DA26: x | DB26: x | DC26: x | DD26: x | DE26: x | DF26: x | DG26: x | DH26: x | DI26: x | DJ26: x | DK26: x | DL26: x | DM26: x | DN26: x | DO26: x | DP26: x | DQ26: x | DR26: x | DS26: x | DT26: x | DU26: x | DV26: x
A27: 27 | B27: RZAG100 | C27: Pi heating | D27: x | E27: x | F27: x | G27: x | H27: x | I27: x | J27: x | K27: x | L27: x | M27: x | N27: x | O27: x | P27: 2.72 | Q27: 3.45 | R27: 2.88 | S27: 2.58 | T27: 2.62 | U27: 2.78 | V27: 2.04 | W27: 2.55 | X27: 3.16 | Y27: 2.47 | Z27: 2.68 | AA27: 2.47 | AB27: 2.07 | AC27: 2.06 | AD27: 3.14 | AE27: 2.85 | AF27: 2.23 | AG27: 2.85 | AH27: x | AI27: x | AJ27: x | AK27: x | AL27: x | AM27: x | AN27: x | AO27: x | AP27: x | AQ27: x | AR27: x | AS27: x | AT27: x | AU27: x | AV27: x | AW27: x | AX27: x | AY27: x | AZ27: x | BA27: x | BB27: x | BC27: x | BD27: x | BE27: x | BF27: x | BG27: x | BH27: x | BI27: x | BJ27: x | BK27: x | BL27: x | BM27: x | BN27: x | BO27: x | BP27: x | BQ27: x | BR27: x | BS27: x | BT27: x | BU27: x | BV27: x | BW27: x | BX27: x | BY27: x | BZ27: x | CA27: x | CB27: x | CC27: x | CD27: x | CE27: x | CF27: x | CG27: x | CH27: x | CI27: x | CJ27: x | CK27: x | CL27: x | CM27: x | CN27: x | CO27: x | CP27: x | CQ27: x | CR27: x | CS27: x | CT27: x | CU27: x | CV27: x | CW27: x | CX27: x | CY27: x | CZ27: x | DA27: x | DB27: x | DC27: x | DD27: x | DE27: x | DF27: x | DG27: x | DH27: x | DI27: x | DJ27: x | DK27: x | DL27: x | DM27: x | DN27: x | DO27: x | DP27: x | DQ27: x | DR27: x | DS27: x | DT27: x | DU27: x | DV27: x
A28: 28 | B28: RZASG100 | C28: Pi heating | D28: x | E28: x | F28: x | G28: x | H28: x | I28: x | J28: x | K28: x | L28: x | M28: x | N28: x | O28: x | P28: 3.45 | Q28: 3.98 | R28: 3.47 | S28: 3.43 | T28: 3.2 | U28: 3.32 | V28: 3.33 | W28: 3.26 | X28: 3.89 | Y28: 2.96 | Z28: x | AA28: 2.96 | AB28: 2.3 | AC28: 2.66 | AD28: 3.87 | AE28: 3.13 | AF28: x | AG28: 3.13 | AH28: x | AI28: x | AJ28: x | AK28: x | AL28: x | AM28: x | AN28: x | AO28: x | AP28: x | AQ28: x | AR28: x | AS28: x | AT28: x | AU28: x | AV28: x | AW28: x | AX28: x | AY28: x | AZ28: x | BA28: x | BB28: x | BC28: x | BD28: x | BE28: x | BF28: x | BG28: x | BH28: x | BI28: x | BJ28: x | BK28: x | BL28: x | BM28: x | BN28: x | BO28: x | BP28: x | BQ28: x | BR28: x | BS28: x | BT28: x | BU28: x | BV28: x | BW28: x | BX28: x | BY28: x | BZ28: x | CA28: x | CB28: x | CC28: x | CD28: x | CE28: x | CF28: x | CG28: x | CH28: x | CI28: x | CJ28: x | CK28: x | CL28: x | CM28: x | CN28: x | CO28: x | CP28: x | CQ28: x | CR28: x | CS28: x | CT28: x | CU28: x | CV28: x | CW28: x | CX28: x | CY28: x | CZ28: x | DA28: x | DB28: x | DC28: x | DD28: x | DE28: x | DF28: x | DG28: x | DH28: x | DI28: x | DJ28: x | DK28: x | DL28: x | DM28: x | DN28: x | DO28: x | DP28: x | DQ28: x | DR28: x | DS28: x | DT28: x | DU28: x | DV28: x
A29: 29 | B29: AZAS100 | C29: Pi heating | D29: x | E29: x | F29: x | G29: x | H29: x | I29: x | J29: x | K29: x | L29: x | M29: x | N29: x | O29: x | P29: 3.45 | Q29: 3.98 | R29: x | S29: x | T29: x | U29: 3.32 | V29: x | W29: x | X29: x | Y29: x | Z29: x | AA29: x | AB29: x | AC29: x | AD29: x | AE29: x | AF29: x | AG29: x | AH29: x | AI29: x | AJ29: x | AK29: x | AL29: x | AM29: x | AN29: x | AO29: x | AP29: x | AQ29: x | AR29: x | AS29: x | AT29: x | AU29: x | AV29: x | AW29: x | AX29: x | AY29: x | AZ29: x | BA29: x | BB29: x | BC29: x | BD29: x | BE29: x | BF29: x | BG29: x | BH29: x | BI29: x | BJ29: x | BK29: x | BL29: x | BM29: x | BN29: x | BO29: x | BP29: x | BQ29: x | BR29: x | BS29: x | BT29: x | BU29: x | BV29: x | BW29: x | BX29: x | BY29: x | BZ29: x | CA29: x | CB29: x | CC29: x | CD29: x | CE29: x | CF29: x | CG29: x | CH29: x | CI29: x | CJ29: x | CK29: x | CL29: x | CM29: x | CN29: x | CO29: x | CP29: x | CQ29: x | CR29: x | CS29: x | CT29: x | CU29: x | CV29: x | CW29: x | CX29: x | CY29: x | CZ29: x | DA29: x | DB29: x | DC29: x | DD29: x | DE29: x | DF29: x | DG29: x | DH29: x | DI29: x | DJ29: x | DK29: x | DL29: x | DM29: x | DN29: x | DO29: x | DP29: x | DQ29: x | DR29: x | DS29: x | DT29: x | DU29: x | DV29: x
A30: 30 | B30: RZAG125 | C30: Pi heating | D30: x | E30: x | F30: x | G30: x | H30: x | I30: x | J30: x | K30: x | L30: x | M30: x | N30: x | O30: x | P30: x | Q30: x | R30: x | S30: x | T30: x | U30: x | V30: x | W30: x | X30: x | Y30: x | Z30: x | AA30: x | AB30: x | AC30: x | AD30: x | AE30: x | AF30: x | AG30: x | AH30: 5.83 | AI30: 3.61 | AJ30: 4.63 | AK30: 4.21 | AL30: 4.24 | AM30: 3.75 | AN30: 3.42 | AO30: 4.31 | AP30: 3.63 | AQ30: 3.63 | AR30: 3.32 | AS30: 3.63 | AT30: 2.48 | AU30: 3.28 | AV30: 3.26 | AW30: 2.92 | AX30: 3.13 | AY30: 2.92 | AZ30: 2.59 | BA30: 2.86 | BB30: 3.5 | BC30: 3.44 | BD30: 2.87 | BE30: 3.44 | BF30: x | BG30: x | BH30: x | BI30: x | BJ30: x | BK30: x | BL30: x | BM30: x | BN30: x | BO30: x | BP30: x | BQ30: x | BR30: x | BS30: x | BT30: x | BU30: x | BV30: x | BW30: x | BX30: x | BY30: x | BZ30: x | CA30: x | CB30: x | CC30: x | CD30: x | CE30: x | CF30: x | CG30: x | CH30: x | CI30: x | CJ30: x | CK30: x | CL30: x | CM30: x | CN30: x | CO30: x | CP30: x | CQ30: x | CR30: x | CS30: x | CT30: x | CU30: x | CV30: x | CW30: x | CX30: x | CY30: x | CZ30: x | DA30: x | DB30: x | DC30: x | DD30: x | DE30: x | DF30: x | DG30: x | DH30: x | DI30: x | DJ30: x | DK30: x | DL30: x | DM30: x | DN30: x | DO30: x | DP30: x | DQ30: x | DR30: x | DS30: x | DT30: x | DU30: x | DV30: x
A31: 31 | B31: RZASG125 | C31: Pi heating | D31: x | E31: x | F31: x | G31: x | H31: x | I31: x | J31: x | K31: x | L31: x | M31: x | N31: x | O31: x | P31: x | Q31: x | R31: x | S31: x | T31: x | U31: x | V31: x | W31: x | X31: x | Y31: x | Z31: x | AA31: x | AB31: x | AC31: x | AD31: x | AE31: x | AF31: x | AG31: x | AH31: 3.44 | AI31: 3.18 | AJ31: 3.6 | AK31: 3.35 | AL31: 3.24 | AM31: 3.23 | AN31: 3.29 | AO31: 3.23 | AP31: 3.39 | AQ31: 3.29 | AR31: 3.15 | AS31: 3.29 | AT31: 2.94 | AU31: 2.94 | AV31: 3.18 | AW31: 2.92 | AX31: 3.08 | AY31: 2.92 | AZ31: 2.63 | BA31: 2.75 | BB31: 3.33 | BC31: 3.2 | BD31: 2.8 | BE31: 3.2 | BF31: x | BG31: x | BH31: x | BI31: x | BJ31: x | BK31: x | BL31: x | BM31: x | BN31: x | BO31: x | BP31: x | BQ31: x | BR31: x | BS31: x | BT31: x | BU31: x | BV31: x | BW31: x | BX31: x | BY31: x | BZ31: x | CA31: x | CB31: x | CC31: x | CD31: x | CE31: x | CF31: x | CG31: x | CH31: x | CI31: x | CJ31: x | CK31: x | CL31: x | CM31: x | CN31: x | CO31: x | CP31: x | CQ31: x | CR31: x | CS31: x | CT31: x | CU31: x | CV31: x | CW31: x | CX31: x | CY31: x | CZ31: x | DA31: x | DB31: x | DC31: x | DD31: x | DE31: x | DF31: x | DG31: x | DH31: x | DI31: x | DJ31: x | DK31: x | DL31: x | DM31: x | DN31: x | DO31: x | DP31: x | DQ31: x | DR31: x | DS31: x | DT31: x | DU31: x | DV31: x
A32: 32 | B32: AZAS125 | C32: Pi heating | D32: x | E32: x | F32: x | G32: x | H32: x | I32: x | J32: x | K32: x | L32: x | M32: x | N32: x | O32: x | P32: x | Q32: x | R32: x | S32: x | T32: x | U32: x | V32: x | W32: x | X32: x | Y32: x | Z32: x | AA32: x | AB32: x | AC32: x | AD32: x | AE32: x | AF32: x | AG32: x | AH32: 3.44 | AI32: x | AJ32: x | AK32: x | AL32: x | AM32: 3.23 | AN32: x | AO32: x | AP32: x | AQ32: x | AR32: x | AS32: x | AT32: x | AU32: x | AV32: x | AW32: x | AX32: x | AY32: x | AZ32: x | BA32: x | BB32: x | BC32: x | BD32: x | BE32: x | BF32: x | BG32: x | BH32: x | BI32: x | BJ32: x | BK32: x | BL32: x | BM32: x | BN32: x | BO32: x | BP32: x | BQ32: x | BR32: x | BS32: x | BT32: x | BU32: x | BV32: x | BW32: x | BX32: x | BY32: x | BZ32: x | CA32: x | CB32: x | CC32: x | CD32: x | CE32: x | CF32: x | CG32: x | CH32: x | CI32: x | CJ32: x | CK32: x | CL32: x | CM32: x | CN32: x | CO32: x | CP32: x | CQ32: x | CR32: x | CS32: x | CT32: x | CU32: x | CV32: x | CW32: x | CX32: x | CY32: x | CZ32: x | DA32: x | DB32: x | DC32: x | DD32: x | DE32: x | DF32: x | DG32: x | DH32: x | DI32: x | DJ32: x | DK32: x | DL32: x | DM32: x | DN32: x | DO32: x | DP32: x | DQ32: x | DR32: x | DS32: x | DT32: x | DU32: x | DV32: x
A33: 33 | B33: RZAG140 | C33: Pi heating | D33: x | E33: x | F33: x | G33: x | H33: x | I33: x | J33: x | K33: x | L33: x | M33: x | N33: x | O33: x | P33: x | Q33: x | R33: x | S33: x | T33: x | U33: x | V33: x | W33: x | X33: x | Y33: x | Z33: x | AA33: x | AB33: x | AC33: x | AD33: x | AE33: x | AF33: x | AG33: x | AH33: x | AI33: x | AJ33: x | AK33: x | AL33: x | AM33: x | AN33: x | AO33: x | AP33: x | AQ33: x | AR33: x | AS33: x | AT33: 4.46 | AU33: 2.9 | AV33: 5.18 | AW33: 3.96 | AX33: 4.29 | AY33: 3.96 | AZ33: 5.84 | BA33: 3.31 | BB33: 5.6 | BC33: 4.67 | BD33: 3.81 | BE33: 4.67 | BF33: 5.83 | BG33: 5.56 | BH33: 3.46 | BI33: 5.04 | BJ33: 4.79 | BK33: 3.05 | BL33: 3.1 | BM33: 2.9 | BN33: 4.82 | BO33: 5.24 | BP33: x | BQ33: x | BR33: x | BS33: x | BT33: x | BU33: x | BV33: x | BW33: x | BX33: x | BY33: x | BZ33: x | CA33: x | CB33: x | CC33: x | CD33: x | CE33: x | CF33: x | CG33: x | CH33: x | CI33: x | CJ33: x | CK33: x | CL33: x | CM33: x | CN33: x | CO33: x | CP33: x | CQ33: x | CR33: x | CS33: x | CT33: x | CU33: x | CV33: x | CW33: x | CX33: x | CY33: x | CZ33: x | DA33: x | DB33: x | DC33: x | DD33: x | DE33: x | DF33: x | DG33: x | DH33: x | DI33: x | DJ33: x | DK33: x | DL33: x | DM33: x | DN33: x | DO33: x | DP33: x | DQ33: x | DR33: x | DS33: x | DT33: x | DU33: x | DV33: x
A34: 34 | B34: RZASG140 | C34: Pi heating | D34: x | E34: x | F34: x | G34: x | H34: x | I34: x | J34: x | K34: x | L34: x | M34: x | N34: x | O34: x | P34: x | Q34: x | R34: x | S34: x | T34: x | U34: x | V34: x | W34: x | X34: x | Y34: x | Z34: x | AA34: x | AB34: x | AC34: x | AD34: x | AE34: x | AF34: x | AG34: x | AH34: x | AI34: x | AJ34: x | AK34: x | AL34: x | AM34: x | AN34: x | AO34: x | AP34: x | AQ34: x | AR34: x | AS34: x | AT34: 4.34 | AU34: 4.21 | AV34: 5.15 | AW34: 4.12 | AX34: 4.43 | AY34: 4.12 | AZ34: 3.97 | BA34: 3.58 | BB34: 5.62 | BC34: 4.93 | BD34: 4.03 | BE34: 4.93 | BF34: 5.01 | BG34: 5.43 | BH34: 5.59 | BI34: 5.13 | BJ34: 4.72 | BK34: 4.85 | BL34: 4.58 | BM34: 4.22 | BN34: 5.01 | BO34: 5.21 | BP34: x | BQ34: x | BR34: x | BS34: x | BT34: x | BU34: x | BV34: x | BW34: x | BX34: x | BY34: x | BZ34: x | CA34: x | CB34: x | CC34: x | CD34: x | CE34: x | CF34: x | CG34: x | CH34: x | CI34: x | CJ34: x | CK34: x | CL34: x | CM34: x | CN34: x | CO34: x | CP34: x | CQ34: x | CR34: x | CS34: x | CT34: x | CU34: x | CV34: x | CW34: x | CX34: x | CY34: x | CZ34: x | DA34: x | DB34: x | DC34: x | DD34: x | DE34: x | DF34: x | DG34: x | DH34: x | DI34: x | DJ34: x | DK34: x | DL34: x | DM34: x | DN34: x | DO34: x | DP34: x | DQ34: x | DR34: x | DS34: x | DT34: x | DU34: x | DV34: x
A35: 35 | B35: AZAS140 | C35: Pi heating | D35: x | E35: x | F35: x | G35: x | H35: x | I35: x | J35: x | K35: x | L35: x | M35: x | N35: x | O35: x | P35: x | Q35: x | R35: x | S35: x | T35: x | U35: x | V35: x | W35: x | X35: x | Y35: x | Z35: x | AA35: x | AB35: x | AC35: x | AD35: x | AE35: x | AF35: x | AG35: x | AH35: x | AI35: x | AJ35: x | AK35: x | AL35: x | AM35: x | AN35: x | AO35: x | AP35: x | AQ35: x | AR35: x | AS35: x | AT35: x | AU35: x | AV35: x | AW35: x | AX35: x | AY35: x | AZ35: x | BA35: x | BB35: x | BC35: x | BD35: x | BE35: x | BF35: 5.01 | BG35: x | BH35: x | BI35: 5.13 | BJ35: x | BK35: x | BL35: x | BM35: x | BN35: x | BO35: x | BP35: x | BQ35: x | BR35: x | BS35: x | BT35: x | BU35: x | BV35: x | BW35: x | BX35: x | BY35: x | BZ35: x | CA35: x | CB35: x | CC35: x | CD35: x | CE35: x | CF35: x | CG35: x | CH35: x | CI35: x | CJ35: x | CK35: x | CL35: x | CM35: x | CN35: x | CO35: x | CP35: x | CQ35: x | CR35: x | CS35: x | CT35: x | CU35: x | CV35: x | CW35: x | CX35: x | CY35: x | CZ35: x | DA35: x | DB35: x | DC35: x | DD35: x | DE35: x | DF35: x | DG35: x | DH35: x | DI35: x | DJ35: x | DK35: x | DL35: x | DM35: x | DN35: x | DO35: x | DP35: x | DQ35: x | DR35: x | DS35: x | DT35: x | DU35: x | DV35: x
A36: 36 | B36: RZAG35 | C36: Pi heating | D36: x | E36: x | F36: x | G36: x | H36: x | I36: x | J36: x | K36: x | L36: x | M36: x | N36: x | O36: x | P36: x | Q36: x | R36: x | S36: x | T36: x | U36: x | V36: x | W36: x | X36: x | Y36: x | Z36: x | AA36: x | AB36: x | AC36: x | AD36: x | AE36: x | AF36: x | AG36: x | AH36: x | AI36: x | AJ36: x | AK36: x | AL36: x | AM36: x | AN36: x | AO36: x | AP36: x | AQ36: x | AR36: x | AS36: x | AT36: x | AU36: x | AV36: x | AW36: x | AX36: x | AY36: x | AZ36: x | BA36: x | BB36: x | BC36: x | BD36: x | BE36: x | BF36: x | BG36: x | BH36: x | BI36: x | BJ36: x | BK36: x | BL36: x | BM36: x | BN36: x | BO36: x | BP36: 1.14 | BQ36: x | BR36: x | BS36: 0.91 | BT36: x | BU36: x | BV36: 1.08 | BW36: x | BX36: x | BY36: 0.93 | BZ36: x | CA36: x | CB36: 1.14 | CC36: x | CD36: x | CE36: 1.04 | CF36: x | CG36: x | CH36: 0.98 | CI36: x | CJ36: x | CK36: x | CL36: x | CM36: x | CN36: x | CO36: x | CP36: x | CQ36: x | CR36: x | CS36: x | CT36: x | CU36: x | CV36: x | CW36: x | CX36: x | CY36: x | CZ36: x | DA36: x | DB36: x | DC36: x | DD36: x | DE36: x | DF36: x | DG36: x | DH36: x | DI36: x | DJ36: x | DK36: x | DL36: x | DM36: x | DN36: x | DO36: x | DP36: x | DQ36: x | DR36: x | DS36: x | DT36: x | DU36: x | DV36: x
A37: 37 | B37: RZAG50 | C37: Pi heating | D37: x | E37: x | F37: x | G37: x | H37: x | I37: x | J37: x | K37: x | L37: x | M37: x | N37: x | O37: x | P37: x | Q37: x | R37: x | S37: x | T37: x | U37: x | V37: x | W37: x | X37: x | Y37: x | Z37: x | AA37: x | AB37: x | AC37: x | AD37: x | AE37: x | AF37: x | AG37: x | AH37: x | AI37: x | AJ37: x | AK37: x | AL37: x | AM37: x | AN37: x | AO37: x | AP37: x | AQ37: x | AR37: x | AS37: x | AT37: x | AU37: x | AV37: x | AW37: x | AX37: x | AY37: x | AZ37: x | BA37: x | BB37: x | BC37: x | BD37: x | BE37: x | BF37: x | BG37: x | BH37: x | BI37: x | BJ37: x | BK37: x | BL37: x | BM37: x | BN37: x | BO37: x | BP37: x | BQ37: 1.47 | BR37: x | BS37: x | BT37: 1.58 | BU37: x | BV37: x | BW37: 1.87 | BX37: x | BY37: x | BZ37: 1.56 | CA37: x | CB37: x | CC37: 1.47 | CD37: x | CE37: x | CF37: 1.5 | CG37: x | CH37: x | CI37: 1.56 | CJ37: x | CK37: x | CL37: x | CM37: x | CN37: x | CO37: x | CP37: x | CQ37: x | CR37: x | CS37: x | CT37: x | CU37: x | CV37: x | CW37: x | CX37: x | CY37: x | CZ37: x | DA37: x | DB37: x | DC37: x | DD37: x | DE37: x | DF37: x | DG37: x | DH37: x | DI37: x | DJ37: x | DK37: x | DL37: x | DM37: x | DN37: x | DO37: x | DP37: x | DQ37: x | DR37: x | DS37: x | DT37: x | DU37: x | DV37: x
A38: 38 | B38: RZAG60 | C38: Pi heating | D38: x | E38: x | F38: x | G38: x | H38: x | I38: x | J38: x | K38: x | L38: x | M38: x | N38: x | O38: x | P38: x | Q38: x | R38: x | S38: x | T38: x | U38: x | V38: x | W38: x | X38: x | Y38: x | Z38: x | AA38: x | AB38: x | AC38: x | AD38: x | AE38: x | AF38: x | AG38: x | AH38: x | AI38: x | AJ38: x | AK38: x | AL38: x | AM38: x | AN38: x | AO38: x | AP38: x | AQ38: x | AR38: x | AS38: x | AT38: x | AU38: x | AV38: x | AW38: x | AX38: x | AY38: x | AZ38: x | BA38: x | BB38: x | BC38: x | BD38: x | BE38: x | BF38: x | BG38: x | BH38: x | BI38: x | BJ38: x | BK38: x | BL38: x | BM38: x | BN38: x | BO38: x | BP38: x | BQ38: x | BR38: 2.12 | BS38: x | BT38: x | BU38: 2.06 | BV38: x | BW38: x | BX38: 2.41 | BY38: x | BZ38: x | CA38: 2.06 | CB38: x | CC38: x | CD38: 2.12 | CE38: x | CF38: x | CG38: 1.94 | CH38: x | CI38: x | CJ38: 2.06 | CK38: x | CL38: x | CM38: x | CN38: x | CO38: x | CP38: x | CQ38: x | CR38: x | CS38: x | CT38: x | CU38: x | CV38: x | CW38: x | CX38: x | CY38: x | CZ38: x | DA38: x | DB38: x | DC38: x | DD38: x | DE38: x | DF38: x | DG38: x | DH38: x | DI38: x | DJ38: x | DK38: x | DL38: x | DM38: x | DN38: x | DO38: x | DP38: x | DQ38: x | DR38: x | DS38: x | DT38: x | DU38: x | DV38: x
A39: 39 | B39: RZA200 | C39: Pi heating | D39: x | E39: x | F39: x | G39: x | H39: x | I39: x | J39: x | K39: x | L39: x | M39: x | N39: x | O39: x | P39: x | Q39: x | R39: x | S39: x | T39: x | U39: x | V39: x | W39: x | X39: x | Y39: x | Z39: x | AA39: x | AB39: x | AC39: x | AD39: x | AE39: x | AF39: x | AG39: x | AH39: x | AI39: x | AJ39: x | AK39: x | AL39: x | AM39: x | AN39: x | AO39: x | AP39: x | AQ39: x | AR39: x | AS39: x | AT39: x | AU39: x | AV39: x | AW39: x | AX39: x | AY39: x | AZ39: x | BA39: x | BB39: x | BC39: x | BD39: x | BE39: x | BF39: x | BG39: x | BH39: x | BI39: x | BJ39: x | BK39: x | BL39: x | BM39: x | BN39: x | BO39: x | BP39: x | BQ39: x | BR39: x | BS39: x | BT39: x | BU39: x | BV39: x | BW39: x | BX39: x | BY39: x | BZ39: x | CA39: x | CB39: x | CC39: x | CD39: x | CE39: x | CF39: x | CG39: x | CH39: x | CI39: x | CJ39: x | CK39: =6.93 -> 6.93 | CL39: 6.52 | CM39: 6.49 | CN39: 6.63 | CO39: 6.74 | CP39: 6.19 | CQ39: 7.77 | CR39: 7.16 | CS39: 6.37 | CT39: 6.43 | CU39: 6.57 | CV39: 7.13 | CW39: 6.41 | CX39: 7.69 | CY39: 6.83 | CZ39: 6.73 | DA39: 7.1 | DB39: 6.05 | DC39: 6.73 | DD39: 6.4 | DE39: 6.2 | DF39: 6.34 | DG39: 7.54 | DH39: 5.94 | DI39: 5.83 | DJ39: x | DK39: x | DL39: x | DM39: x | DN39: x | DO39: x | DP39: x | DQ39: x | DR39: x | DS39: x | DT39: x | DU39: x | DV39: x
A40: 40 | B40: RZA250 | C40: Pi heating | D40: x | E40: x | F40: x | G40: x | H40: x | I40: x | J40: x | K40: x | L40: x | M40: x | N40: x | O40: x | P40: x | Q40: x | R40: x | S40: x | T40: x | U40: x | V40: x | W40: x | X40: x | Y40: x | Z40: x | AA40: x | AB40: x | AC40: x | AD40: x | AE40: x | AF40: x | AG40: x | AH40: x | AI40: x | AJ40: x | AK40: x | AL40: x | AM40: x | AN40: x | AO40: x | AP40: x | AQ40: x | AR40: x | AS40: x | AT40: x | AU40: x | AV40: x | AW40: x | AX40: x | AY40: x | AZ40: x | BA40: x | BB40: x | BC40: x | BD40: x | BE40: x | BF40: x | BG40: x | BH40: x | BI40: x | BJ40: x | BK40: x | BL40: x | BM40: x | BN40: x | BO40: x | BP40: x | BQ40: x | BR40: x | BS40: x | BT40: x | BU40: x | BV40: x | BW40: x | BX40: x | BY40: x | BZ40: x | CA40: x | CB40: x | CC40: x | CD40: x | CE40: x | CF40: x | CG40: x | CH40: x | CI40: x | CJ40: x | CK40: x | CL40: x | CM40: x | CN40: x | CO40: x | CP40: x | CQ40: x | CR40: x | CS40: x | CT40: x | CU40: x | CV40: x | CW40: x | CX40: x | CY40: x | CZ40: x | DA40: x | DB40: x | DC40: x | DD40: x | DE40: x | DF40: x | DG40: x | DH40: x | DI40: x | DJ40: 7.69 | DK40: 7.56 | DL40: 7.52 | DM40: 7.41 | DN40: 7.52 | DO40: 6.9 | DP40: 6.94 | DQ40: 6.43 | DR40: 6.43 | DS40: 7.33 | DT40: 7.53 | DU40: 6.83 | DV40: 6.75
A41: 41 | B41: refnety
A42: 42 | D42: FCAG71B | E42: FAA71B | F42: FVA71A | G42: FHA71A9 | H42: FUA71A | I42: FBA71A9 | J42: FCAG35B 2x | K42: FHA35A9 2x | L42: FFA35A9 2x | M42: FDXM35F9 2x | N42: FBA35A9 2x | O42: FNA35A9 2x | P42: FCAG100B | Q42: FAA100B | R42: FVA100A | S42: FHA100A | T42: FUA100A | U42: FBA100A | V42: FCAG50B 2x | W42: FHA50A9 2x | X42: FFA50A9 2x | Y42: FDXM50F9 2x | Z42: FBA50A9 2x | AA42: FNA50A9 2x | AB42: FCAG35B 3x | AC42: FHA35A9 3x | AD42: FFA35A9 3x | AE42: FDXM35F9 3x | AF42: FBA35A9 3x | AG42: FNA35A9 3x | AH42: FCAG125B | AI42: FDA125A | AJ42: FVA125A | AK42: FHA125A | AL42: FUA125A | AM42: FBA125A | AN42: FCAG60B 2x | AO42: FHA60A9 2x | AP42: FFA60A9 2x | AQ42: FDXM60F9 2x | AR42: FBA60A9 2x | AS42: FNA60A9 2x | AT42: FCAG50B 3x | AU42: FHA50A9 3x | AV42: FFA50A9 3x | AW42: FDXM50F9 3x | AX42: FBA50A9 3x | AY42: FNA50A9 3x | AZ42: FCAG35b 4x | BA42: FHA35A9 4x | BB42: FFA35A9 4x | BC42: FDXM35F9 4x | BD42: FBA35A9 4x | BE42: FNA35A9 4x | BF42: FCAG140B | BG42: FVA140A | BH42: FHA140A | BI42: FBA140A | BJ42: FCAG71B 2x | BK42: FAA71B 2x | BL42: FHA71A9 2x | BM42: FUA71A 2x | BN42: FBA71A9 2x | BO42: FVA71A 2x | BP42: FDXM35F9 | BQ42: FDXM50F9 | BR42: FDXM60F9 | BS42: FBA35A9 | BT42: FBA50A9 | BU42: FBA60A9 | BV42: FFA35A9 | BW42: FFA50A9 | BX42: FFA60A9 | BY42: FCAG35B | BZ42: FCAG50B | CA42: FCAG60B | CB42: FNA35A9 | CC42: FNA50A9 | CD42: FNA60A9 | CE42: FTXM35A | CF42: FTXM50A | CG42: FTXM60A | CH42: FHA35A9 | CI42: FHA50A9 | CJ42: FHA60A9 | CK42: FDA200A | CL42: =CL3 -> FCAG100B 2x | CM42: =CM3 -> FBA100A 2x | CN42: =CN3 -> FHA100A 2x | CO42: FVA100A 2x | CP42: FUA100A 2x | CQ42: FAA100B 2x | CR42: FCAG60B 3x | CS42: FCAG71B 3x | CT42: FBA60A9 3x | CU42: FBA71A9 3x | CV42: FHA60A9 3x | CW42: FHA71A9 3x | CX42: FFA60A9 3x | CY42: FDXM60F9 3x | CZ42: FNA60A9 3x | DA42: FVA71A 3x | DB42: FUA71A 3x | DC42: FAA71B 3x | DD42: FCAG50B 4x | DE42: FBA50A9 4x | DF42: FHA50A9 4x | DG42: FFA50A9 4x | DH42: FDXM50F9 4x | DI42: FNA50A9 4x | DJ42: FDA250A | DK42: FCAG125B 2x | DL42: FBA125A 2x | DM42: FHA125A 2x | DN42: FVA125A 2x | DO42: FUA125A 2x | DP42: FDA125A 2x | DQ42: FCAG60B 4x | DR42: FBA60A9 4x | DS42: FHA60A9 4x | DT42: FFA60A9 4x | DU42: FDXM60F9 4x | DV42: FNA60A9 4x
A43: 43 | B43: RZAG71 | J43: KHRQ58T | K43: KHRQ58T | L43: KHRQ58T | M43: KHRQ58T | N43: KHRQ58T | O43: KHRQ58T
A44: 44 | B44: RZASG71 | J44: KHRQ58T | K44: KHRQ58T | L44: KHRQ58T | M44: KHRQ58T | N44: KHRQ58T | O44: KHRQ58T
A45: 45 | B45: AZAS71
A46: 46 | B46: RZAG100 | V46: KHRQ58T | W46: KHRQ58T | X46: KHRQ58T | Y46: KHRQ58T | Z46: KHRQ58T | AA46: KHRQ58T | AB46: KHRQ58H | AC46: KHRQ58H | AD46: KHRQ58H | AE46: KHRQ58H | AF46: KHRQ58H | AG46: KHRQ58H
A47: 47 | B47: RZASG100 | V47: KHRQ58T | W47: KHRQ58T | X47: KHRQ58T | Y47: KHRQ58T | Z47: KHRQ58T | AA47: KHRQ58T | AB47: KHRQ58H | AC47: KHRQ58H | AD47: KHRQ58H | AE47: KHRQ58H | AF47: KHRQ58H | AG47: KHRQ58H
A48: 48 | B48: AZAS100
A49: 49 | B49: RZAG125 | AN49: KHRQ58T | AO49: KHRQ58T | AP49: KHRQ58T | AQ49: KHRQ58T | AR49: KHRQ58T | AS49: KHRQ58T | AT49: KHRQ58H | AU49: KHRQ58H | AV49: KHRQ58H | AW49: KHRQ58H | AX49: KHRQ58H | AY49: KHRQ58H | AZ49: 3 KHRQ58T | BA49: 3 KHRQ58T | BB49: 3 KHRQ58T | BC49: 3 KHRQ58T | BD49: 3 KHRQ58T | BE49: 3 KHRQ58T
A50: 50 | B50: RZASG125 | AN50: KHRQ58T | AO50: KHRQ58T | AP50: KHRQ58T | AQ50: KHRQ58T | AR50: KHRQ58T | AS50: KHRQ58T | AT50: KHRQ58H | AU50: KHRQ58H | AV50: KHRQ58H | AW50: KHRQ58H | AX50: KHRQ58H | AY50: KHRQ58H | AZ50: 3 KHRQ58T | BA50: 3 KHRQ58T | BB50: 3 KHRQ58T | BC50: 3 KHRQ58T | BD50: 3 KHRQ58T | BE50: 3 KHRQ58T
A51: 51 | B51: AZAS125
A52: 52 | B52: RZAG140 | AT52: KHRQ58H | AU52: KHRQ58H | AV52: KHRQ58H | AW52: KHRQ58H | AX52: KHRQ58H | AY52: KHRQ58H | AZ52: 3 KHRQ58T | BA52: 3 KHRQ58T | BB52: 3 KHRQ58T | BC52: 3 KHRQ58T | BD52: 3 KHRQ58T | BE52: 3 KHRQ58T | BJ52: KHRQ58T | BK52: KHRQ58T | BL52: KHRQ58T | BM52: KHRQ58T | BN52: KHRQ58T | BO52: KHRQ58T
A53: 53 | B53: RZASG140 | AT53: KHRQ58H | AU53: KHRQ58H | AV53: KHRQ58H | AW53: KHRQ58H | AX53: KHRQ58H | AY53: KHRQ58H | AZ53: 3 KHRQ58T | BA53: 3 KHRQ58T | BB53: 3 KHRQ58T | BC53: 3 KHRQ58T | BD53: 3 KHRQ58T | BE53: 3 KHRQ58T | BJ53: KHRQ58T | BK53: KHRQ58T | BL53: KHRQ58T | BM53: KHRQ58T | BN53: KHRQ58T | BO53: KHRQ58T
A54: 54 | B54: AZAS140
A55: 55 | B55: RZAG35
A56: 56 | B56: RZAG50
A57: 57 | B57: RZAG60
A58: 58 | B58: RZA200 | CL58: KHRQ22M20TA | CM58: KHRQ22M20TA | CN58: KHRQ22M20TA | CO58: KHRQ22M20TA | CP58: KHRQ22M20TA | CQ58: KHRQ22M20TA | CR58: KHRQ250H7 | CS58: KHRQ250H7 | CT58: KHRQ250H7 | CU58: KHRQ250H7 | CV58: KHRQ250H7 | CW58: KHRQ250H7 | CX58: KHRQ250H7 | CY58: KHRQ250H7 | CZ58: KHRQ250H7 | DA58: KHRQ250H7 | DB58: KHRQ250H7 | DC58: KHRQ250H7 | DD58: KHRQ22M20TA | DE58: KHRQ22M20TA | DF58: KHRQ22M20TA | DG58: KHRQ22M20TA | DH58: KHRQ22M20TA | DI58: KHRQ22M20TA
A59: 59 | B59: RZA250 | DK59: KHRQ22M20TA | DL59: KHRQ22M20TA | DM59: KHRQ22M20TA | DN59: KHRQ22M20TA | DO59: KHRQ22M20TA | DP59: KHRQ22M20TA | DQ59: KHRQ22M20TA | DR59: KHRQ22M20TA | DS59: KHRQ22M20TA | DT59: KHRQ22M20TA | DU59: KHRQ22M20TA | DV59: KHRQ22M20TA
A60: 60
A61: 61 | E61: venkovni | F61: vnitrni | L61: Qchl | M61: Qtop
A62: 62 | E62: RZAG71 | F62: FAA71B | K62: RZAG71 | L62: 6.8 | M62: 7.5
A63: 63 | E63: RZASG71 | F63: FAA71B 2x | K63: RZASG71 | L63: 6.8 | M63: 7.5
A64: 64 | E64: AZAS71 | F64: FAA100B | K64: AZAS71 | L64: 6.8 | M64: 7.5
A65: 65 | E65: RZAG100 | F65: FBA35A9 2x | K65: RZAG100 | L65: 9.5 | M65: 10.8
A66: 66 | E66: RZASG100 | F66: FBA35A9 3x | K66: RZASG100 | L66: 9.5 | M66: 10.8
A67: 67 | E67: AZAS100 | F67: FBA35A9 4x | K67: AZAS100 | L67: 9.5 | M67: 10.8
A68: 68 | E68: RZAG125 | F68: FBA50A9 2x | K68: RZAG125 | L68: 12.1 | M68: 13.5
A69: 69 | E69: RZASG125 | F69: FBA50A9 3x | K69: RZASG125 | L69: 12.1 | M69: 13.5
A70: 70 | E70: AZAS125 | F70: FBA60A9 2x | K70: AZAS125 | L70: 12.1 | M70: 13.5
A71: 71 | E71: RZAG140 | F71: FBA71A9 | K71: RZAG140 | L71: 13.4 | M71: 15.5
A72: 72 | E72: RZASG140 | F72: FBA71A9 2x | K72: RZASG140 | L72: 13.4 | M72: 15.5
A73: 73 | E73: AZAS140 | F73: FBA100A | K73: AZAS140 | L73: 13.4 | M73: 15.5
A74: 74 | F74: FBA125A | K74: RZA200 | L74: 19 | M74: 22.4
A75: 75 | F75: FBA140A | K75: RZA250 | L75: 22 | M75: 24
A76: 76 | F76: FCAG35B 2x | K76: RZAG35 | L76: 3.5 | M76: 4
A77: 77 | F77: FCAG35B 3x | K77: RZAG50 | L77: 5 | M77: 5.8
A78: 78 | F78: FCAG35B 4x | K78: RZAG60 | L78: 6 | M78: 7
A79: 79 | F79: FCAG50B 2x
A80: 80 | F80: FCAG50B 3x
A81: 81 | F81: FCAG60B 2x
A82: 82 | F82: FCAG71B
A83: 83 | F83: FCAG71B 2x
A84: 84 | F84: FCAG100B
A85: 85 | F85: FCAG125B
A86: 86 | F86: FCAG140B
A87: 87 | F87: FDA125A
A88: 88 | F88: FDXM35F9 2x
A89: 89 | F89: FDXM35F9 3x
A90: 90 | F90: FDXM35F9 4x
A91: 91 | F91: FDXM50F9 2x
A92: 92 | F92: FDXM50F9 3x
A93: 93 | F93: FDXM60F9 2x
A94: 94 | F94: FFA35A9 2x
A95: 95 | F95: FFA35A9 3x
A96: 96 | F96: FFA35A9 4x
A97: 97 | F97: FFA50A9 2x
A98: 98 | F98: FFA50A9 3x
A99: 99 | F99: FFA60A9 2x
A100: 100 | F100: FHA35A9 2x
A101: 101 | F101: FHA35A9 3x
A102: 102 | F102: FHA35A9 4x
A103: 103 | F103: FHA50A9 2x
A104: 104 | F104: FHA50A9 3x
A105: 105 | F105: FHA60A9 2x
A106: 106 | F106: FHA71A9
A107: 107 | F107: FHA71A9 2x
A108: 108 | F108: FHA100A
A109: 109 | F109: FHA125A
A110: 110 | F110: FHA140A
A111: 111 | F111: FNA35A9 2x
A112: 112 | F112: FNA35A9 3x
A113: 113 | F113: FNA35A9 4x
A114: 114 | F114: FNA50A9 2x
A115: 115 | F115: FNA50A9 3x
A116: 116 | F116: FNA60A9 2x
A117: 117 | F117: FUA71A
A118: 118 | F118: FUA71A 2x
A119: 119 | F119: FUA100A
A120: 120 | F120: FUA125A
A121: 121 | F121: FVA71A
A122: 122 | F122: FVA71A 2x
A123: 123 | F123: FVA100A
A124: 124 | F124: FVA125A
A125: 125 | F125: FVA140A
F126: FDXM35F9
F127: FDXM50F9
F128: FDXM60F9 2x
F129: FBA35A9
F130: FBA50A9
F131: FBA60A9
F132: FFA35A9
F133: FFA50A9
F134: FFA60A9
F135: FCAG35B
F136: FCAG50B
F137: FCAG60B 2x
F138: FNA35A9
F139: FNA50A9
F140: FNA60A9
F141: FTXM35A
F142: FTXM50A
F143: FTXM60A
F144: FHA35A9
F145: FHA50A9
F146: FHA60A9

Sheet data2 (hidden)
B2: 1.5 | C2: 2 | D2: 2.5 | E2: 3.5 | F2: 4.2 | G2: 5 | H2: 6 | I2: 7.1
A3: Perfera | B3: CTXM15R | C3: FTXM20A | D3: FTXM25A | E3: FTXM35A | F3: FTXM42A | G3: FTXM50A | H3: FTXM60A | I3: FTXM71A
A4: Stylish Bílá | B4: CTXA15AW | C4: FTXA20AW | D4: FTXA25AW | E4: FTXA35AW | F4: FTXA42AW | G4: FTXA50AW | H4: změňte výkon | I4: změňte výkon
A5: Stylish Stříbrná | B5: CTXA15BS | C5: FTXA20BS | D5: FTXA25BS | E5: FTXA35BS | F5: FTXA42BS | G5: FTXA50BS | H5: změňte výkon | I5: změňte výkon
A6: Stylish Černá | B6: CTXA15BB | C6: FTXA20BB | D6: FTXA25BB | E6: FTXA35BB | F6: FTXA42BB | G6: FTXA50BB | H6: změňte výkon | I6: změňte výkon
A7: Emura Bílá | B7: změňte výkon | C7: FTXJ20AW | D7: FTXJ25AW | E7: FTXJ35AW | F7: změňte výkon | G7: FTXJ50AW | H7: změňte výkon | I7: změňte výkon
A8: Emura Stříbrná | B8: změňte výkon | C8: FTXJ20AS | D8: FTXJ25AS | E8: FTXJ35AS | F8: změňte výkon | G8: FTXJ50AS | H8: změňte výkon | I8: změňte výkon
A9: Comfora | B9: změňte výkon | C9: FTXP20N9 | D9: FTXP25N9 | E9: FTXP35N9 | F9: změňte výkon | G9: změňte výkon | H9: změňte výkon | I9: změňte výkon
A10: Parapetní opláštěná | B10: změňte výkon | C10: CVXM20A | D10: FVXM25A | E10: FVXM35A | F10: změňte výkon | G10: FVXM50A | H10: změňte výkon | I10: změňte výkon
A11: Kanálovka nízká | B11: změňte výkon | C11: změňte výkon | D11: FDXM25F9 | E11: FDXM35F9 | F11: změňte výkon | G11: FDXM50F9 | H11: FDXM60F9 | I11: změňte výkon
A12: Kanálovka Střední | B12: změňte výkon | C12: změňte výkon | D12: změňte výkon | E12: FBA35A9 | F12: změňte výkon | G12: FBA50A9 | H12: FBA60A9 | I12: FBA71A9
A13: Kazeta 900x900 | B13: změňte výkon | C13: změňte výkon | D13: změňte výkon | E13: FCAG35B | F13: změňte výkon | G13: FCAG50B | H13: FCAG60B | I13: změňte výkon
A14: Kazeta 600x600 | B14: změňte výkon | C14: změňte výkon | D14: FFA25A9 | E14: FFA35A9 | F14: změňte výkon | G14: FFA50A9 | H14: FFA60A9 | I14: změňte výkon
A15: Podstropní | B15: změňte výkon | C15: změňte výkon | D15: změňte výkon | E15: FHA35A9 | F15: změňte výkon | G15: FHA50A9 | H15: FHA60A9 | I15: změňte výkon
A16: Parapetní neopláštěná | B16: změňte výkon | C16: změňte výkon | D16: FNA25A9 | E16: FNA35A9 | F16: změňte výkon | G16: FNA50A9 | H16: FNA60A9 | I16: změňte výkon
B20: FDXM25F9 | C20: BRC1H52W | E20: BRC4C65
B21: FDXM35F9 | C21: BRC1H52W | E21: BRC4C65
B22: FDXM50F9 | C22: BRC1H52W | E22: BRC4C65
B23: FDXM60F9 | C23: BRC1H52W | E23: BRC4C65
B24: FBA35A9 | C24: BRC1H52W | E24: BRC4C56
B25: FBA50A9 | C25: BRC1H52W | E25: BRC4C56
B26: FBA60A9 | C26: BRC1H52W | E26: BRC4C56
B27: FBA60A9 | C27: BRC1H52W | E27: BRC4C56
B28: FBA71A9 | C28: BRC1H52W | E28: BRC4C56
B29: FCAG35B | C29: BRC1H52W | D29: BYCQ140E | E29: BRC7FA532F
B30: FCAG50B | C30: BRC1H52W | D30: BYCQ140E | E30: BRC7FA532F
B31: FCAG60B | C31: BRC1H52W | D31: BYCQ140E | E31: BRC7FA532F
B32: FFA25A9 | C32: BRC1H52W | D32: BYFQ60CW | E32: BRC7F530W
B33: FFA35A9 | C33: BRC1H52W | D33: BYFQ60CW | E33: BRC7F530W
B34: FFA50A9 | C34: BRC1H52W | D34: BYFQ60CW | E34: BRC7F530W
B35: FFA60A9 | C35: BRC1H52W | D35: BYFQ60CW | E35: BRC7F530W
B36: FHA35A9 | C36: BRC1H52W | E36: BRC7GA53-9
B37: FHA50A9 | C37: BRC1H52W | E37: BRC7GA53-9
B38: FHA60A9 | C38: BRC1H52W | E38: BRC7GA53-9
B39: FNA25A9 | C39: BRC1H52W | E39: BRC4C65
B40: FNA35A9 | C40: BRC1H52W | E40: BRC4C65
B41: FNA50A9 | C41: BRC1H52W | E41: BRC4C65
B42: FNA60A9 | C42: BRC1H52W
B43: CTXA15AS | C43: BRC073 | E43: v ceně
B44: CTXA15AT | C44: BRC073 | E44: v ceně
B45: CTXA15AW | C45: BRC073 | E45: v ceně
B46: CTXM15R | C46: BRC073 | E46: v ceně
B47: FTXA20BS | C47: BRC073 | E47: v ceně
B48: FTXA20BB | C48: BRC073 | E48: v ceně
B49: FTXA20AW | C49: BRC073 | E49: v ceně
B50: FTXA25BS | C50: BRC073 | E50: v ceně
B51: FTXA25BB | C51: BRC073 | E51: v ceně
B52: FTXA25AW | C52: BRC073 | E52: v ceně
B53: FTXA35BS | C53: BRC073 | E53: v ceně
B54: FTXA35BB | C54: BRC073 | E54: v ceně
B55: FTXA35AW | C55: BRC073 | E55: v ceně
B56: FTXA42BS | C56: BRC073 | E56: v ceně
B57: FTXA42BB | C57: BRC073 | E57: v ceně
B58: FTXA42AW | C58: BRC073 | E58: v ceně
B59: FTXA50BS | C59: BRC073 | E59: v ceně
B60: FTXA50BB | C60: BRC073 | E60: v ceně
B61: FTXA50AW | C61: BRC073 | E61: v ceně
B62: FTXJ20AS | C62: BRC073 | E62: v ceně
B63: FTXJ20AW | C63: BRC073 | E63: v ceně
B64: FTXJ25AS | C64: BRC073 | E64: v ceně
B65: FTXJ25AW | C65: BRC073 | E65: v ceně
B66: FTXJ35AS | C66: BRC073 | E66: v ceně
B67: FTXJ35AW | C67: BRC073 | E67: v ceně
B68: FTXJ50AS | C68: BRC073 | E68: v ceně
B69: FTXJ50AW | C69: BRC073 | E69: v ceně
B70: FTXM20A | C70: BRC073 | E70: v ceně
B71: FTXM25A | C71: BRC073 | E71: v ceně
B72: FTXM35A | C72: BRC073 | E72: v ceně
B73: FTXM42A | C73: BRC073 | E73: v ceně
B74: FTXM50A | C74: BRC073 | E74: v ceně
B75: FTXM60A | C75: BRC073 | E75: v ceně
B76: FTXM71A | C76: BRC073 | E76: v ceně
B77: FTXP20M9 | C77: BRC073 | E77: v ceně
B78: FTXP25M9 | C78: BRC073 | E78: v ceně
B79: FTXP35M9 | C79: BRC073 | E79: v ceně
B80: CVXM20A | C80: BRC073 | E80: v ceně
B81: FVXM25A | C81: BRC073 | E81: v ceně
B82: FVXM35A | C82: BRC073 | E82: v ceně
B83: FVXM50A | C83: BRC073 | E83: v ceně

Sheet data5 (hidden)
A1: Chladící výkon | F1: Chladící výkon | G1: Topný výkon | H1: Sezónní účinnost (podle EN14825) | P1: Ceny
B2: Vnitřní Venkovní | D2: Vnitřní Venkovní | H2: Chlazení | L2: Vytápění (Průměrné klima) | P2: Vnitřní jednotka | Q2: Venkovní jednotka | R2: Cena za sadu
B3: jednotka jednotka | D3: jednotka jednotka | H3: Energetický štítek | I3: Pdesign | J3: SEER | K3: A.E.C. | L3: Energetický štítek | M3: Pdesign | N3: SCOP | O3: A.E.C.
A4: kW | F4: kW | G4: kW | I4: kW | K4: kWh | M4: kW | O4: kWh | P4: CZK | Q4: CZK | R4: CZK
A5: 3.4 | B5: FHA | C5: 35A9 | D5: FHA35A9 | E5: RXM35A | F5: 3.4 | G5: 4 | H5: A++ | I5: 0.91 | J5: 6.24 | K5: 191 | L5: A+ | M5: 0.98 | N5: 4.43 | O5: 979 | P5: 23.900,- | Q5: 30.028,- | R5: 53.928,-
A6: 5 | B6: FHA | C6: 50A9 | D6: FHA50A9 | E6: RXM50A | F6: 5 | G6: 6 | H6: A+ | I6: 1.56 | J6: 5.92 | K6: 295 | L6: A | M6: 1.79 | N6: 3.86 | O6: 1.578 | P6: 26.567,- | Q6: 39.008,- | R6: 65.575,-
A7: 5.7 | B7: FHA | C7: 60A9 | D7: FHA60A9 | E7: RXM60A | F7: 5.7 | G7: 7.2 | H7: A+ | I7: 1.73 | J7: 6.08 | K7: 328 | L7: A | M7: 2.17 | N7: 3.87 | O7: 1.704 | P7: 29.677,- | Q7: 33.531,- | R7: 74.543,-
A8: 3.4 | B8: FCAG | C8: 35B | D8: FCAG35B | E8: RXM35A | F8: 3.4 | G8: 4.2 | H8: A++ | I8: 0.94 | J8: 6.35 | K8: 193 | L8: A++ | M8: 1.11 | N8: 4.9 | O8: 948 | P8: 22.030,- | Q8: 30.028,- | R8: 60.083,-
A9: 5 | B9: FCAG | C9: 50B | D9: FCAG50B | E9: RXM50A | F9: 5 | G9: 6 | H9: A++ | I9: 1.4 | J9: 6.54 | K9: 266 | L9: A+ | M9: 1.62 | N9: 4.3 | O9: 1.419 | P9: 23.694,- | Q9: 39.008,- | R9: 70.727,-
A10: 5.7 | B10: FCAG | C10: 60B | D10: FCAG60B | E10: RXM60A | F10: 5.7 | G10: 7 | H10: A++ | I10: 1.72 | J10: 6.4 | K10: 312 | L10: A+ | M10: 2.07 | N10: 4.2 | O10: 1.569 | P10: 24.495,- | Q10: 44.866,- | R10: 77.386,-
A11: 2.5 | B11: FFA | C11: 25A9 | D11: FFA25A9 | E11: RXM25A | F11: 2.5 | G11: 3.2 | H11: A++ | I11: 0.55 | J11: 6.17 | K11: 142 | L11: A+ | M11: 0.82 | N11: 4.24 | O11: 762 | P11: 22.630,- | Q11: 25.651,- | R11: 55.997,-
A12: 3.4 | B12: FFA | C12: 35A9 | D12: FFA35A9 | E12: RXM35A | F12: 3.4 | G12: 4.2 | H12: A++ | I12: 0.89 | J12: 6.38 | K12: 186 | L12: A+ | M12: 1.2 | N12: 4.1 | O12: 1.058 | P12: 23.932,- | Q12: 30.028,- | R12: 61.676,-
A13: 5 | B13: FFA | C13: 50A9 | D13: FFA50A9 | E13: RXM50A | F13: 5 | G13: 5.8 | H13: A+ | I13: 1.54 | J13: 5.98 | K13: 292 | L13: A | M13: 1.66 | N13: 3.9 | O13: 1.377 | P13: 24.917,- | Q13: 39.008,- | R13: 71.641,-
A14: 5.7 | B14: FFA | C14: 60A9 | D14: FFA60A9 | E14: RXM60A | F14: 5.7 | G14: 7 | H14: A+ | I14: 1.86 | J14: 5.76 | K14: 347 | L14: A+ | M14: 2.05 | N14: 4.04 | O14: 1.372 | P14: 33.677,- | Q14: 33.531,- | R14: 86.259,-
A15: 3.4 | B15: FBA | C15: 35A9 | D15: FBA35A9 | E15: RXM35A | F15: 3.4 | G15: 4 | H15: A++ | I15: 0.85 | J15: 6.23 | K15: 191 | L15: A+ | M15: 1 | N15: 4.07 | O15: 996 | P15: 27.995,- | Q15: 30.028,- | R15: 58.023,-
A16: 5 | B16: FBA | C16: 50A9 | D16: FBA50A9 | E16: RXM50A | F16: 5 | G16: 5.5 | H16: A++ | I16: 1.41 | J16: 6.27 | K16: 279 | L16: A+ | M16: 1.44 | N16: 4.06 | O16: 1.517 | P16: 31.041,- | Q16: 39.008,- | R16: 70.049,-
A17: 5.7 | B17: FBA | C17: 60A9 | D17: FBA60A9 | E17: RXM60A | F17: 5.7 | G17: 7 | H17: A+ | I17: 1.64 | J17: 5.91 | K17: 337 | L17: A+ | M17: 1.89 | N17: 4.01 | O17: 1.607 | P17: 33.550,- | Q17: 44.866,- | R17: 78.416,-
A18: 2.6 | B18: FNA | C18: 25A9 | D18: FNA25A9 | E18: RXM25A | F18: 2.6 | G18: 3.2 | H18: A+ | I18: 0.68 | J18: 5.68 | K18: 160 | L18: A+ | M18: 0.8 | N18: 4.24 | O18: 924 | P18: 19.330,- | Q18: 25.651,- | R18: 44.981,-
A19: 3.4 | B19: FNA | C19: 35A9 | D19: FNA35A9 | E19: RXM35A | F19: 3.4 | G19: 4 | H19: A+ | I19: 1.1 | J19: 5.7 | K19: 209 | L19: A+ | M19: 1.15 | N19: 4.05 | O19: 1.002 | P19: 23.900,- | Q19: 30.028,- | R19: 53.928,-
A20: 5 | B20: FNA | C20: 50A9 | D20: FNA50A9 | E20: RXM50A | F20: 5 | G20: 5.8 | H20: A+ | I20: 1.48 | J20: 5.77 | K20: 303 | L20: A+ | M20: 1.74 | N20: 4.09 | O20: 1.369 | P20: 27.867,- | Q20: 39.008,- | R20: 66.875,-
A21: 6 | B21: FNA | C21: 60A9 | D21: FNA60A9 | E21: RXM60A | F21: 6 | G21: 7 | H21: A | I21: 2.22 | J21: 5.56 | K21: 378 | L21: A+ | M21: 2.25 | N21: 4.16 | O21: 1.547 | P21: 30.724,- | Q21: 44.866,- | R21: 75.590,-
A22: 2.6 | B22: FDXM | C22: 25A9 | D22: FDXM25F9 | E22: RXM25A | F22: 1,3/2,4/3,0 | G22: 1,3/3,2/4,5 | H22: A+ | I22: 0.64 | J22: 5.68 | L22: A+ | M22: 0.8 | N22: 4.24
A23: 3.4 | B23: FDXM | C23: 35A9 | D23: FDXM35F9 | E23: RXM35A | F23: 1,4/3,4/3,8 | G23: 1,4/4,0/5,0 | H23: A | I23: 1.14 | J23: 5.26 | L23: A+ | M23: 1.15 | N23: 3.88
A24: 5 | B24: FDXM | C24: 50A9 | D24: FDXM50F9 | E24: RXM50A | F24: 1,7/5,0/5,3 | G24: 1,7/5,8/6,0 | H24: A+ | I24: 1.63 | J24: 5.77 | L24: A | M24: 1.87 | N24: 3.93
A25: 6 | B25: FDXM | C25: 60A9 | D25: FDXM60F9 | E25: RXM60A | F25: 1,7/6,0/6,5 | G25: 1,7/7,0/7,1 | H25: A | I25: 2.05 | J25: 5.56 | L25: A | M25: 2.18 | N25: 3.8
B26: FTXJ | D26: FTXJ20AW | E26: RXJ20A | F26: 1,3/2,0/2,5 | G26: 1,3/2,5/3,4 | H26: A+++ | I26: 0.43 | J26: 8.75 | L26: A+++ | M26: 0.5 | N26: 5.15 | P26: 25.586,- | Q26: 40.291,- | R26: 65.877,-
B27: FTXJ | D27: FTXJ20AS | E27: RXJ20A | F27: 1,3/2,0/2,6 | G27: 1,3/2,5/3,5 | H27: A+++ | I27: 0.43 | J27: 8.75 | L27: A+++ | M27: 0.5 | N27: 5.15 | P27: 27.735,- | Q27: 40.291,- | R27: 68.026,-
B28: FTXJ | D28: FTXJ20AB | E28: RXJ20A | F28: 1,3/2,0/2,7 | G28: 1,3/2,5/3,6 | H28: A+++ | I28: 0.43 | J28: 8.75 | L28: A+++ | M28: 0.5 | N28: 5.15 | P28: 26.099,- | Q28: 40.291,- | R28: 66.390,-
B29: FTXJ | D29: FTXJ25AW | E29: RXJ25A | F29: 1,3/2,5/3,1 | G29: 1,3/2,8/4,6 | H29: A+++ | I29: 0.56 | J29: 8.74 | L29: A+++ | M29: 0.56 | N29: 5.15 | P29: 26.942,- | Q29: 42.384,- | R29: 69.326,-
B30: FTXJ | D30: FTXJ25AS | E30: RXJ25A | F30: 1,3/2,5/3,2 | G30: 1,3/2,8/4,7 | H30: A+++ | I30: 0.56 | J30: 8.74 | L30: A+++ | M30: 0.56 | N30: 5.15 | P30: 29.001,- | Q30: 42.384,- | R30: 71.385,-
B31: FTXJ | D31: FTXJ25AB | E31: RXJ25A | F31: 1,3/2,5/3,3 | G31: 1,3/2,8/4,8 | H31: A+++ | I31: 0.56 | J31: 8.74 | L31: A+++ | M31: 0.56 | N31: 5.15 | P31: 27.482,- | Q31: 42.384,- | R31: 69.866,-
B32: FTXJ | D32: FTXJ35AW | E32: RXJ35A | F32: 1,4/3,4/4,1 | G32: 1,4/4,0/5,1 | H32: A+++ | I32: 0.78 | J32: 8.73 | L32: A+++ | M32: 0.99 | N32: 5.15 | P32: 31.864,- | Q32: 47.900,- | R32: 79.764,-
B33: FTXJ | D33: FTXJ35AS | E33: RXJ35A | F33: 1,4/3,4/4,0 | G33: 1,4/4,0/5,2 | H33: A+++ | I33: 0.78 | J33: 8.73 | L33: A+++ | M33: 0.99 | N33: 5.15 | P33: 34.239,- | Q33: 47.900,- | R33: 82.139,-
B34: FTXJ | D34: FTXJ35AB | E34: RXJ35A | F34: 1,4/3,4/4,1 | G34: 1,4/4,0/5,3 | H34: A+++ | I34: 0.78 | J34: 8.73 | L34: A+++ | M34: 0.99 | N34: 5.15 | P34: 32.500,- | Q34: 47.900,- | R34: 80.400,-
B35: FTXJ | D35: FTXJ42AW | E35: RXJ42A | F35: 1,7/4,2/5,1 | G35: 1,7/5,4/6,1 | H35: A++ | I35: 1.05 | J35: 7.5 | L35: A++ | M35: 1.31 | N35: 4.6 | P35: 37.512,- | Q35: 57.480,- | R35: 94.992,-
B36: FTXJ | D36: FTXJ42AS | E36: RXJ42A | F36: 1,7/4,2/5,0 | G36: 1,7/5,4/6,0 | H36: A++ | I36: 1.05 | J36: 7.5 | L36: A++ | M36: 1.31 | N36: 4.6 | P36: 41.033,- | Q36: 57.480,- | R36: 98.513,-
B37: FTXJ | D37: FTXJ42AB | E37: RXJ42A | F37: 1,7/4,2/5,1 | G37: 1,7/5,4/6,1 | H37: A++ | I37: 1.05 | J37: 7.5 | L37: A++ | M37: 1.31 | N37: 4.6 | P37: 38.261,- | Q37: 57.480,- | R37: 95.741,-
B38: FTXJ | D38: FTXJ50AW | E38: RXJ50A | F38: 1,7/5,0/5,2 | G38: 1,7/5,8/6,4 | H38: A++ | I38: 1.36 | J38: 7.33 | L38: A++ | M38: 1.45 | N38: 4.6 | P38: 39.500,- | Q38: 64.718,- | R38: 104.218,-
B39: FTXJ | D39: FTXJ50AS | E39: RXJ50A | F39: 1,7/5,0/5,3 | G39: 1,7/5,8/6,5 | H39: A++ | I39: 1.36 | J39: 7.33 | L39: A++ | M39: 1.45 | N39: 4.6 | P39: 42.150,- | Q39: 64.718,- | R39: 106.868,-
B40: FTXJ | D40: FTXJ50AB | E40: RXJ50A | F40: 1,7/5,0/5,4 | G40: 1,7/5,8/6,6 | H40: A++ | I40: 1.36 | J40: 7.33 | L40: A++ | M40: 1.45 | N40: 4.6 | P40: 40.290,- | Q40: 64.718,- | R40: 105.008,-
D42: FTXA20AW | E42: RXA20A9 | F42: 1,3/2,0/2,6 | G42: 1,3/2,5/3,5 | H42: A+++ | I42: 8.75 | J42: A+++ | K42: 5.15 | L42: 19-39 | M42: 19-39 | N42: -10~36 | O42: -15~14 | P42: 22.249,- | Q42: 38.372,- | R42: 60.621,-
D43: FTXA20BB | E43: RXA20A9 | F43: 1,3/2,0/2,6 | G43: 1,3/2,5/3,5 | H43: A+++ | I43: 8.75 | J43: A+++ | K43: 5.15 | L43: 19-39 | M43: 19-39 | N43: -10~37 | O43: -15~15 | P43: 22.695,- | Q43: 38.372,- | R43: 61.067,-
D44: FTXA20BS | E44: RXA20A9 | F44: 1,3/2,0/2,6 | G44: 1,3/2,5/3,5 | H44: A+++ | I44: 8.75 | J44: A+++ | K44: 5.15 | L44: 19-39 | M44: 19-39 | N44: -10~38 | O44: -15~16 | P44: 24.117,- | Q44: 38.372,- | R44: 62.489,-
D45: FTXA20BT | E45: RXA20A9 | F45: 1,3/2,0/2,6 | G45: 1,3/2,5/3,5 | H45: A+++ | I45: 8.75 | J45: A+++ | K45: 5.15 | L45: 19-39 | M45: 19-39 | N45: -10~39 | O45: -15~17 | P45: 26.098,- | Q45: 38.372,- | R45: 64.470,-
D46: FTXA25AW | E46: RXA25A9 | F46: 1,3/2,5/3,2 | G46: 1,3/2,8/4,7 | H46: A+++ | I46: 8.74 | J46: A+++ | K46: 5.15 | L46: 19-40 | M46: 19-40 | N46: -10~40 | O46: -15~18 | P46: 23.428,- | Q46: 40.366,- | R46: 63.794,-
D47: FTXA25BB | E47: RXA25A9 | F47: 1,3/2,5/3,2 | G47: 1,3/2,8/4,7 | H47: A+++ | I47: 8.74 | J47: A+++ | K47: 5.15 | L47: 19-40 | M47: 19-40 | N47: -10~41 | O47: -15~19 | P47: 23.897,- | Q47: 40.366,- | R47: 64.263,-
D48: FTXA25BS | E48: RXA25A9 | F48: 1,3/2,5/3,2 | G48: 1,3/2,8/4,7 | H48: A+++ | I48: 8.74 | J48: A+++ | K48: 5.15 | L48: 19-40 | M48: 19-40 | N48: -10~42 | O48: -15~20 | P48: 25.218,- | Q48: 40.366,- | R48: 65.584,-
D49: FTXA25BT | E49: RXA25A9 | F49: 1,3/2,5/3,2 | G49: 1,3/2,8/4,7 | H49: A+++ | I49: 8.74 | J49: A+++ | K49: 5.15 | L49: 19-40 | M49: 19-40 | N49: -10~43 | O49: -15~21 | P49: 27.384,- | Q49: 40.366,- | R49: 67.750,-
D50: FTXA35AW | E50: RXA35A9 | F50: 1,4/3,4/4,0 | G50: 1,4/4,0/5,2 | H50: A+++ | I50: 8.73 | J50: A+++ | K50: 5.15 | L50: 19-41 | M50: 19-41 | N50: -10~44 | O50: -15~22 | P50: 27.708,- | Q50: 45.619,- | R50: 73.327,-
D51: FTXA35BB | E51: RXA35A9 | F51: 1,4/3,4/4,0 | G51: 1,4/4,0/5,2 | H51: A+++ | I51: 8.73 | J51: A+++ | K51: 5.15 | L51: 19-41 | M51: 19-41 | N51: -10~45 | O51: -15~23 | P51: 28.261,- | Q51: 45.619,- | R51: 73.880,-
D52: FTXA35BS | E52: RXA35A9 | F52: 1,4/3,4/4,0 | G52: 1,4/4,0/5,2 | H52: A+++ | I52: 8.73 | J52: A+++ | K52: 5.15 | L52: 19-41 | M52: 19-41 | N52: -10~46 | O52: -15~24 | P52: 29.773,- | Q52: 45.619,- | R52: 75.392,-
D53: FTXA35BT | E53: RXA35A9 | F53: 1,4/3,4/4,0 | G53: 1,4/4,0/5,2 | H53: A+++ | I53: 8.73 | J53: A+++ | K53: 5.15 | L53: 19-41 | M53: 19-41 | N53: -10~47 | O53: -15~25 | P53: 32.318,- | Q53: 45.619,- | R53: 77.937,-
D54: FTXA42AW | E54: RXA42B | F54: 1,7/4,2/5,0 | G54: 1,7/5,4/6,0 | H54: A++ | I54: 7.5 | J54: A++ | K54: 4.6 | L54: 21-45 | M54: 21-45 | N54: -10~48 | O54: -15~26 | P54: 32.619,- | Q54: 53.622,- | R54: 86.241,-
D55: FTXA42BB | E55: RXA42B | F55: 1,7/4,2/5,0 | G55: 1,7/5,4/6,0 | H55: A++ | I55: 7.5 | J55: A++ | K55: 4.6 | L55: 21-45 | M55: 21-45 | N55: -10~49 | O55: -15~27 | P55: 33.270,- | Q55: 53.622,- | R55: 86.892,-
D56: FTXA42BS | E56: RXA42B | F56: 1,7/4,2/5,0 | G56: 1,7/5,4/6,0 | H56: A++ | I56: 7.5 | J56: A++ | K56: 4.6 | L56: 21-45 | M56: 21-45 | N56: -10~50 | O56: -15~28 | P56: 35.681,- | Q56: 53.622,- | R56: 89.303,-
D57: FTXA42BT | E57: RXA42B | F57: 1,7/4,2/5,0 | G57: 1,7/5,4/6,0 | H57: A++ | I57: 7.5 | J57: A++ | K57: 4.6 | L57: 21-45 | M57: 21-45 | N57: -10~51 | O57: -15~29 | P57: 36.270,- | Q57: 53.622,- | R57: 89.892,-
D58: FTXA50AW | E58: RXA50B | F58: 1,7/5,0/5,3 | G58: 1,7/5,8/6,5 | H58: A++ | I58: 7.33 | J58: A++ | K58: 4.6 | L58: 24-46 | M58: 24-46 | N58: -10~52 | O58: -15~30 | P58: 34.348,- | Q58: 61.636,- | R58: 95.984,-
D59: FTXA50BB | E59: RXA50B | F59: 1,7/5,0/5,3 | G59: 1,7/5,8/6,5 | H59: A++ | I59: 7.33 | J59: A++ | K59: 4.6 | L59: 24-46 | M59: 24-46 | N59: -10~53 | O59: -15~31 | P59: 35.035,- | Q59: 61.636,- | R59: 96.671,-
D60: FTXA50BS | E60: RXA50B | F60: 1,7/5,0/5,3 | G60: 1,7/5,8/6,5 | H60: A++ | I60: 7.33 | J60: A++ | K60: 4.6 | L60: 24-46 | M60: 24-46 | N60: -10~54 | O60: -15~32 | P60: 36.652,- | Q60: 61.636,- | R60: 98.288,-
D61: FTXA50BT | E61: RXA50B | F61: 1,7/5,0/5,3 | G61: 1,7/5,8/6,5 | H61: A++ | I61: 7.33 | J61: A++ | K61: 4.6 | L61: 24-46 | M61: 24-46 | N61: -10~55 | O61: -15~33 | P61: 38.584,- | Q61: 61.636,- | R61: 100.220,-
A78: 2 | B78: FTXM | C78: 20R | D78: FTXM20A | E78: RXM20A | F78: 2 | G78: 1,3/2,5/3,5 | H78: A+++ | I78: 0.44 | L78: A+++ | M78: 0.5 | N78: 5.1 | P78: 12.806,- | Q78: 23.560,- | R78: 36.366,- | S78: 1,3/2,0/2,6 | T78: 1,3/2,5/3,5
A79: 2.5 | B79: FTXM | C79: 25R | D79: FTXM25A | E79: RXM25A | F79: 2.5 | G79: 1,3/2,8/4,7 | H79: A+++ | I79: 0.56 | J79: 8.65 | L79: A+++ | M79: 0.56 | N79: 5.1 | P79: 13.990,- | Q79: 25.651,- | R79: 39.641,- | S79: 1,3/2,5/3,2 | T79: 1,3/2,8/4,7
A80: 3.4 | B80: FTXM | C80: 35R | D80: FTXM35A | E80: RXM35A | F80: 3.4 | G80: 1,4/4,0/5,2 | H80: A+++ | I80: 0.8 | L80: A+++ | M80: 0.99 | N80: 5.1 | P80: 16.825,- | Q80: 30.028,- | R80: 46.853,- | S80: 1,4/3,4/4,0 | T80: 1,4/4,0/5,2
A81: 4.2 | B81: FTXM | C81: 42R | D81: FTXM42A | E81: RXM42A | F81: 4.2 | G81: 1,7/5,4/6,0 | H81: A++ | I81: 0.97 | J81: 7.85 | L81: A++ | M81: 1.31 | N81: 4.71 | P81: 19.808,- | Q81: 36.016,- | R81: 55.824,- | S81: 1,7/4,2/5,0 | T81: 1,7/5,4/6,0
A82: 5 | B82: FTXM | C82: 50R | D82: FTXM50A | E82: RXM50A | F82: 5 | G82: 1,7/5,8/7,7 | H82: A++ | I82: 1.36 | J82: 7.41 | L82: A++ | M82: 1.45 | N82: 4.71 | P82: 23.886,- | Q82: 39.008,- | R82: 62.894,- | S82: 1,7/5,0/6,0 | T82: 1,7/5,8/7,7
A83: 5.7 | B83: FTXM | C83: 60R | D83: FTXM60A | E83: RXM60A | F83: 5.7 | G83: 1,7/7,0/8,0 | H83: A++ | I83: 1.77 | J83: 6.9 | L83: A+ | M83: 1.94 | N83: 4.3 | P83: 33.531,- | Q83: 44.866,- | R83: 78.397,- | S83: 1,7/6,0/7,0 | T83: 1,7/7,0/8,0
A84: 7.1 | B84: FTXM | C84: 71R | D84: FTXM71A | E84: RXM71A | F84: 7.1 | G84: 2,3/8,2/1,2 | H84: A++ | I84: 2.34 | J84: 6.2 | L84: A+ | M84: 2.57 | N84: 4.1 | P84: 38.631,- | Q84: 51.568,- | R84: 90.199,- | S84: 2,3/7,1/8,5 | T84: 2,3/8,2/1,2

Sheet data3 (hidden)
A1: a | B1: Venkovní jednotka | C1: Vnitřní jednotka | D1: Chladicí výkon (kW) | I1: Celkový výkon (kW) | L1: Příkon (kW) | O1: Celkový proud (A) | R1: Faktor výkonu (%) | S1: EER | T1: Štítek spotřeby | U1: AEC (kWh) | V1: Informace o celoročním výkonu a účinnosti
A2: 2 | D2: Místnost A | E2: Místnost B | F2: Místnost C | G2: Místnost D | H2: Místnost E | I2: Min. | J2: Jmen. | K2: Max. | L2: Min. | M2: Jmen. | N2: Max. | O2: Min. | P2: Jmen. | Q2: Max. | V2: Štítek | W2: SEER | X2: Pdesign | Y2: AEC | Z2: 1
A3: 3 | B3: 2MXM40M | C3: 1,5 | D3: 1.5 | E3: 0 | F3: 0 | G3: 0 | H3: 0 | I3: 1.3 | J3: 1.5 | K3: 2 | L3: 0.33 | M3: 0.31 | N3: 0.4 | O3: 1.78 | P3: 1.7 | Q3: 2.17 | R3: 79 | Z3: 1
A4: 4 | C4: 2,0 | D4: 2 | E4: 0 | F4: 0 | G4: 0 | H4: 0 | I4: 1.3 | J4: 2 | K4: 2.4 | L4: 0.33 | M4: 0.44 | N4: 0.57 | O4: 1.78 | P4: 2.38 | Q4: 3.09 | R4: 79 | Z4: 1
A5: 5 | C5: 2,5 | D5: 2.5 | I5: 1.3 | J5: 2.5 | K5: 3 | L5: 0.33 | M5: 0.61 | N5: 0.8 | O5: 1.78 | P5: 3.33 | Q5: 4.4 | R5: 79 | Z5: 1
A6: 6 | C6: 3,5 | D6: 3.5 | I6: 1.3 | J6: 3.5 | K6: 4 | L6: 0.33 | M6: 1.04 | N6: 1.35 | O6: 1.78 | P6: 5.71 | Q6: 7.38 | R6: 79 | Z6: 1
A7: 7 | C7: 1,5+1,5 | D7: 1.5 | E7: 1.5 | F7: 0 | G7: 0 | H7: 0 | I7: 1.5 | J7: 3 | K7: 3.6 | L7: 0.31 | M7: 0.6 | N7: 0.73 | O7: 1.67 | P7: 3.33 | Q7: 4 | R7: 79 | S7: 4.97 | T7: A | U7: 302 | V7: A+++ | W7: 8.66 | X7: 3 | Y7: 122 | Z7: 1
A8: 8 | C8: 1,5+2,0 | D8: 1.5 | E8: 2 | I8: 1.5 | J8: 3.5 | K8: 4 | L8: 0.31 | M8: 0.79 | N8: 0.91 | O8: 1.67 | P8: 4.35 | Q8: 4.98 | R8: 79 | S8: 4.43 | T8: A | U8: 396 | V8: A+++ | W8: 8.6 | X8: 3.5 | Y8: 143 | Z8: 1
A9: 9 | C9: 1,5+2,5 | D9: 1.5 | E9: 2.5 | I9: 1.5 | J9: 4 | K9: 4.2 | L9: 0.31 | M9: 0.98 | N9: 1.03 | O9: 1.67 | P9: 5.37 | Q9: 5.64 | R9: 79 | S9: 4.1 | T9: A | U9: 488 | V9: A+++ | W9: 8.55 | X9: 4 | Y9: 164 | Z9: 1
A10: 10 | C10: 1,5+3,5 | D10: 1.2 | E10: 2.8 | I10: 1.5 | J10: 4 | K10: 4.4 | L10: 0.31 | M10: 0.96 | N10: 1.06 | O10: 1.67 | P10: 5.3 | Q10: 5.83 | R10: 79 | S10: 4.16 | T10: A | U10: 481 | V10: A++ | W10: 8.26 | X10: 4 | Y10: 170 | Z10: 1
A11: 11 | C11: 2,0+2,0 | D11: 2 | E11: 2 | I11: 1.5 | J11: 4 | K11: 4.2 | L11: 0.31 | M11: 0.97 | N11: 1.02 | O11: 1.67 | P11: 5.34 | Q11: 5.61 | R11: 79 | S11: 4.13 | T11: A | U11: 486 | V11: A+++ | W11: 8.53 | X11: 4 | Y11: 165 | Z11: 1
A12: 12 | C12: 2,0+2,5 | D12: 1.78 | E12: 2.22 | I12: 1.5 | J12: 4 | K12: 4.3 | L12: 0.31 | M12: 0.96 | N12: 1.04 | O12: 1.67 | P12: 5.3 | Q12: 5.7 | R12: 79 | S12: 4.16 | T12: A | U12: 481 | V12: A+++ | W12: 8.5 | X12: 4 | Y12: 165 | Z12: 1
A13: 13 | C13: 2,0+3,5 | D13: 1.45 | E13: 2.55 | I13: 1.5 | J13: 4 | K13: 4.5 | L13: 0.31 | M13: 0.95 | N13: 1.08 | O13: 1.67 | P13: 5.25 | Q13: 5.91 | R13: 79 | S13: 4.2 | T13: A | U13: 477 | V13: A++ | W13: 8.19 | X13: 4 | Y13: 171 | Z13: 1
A14: 14 | C14: 2,5+2,5 | D14: 2 | E14: 2 | I14: 1.5 | J14: 4 | K14: 4.4 | L14: 0.31 | M14: 0.96 | N14: 1.06 | O14: 1.67 | P14: 5.27 | Q14: 5.8 | R14: 79 | S14: 4.18 | T14: A | U14: 479 | V14: A++ | W14: 8.36 | X14: 4 | Y14: 168 | Z14: 1
A15: 15 | C15: 2,5+3,5 | D15: 1.67 | E15: 2.33 | I15: 1.5 | J15: 4 | K15: 4.6 | L15: 0.31 | M15: 0.94 | N15: 1.09 | O15: 1.67 | P15: 5.2 | Q15: 5.98 | R15: 79 | S15: 4.24 | T15: A | U15: 472 | V15: A++ | W15: 8.11 | X15: 4 | Y15: 173 | Z15: 1
A16: 16 | B16: 2MXM50M9 | C16: 1,5 | D16: 1.5 | I16: 1.4 | J16: 1.5 | K16: 2.2 | L16: 0.31 | M16: 0.32 | N16: 0.52 | O16: 1.53 | P16: 1.55 | Q16: 2.53 | R16: 89 | Z16: 1
A17: 17 | C17: 2,0 | D17: 2 | I17: 1.4 | J17: 2 | K17: 2.6 | L17: 0.31 | M17: 0.47 | N17: 0.69 | O17: 1.53 | P17: 2.25 | Q17: 3.37 | R17: 89 | Z17: 1
A18: 18 | C18: 2,5 | D18: 2.5 | I18: 1.4 | J18: 2.5 | K18: 3.1 | L18: 0.31 | M18: 0.67 | N18: 0.92 | O18: 1.53 | P18: 3.27 | Q18: 4.5 | R18: 89 | Z18: 1
A19: 19 | C19: 3,5 | D19: 3.5 | I19: 1.4 | J19: 3.5 | K19: 4 | L19: 0.31 | M19: 1.09 | N19: 1.42 | O19: 1.53 | P19: 5.32 | Q19: 6.95 | R19: 89 | Z19: 1
A20: 20 | C20: 4,2 | D20: 4.2 | I20: 1.4 | J20: 4.2 | K20: 4.7 | L20: 0.31 | M20: 1.59 | N20: 1.75 | O20: 1.53 | P20: 7.73 | Q20: 8.57 | R20: 89 | Z20: 1
A21: 21 | C21: 5,0 | D21: 5 | I21: 1.6 | J21: 5 | K21: 5.3 | L21: 0.33 | M21: 1.3 | N21: 1.44 | O21: 1.64 | P21: 6.33 | Q21: 7.01 | R21: 89 | Z21: 1
A22: 22 | C22: 1,5+1,5 | D22: 1.5 | E22: 1.5 | I22: 1.6 | J22: 3 | K22: 3.2 | L22: 0.33 | M22: 0.62 | N22: 0.66 | O22: 1.64 | P22: 3.03 | Q22: 3.24 | R22: 89 | S22: 4.84 | T22: A | U22: 310 | V22: A+++ | W22: 8.8 | X22: 3 | Y22: 120 | Z22: 1
A23: 23 | C23: 1,5+2,0 | D23: 1.5 | E23: 2 | I23: 1.6 | J23: 3.5 | K23: 3.7 | L23: 0.33 | M23: 0.76 | N23: 0.8 | O23: 1.64 | P23: 3.71 | Q23: 3.93 | R23: 89 | S23: 4.61 | T23: A | U23: 380 | V23: A+++ | W23: 8.74 | X23: 3.5 | Y23: 141 | Z23: 1
A24: 24 | C24: 1,5+2,5 | D24: 1.5 | E24: 2.5 | I24: 1.6 | J24: 4 | K24: 4.2 | L24: 0.33 | M24: 0.94 | N24: 0.99 | O24: 1.64 | P24: 4.6 | Q24: 4.83 | R24: 89 | S24: 4.25 | T24: A | U24: 471 | V24: A+++ | W24: 8.64 | X24: 4 | Y24: 162 | Z24: 1
A25: 25 | C25: 1,5+3,5 | D25: 1.5 | E25: 3.5 | I25: 1.6 | J25: 5 | K25: 5 | L25: 0.33 | M25: 1.25 | N25: 1.25 | O25: 1.64 | P25: 6.1 | Q25: 6.1 | R25: 89 | S25: 4.01 | T25: A | U25: 624 | V25: A+++ | W25: 8.52 | X25: 5 | Y25: 206 | Z25: 1
A26: 26 | C26: 1,5+4,2 | D26: 1.32 | E26: 3.68 | I26: 1.6 | J26: 5 | K26: 5.4 | L26: 0.33 | M26: 1.23 | N26: 1.54 | O26: 1.64 | P26: 6.04 | Q26: 6.53 | R26: 89 | S26: 4.05 | T26: A | U26: 618 | V26: A+++ | W26: 8.55 | X26: 5 | Y26: 205 | Z26: 1
A27: 27 | C27: 1,5+5,0 | D27: 1.15 | E27: 3.85 | I27: 1.8 | J27: 5 | K27: 5.5 | L27: 0.33 | M27: 1.23 | N27: 1.68 | O27: 1.64 | P27: 5.99 | Q27: 6.59 | R27: 89 | S27: 4.08 | T27: A | U27: 613 | V27: A+++ | W27: 8.5 | X27: 5 | Y27: 206 | Z27: 1
A28: 28 | C28: 2,0+2,0 | D28: 2 | E28: 2 | I28: 1.8 | J28: 4 | K28: 5 | L28: 0.33 | M28: 0.94 | N28: 1.28 | O28: 1.64 | P28: 4.6 | Q28: 5.75 | R28: 89 | S28: 4.25 | T28: A | U28: 471 | V28: A+++ | W28: 8.71 | X28: 4 | Y28: 161 | Z28: 1
A29: 29 | C29: 2,0+2,5 | D29: 2 | E29: 2.5 | I29: 1.8 | J29: 4.5 | K29: 5.1 | L29: 0.33 | M29: 1.07 | N29: 1.31 | O29: 1.64 | P29: 5.23 | Q29: 5.93 | R29: 89 | S29: 4.21 | T29: A | U29: 535 | V29: A+++ | W29: 8.67 | X29: 4.5 | Y29: 182 | Z29: 1
A30: 30 | C30: 2,0+3,5 | D30: 1.82 | E30: 3.18 | I30: 1.8 | J30: 5 | K30: 5.4 | L30: 0.33 | M30: 1.24 | N30: 1.49 | O30: 1.64 | P30: 6.05 | Q30: 6.54 | R30: 89 | S30: 4.04 | T30: A | U30: 619 | V30: A+++ | W30: 8.54 | X30: 5 | Y30: 205 | Z30: 1
A31: 31 | C31: 2,0+4,2 | D31: 1.61 | E31: 3.39 | I31: 1.8 | J31: 5 | K31: 5.5 | L31: 0.33 | M31: 1.23 | N31: 1.51 | O31: 1.64 | P31: 6.01 | Q31: 6.62 | R31: 89 | S31: 4.07 | T31: A | U31: 615 | V31: A+++ | W31: 8.54 | X31: 5 | Y31: 205 | Z31: 1
A32: 32 | C32: 2,0+5,0 | D32: 1.43 | E32: 3.57 | I32: 1.8 | J32: 5 | K32: 5.5 | L32: 0.33 | M32: 1.22 | N32: 1.44 | O32: 1.64 | P32: 5.95 | Q32: 6.55 | R32: 89 | S32: 4.11 | T32: A | U32: 609 | V32: A+++ | W32: 8.51 | X32: 5 | Y32: 208 | Z32: 1
A33: 33 | C33: 2,5+2,5 | D33: 2.5 | E33: 2.5 | I33: 1.8 | J33: 5 | K33: 5.3 | L33: 0.33 | M33: 1.25 | N33: 1.42 | O33: 1.64 | P33: 6.1 | Q33: 6.47 | R33: 89 | S33: 4.01 | T33: A | U33: 624 | V33: A+++ | W33: 8.53 | X33: 5 | Y33: 205 | Z33: 1
A34: 34 | C34: 2,5+3,5 | D34: 2.08 | E34: 2.92 | I34: 1.8 | J34: 5 | K34: 5.4 | L34: 0.33 | M34: 1.23 | N34: 1.43 | O34: 1.64 | P34: 6.02 | Q34: 6.51 | R34: 89 | S34: 4.06 | T34: A | U34: 616 | V34: A+++ | W34: 8.56 | X34: 5 | Y34: 205 | Z34: 1
A35: 35 | C35: 2,5+4,2 | D35: 1.87 | E35: 3.13 | I35: 1.8 | J35: 5 | K35: 5.5 | L35: 0.33 | M35: 1.22 | N35: 1.45 | O35: 1.64 | P35: 5.98 | Q35: 6.58 | R35: 89 | S35: 4.09 | T35: A | U35: 612 | V35: A+++ | W35: 8.57 | X35: 5 | Y35: 204 | Z35: 1
A36: 36 | C36: 2,5+5,0 | D36: 1.67 | E36: 3.33 | I36: 1.8 | J36: 5 | K36: 5.5 | L36: 0.33 | M36: 1.21 | N36: 1.38 | O36: 1.64 | P36: 5.92 | Q36: 6.52 | R36: 89 | S36: 4.13 | T36: A | U36: 606 | V36: A+++ | W36: 8.52 | X36: 5 | Y36: 206 | Z36: 1
A37: 37 | C37: 3,5+3,5 | D37: 2.5 | E37: 2.5 | I37: 1.8 | J37: 5 | K37: 5.4 | L37: 0.33 | M37: 1.22 | N37: 1.42 | O37: 1.64 | P37: 5.95 | Q37: 6.43 | R37: 89 | S37: 4.11 | T37: A | U37: 609 | V37: A+++ | W37: 8.57 | X37: 5 | Y37: 205 | Z37: 1
A38: 38 | C38: 3,5+4,2 | D38: 2.27 | E38: 2.73 | I38: 1.8 | J38: 5 | K38: 5.5 | L38: 0.33 | M38: 1.21 | N38: 1.4 | O38: 1.64 | P38: 5.9 | Q38: 6.49 | R38: 89 | S38: 4.14 | T38: A | U38: 604 | V38: A+++ | W38: 8.6 | X38: 5 | Y38: 204 | Z38: 1
A39: 39 | C39: 3,5+5,0 | D39: 2.06 | E39: 2.94 | I39: 1.8 | J39: 5 | K39: 5.5 | L39: 0.33 | M39: 1.2 | N39: 1.34 | O39: 1.64 | P39: 5.85 | Q39: 6.44 | R39: 89 | S39: 4.18 | T39: A | U39: 599 | V39: A+++ | W39: 8.52 | X39: 5 | Y39: 206 | Z39: 1
A40: 40 | C40: 4,2+4,2 | D40: 2.5 | E40: 2.5 | I40: 1.8 | J40: 5 | K40: 5.5 | L40: 0.33 | M40: 1.2 | N40: 1.38 | O40: 1.64 | P40: 5.88 | Q40: 6.47 | R40: 89 | S40: 4.16 | T40: A | U40: 601 | V40: A+++ | W40: 8.56 | X40: 5 | Y40: 205 | Z40: 1
A41: 41 | B41: 2MXM68N | C41: 1.5 | D41: 1.6 | E41: --- | I41: 1.52 | J41: 1.6 | K41: 2.49 | L41: 0.4 | M41: 0.42 | N41: 0.59 | O41: 1.82 | P41: 1.98 | Q41: 2.71 | R41: 95 | Z41: 1
A42: 42 | C42: 2 | D42: 2 | E42: --- | I42: 1.66 | J42: 2 | K42: 2.68 | L42: 0.42 | M42: 0.43 | N42: 0.6 | O42: 1.91 | P42: 2.08 | Q42: 2.75 | R42: 95 | Z42: 1
A43: 43 | C43: 2.5 | D43: 2.5 | E43: --- | I43: 1.74 | J43: 2.5 | K43: 3.44 | L43: 0.44 | M43: 0.55 | N43: 0.82 | O43: 2 | P43: 2.62 | Q43: 3.77 | R43: 95 | Z43: 1
A44: 44 | C44: 3.5 | D44: 3.5 | E44: --- | I44: 1.93 | J44: 3.5 | K44: 4.86 | L44: 0.46 | M44: 0.8 | N44: 1.43 | O44: 2.09 | P44: 3.84 | Q44: 6.53 | R44: 95 | Z44: 1
A45: 45 | C45: 4.2 | D45: --- | E45: 4.2 | I45: 1.93 | J45: 4.2 | K45: 5.33 | L45: 0.46 | M45: 0.82 | N45: 1.44 | O45: 2.09 | P45: 3.93 | Q45: 6.57 | R45: 95 | Z45: 1
A46: 46 | C46: 5 | D46: --- | E46: 5 | I46: 1.94 | J46: 5 | K46: 6.03 | L46: 0.44 | M46: 1.5 | N46: 2.13 | O46: 2 | P46: 7.2 | Q46: 9.77 | R46: 95 | Z46: 1
A47: 47 | C47: 6 | D47: --- | E47: 6 | I47: 1.94 | J47: 6 | K47: 6.51 | L47: 0.44 | M47: 1.52 | N47: 2.13 | O47: 2 | P47: 7.29 | Q47: 9.77 | R47: 95 | Z47: 1
A48: 48 | C48: 1,5+1,5 | D48: 1.5 | E48: 1.5 | I48: 1.95 | J48: 3 | K48: 4.79 | L48: 0.4 | M48: 0.6 | N48: 1.15 | O48: 1.81 | P48: 2.75 | Q48: 5.25 | R48: 95 | Z48: 1
A49: 49 | C49: 1,5+2,0 | D49: 1.5 | E49: 2 | I49: 1.95 | J49: 3.5 | K49: 4.96 | L49: 0.4 | M49: 0.74 | N49: 1.22 | O49: 1.81 | P49: 3.38 | Q49: 5.58 | R49: 95 | Z49: 1
A50: 50 | C50: 1,5+2,5 | D50: 1.5 | E50: 2.5 | I50: 1.95 | J50: 4 | K50: 5.28 | L50: 0.4 | M50: 0.89 | N50: 1.36 | O50: 1.81 | P50: 4.08 | Q50: 6.23 | R50: 95 | Z50: 1
A51: 51 | C51: 1,5+3,5 | D51: 1.5 | E51: 3.5 | I51: 1.95 | J51: 5 | K51: 6.17 | L51: 0.39 | M51: 1.24 | N51: 1.83 | O51: 1.77 | P51: 5.68 | Q51: 8.39 | R51: 95 | Z51: 1
A52: 52 | C52: 1,5+4,2 | D52: 1.5 | E52: 4.2 | I52: 1.95 | J52: 5.7 | K52: 6.39 | L52: 0.39 | M52: 1.51 | N52: 1.96 | O52: 1.77 | P52: 6.9 | Q52: 8.96 | R52: 95 | Z52: 1
A53: 53 | C53: 1,5+5,0 | D53: 1.5 | E53: 5 | I53: 1.95 | J53: 6.5 | K53: 7.08 | L53: 0.38 | M53: 1.78 | N53: 2.23 | O53: 1.73 | P53: 8.14 | Q53: 10.22 | R53: 95 | Z53: 1
A54: 54 | C54: 1,5+6,0 | D54: 1.36 | E54: 5.44 | I54: 1.96 | J54: 6.8 | K54: 7.59 | L54: 0.37 | M54: 1.93 | N54: 2.36 | O54: 1.68 | P54: 8.82 | Q54: 10.79 | R54: 95 | Z54: 1
A55: 55 | C55: 2,0+2,0 | D55: 2 | E55: 2 | I55: 1.95 | J55: 4 | K55: 5.12 | L55: 0.4 | M55: 0.89 | N55: 1.29 | O55: 1.81 | P55: 4.08 | Q55: 5.91 | R55: 95 | Z55: 1
A56: 56 | C56: 2,0+2,5 | D56: 2 | E56: 2.5 | I56: 1.95 | J56: 4.5 | K56: 5.44 | L56: 0.4 | M56: 1.06 | N56: 1.43 | O56: 1.81 | P56: 4.86 | Q56: 6.56 | R56: 95 | Z56: 1
A57: 57 | C57: 2,0+3,5 | D57: 2 | E57: 3.5 | I57: 1.95 | J57: 5.5 | K57: 6.3 | L57: 0.39 | M57: 1.39 | N57: 1.91 | O57: 1.77 | P57: 6.38 | Q57: 8.76 | R57: 95 | Z57: 1
A58: 58 | C58: 2,0+4,2 | D58: 2 | E58: 4.2 | I58: 1.95 | J58: 6.2 | K58: 6.51 | L58: 0.39 | M58: 1.7 | N58: 2.05 | O58: 1.77 | P58: 7.77 | Q58: 9.37 | R58: 95 | Z58: 1
A59: 59 | C59: 2,0+5,0 | D59: 1.94 | E59: 4.86 | I59: 1.95 | J59: 6.8 | K59: 7.26 | L59: 0.38 | M59: 1.9 | N59: 2.36 | O59: 1.73 | P59: 8.68 | Q59: 10.79 | R59: 95 | Z59: 1
A60: 60 | C60: 2,0+6,0 | D60: 1.7 | E60: 5.1 | I60: 1.96 | J60: 6.8 | K60: 7.71 | L60: 0.37 | M60: 1.92 | N60: 2.45 | O60: 1.68 | P60: 8.78 | Q60: 11.2 | R60: 95 | Z60: 1
A61: 61 | C61: 2,5+2,5 | D61: 2.5 | E61: 2.5 | I61: 1.95 | J61: 5 | K61: 6.1 | L61: 0.41 | M61: 1.2 | N61: 1.78 | O61: 1.89 | P61: 5.51 | Q61: 8.15 | R61: 95 | Z61: 1
A62: 62 | C62: 2,5+3,5 | D62: 2.5 | E62: 3.5 | I62: 1.95 | J62: 6 | K62: 6.57 | L62: 0.4 | M62: 1.54 | N62: 2.11 | O62: 1.81 | P62: 7.03 | Q62: 9.65 | R62: 95 | Z62: 1
A63: 63 | C63: 2,5+4,2 | D63: 2.5 | E63: 4.2 | I63: 1.95 | J63: 6.7 | K63: 6.95 | L63: 0.4 | M63: 1.79 | N63: 2.38 | O63: 1.81 | P63: 8.21 | Q63: 10.88 | R63: 95 | Z63: 1
A64: 64 | C64: 2,5+5,0 | D64: 2.27 | E64: 4.53 | I64: 1.95 | J64: 6.8 | K64: 7.37 | L64: 0.37 | M64: 1.78 | N64: 2.45 | O64: 1.68 | P64: 8.15 | Q64: 11.2 | R64: 95 | Z64: 1
A65: 65 | C65: 2,5+6,0 | D65: 2 | E65: 4.8 | I65: 1.96 | J65: 6.8 | K65: 7.71 | L65: 0.35 | M65: 1.76 | N65: 2.45 | O65: 1.6 | P65: 8.06 | Q65: 11.2 | R65: 95 | Z65: 1
A66: 66 | C66: 3,5+3,5 | D66: 3.4 | E66: 3.4 | I66: 1.95 | J66: 6.8 | K66: 7.13 | L66: 0.38 | M66: 1.73 | N66: 2.37 | O66: 1.73 | P66: 7.9 | Q66: 10.83 | R66: 95 | Z66: 1
A67: 67 | C67: 3,5+4,2 | D67: 3.09 | E67: 3.71 | I67: 1.95 | J67: 6.8 | K67: 7.24 | L67: 0.38 | M67: 1.72 | N67: 2.46 | O67: 1.73 | P67: 7.87 | Q67: 11.24 | R67: 95 | Z67: 1
A68: 68 | C68: 3,5+5,0 | D68: 2.8 | E68: 4 | I68: 1.95 | J68: 6.8 | K68: 7.76 | L68: 0.35 | M68: 1.68 | N68: 2.78 | O68: 1.6 | P68: 7.71 | Q68: 12.71 | R68: 95 | Z68: 1
A69: 69 | C69: 3,5+6,0 | D69: 2.51 | E69: 4.29 | I69: 2.26 | J69: 6.8 | K69: 8.07 | L69: 0.4 | M69: 1.67 | N69: 2.72 | O69: 1.81 | P69: 7.63 | Q69: 12.46 | R69: 95 | Z69: 1
A70: 70 | C70: 4,2+4,2 | D70: 3.4 | E70: 3.4 | I70: 1.95 | J70: 6.8 | K70: 7.14 | L70: 0.38 | M70: 1.71 | N70: 2.37 | O70: 1.73 | P70: 7.84 | Q70: 10.83 | R70: 95 | Z70: 1
A71: 71 | C71: 4,2+5,0 | D71: 3.1 | E71: 3.7 | I71: 1.95 | J71: 6.8 | K71: 7.77 | L71: 0.35 | M71: 1.68 | N71: 2.78 | O71: 1.6 | P71: 7.68 | Q71: 12.71 | R71: 95 | Z71: 1
A72: 72 | C72: 4,2+6,0 | D72: 2.8 | E72: 4 | I72: 2.26 | J72: 6.8 | K72: 8.08 | L72: 0.4 | M72: 1.66 | N72: 2.72 | O72: 1.81 | P72: 7.6 | Q72: 12.46 | R72: 95 | Z72: 1
A73: 73 | B73: 3MXM40N2V1B | C73: 1,5 | D73: 1.5 | I73: 1.4 | J73: 1.5 | K73: 2.2 | L73: 0.32 | M73: 0.35 | N73: 0.46 | O73: 1.52 | P73: 1.63 | Q73: 2.2 | R73: 91 | Z73: 1
A74: 74 | C74: 2,0 | D74: 2 | I74: 1.4 | J74: 2 | K74: 2.9 | L74: 0.32 | M74: 0.48 | N74: 0.71 | O74: 1.52 | P74: 2.28 | Q74: 3.4 | R74: 91 | Z74: 1
A75: 75 | C75: 2,5 | D75: 2.5 | I75: 1.4 | J75: 2.5 | K75: 3.1 | L75: 0.32 | M75: 0.64 | N75: 0.82 | O75: 1.52 | P75: 3.05 | Q75: 3.9 | R75: 91 | Z75: 1
A76: 76 | C76: 3,5 | D76: 3.5 | I76: 1.4 | J76: 3.5 | K76: 4.1 | L76: 0.32 | M76: 0.98 | N76: 1.19 | O76: 1.52 | P76: 4.68 | Q76: 5.7 | R76: 91 | Z76: 1
A77: 77 | C77: 1,5+1,5 | D77: 1.5 | E77: 1.5 | I77: 1.6 | J77: 3 | K77: 4.2 | L77: 0.34 | M77: 0.59 | N77: 1.14 | O77: 1.63 | P77: 2.82 | Q77: 5.44 | R77: 91 | S77: 5.12 | T77: A | U77: 293 | V77: A+++ | W77: 8.64 | X77: 3 | Y77: 122 | Z77: 1
A78: 78 | C78: 1,5+2,0 | D78: 1.5 | E78: 2 | I78: 1.6 | J78: 3.5 | K78: 4.2 | L78: 0.34 | M78: 0.71 | N78: 1.12 | O78: 1.63 | P78: 3.4 | Q78: 5.33 | R78: 91 | S78: 4.96 | T78: A | U78: 353 | V78: A+++ | W78: 8.59 | X78: 3.5 | Y78: 143 | Z78: 1
A79: 79 | C79: 1,5+2,5 | D79: 1.5 | E79: 2.5 | I79: 1.6 | J79: 4 | K79: 4.2 | L79: 0.34 | M79: 0.86 | N79: 1.1 | O79: 1.63 | P79: 4.11 | Q79: 5.33 | R79: 91 | S79: 4.68 | T79: A | U79: 427 | V79: A+++ | W79: 8.51 | X79: 4 | Y79: 164 | Z79: 1
A80: 80 | C80: 1,5+3,5 | D80: 1.2 | E80: 2.8 | I80: 1.6 | J80: 4 | K80: 4.2 | L80: 0.34 | M80: 0.85 | N80: 1.08 | O80: 1.63 | P80: 4.07 | Q80: 5.33 | R80: 91 | S80: 4.72 | T80: A | U80: 424 | V80: A+++ | W80: 8.5 | X80: 4 | Y80: 165 | Z80: 1
A81: 81 | C81: 2,0+2,0 | D81: 2 | E81: 2 | I81: 1.6 | J81: 4 | K81: 4.5 | L81: 0.34 | M81: 0.84 | N81: 1.09 | O81: 1.63 | P81: 4.02 | Q81: 5.22 | R81: 91 | S81: 4.76 | T81: A | U81: 420 | V81: A+++ | W81: 8.52 | X81: 4 | Y81: 165 | Z81: 1
A82: 82 | C82: 2,0+2,5 | D82: 1.78 | E82: 2.22 | I82: 1.6 | J82: 4 | K82: 4.5 | L82: 0.34 | M82: 0.83 | N82: 1.07 | O82: 1.63 | P82: 3.97 | Q82: 5.22 | R82: 91 | S82: 4.82 | T82: A | U82: 415 | V82: A+++ | W82: 8.52 | X82: 4 | Y82: 165 | Z82: 1
A83: 83 | C83: 2,0+3,5 | D83: 1.45 | E83: 2.55 | I83: 1.6 | J83: 4 | K83: 4.5 | L83: 0.34 | M83: 0.83 | N83: 1.03 | O83: 1.63 | P83: 3.97 | Q83: 5.22 | R83: 91 | S83: 4.86 | T83: A | U83: 412 | V83: A+++ | W83: 8.5 | X83: 4 | Y83: 165 | Z83: 1
A84: 84 | C84: 2,5+2,5 | D84: 2 | E84: 2 | I84: 1.6 | J84: 4 | K84: 4.5 | L84: 0.34 | M84: 0.83 | N84: 1.05 | O84: 1.63 | P84: 3.97 | Q84: 5.22 | R84: 91 | S84: 4.84 | T84: A | U84: 413 | V84: A+++ | W84: 8.51 | X84: 4 | Y84: 165 | Z84: 1
A85: 85 | C85: 2,5+3,5 | D85: 1.67 | E85: 2.33 | I85: 1.6 | J85: 4 | K85: 4.5 | L85: 0.34 | M85: 0.82 | N85: 1.01 | O85: 1.63 | P85: 3.92 | Q85: 5.22 | R85: 91 | S85: 4.88 | T85: A | U85: 410 | V85: A+++ | W85: 8.5 | X85: 4 | Y85: 165 | Z85: 1
A86: 86 | C86: 3,5+3,5 | D86: 2 | E86: 2 | I86: 1.6 | J86: 4 | K86: 4.5 | L86: 0.34 | M86: 0.82 | N86: 0.99 | O86: 1.63 | P86: 3.92 | Q86: 5.11 | R86: 91 | S86: 4.92 | T86: A | U86: 407 | V86: A+++ | W86: 8.5 | X86: 4 | Y86: 165 | Z86: 1
A87: 87 | C87: 1,5+1,5+1,5 | D87: 1.33 | E87: 1.33 | F87: 1.33 | I87: 1.7 | J87: 4 | K87: 4.6 | L87: 0.36 | M87: 0.78 | N87: 0.98 | O87: 1.74 | P87: 3.73 | Q87: 4.68 | R87: 91 | S87: 5.18 | T87: A | U87: 386 | V87: A+++ | W87: 8.55 | X87: 4 | Y87: 164 | Z87: 1
A88: 88 | C88: 1,5+1,5+2,0 | D88: 1.2 | E88: 1.2 | F88: 1.6 | I88: 1.7 | J88: 4 | K88: 4.6 | L88: 0.36 | M88: 0.77 | N88: 0.96 | O88: 1.74 | P88: 3.68 | Q88: 4.68 | R88: 91 | S88: 5.2 | T88: A | U88: 385 | V88: A+++ | W88: 8.55 | X88: 4 | Y88: 164 | Z88: 1
A89: 89 | C89: 1,5+1,5+2,5 | D89: 1.09 | E89: 1.09 | F89: 1.82 | I89: 1.7 | J89: 4 | K89: 4.6 | L89: 0.36 | M89: 0.77 | N89: 0.94 | O89: 1.74 | P89: 3.68 | Q89: 4.68 | R89: 91 | S89: 5.22 | T89: A | U89: 383 | V89: A+++ | W89: 8.54 | X89: 4 | Y89: 164 | Z89: 1
A90: 90 | C90: 1,5+1,5+3,5 | D90: 0.92 | E90: 0.92 | F90: 2.15 | I90: 1.7 | J90: 4 | K90: 4.6 | L90: 0.36 | M90: 0.76 | N90: 0.9 | O90: 1.74 | P90: 3.64 | Q90: 4.68 | R90: 91 | S90: 5.26 | T90: A | U90: 380 | V90: A+++ | W90: 8.53 | X90: 4 | Y90: 165 | Z90: 1
A91: 91 | C91: 1,5+2,0+2,0 | D91: 1.09 | E91: 1.45 | F91: 1.45 | I91: 1.7 | J91: 4 | K91: 4.6 | L91: 0.36 | M91: 0.77 | N91: 0.92 | O91: 1.74 | P91: 3.68 | Q91: 4.68 | R91: 91 | S91: 5.25 | T91: A | U91: 381 | V91: A+++ | W91: 8.53 | X91: 4 | Y91: 164 | Z91: 1
A92: 92 | C92: 1,5+2,0+2,5 | D92: 1 | E92: 1.33 | F92: 1.67 | I92: 1.7 | J92: 4 | K92: 4.6 | L92: 0.36 | M92: 0.76 | N92: 0.91 | O92: 1.74 | P92: 3.64 | Q92: 4.68 | R92: 91 | S92: 5.29 | T92: A | U92: 378 | V92: A+++ | W92: 8.54 | X92: 4 | Y92: 164 | Z92: 1
A93: 93 | C93: 1,5+2,0+3,5 | D93: 0.86 | E93: 1.14 | F93: 2 | I93: 1.7 | J93: 4 | K93: 4.6 | L93: 0.36 | M93: 0.76 | N93: 0.89 | O93: 1.74 | P93: 3.64 | Q93: 4.68 | R93: 91 | S93: 5.31 | T93: A | U93: 377 | V93: A+++ | W93: 8.53 | X93: 4 | Y93: 165 | Z93: 1
A94: 94 | C94: 1,5+2,5+2,5 | D94: 0.92 | E94: 1.54 | F94: 1.54 | I94: 1.7 | J94: 4 | K94: 4.6 | L94: 0.36 | M94: 0.76 | N94: 0.87 | O94: 1.74 | P94: 3.64 | Q94: 4.68 | R94: 91 | S94: 5.27 | T94: A | U94: 380 | V94: A+++ | W94: 8.53 | X94: 4 | Y94: 165 | Z94: 1
A95: 95 | C95: 2,0+2,0+2,0 | D95: 1.33 | E95: 1.33 | F95: 1.33 | I95: 1.7 | J95: 4 | K95: 4.6 | L95: 0.36 | M95: 0.76 | N95: 0.85 | O95: 1.74 | P95: 3.64 | Q95: 4.68 | R95: 91 | S95: 5.3 | T95: A | U95: 3.77 | V95: A+++ | W95: 8.52 | X95: 4 | Y95: 214 | Z95: 1
A96: 96 | C96: 2,0+2,0+2,5 | D96: 1.23 | E96: 1.23 | F96: 1.54 | I96: 1.7 | J96: 4 | K96: 4.6 | L96: 0.36 | M96: 0.76 | N96: 0.83 | O96: 1.74 | P96: 3.64 | Q96: 4.68 | R96: 91 | S96: 5.32 | T96: A | U96: 376 | V96: A+++ | W96: 8.51 | X96: 4 | Y96: 165 | Z96: 1
A97: 97 | C97: 2,0+2,5+2,5 | D97: 1.14 | E97: 1.43 | F97: 1.43 | I97: 1.7 | J97: 4 | K97: 4.6 | L97: 0.36 | M97: 0.75 | N97: 0.81 | O97: 1.74 | P97: 3.59 | Q97: 4.68 | R97: 91 | S97: 5.35 | T97: A | U97: 374 | V97: A+++ | W97: 8.5 | X97: 4 | Y97: 165 | Z97: 1
A98: 98 | B98: 3MXM52N2V1B | C98: 1,5 | D98: 1.5 | I98: 1.4 | J98: 1.5 | K98: 2.4 | L98: 0.34 | M98: 0.36 | N98: 0.63 | O98: 1.5 | P98: 1.62 | Q98: 2.86 | R98: 96 | Z98: 1
A99: 99 | C99: 2,0 | D99: 2 | I99: 1.6 | J99: 2 | K99: 3 | L99: 0.36 | M99: 0.48 | N99: 0.78 | O99: 1.6 | P99: 2.17 | Q99: 3.51 | R99: 96 | Z99: 1
A100: 100 | C100: 2,5 | D100: 2.5 | I100: 1.6 | J100: 2.5 | K100: 3.2 | L100: 0.36 | M100: 0.64 | N100: 0.87 | O100: 1.62 | P100: 2.89 | Q100: 3.92 | R100: 96 | Z100: 1
A101: 101 | C101: 3,5 | D101: 3.5 | I101: 1.6 | J101: 3.5 | K101: 4.2 | L101: 0.37 | M101: 0.98 | N101: 1.3 | O101: 1.63 | P101: 4.43 | Q101: 5.88 | R101: 96 | Z101: 1
A102: 102 | C102: 4,2 | D102: 4.2 | I102: 1.6 | J102: 4.2 | K102: 4.6 | L102: 0.37 | M102: 1.21 | N102: 1.49 | O102: 1.63 | P102: 5.47 | Q102: 6.7 | R102: 96 | Z102: 1
A103: 103 | C103: 5,0 | D103: 5 | I103: 1.6 | J103: 5 | K103: 5.4 | L103: 0.35 | M103: 1.76 | N103: 2.03 | O103: 1.55 | P103: 7.94 | Q103: 9.18 | R103: 96 | Z103: 1
A104: 104 | C104: 1,5+1,5 | D104: 1.5 | E104: 1.5 | I104: 1.7 | J104: 3 | K104: 4.7 | L104: 0.35 | M104: 0.55 | N104: 1.32 | O104: 1.55 | P104: 2.5 | Q104: 5.98 | R104: 96 | S104: 5.48 | T104: A | U104: 274 | V104: A+++ | W104: 8.64 | X104: 3 | Y104: 122 | Z104: 1
A105: 105 | C105: 1,5+2,0 | D105: 1.5 | E105: 2 | I105: 1.7 | J105: 3.5 | K105: 4.7 | L105: 0.35 | M105: 0.66 | N105: 1.3 | O105: 1.55 | P105: 2.99 | Q105: 5.88 | R105: 96 | S105: 5.31 | T105: A | U105: 330 | V105: A+++ | W105: 8.6 | X105: 3.5 | Y105: 143 | Z105: 1
A106: 106 | C106: 1,5+2,5 | D106: 1.5 | E106: 2.5 | I106: 1.7 | J106: 4 | K106: 5 | L106: 0.35 | M106: 0.78 | N106: 1.92 | O106: 1.55 | P106: 3.54 | Q106: 8.66 | R106: 96 | S106: 5.16 | T106: A | U106: 388 | V106: A+++ | W106: 8.54 | X106: 4 | Y106: 164 | Z106: 1
A107: 107 | C107: 1,5+3,5 | D107: 1.5 | E107: 3.5 | I107: 1.7 | J107: 5 | K107: 6 | L107: 0.35 | M107: 1.06 | N107: 2.17 | O107: 1.55 | P107: 4.81 | Q107: 9.8 | R107: 96 | S107: 4.75 | T107: A | U107: 527 | V107: A+++ | W107: 8.51 | X107: 5 | Y107: 206 | Z107: 1
A108: 108 | C108: 1,5+4,2 | D108: 1.37 | E108: 3.83 | I108: 1.7 | J108: 5.2 | K108: 6.1 | L108: 0.35 | M108: 1.1 | N108: 2.26 | O108: 1.55 | P108: 4.99 | Q108: 10.21 | R108: 96 | S108: 4.74 | T108: A | U108: 549 | V108: A+++ | W108: 8.51 | X108: 5.2 | Y108: 214 | Z108: 1
A109: 109 | C109: 1,5+5,0 | D109: 1.2 | E109: 4 | I109: 1.7 | J109: 5.2 | K109: 6.3 | L109: 0.35 | M109: 1.1 | N109: 2.28 | O109: 1.55 | P109: 4.99 | Q109: 10.31 | R109: 96 | S109: 4.77 | T109: A | U109: 546 | V109: A+++ | W109: 8.5 | X109: 5.2 | Y109: 215 | Z109: 1
A110: 110 | C110: 2,0+2,0 | D110: 2 | E110: 2 | I110: 1.7 | J110: 4 | K110: 6 | L110: 0.35 | M110: 0.85 | N110: 2.25 | O110: 1.55 | P110: 3.85 | Q110: 10.16 | R110: 96 | S110: 4.72 | T110: A | U110: 424 | V110: A+++ | W110: 8.52 | X110: 4 | Y110: 165 | Z110: 1
A111: 111 | C111: 2,0+2,5 | D111: 2 | E111: 2.5 | I111: 1.7 | J111: 4.5 | K111: 6.2 | L111: 0.35 | M111: 0.95 | N111: 2.21 | O111: 1.55 | P111: 4.31 | Q111: 9.99 | R111: 96 | S111: 4.74 | T111: A | U111: 475 | V111: A+++ | W111: 8.5 | X111: 4.5 | Y111: 186 | Z111: 1
A112: 112 | C112: 2,0+3,5 | D112: 1.89 | E112: 3.31 | I112: 1.7 | J112: 5.2 | K112: 6.3 | L112: 0.35 | M112: 1.1 | N112: 2.3 | O112: 1.55 | P112: 4.99 | Q112: 10.38 | R112: 96 | S112: 4.76 | T112: A | U112: 547 | V112: A+++ | W112: 8.53 | X112: 5.2 | Y112: 214 | Z112: 1
A113: 113 | C113: 2,0+4,2 | D113: 1.68 | E113: 3.52 | I113: 1.7 | J113: 5.2 | K113: 6.3 | L113: 0.35 | M113: 1.09 | N113: 2.25 | O113: 1.55 | P113: 4.94 | Q113: 10.18 | R113: 96 | S113: 4.78 | T113: A | U113: 544 | V113: A+++ | W113: 8.52 | X113: 5.2 | Y113: 214 | Z113: 1
A114: 114 | C114: 2,0+5,0 | D114: 1.49 | E114: 3.71 | I114: 1.7 | J114: 5.2 | K114: 6.5 | L114: 0.35 | M114: 1.09 | N114: 2.19 | O114: 1.55 | P114: 4.94 | Q114: 9.89 | R114: 96 | S114: 4.8 | T114: A | U114: 542 | V114: A+++ | W114: 8.51 | X114: 5.2 | Y114: 214 | Z114: 1
A115: 115 | C115: 2,5+2,5 | D115: 2.5 | E115: 2.5 | I115: 1.7 | J115: 5 | K115: 6.3 | L115: 0.35 | M115: 1.04 | N115: 2.34 | O115: 1.55 | P115: 4.72 | Q115: 10.59 | R115: 96 | S115: 4.85 | T115: A | U115: 516 | V115: A+++ | W115: 8.59 | X115: 5 | Y115: 204 | Z115: 1
A116: 116 | C116: 2,5+3,5 | D116: 2.17 | E116: 3.03 | I116: 1.7 | J116: 5.2 | K116: 6.3 | L116: 0.35 | M116: 1.09 | N116: 2.28 | O116: 1.55 | P116: 4.94 | Q116: 10.31 | R116: 96 | S116: 4.78 | T116: A | U116: 544 | V116: A+++ | W116: 8.58 | X116: 5.2 | Y116: 213 | Z116: 1
A117: 117 | C117: 2,5+4,2 | D117: 1.94 | E117: 3.26 | I117: 1.7 | J117: 5.2 | K117: 6.4 | L117: 0.35 | M117: 1.09 | N117: 2.3 | O117: 1.55 | P117: 4.94 | Q117: 10.41 | R117: 96 | S117: 4.8 | T117: A | U117: 542 | V117: A+++ | W117: 8.56 | X117: 5.2 | Y117: 213 | Z117: 1
A118: 118 | C118: 2,5+5,0 | D118: 1.73 | E118: 3.47 | I118: 1.7 | J118: 5.2 | K118: 6.5 | L118: 0.35 | M118: 1.06 | N118: 2.14 | O118: 1.55 | P118: 4.81 | Q118: 9.68 | R118: 96 | S118: 4.92 | T118: A | U118: 529 | V118: A+++ | W118: 8.53 | X118: 5.2 | Y118: 214 | Z118: 1
A119: 119 | C119: 3,5+3,5 | D119: 2.6 | E119: 2.6 | I119: 1.7 | J119: 5.2 | K119: 6.4 | L119: 0.35 | M119: 1.08 | N119: 2.28 | O119: 1.55 | P119: 4.9 | Q119: 10.31 | R119: 96 | S119: 4.82 | T119: A | U119: 540 | V119: A+++ | W119: 8.57 | X119: 5.2 | Y119: 213 | Z119: 1
A120: 120 | C120: 3,5+4,2 | D120: 2.36 | E120: 2.84 | I120: 1.7 | J120: 5.2 | K120: 6.4 | L120: 0.35 | M120: 1.08 | N120: 2.26 | O120: 1.55 | P120: 4.9 | Q120: 10.21 | R120: 96 | S120: 4.83 | T120: A | U120: 539 | V120: A+++ | W120: 8.55 | X120: 5.2 | Y120: 213 | Z120: 1
A121: 121 | C121: 3,5+5,0 | D121: 2.14 | E121: 3.06 | I121: 1.7 | J121: 5.2 | K121: 6.6 | L121: 0.35 | M121: 1.06 | N121: 2.19 | O121: 1.55 | P121: 4.81 | Q121: 9.89 | R121: 96 | S121: 4.94 | T121: A | U121: 527 | V121: A+++ | W121: 8.5 | X121: 5.2 | Y121: 215 | Z121: 1
